Workbook

Sheet Basic (hidden)
E5: P | F5: M | G5: T | H5: p | I5: m | J5: t
D6: Q
D7: M
D8: T
D9: fM
D10: fT
D11: bM
D12: bT
D13: sM
D14: sT
D16: QP | E16: QP | F16: QM
D17: MP | E17: MP | F17: MM
D18: TP | E18: TP | F18: TM
D19: fMP | E19: fMP | F19: fMM
D20: fTP | E20: fTP | F20: fTM
D21: bMP | E21: bMP | F21: bMM
D22: bTP | E22: bTP | F22: bTM
D23: sMP | E23: sMP | F23: sMM
D24: sTP | E24: sTP | F24: sTM
D26: QM | E26: QM | F26: QM
D27: MM | E27: MM | F27: MM
D28: TM | E28: TM | F28: TM
D29: fMM | E29: fMM | F29: fMM
D30: fTM | E30: fTM | F30: fTM
D31: bMM | E31: bMM | F31: bMM
D32: bTM | E32: bTM | F32: bTM
D33: sMM | E33: sMM | F33: sMM
D34: sTM | E34: sTM | F34: sTM
D36: QT | E36: QT | F36: QM
D37: MT | E37: MT | F37: MM
D38: TT | E38: TT | F38: TM
D39: fMT | E39: fMT | F39: fMM
D40: fTT | E40: fTT | F40: fTM
D41: bMT | E41: bMT | F41: bMM
D42: bTT | E42: bTT | F42: bTM
D43: sMT | E43: sMT | F43: sMM
D44: sTT | E44: sTT | F44: sTM

Sheet Input
A1: Span | B1: Angle(deg) | C1: EI/GJ
A2: 1,3 | B2: 25 | C2: =2.1*646932/0.81/970431 -> 1.728336287
A3: 2 | B3: 40 | C3: =2.1*955893/0.81/1348742 -> 1.837446384
A5: I1,3/I2 | B5: =646932/955893 -> 0.6767828617

Sheet 3spanFixed (hidden)
D12: Span | E12: 1 | F12: 1 | G12: 2 | H12: 2 | I12: 3 | J12: 3
D13: Location | E13: L | F13: R | G13: L | H13: R | I13: L | J13: R
D14: k | E14: =+Input!C2 -> 1.728336287 | F14: =+Input!C2 -> 1.728336287 | G14: =+Input!C3 -> 1.837446384 | H14: =+Input!C3 -> 1.837446384 | I14: =+Input!C2 -> 1.728336287 | J14: =+Input!C2 -> 1.728336287
D15: I1/I2 | E15: 1 | F15: 1 | G15: =+Input!B5 -> 0.6767828617 | H15: =+Input!B5 -> 0.6767828617 | I15: 1 | J15: 1
D16: βMM | G16: =+CGIL2!F929 -> 0.2489591222 | H16: =+CGIL2!F937 -> -0.1306800527 | I16: =+CGIL1!F929 -> 0.1492392002
D17: βTM | G17: =+CGIL2!F938 -> 0.008318226937 | H17: =+CGIL2!F946 -> -0.007350713708 | I17: =+CGIL1!F938 -> 0.001914940206
D18: k(βTM) | F18: =+F$14*F17 -> 0 | G18: =+G$14*G17 -> 0.01528429601 | H18: =+H$14*H17 -> -0.01350654232 | I18: =+I$14*I17 -> 0.003309660646
D19: βMM+k(βTM) | E19: =+E16+E18 -> 0 | F19: =+F16+F18 -> 0 | G19: 0.2642434182 | H19: -0.1441865951 | I19: 0.1525488609 | J19: =+J16+J18 -> 0
D20: βMM | F20: =+CGIL1!N937 -> 0.1492392002 | G20: =+CGIL2!N929 -> -0.1306800527 | H20: =+CGIL2!N937 -> 0.2489591222
D21: βTM | F21: =+CGIL1!N946 -> 0.001914940206 | G21: =+CGIL2!N938 -> -0.007350713708 | H21: =+CGIL2!N946 -> 0.008318226937
D22: k(βTM) | F22: =+F$14*F21 -> 0.003309660646 | G22: =+G$14*G21 -> -0.01350654232 | H22: =+H$14*H21 -> 0.01528429601 | I22: =+I$14*I21 -> 0
D23: βMM+k(βTM) | E23: =+E20+E22 -> 0 | F23: =+F20+F22 -> 0.1525488609 | G23: =+G20+G22 -> -0.1441865951 | H23: =+H20+H22 -> 0.2642434182 | I23: =+I20+I22 -> 0 | J23: =+J20+J22 -> 0
D25: Basic Load | F25: 1 | G25: -1 | H25: 1 | I25: -1
D26: Dis Load | G26: =+G25 -> -1 | H26: =+G25 -> -1 | I26: =+I25 -> -1
D27: Temp1 | E27: =+E26*E$19 -> 0 | F27: =+F26*F$19 -> 0 | G27: -0.2642434182 | H27: 0.1441865951 | I27: -0.1525488609 | J27: 0
D28: Dis Load | F28: =+F25 -> 1 | G28: =+H25 -> 1 | H28: =+H25 -> 1
D29: Temp1 | E29: =+E28*E$23 -> 0 | F29: =+F28*F$23 -> 0.1525488609 | G29: -0.1441865951 | H29: 0.2642434182 | I29: 0 | J29: 0
D30: Temp2 | E30: =+E27+E29 -> 0 | F30: 0.1525488609 | G30: -0.4084300132 | H30: 0.4084300132 | I30: -0.1525488609 | J30: 0
D31: Temp3 | E31: =+E$15*E30 -> 0 | F31: =+F$15*F30 -> 0.1525488609 | G31: -0.2764184332 | H31: 0.2764184332 | I31: -0.1525488609 | J31: 0
D32: Temp4 | E32: =+E$25*E31 -> 0 | F32: =+F$25*F31 -> 0.1525488609 | G32: 0.2764184332 | H32: 0.2764184332 | I32: 0.1525488609 | J32: 0
D34: Basic Load | F34: 1 | G34: -1 | H34: -1 | I34: 1
D35: Dis Load | G35: =+G34 -> -1 | H35: =+G34 -> -1 | I35: =+I34 -> 1
D36: Temp1 | E36: =+E35*E$19 -> 0 | F36: =+F35*F$19 -> 0 | G36: =+G35*G$19 -> -0.2642434182 | H36: =+H35*H$19 -> 0.1441865951 | I36: =+I35*I$19 -> 0.1525488609 | J36: =+J35*J$19 -> 0
D37: Dis Load | F37: =+F34 -> 1 | G37: =+H34 -> -1 | H37: =+H34 -> -1
D38: Temp1 | E38: =+E37*E$23 -> 0 | F38: =+F37*F$23 -> 0.1525488609 | G38: =+G37*G$23 -> 0.1441865951 | H38: =+H37*H$23 -> -0.2642434182 | I38: =+I37*I$23 -> 0 | J38: =+J37*J$23 -> 0
D39: Temp2 | E39: =+E36+E38 -> 0 | F39: 0.1525488609 | G39: -0.1200568231 | H39: -0.1200568231 | I39: 0.1525488609 | J39: 0
D40: Temp3 | E40: =+E$15*E39 -> 0 | F40: =+F$15*F39 -> 0.1525488609 | G40: =+G$15*G39 -> -0.08125240031 | H40: =+H$15*H39 -> -0.08125240031 | I40: =+I$15*I39 -> 0.1525488609 | J40: =+J$15*J39 -> 0
D41: Temp4 | E41: =+E$34*E40 -> 0 | F41: =+F$34*F40 -> 0.1525488609 | G41: 0.08125240031 | H41: 0.08125240031 | I41: 0.1525488609 | J41: 0
C43: δ(1)(1) | D43: =+SUM(E32:J32) -> 0.857934588
C44: δ(2)(2) | D44: =+SUM(E41:J41) -> 0.4676025224
C47: Span1 | E47: fMM(ρ,φ1) | F47: fTM(ρ,φ1) | G47: k | H47: kfTM(ρ,φ1) | I47: fM(ρ,φ1) | J47: Xp(1)(ω) | K47: Xp(2)(ω) | P47: bmm(ρ,φ1) | Q47: btm(ρ,φ1) | R47: btm(ρ,φ1) | S47: bm(ρ,φ1) | T47: XM(1)(ω) | U47: XM(2)(ω) | AA47: smm(ρ,φ1) | AB47: stm(ρ,φ1) | AC47: stm(ρ,φ1) | AD47: sm(ρ,φ1) | AE47: XT(1)(ω) | AF47: XT(2)(ω)
E48: R^2/EI1 | F48: R^2/EI1 | H48: R^2/EI1 | I48: R^2/EI1 | J48: R | K48: R
D49: 0 | E49: =+CGIL1!N911 -> 0 | F49: =+CGIL1!N920 -> 0 | G49: =+Input!$C$2 -> 1.728336287 | H49: =+F49*G49 -> 0 | I49: =E49+H49 -> 0 | J49: =-I49/$D$43 -> 0 | K49: =-I49/$D$44 -> 0 | P49: =CGIL1!N929 -> -0.07605248158 | Q49: =+CGIL1!N938 -> -0.001682078951 | R49: =+Q49*Input!$C$2 -> -0.002907198087 | S49: =P49+R49 -> -0.07895967967 | T49: =-S49/$D$43 -> 0.09203461519 | U49: =-S49/$D$44 -> 0.1688606795 | AA49: =+CGIL1!N947 -> 0 | AB49: =+AA49 -> 0 | AC49: =+AB49*Input!$C$2 -> 0 | AD49: =AA49+AC49 -> 0 | AE49: =-AD49/$D$43 -> 0 | AF49: =-AD49/$D$44 -> 0
D50: =+D49+0.125 -> 0.125 | E50: =-CGIL1!N948 -> 0.004081996503 | F50: =+CGIL1!N921 -> 8.969642274e-05 | G50: =+Input!$C$2 -> 1.728336287 | H50: =+F50*G50 -> 0.0001550255822 | I50: =E50+H50 -> 0.004237022086 | J50: -0.004938630689 | K50: =-I50/$D$44 -> -0.009061161741 | P50: =CGIL1!N930 -> -0.07242167065 | Q50: =+CGIL1!N939 -> -0.001569859605 | R50: =+Q50*Input!$C$2 -> -0.00271324532 | S50: =P50+R50 -> -0.07513491597 | T50: =-S50/$D$43 -> 0.08757650876 | U50: =-S50/$D$44 -> 0.1606811605 | AA50: =+CGIL1!N948 -> -0.004081996503 | AB50: =+AA50 -> -0.004081996503 | AC50: =+AB50*Input!$C$2 -> -0.007055062679 | AD50: =AA50+AC50 -> -0.01113705918 | AE50: =-AD50/$D$43 -> 0.01298124512 | AF50: =-AD50/$D$44 -> 0.02381736336
D51: =+D50+0.125 -> 0.25 | E51: =-CGIL1!N949 -> 0.007768319549 | F51: =+CGIL1!N922 -> 0.0001673479215 | G51: =+Input!$C$2 -> 1.728336287 | H51: 0.0002892334853 | I51: 0.008057553034 | J51: -0.009391803462 | K51: -0.01723162868 | P51: =CGIL1!N931 -> -0.06155049788 | Q51: =+CGIL1!N940 -> -0.001243997158 | R51: =+Q51*Input!$C$2 -> -0.002150045429 | S51: -0.06370054331 | T51: 0.07424871802 | U51: 0.136227972 | AA51: =+CGIL1!N949 -> -0.007768319549 | AB51: -0.007768319549 | AC51: =+AB51*Input!$C$2 -> -0.01342626856 | AD51: -0.02119458811 | AE51: 0.02470420054 | AF51: 0.04532607738
D52: 0.375 | E52: =-CGIL1!N950 -> 0.01066561307 | F52: =+CGIL1!N923 -> 0.000222086039 | G52: =+Input!$C$2 -> 1.728336287 | H52: 0.0003838393601 | I52: 0.01104945243 | J52: -0.01287913157 | K52: -0.02363001033 | P52: =CGIL1!N932 -> -0.04350264902 | Q52: =+CGIL1!N941 -> -0.0007368151611 | R52: =+Q52*Input!$C$2 -> -0.00127346438 | S52: -0.0447761134 | T52: 0.05219059125 | U52: 0.0957567833 | AA52: =+CGIL1!N950 -> -0.01066561307 | AB52: -0.01066561307 | AC52: =+AB52*Input!$C$2 -> -0.0184337661 | AD52: -0.02909937917 | AE52: 0.03391794616 | AF52: 0.06223101412
D53: 0.5 | E53: =-CGIL1!N951 -> 0.01238514552 | F53: =+CGIL1!N924 -> 0.0002453883602 | G53: =+Input!$C$2 -> 1.728336287 | H53: 0.0004241136073 | I53: 0.01280925912 | J53: -0.01493034469 | K53: -0.02739347739 | P53: =CGIL1!N933 -> -0.01838395289 | Q53: =+CGIL1!N942 -> -0.0001019757438 | R53: =+Q53*Input!$C$2 -> -0.0001762483783 | S53: -0.01856020127 | T53: 0.02163358551 | U53: 0.03969226081 | AA53: =+CGIL1!N951 -> -0.01238514552 | AB53: -0.01238514552 | AC53: =+AB53*Input!$C$2 -> -0.02140569641 | AD53: -0.03379084193 | AE53: 0.03938626837 | AF53: 0.07226402835
D54: 0.625 | E54: =-CGIL1!N952 -> 0.01254509641 | F54: =+CGIL1!N925 -> 0.0002322343358 | G54: =+Input!$C$2 -> 1.728336287 | H54: 0.0004013790296 | I54: 0.01294647544 | J54: -0.01509028266 | K54: -0.02768692387 | P54: =CGIL1!N934 -> 0.01365808848 | Q54: =+CGIL1!N943 -> 0.0005858350854 | R54: =+Q54*Input!$C$2 -> 0.001012520036 | S54: 0.01467060852 | T54: -0.01709991499 | U54: -0.03137410048 | AA54: =+CGIL1!N952 -> -0.01254509641 | AB54: -0.01254509641 | AC54: =+AB54*Input!$C$2 -> -0.02168214534 | AD54: -0.03422724175 | AE54: 0.03989493165 | AF54: 0.07319729922
D55: 0.75 | E55: =-CGIL1!N953 -> 0.01077281224 | F55: =+CGIL1!N926 -> 0.0001822405548 | G55: =+Input!$C$2 -> 1.728336287 | H55: 0.0003149729639 | I55: 0.01108778521 | J55: -0.01292381186 | K55: -0.02371198759 | P55: =CGIL1!N935 -> 0.05243495504 | Q55: =+CGIL1!N944 -> 0.001231346063 | R55: =+Q55*Input!$C$2 -> 0.002128180083 | S55: 0.05456313512 | T55: -0.06359824616 | U55: -0.1166869991 | AA55: =+CGIL1!N953 -> -0.01077281224 | AB55: -0.01077281224 | AC55: =+AB55*Input!$C$2 -> -0.01861904231 | AD55: -0.02939185455 | AE55: 0.03425885255 | AF55: 0.06285649274
D56: 0.875 | E56: =-CGIL1!N954 -> 0.006707021666 | F56: =+CGIL1!N927 -> 0.0001007687573 | G56: =+Input!$C$2 -> 1.728336287 | H56: 0.0001741622998 | I56: 0.006881183966 | J56: -0.008020639408 | K56: -0.01471588291 | P56: =CGIL1!N936 -> 0.0977179466 | Q56: =+CGIL1!N945 -> 0.001719261269 | R56: =+Q56*Input!$C$2 -> 0.002971461638 | S56: 0.1006894082 | T56: -0.1173625701 | U56: -0.2153311914 | AA56: =+CGIL1!N954 -> -0.006707021666 | AB56: -0.006707021666 | AC56: =+AB56*Input!$C$2 -> -0.01159198892 | AD56: -0.01829901059 | AE56: 0.02132914425 | AF56: 0.03913368665
D57: 1 | E57: =-CGIL1!N955 -> 0 | F57: =+CGIL1!N928 -> 0 | G57: =+Input!$C$2 -> 1.728336287 | H57: 0 | I57: 0 | J57: 0 | K57: 0 | P57: =CGIL1!N937 -> 0.1492392002 | Q57: =+CGIL1!N946 -> 0.001914940206 | R57: =+Q57*Input!$C$2 -> 0.003309660646 | S57: 0.1525488609 | T57: -0.1778094309 | U57: -0.3262361805 | AA57: =+CGIL1!N955 -> 0 | AB57: 0 | AC57: =+AB57*Input!$C$2 -> 0 | AD57: 0 | AE57: 0 | AF57: 0
C59: Span2(1) | E59: fMM(ρ,0) | F59: fMM(ρ,φ2) | G59: Sum | H59: fTM(ρ,0) | I59: fTM(ρ,φ2) | J59: Sum | N59: Xp(1)(ω) | P59: bmm(ρ,0) | Q59: bmm(ρ,φ2) | R59: Sum | S59: btm(ρ,0) | T59: btm(ρ,φ2) | U59: Sum | Y59: XM(1)(ω) | AA59: smm(ρ,0) | AB59: smm(ρ,φ2) | AC59: Sum | AD59: stm(ρ,0) | AE59: stm(ρ,φ2) | AF59: Sum | AJ59: XT(1)(ω)
E60: R^2/EI2 | F60: R^2/EI2 | G60: R^2/EI2 | H60: R^2/EI2 | I60: R^2/EI2 | J60: R^2/EI2 | N60: R
D61: 0 | E61: =-CGIL2!F911 -> 0 | F61: =+CGIL2!N911 -> 0 | G61: =E61+F61 -> 0 | H61: =-CGIL2!F920 -> 0 | I61: =+CGIL2!N920 -> 0 | J61: =H61+I61 -> 0 | K61: =+J61*Input!$C$3 -> 0 | L61: =G61+K61 -> 0 | M61: =-L61/$D$43 -> 0 | N61: =+M61*Input!$B$5 -> 0 | P61: =-CGIL2!F929 -> -0.2489591222 | Q61: =+CGIL2!N929 -> -0.1306800527 | R61: =P61+Q61 -> -0.3796391749 | S61: =-CGIL2!F938 -> -0.008318226937 | T61: =+CGIL2!N938 -> -0.007350713708 | U61: =S61+T61 -> -0.01566894064 | V61: =+U61*Input!$C$3 -> -0.02879083833 | W61: =R61+V61 -> -0.4084300132 | X61: =-W61/$D$43 -> 0.4760619503 | Y61: =+X61*Input!$B$5 -> 0.3221905691 | AA61: =-CGIL2!F947 -> 0 | AB61: =+CGIL2!N947 -> 0 | AC61: =AA61+AB61 -> 0 | AD61: =+AA61 -> 0 | AE61: =+AB61 -> 0 | AF61: =AD61+AE61 -> 0 | AG61: =+AF61*Input!$C$3 -> 0 | AH61: =AC61+AG61 -> 0 | AI61: =-AH61/$D$43 -> 0 | AJ61: =+AI61*Input!$B$5 -> 0
D62: =+D61+0.125 -> 0.125 | E62: =-CGIL2!F912 -> 0.01802723106 | F62: =+CGIL2!N912 -> 0.01121733314 | G62: 0.0292445642 | H62: =-CGIL2!F921 -> 0.0007007025045 | I62: =+CGIL2!N921 -> 0.0006270674957 | J62: =H62+I62 -> 0.00132777 | K62: =+J62*Input!$C$3 -> 0.002439706186 | L62: 0.03168427038 | M62: -0.03693086958 | N62: =+M62*Input!$B$5 -> -0.0249941796 | P62: =-CGIL2!F930 -> -0.1654987964 | Q62: =+CGIL2!N930 -> -0.1242665343 | R62: =P62+Q62 -> -0.2897653306 | S62: =-CGIL2!F939 -> -0.007478661653 | T62: =+CGIL2!N939 -> -0.006857194078 | U62: =S62+T62 -> -0.01433585573 | V62: =+U62*Input!$C$3 -> -0.02634136628 | W62: =R62+V62 -> -0.3161066969 | X62: =-W62/$D$43 -> 0.3684508135 | Y62: =+X62*Input!$B$5 -> 0.249361196 | AA62: =-CGIL2!F948 -> -0.01802723106 | AB62: =+CGIL2!N948 -> -0.01121733314 | AC62: =AA62+AB62 -> -0.0292445642 | AD62: =+AA62 -> -0.01802723106 | AE62: =+AB62 -> -0.01121733314 | AF62: =AD62+AE62 -> -0.0292445642 | AG62: =+AF62*Input!$C$3 -> -0.05373531874 | AH62: =AC62+AG62 -> -0.08297988294 | AI62: =-AH62/$D$43 -> 0.09672052403 | AJ62: =+AI62*Input!$B$5 -> 0.06545879304
D63: =+D62+0.125 -> 0.25 | E63: =-CGIL2!F913 -> 0.02913043067 | F63: =+CGIL2!N913 -> 0.02131802676 | G63: 0.05044845743 | H63: =-CGIL2!F922 -> 0.001268517236 | I63: =+CGIL2!N922 -> 0.001169419275 | J63: 0.002437936511 | K63: =+J63*Input!$C$3 -> 0.004479577627 | L63: 0.05492803506 | M63: -0.06402356989 | N63: =+M63*Input!$B$5 -> -0.04333005484 | P63: =-CGIL2!F931 -> -0.09047152729 | Q63: =+CGIL2!N931 -> -0.1051198158 | R63: -0.195591343 | S63: =-CGIL2!F940 -> -0.005373394793 | T63: =+CGIL2!N940 -> -0.005425417341 | U63: -0.01079881213 | V63: =+U63*Input!$C$3 -> -0.01984223831 | W63: -0.2154335813 | X63: 0.251107234 | Y63: =+X63*Input!$B$5 -> 0.1699450724 | AA63: =-CGIL2!F949 -> -0.02913043067 | AB63: =+CGIL2!N949 -> -0.02131802676 | AC63: -0.05044845743 | AD63: -0.02913043067 | AE63: -0.02131802676 | AF63: -0.05044845743 | AG63: =+AF63*Input!$C$3 -> -0.09269633569 | AH63: -0.1431447931 | AI63: 0.1668481433 | AJ63: =+AI63*Input!$B$5 -> 0.1129199639
D64: 0.375 | E64: =-CGIL2!F914 -> 0.03409568868 | F64: =+CGIL2!N914 -> 0.02920178825 | G64: 0.06329747693 | H64: =-CGIL2!F923 -> 0.001618389224 | I64: =+CGIL2!N923 -> 0.001550832939 | J64: 0.003169222163 | K64: =+J64*Input!$C$3 -> 0.005823275804 | L64: 0.06912075274 | M64: -0.08056646008 | N64: =+M64*Input!$B$5 -> -0.05452599941 | P64: =-CGIL2!F932 -> -0.025002946 | Q64: =+CGIL2!N932 -> -0.07352035112 | R64: -0.09852329712 | S64: =-CGIL2!F941 -> -0.002573076933 | T64: =+CGIL2!N941 -> -0.003201016014 | U64: -0.005774092947 | V64: =+U64*Input!$C$3 -> -0.01060958621 | W64: -0.1091328833 | X64: 0.1272042005 | Y64: =+X64*Input!$B$5 -> 0.08608962281 | AA64: =-CGIL2!F950 -> -0.03409568868 | AB64: =+CGIL2!N950 -> -0.02920178825 | AC64: -0.06329747693 | AD64: -0.03409568868 | AE64: -0.02920178825 | AF64: -0.06329747693 | AG64: =+AF64*Input!$C$3 -> -0.1163057201 | AH64: -0.179603197 | AI64: 0.2093436954 | AJ64: =+AI64*Input!$B$5 -> 0.1416802252
D65: 0.5 | E65: =-CGIL2!F915 -> 0.03380083459 | F65: =+CGIL2!N915 -> 0.03380083459 | G65: 0.06760166917 | H65: =-CGIL2!F924 -> 0.001711948347 | I65: =+CGIL2!N924 -> 0.001711948347 | J65: 0.003423896694 | K65: =+J65*Input!$C$3 -> 0.006291226601 | L65: 0.07389289577 | M65: -0.08612882241 | N65: =+M65*Input!$B$5 -> -0.0582905109 | P65: =-CGIL2!F933 -> 0.02993205146 | Q65: =+CGIL2!N933 -> -0.02993205146 | R65: 0 | S65: =-CGIL2!F942 -> 0.0004243392091 | T65: =+CGIL2!N942 -> -0.0004243392091 | U65: -1.32760556e-16 | V65: =+U65*Input!$C$3 -> -2.439404036e-16 | W65: -2.439404036e-16 | X65: 2.843345017e-16 | Y65: =+X65*Input!$B$5 -> 1.924327178e-16 | AA65: =-CGIL2!F951 -> -0.03380083459 | AB65: =+CGIL2!N951 -> -0.03380083459 | AC65: -0.06760166917 | AD65: -0.03380083459 | AE65: -0.03380083459 | AF65: -0.06760166917 | AG65: =+AF65*Input!$C$3 -> -0.1242144426 | AH65: -0.1918161118 | AI65: 0.223578947 | AJ65: =+AI65*Input!$B$5 -> 0.1513143995
D66: 0.625 | E66: =-CGIL2!F916 -> 0.02920178825 | F66: =+CGIL2!N916 -> 0.03409568868 | G66: 0.06329747693 | H66: =-CGIL2!F925 -> 0.001550832939 | I66: =+CGIL2!N925 -> 0.001618389224 | J66: 0.003169222163 | K66: =+J66*Input!$C$3 -> 0.005823275804 | L66: 0.06912075274 | M66: -0.08056646008 | N66: =+M66*Input!$B$5 -> -0.05452599941 | P66: =-CGIL2!F934 -> 0.07352035112 | Q66: =+CGIL2!N934 -> 0.025002946 | R66: 0.09852329712 | S66: =-CGIL2!F943 -> 0.003201016014 | T66: =+CGIL2!N943 -> 0.002573076933 | U66: 0.005774092947 | V66: =+U66*Input!$C$3 -> 0.01060958621 | W66: 0.1091328833 | X66: -0.1272042005 | Y66: =+X66*Input!$B$5 -> -0.08608962281 | AA66: =-CGIL2!F952 -> -0.02920178825 | AB66: =+CGIL2!N952 -> -0.03409568868 | AC66: -0.06329747693 | AD66: -0.02920178825 | AE66: -0.03409568868 | AF66: -0.06329747693 | AG66: =+AF66*Input!$C$3 -> -0.1163057201 | AH66: -0.179603197 | AI66: 0.2093436954 | AJ66: =+AI66*Input!$B$5 -> 0.1416802252
D67: 0.75 | E67: =-CGIL2!F917 -> 0.02131802676 | F67: =+CGIL2!N917 -> 0.02913043067 | G67: 0.05044845743 | H67: =-CGIL2!F926 -> 0.001169419275 | I67: =+CGIL2!N926 -> 0.001268517236 | J67: 0.002437936511 | K67: =+J67*Input!$C$3 -> 0.004479577627 | L67: 0.05492803506 | M67: -0.06402356989 | N67: =+M67*Input!$B$5 -> -0.04333005484 | P67: =-CGIL2!F935 -> 0.1051198158 | Q67: =+CGIL2!N935 -> 0.09047152729 | R67: 0.195591343 | S67: =-CGIL2!F944 -> 0.005425417341 | T67: =+CGIL2!N944 -> 0.005373394793 | U67: 0.01079881213 | V67: =+U67*Input!$C$3 -> 0.01984223831 | W67: 0.2154335813 | X67: -0.251107234 | Y67: =+X67*Input!$B$5 -> -0.1699450724 | AA67: =-CGIL2!F953 -> -0.02131802676 | AB67: =+CGIL2!N953 -> -0.02913043067 | AC67: -0.05044845743 | AD67: -0.02131802676 | AE67: -0.02913043067 | AF67: -0.05044845743 | AG67: =+AF67*Input!$C$3 -> -0.09269633569 | AH67: -0.1431447931 | AI67: 0.1668481433 | AJ67: =+AI67*Input!$B$5 -> 0.1129199639
D68: 0.875 | E68: =-CGIL2!F918 -> 0.01121733314 | F68: =+CGIL2!N918 -> 0.01802723106 | G68: 0.0292445642 | H68: =-CGIL2!F927 -> 0.0006270674957 | I68: =+CGIL2!N927 -> 0.0007007025045 | J68: 0.00132777 | K68: =+J68*Input!$C$3 -> 0.002439706186 | L68: 0.03168427038 | M68: -0.03693086958 | N68: =+M68*Input!$B$5 -> -0.0249941796 | P68: =-CGIL2!F936 -> 0.1242665343 | Q68: =+CGIL2!N936 -> 0.1654987964 | R68: 0.2897653306 | S68: =-CGIL2!F945 -> 0.006857194078 | T68: =+CGIL2!N945 -> 0.007478661653 | U68: 0.01433585573 | V68: =+U68*Input!$C$3 -> 0.02634136628 | W68: 0.3161066969 | X68: -0.3684508135 | Y68: =+X68*Input!$B$5 -> -0.249361196 | AA68: =-CGIL2!F954 -> -0.01121733314 | AB68: =+CGIL2!N954 -> -0.01802723106 | AC68: -0.0292445642 | AD68: -0.01121733314 | AE68: -0.01802723106 | AF68: -0.0292445642 | AG68: =+AF68*Input!$C$3 -> -0.05373531874 | AH68: -0.08297988294 | AI68: 0.09672052403 | AJ68: =+AI68*Input!$B$5 -> 0.06545879304
D69: 1 | E69: =-CGIL2!F919 -> 0 | F69: =+CGIL2!N919 -> 0 | G69: 0 | H69: =-CGIL2!F928 -> 0 | I69: =+CGIL2!N928 -> 0 | J69: 0 | K69: =+J69*Input!$C$3 -> 0 | L69: 0 | M69: 0 | N69: =+M69*Input!$B$5 -> 0 | P69: =-CGIL2!F937 -> 0.1306800527 | Q69: =+CGIL2!N937 -> 0.2489591222 | R69: 0.3796391749 | S69: =-CGIL2!F946 -> 0.007350713708 | T69: =+CGIL2!N946 -> 0.008318226937 | U69: 0.01566894064 | V69: =+U69*Input!$C$3 -> 0.02879083833 | W69: 0.4084300132 | X69: -0.4760619503 | Y69: =+X69*Input!$B$5 -> -0.3221905691 | AA69: =-CGIL2!F955 -> 0 | AB69: =+CGIL2!N955 -> 0 | AC69: 0 | AD69: 0 | AE69: 0 | AF69: 0 | AG69: =+AF69*Input!$C$3 -> 0 | AH69: 0 | AI69: 0 | AJ69: =+AI69*Input!$B$5 -> 0
N71: Xp(2)(ω) | Y71: XM(2)(ω) | AJ71: XT(2)(ω)
C72: Span2(2) | D72: 0 | G72: =+E61-F61 -> 0 | J72: =H61-I61 -> 0 | K72: =+J72*Input!$C$3 -> 0 | L72: =G72+K72 -> 0 | M72: =-L72/$D$44 -> 0 | N72: =+M72*Input!$B$5 -> 0 | R72: =+P61-Q61 -> -0.1182790694 | U72: =S61-T61 -> -0.0009675132294 | V72: =+U72*Input!$C$3 -> -0.001777753685 | W72: =R72+V72 -> -0.1200568231 | X72: =-W72/$D$44 -> 0.2567497337 | Y72: =+X72*Input!$B$5 -> 0.1737638195 | AC72: =+AA61-AB61 -> 0 | AF72: =AD61-AE61 -> 0 | AG72: =+AF72*Input!$C$3 -> 0 | AH72: =AC72+AG72 -> 0 | AI72: =-AH72/$D$44 -> 0 | AJ72: =+AI72*Input!$B$5 -> 0
D73: =+D72+0.125 -> 0.125 | G73: 0.006809897926 | J73: 7.363500883e-05 | K73: =+J73*Input!$C$3 -> 0.0001353003807 | L73: 0.006945198306 | M73: -0.01485278196 | N73: =+M73*Input!$B$5 -> -0.01005210828 | R73: -0.04123226209 | U73: -0.0006214675746 | V73: =+U73*Input!$C$3 -> -0.001141913348 | W73: =R73+V73 -> -0.04237417544 | X73: =-W73/$D$44 -> 0.09062007456 | Y73: =+X73*Input!$B$5 -> 0.06133011339 | AC73: -0.006809897926 | AF73: -0.006809897926 | AG73: =+AF73*Input!$C$3 -> -0.01251282232 | AH73: =AC73+AG73 -> -0.01932272025 | AI73: 0.04132295983 | AJ73: =+AI73*Input!$B$5 -> 0.027966671
D74: =+D73+0.125 -> 0.25 | G74: 0.007812403903 | J74: 9.909796045e-05 | K74: =+J74*Input!$C$3 -> 0.0001820871891 | L74: 0.007994491092 | M74: -0.0170967664 | N74: =+M74*Input!$B$5 -> -0.01157079849 | R74: 0.01464828847 | U74: 5.20225476e-05 | V74: =+U74*Input!$C$3 -> 9.558864199e-05 | W74: 0.01474387711 | X74: -0.03153079037 | Y74: =+X74*Input!$B$5 -> -0.02133949854 | AC74: -0.007812403903 | AF74: -0.007812403903 | AG74: =+AF74*Input!$C$3 -> -0.0143548733 | AH74: -0.02216727721 | AI74: 0.04740623959 | AJ74: =+AI74*Input!$B$5 -> 0.03208373049
D75: 0.375 | G75: 0.004893900431 | J75: 6.75562857e-05 | K75: =+J75*Input!$C$3 -> 0.0001241310529 | L75: 0.005018031484 | M75: -0.0107314038 | N75: =+M75*Input!$B$5 -> -0.007262830171 | R75: 0.04851740513 | U75: 0.000627939081 | V75: =+U75*Input!$C$3 -> 0.001153804394 | W75: 0.04967120952 | X75: -0.1062252814 | Y75: =+X75*Input!$B$5 -> -0.07189144993 | AC75: -0.004893900431 | AF75: -0.004893900431 | AG75: =+AF75*Input!$C$3 -> -0.008992279651 | AH75: -0.01388618008 | AI75: 0.02969654657 | AJ75: =+AI75*Input!$B$5 -> 0.02009811377
D76: 0.5 | G76: 0 | J76: 7.437626903e-17 | K76: =+J76*Input!$C$3 -> 1.366624066e-16 | L76: 1.366624066e-16 | M76: -2.922619106e-16 | N76: =+M76*Input!$B$5 -> -1.977978522e-16 | R76: 0.05986410293 | U76: 0.0008486784181 | V76: =+U76*Input!$C$3 -> 0.001559401091 | W76: 0.06142350402 | X76: -0.1313583676 | Y76: =+X76*Input!$B$5 -> -0.08890109192 | AC76: 0 | AF76: 0 | AG76: =+AF76*Input!$C$3 -> 0 | AH76: 0 | AI76: 0 | AJ76: =+AI76*Input!$B$5 -> 0
D77: 0.625 | G77: -0.004893900431 | J77: -6.75562857e-05 | K77: =+J77*Input!$C$3 -> -0.0001241310529 | L77: -0.005018031484 | M77: 0.0107314038 | N77: =+M77*Input!$B$5 -> 0.007262830171 | R77: 0.04851740513 | U77: 0.000627939081 | V77: =+U77*Input!$C$3 -> 0.001153804394 | W77: 0.04967120952 | X77: -0.1062252814 | Y77: =+X77*Input!$B$5 -> -0.07189144993 | AC77: 0.004893900431 | AF77: 0.004893900431 | AG77: =+AF77*Input!$C$3 -> 0.008992279651 | AH77: 0.01388618008 | AI77: -0.02969654657 | AJ77: =+AI77*Input!$B$5 -> -0.02009811377
D78: 0.75 | G78: -0.007812403903 | J78: -9.909796045e-05 | K78: =+J78*Input!$C$3 -> -0.0001820871891 | L78: -0.007994491092 | M78: 0.0170967664 | N78: =+M78*Input!$B$5 -> 0.01157079849 | R78: 0.01464828847 | U78: 5.20225476e-05 | V78: =+U78*Input!$C$3 -> 9.558864199e-05 | W78: 0.01474387711 | X78: -0.03153079037 | Y78: =+X78*Input!$B$5 -> -0.02133949854 | AC78: 0.007812403903 | AF78: 0.007812403903 | AG78: =+AF78*Input!$C$3 -> 0.0143548733 | AH78: 0.02216727721 | AI78: -0.04740623959 | AJ78: =+AI78*Input!$B$5 -> -0.03208373049
D79: 0.875 | G79: -0.006809897926 | J79: -7.363500883e-05 | K79: =+J79*Input!$C$3 -> -0.0001353003807 | L79: -0.006945198306 | M79: 0.01485278196 | N79: =+M79*Input!$B$5 -> 0.01005210828 | R79: -0.04123226209 | U79: -0.0006214675746 | V79: =+U79*Input!$C$3 -> -0.001141913348 | W79: -0.04237417544 | X79: 0.09062007456 | Y79: =+X79*Input!$B$5 -> 0.06133011339 | AC79: 0.006809897926 | AF79: 0.006809897926 | AG79: =+AF79*Input!$C$3 -> 0.01251282232 | AH79: 0.01932272025 | AI79: -0.04132295983 | AJ79: =+AI79*Input!$B$5 -> -0.027966671
D80: 1 | G80: 0 | J80: 0 | K80: =+J80*Input!$C$3 -> 0 | L80: 0 | M80: 0 | N80: =+M80*Input!$B$5 -> 0 | R80: -0.1182790694 | U80: -0.0009675132294 | V80: =+U80*Input!$C$3 -> -0.001777753685 | W80: -0.1200568231 | X80: 0.2567497337 | Y80: =+X80*Input!$B$5 -> 0.1737638195 | AC80: 0 | AF80: 0 | AG80: =+AF80*Input!$C$3 -> 0 | AH80: 0 | AI80: 0 | AJ80: =+AI80*Input!$B$5 -> 0
C82: Span3 | E82: fmm(ρ,0) | F82: ftm(ρ,0) | G82: ftm(ρ,0) | H82: fm(ρ,0) | I82: Xp(1)(ω) | J82: Xp(2)(ω) | P82: bmm(ρ,0) | Q82: btm(ρ,0) | R82: btm(ρ,0) | S82: bm(ρ,0) | T82: XM(1)(ω) | U82: XM(2)(ω) | AA82: smm(ρ,0) | AB82: stm(ρ,0) | AC82: stm(ρ,0) | AD82: sm(ρ,0) | AE82: XT(1)(ω) | AF82: XT(2)(ω)
D83: 0 | E83: =-CGIL1!F947 -> 0 | F83: =CGIL1!F920 -> 0 | G83: =+F83*Input!$C$2 -> 0 | H83: =E83+G83 -> 0 | I83: =-(-H83/$D$43) -> 0 | J83: =-H83/$D$44 -> 0 | P83: =CGIL1!F929 -> 0.1492392002 | Q83: =CGIL1!F938 -> 0.001914940206 | R83: =+Q83*Input!$C$2 -> 0.003309660646 | S83: =P83+R83 -> 0.1525488609 | T83: =-(-S83/$D$43) -> 0.1778094309 | U83: =-S83/$D$44 -> -0.3262361805 | AA83: =+CGIL1!F947 -> 0 | AB83: =+AA83 -> 0 | AC83: =+AB83*Input!$C$2 -> 0 | AD83: =AA83+AC83 -> 0 | AE83: =-(-AD83/$D$43) -> 0 | AF83: =-AD83/$D$44 -> 0
D84: =+D83+0.125 -> 0.125 | E84: =-CGIL1!F948 -> -0.006707021666 | F84: =CGIL1!F921 -> -0.0001007687573 | G84: =+F84*Input!$C$2 -> -0.0001741622998 | H84: -0.006881183966 | I84: =-(-H84/$D$43) -> -0.008020639408 | J84: =-H84/$D$44 -> 0.01471588291 | P84: =CGIL1!F930 -> 0.0977179466 | Q84: =CGIL1!F939 -> 0.001719261269 | R84: =+Q84*Input!$C$2 -> 0.002971461638 | S84: =P84+R84 -> 0.1006894082 | T84: =-(-S84/$D$43) -> 0.1173625701 | U84: =-S84/$D$44 -> -0.2153311914 | AA84: =+CGIL1!F948 -> 0.006707021666 | AB84: =+AA84 -> 0.006707021666 | AC84: =+AB84*Input!$C$2 -> 0.01159198892 | AD84: =AA84+AC84 -> 0.01829901059 | AE84: =-(-AD84/$D$43) -> 0.02132914425 | AF84: =-AD84/$D$44 -> -0.03913368665
D85: =+D84+0.125 -> 0.25 | E85: =-CGIL1!F949 -> -0.01077281224 | F85: =CGIL1!F922 -> -0.0001822405548 | G85: =+F85*Input!$C$2 -> -0.0003149729639 | H85: -0.01108778521 | I85: -0.01292381186 | J85: 0.02371198759 | P85: =CGIL1!F931 -> 0.05243495504 | Q85: =CGIL1!F940 -> 0.001231346063 | R85: =+Q85*Input!$C$2 -> 0.002128180083 | S85: 0.05456313512 | T85: 0.06359824616 | U85: -0.1166869991 | AA85: =+CGIL1!F949 -> 0.01077281224 | AB85: 0.01077281224 | AC85: =+AB85*Input!$C$2 -> 0.01861904231 | AD85: 0.02939185455 | AE85: 0.03425885255 | AF85: -0.06285649274
D86: 0.375 | E86: =-CGIL1!F950 -> -0.01254509641 | F86: =CGIL1!F923 -> -0.0002322343358 | G86: =+F86*Input!$C$2 -> -0.0004013790296 | H86: -0.01294647544 | I86: -0.01509028266 | J86: 0.02768692387 | P86: =CGIL1!F932 -> 0.01365808848 | Q86: =CGIL1!F941 -> 0.0005858350854 | R86: =+Q86*Input!$C$2 -> 0.001012520036 | S86: 0.01467060852 | T86: 0.01709991499 | U86: -0.03137410048 | AA86: =+CGIL1!F950 -> 0.01254509641 | AB86: 0.01254509641 | AC86: =+AB86*Input!$C$2 -> 0.02168214534 | AD86: 0.03422724175 | AE86: 0.03989493165 | AF86: -0.07319729922
D87: 0.5 | E87: =-CGIL1!F951 -> -0.01238514552 | F87: =CGIL1!F924 -> -0.0002453883602 | G87: =+F87*Input!$C$2 -> -0.0004241136073 | H87: -0.01280925912 | I87: -0.01493034469 | J87: 0.02739347739 | P87: =CGIL1!F933 -> -0.01838395289 | Q87: =CGIL1!F942 -> -0.0001019757438 | R87: =+Q87*Input!$C$2 -> -0.0001762483783 | S87: -0.01856020127 | T87: -0.02163358551 | U87: 0.03969226081 | AA87: =+CGIL1!F951 -> 0.01238514552 | AB87: 0.01238514552 | AC87: =+AB87*Input!$C$2 -> 0.02140569641 | AD87: 0.03379084193 | AE87: 0.03938626837 | AF87: -0.07226402835
D88: 0.625 | E88: =-CGIL1!F952 -> -0.01066561307 | F88: =CGIL1!F925 -> -0.000222086039 | G88: =+F88*Input!$C$2 -> -0.0003838393601 | H88: -0.01104945243 | I88: -0.01287913157 | J88: 0.02363001033 | P88: =CGIL1!F934 -> -0.04350264902 | Q88: =CGIL1!F943 -> -0.0007368151611 | R88: =+Q88*Input!$C$2 -> -0.00127346438 | S88: -0.0447761134 | T88: -0.05219059125 | U88: 0.0957567833 | AA88: =+CGIL1!F952 -> 0.01066561307 | AB88: 0.01066561307 | AC88: =+AB88*Input!$C$2 -> 0.0184337661 | AD88: 0.02909937917 | AE88: 0.03391794616 | AF88: -0.06223101412
D89: 0.75 | E89: =-CGIL1!F953 -> -0.007768319549 | F89: =CGIL1!F926 -> -0.0001673479215 | G89: =+F89*Input!$C$2 -> -0.0002892334853 | H89: -0.008057553034 | I89: -0.009391803462 | J89: 0.01723162868 | P89: =CGIL1!F935 -> -0.06155049788 | Q89: =CGIL1!F944 -> -0.001243997158 | R89: =+Q89*Input!$C$2 -> -0.002150045429 | S89: -0.06370054331 | T89: -0.07424871802 | U89: 0.136227972 | AA89: =+CGIL1!F953 -> 0.007768319549 | AB89: 0.007768319549 | AC89: =+AB89*Input!$C$2 -> 0.01342626856 | AD89: 0.02119458811 | AE89: 0.02470420054 | AF89: -0.04532607738
D90: 0.875 | E90: =-CGIL1!F954 -> -0.004081996503 | F90: =CGIL1!F927 -> -8.969642274e-05 | G90: =+F90*Input!$C$2 -> -0.0001550255822 | H90: -0.004237022086 | I90: -0.004938630689 | J90: 0.009061161741 | P90: =CGIL1!F936 -> -0.07242167065 | Q90: =CGIL1!F945 -> -0.001569859605 | R90: =+Q90*Input!$C$2 -> -0.00271324532 | S90: -0.07513491597 | T90: -0.08757650876 | U90: 0.1606811605 | AA90: =+CGIL1!F954 -> 0.004081996503 | AB90: 0.004081996503 | AC90: =+AB90*Input!$C$2 -> 0.007055062679 | AD90: 0.01113705918 | AE90: 0.01298124512 | AF90: -0.02381736336
D91: 1 | E91: =-CGIL1!F955 -> 0 | F91: =CGIL1!F928 -> 0 | G91: =+F91*Input!$C$2 -> 0 | H91: 0 | I91: 0 | J91: 0 | P91: =CGIL1!F937 -> -0.07605248158 | Q91: =CGIL1!F946 -> -0.001682078951 | R91: =+Q91*Input!$C$2 -> -0.002907198087 | S91: -0.07895967967 | T91: -0.09203461519 | U91: 0.1688606795 | AA91: =+CGIL1!F955 -> 0 | AB91: 0 | AC91: =+AB91*Input!$C$2 -> 0 | AD91: 0 | AE91: 0 | AF91: 0
E93: XP(1)(ω) | F93: XP(2)(ω) | P93: XM(1)(ω) | Q93: XM(2)(ω) | AA93: XT(1)(ω) | AB93: XT(2)(ω)
C94: Span1 | D94: 0 | E94: =+J49 -> 0 | F94: =+K49 -> 0 | P94: =+T49 -> 0.09203461519 | Q94: =+U49 -> 0.1688606795 | AA94: =+AE49 -> 0 | AB94: =+AF49 -> 0
D95: =+D94+0.125 -> 0.125 | E95: -0.004938630689 | F95: -0.009061161741 | P95: 0.08757650876 | Q95: 0.1606811605 | AA95: 0.01298124512 | AB95: 0.02381736336
D96: =+D95+0.125 -> 0.25 | E96: -0.009391803462 | F96: -0.01723162868 | P96: 0.07424871802 | Q96: 0.136227972 | AA96: 0.02470420054 | AB96: 0.04532607738
D97: 0.375 | E97: -0.01287913157 | F97: -0.02363001033 | P97: 0.05219059125 | Q97: 0.0957567833 | AA97: 0.03391794616 | AB97: 0.06223101412
D98: 0.5 | E98: -0.01493034469 | F98: -0.02739347739 | P98: 0.02163358551 | Q98: 0.03969226081 | AA98: 0.03938626837 | AB98: 0.07226402835
D99: 0.625 | E99: -0.01509028266 | F99: -0.02768692387 | P99: -0.01709991499 | Q99: -0.03137410048 | AA99: 0.03989493165 | AB99: 0.07319729922
D100: 0.75 | E100: -0.01292381186 | F100: -0.02371198759 | P100: -0.06359824616 | Q100: -0.1166869991 | AA100: 0.03425885255 | AB100: 0.06285649274
D101: 0.875 | E101: -0.008020639408 | F101: -0.01471588291 | P101: -0.1173625701 | Q101: -0.2153311914 | AA101: 0.02132914425 | AB101: 0.03913368665
D102: 1 | E102: 0 | F102: 0 | P102: -0.1778094309 | Q102: -0.3262361805 | AA102: 0 | AB102: 0
C103: Span2 | D103: 0 | E103: =+N61 -> 0 | F103: =+N72 -> 0 | P103: =+Y61 -> 0.3221905691 | Q103: =+Y72 -> 0.1737638195 | AA103: =+AJ61 -> 0 | AB103: =+AJ72 -> 0
D104: =+D103+0.125 -> 0.125 | E104: -0.0249941796 | F104: -0.01005210828 | P104: 0.249361196 | Q104: 0.06133011339 | AA104: 0.06545879304 | AB104: 0.027966671
D105: =+D104+0.125 -> 0.25 | E105: -0.04333005484 | F105: -0.01157079849 | P105: 0.1699450724 | Q105: -0.02133949854 | AA105: 0.1129199639 | AB105: 0.03208373049
D106: 0.375 | E106: -0.05452599941 | F106: -0.007262830171 | P106: 0.08608962281 | Q106: -0.07189144993 | AA106: 0.1416802252 | AB106: 0.02009811377
D107: 0.5 | E107: -0.0582905109 | F107: -1.977978522e-16 | P107: 1.924327178e-16 | Q107: -0.08890109192 | AA107: 0.1513143995 | AB107: 0
D108: 0.625 | E108: -0.05452599941 | F108: 0.007262830171 | P108: -0.08608962281 | Q108: -0.07189144993 | AA108: 0.1416802252 | AB108: -0.02009811377
D109: 0.75 | E109: -0.04333005484 | F109: 0.01157079849 | P109: -0.1699450724 | Q109: -0.02133949854 | AA109: 0.1129199639 | AB109: -0.03208373049
D110: 0.875 | E110: -0.0249941796 | F110: 0.01005210828 | P110: -0.249361196 | Q110: 0.06133011339 | AA110: 0.06545879304 | AB110: -0.027966671
D111: 1 | E111: 0 | F111: 0 | P111: -0.3221905691 | Q111: 0.1737638195 | AA111: 0 | AB111: 0
C112: Span3 | D112: 0 | E112: =+I83 -> 0 | F112: =+J83 -> 0 | P112: =+T83 -> 0.1778094309 | Q112: =+U83 -> -0.3262361805 | AA112: =+AE83 -> 0 | AB112: =+AF83 -> 0
D113: =+D112+0.125 -> 0.125 | E113: -0.008020639408 | F113: 0.01471588291 | P113: 0.1173625701 | Q113: -0.2153311914 | AA113: 0.02132914425 | AB113: -0.03913368665
D114: =+D113+0.125 -> 0.25 | E114: -0.01292381186 | F114: 0.02371198759 | P114: 0.06359824616 | Q114: -0.1166869991 | AA114: 0.03425885255 | AB114: -0.06285649274
D115: 0.375 | E115: -0.01509028266 | F115: 0.02768692387 | P115: 0.01709991499 | Q115: -0.03137410048 | AA115: 0.03989493165 | AB115: -0.07319729922
D116: 0.5 | E116: -0.01493034469 | F116: 0.02739347739 | P116: -0.02163358551 | Q116: 0.03969226081 | AA116: 0.03938626837 | AB116: -0.07226402835
D117: 0.625 | E117: -0.01287913157 | F117: 0.02363001033 | P117: -0.05219059125 | Q117: 0.0957567833 | AA117: 0.03391794616 | AB117: -0.06223101412
D118: 0.75 | E118: -0.009391803462 | F118: 0.01723162868 | P118: -0.07424871802 | Q118: 0.136227972 | AA118: 0.02470420054 | AB118: -0.04532607738
D119: 0.875 | E119: -0.004938630689 | F119: 0.009061161741 | P119: -0.08757650876 | Q119: 0.1606811605 | AA119: 0.01298124512 | AB119: -0.02381736336
D120: 1 | E120: 0 | F120: 0 | P120: -0.09203461519 | Q120: 0.1688606795 | AA120: 0 | AB120: 0
E122: QP(0) | AF122: QM(0) | AH122: Load(1) | AI122: Load(1) | AJ122: Load(2) | AK122: Load(2)
C123: QP | E123: 0 | F123: =+E123+1 -> 1 | G123: 2 | H123: 3 | I123: 4 | J123: 5 | K123: 6 | L123: 7 | M123: 8 | N123: 8 | O123: =+N123+1 -> 9 | P123: 10 | Q123: 11 | R123: 12 | S123: 13 | T123: 14 | U123: 15 | V123: 16 | W123: 16 | X123: =+W123+1 -> 17 | Y123: 18 | Z123: 19 | AA123: 20 | AB123: 21 | AC123: 22 | AD123: 23 | AE123: 24 | AF123: Left | AG123: Right | AH123: Left | AI123: Right | AJ123: Left | AK123: Right | AL123: QM(1) | AM123: QM(2) | AN123: 0 | AO123: =+AN123+1 -> 1 | AP123: =+AO123+1 -> 2 | AQ123: =+AP123+1 -> 3 | AR123: =+AQ123+1 -> 4 | AS123: =+AR123+1 -> 5 | AT123: =+AS123+1 -> 6 | AU123: =+AT123+1 -> 7 | AV123: =+AU123+1 -> 8 | AW123: 8 | AX123: =+AW123+1 -> 9 | AY123: =+AX123+1 -> 10 | AZ123: =+AY123+1 -> 11 | BA123: =+AZ123+1 -> 12 | BB123: =+BA123+1 -> 13 | BC123: =+BB123+1 -> 14 | BD123: =+BC123+1 -> 15 | BE123: =+BD123+1 -> 16 | BF123: 16 | BG123: =+BF123+1 -> 17 | BH123: =+BG123+1 -> 18 | BI123: =+BH123+1 -> 19 | BJ123: =+BI123+1 -> 20 | BK123: =+BJ123+1 -> 21 | BL123: =+BK123+1 -> 22 | BM123: =+BL123+1 -> 23 | BN123: =+BM123+1 -> 24 | BO123: 0 | BP123: =+BO123+1 -> 1 | BQ123: =+BP123+1 -> 2 | BR123: =+BQ123+1 -> 3 | BS123: =+BR123+1 -> 4 | BT123: =+BS123+1 -> 5 | BU123: =+BT123+1 -> 6 | BV123: =+BU123+1 -> 7 | BW123: 8 | BX123: 8 | BY123: =+BX123+1 -> 9 | BZ123: =+BY123+1 -> 10 | CA123: =+BZ123+1 -> 11 | CB123: =+CA123+1 -> 12 | CC123: =+CB123+1 -> 13 | CD123: =+CC123+1 -> 14 | CE123: =+CD123+1 -> 15 | CF123: 16 | CG123: 16 | CH123: =+CG123+1 -> 17 | CI123: =+CH123+1 -> 18 | CJ123: =+CI123+1 -> 19 | CK123: =+CJ123+1 -> 20 | CL123: =+CK123+1 -> 21 | CM123: =+CL123+1 -> 22 | CN123: =+CM123+1 -> 23 | CO123: =+CN123+1 -> 24 | CP123: 0 | CQ123: =+CP123+1 -> 1 | CR123: =+CQ123+1 -> 2 | CS123: =+CR123+1 -> 3 | CT123: =+CS123+1 -> 4 | CU123: =+CT123+1 -> 5 | CV123: =+CU123+1 -> 6 | CW123: =+CV123+1 -> 7 | CX123: =+CW123+1 -> 8 | CY123: 8 | CZ123: =+CY123+1 -> 9 | DA123: =+CZ123+1 -> 10 | DB123: =+DA123+1 -> 11 | DC123: =+DB123+1 -> 12 | DD123: =+DC123+1 -> 13 | DE123: =+DD123+1 -> 14 | DF123: =+DE123+1 -> 15 | DG123: =+DF123+1 -> 16 | DH123: 16 | DI123: =+DH123+1 -> 17 | DJ123: =+DI123+1 -> 18 | DK123: =+DJ123+1 -> 19 | DL123: =+DK123+1 -> 20 | DM123: =+DL123+1 -> 21 | DN123: =+DM123+1 -> 22 | DO123: =+DN123+1 -> 23 | DP123: =+DO123+1 -> 24
D124: 0 | E124: =+CGIL1!F803 -> 1 | F124: =+CGIL1!G803 -> 0.875 | G124: =+CGIL1!H803 -> 0.75 | H124: =+CGIL1!I803 -> 0.625 | I124: =+CGIL1!J803 -> 0.5 | J124: =+CGIL1!K803 -> 0.375 | K124: =+CGIL1!L803 -> 0.25 | L124: =+CGIL1!M803 -> 0.125 | M124: =+CGIL1!N803 -> 0 | AG124: =+CGIL1!G9 -> 2.291831181 | AH124: 0 | AI124: 1 | AJ124: 0 | AK124: 1 | AL124: =+AF124*AH124+AG124*AI124 -> 2.291831181 | AM124: =+AF124*AJ124+AG124*AK124 -> 2.291831181 | AN124: =MMULT(AL124:AL150,TRANSPOSE($E$94:$E$120)) -> 0 | AO124: -0.0113185078 | AP124: -0.02152442802 | AQ124: -0.0295167953 | AR124: -0.03421782951 | AS124: -0.03458438032 | AT124: -0.029619195 | AU124: -0.01838195148 | AV124: 0 | AW124: 0 | AX124: -0.05728244014 | AY124: -0.09930517074 | AZ124: -0.1249643856 | BA124: -0.1335920104 | BB124: -0.1249643856 | BC124: -0.09930517074 | BD124: -0.05728244014 | BE124: 0 | BF124: 0 | BG124: -0.01838195148 | BH124: -0.029619195 | BI124: -0.03458438032 | BJ124: -0.03421782951 | BK124: -0.0295167953 | BL124: -0.02152442802 | BM124: -0.0113185078 | BN124: 0 | BO124: =MMULT(AM124:AM150,TRANSPOSE($F$94:$F$120)) -> 0 | BP124: -0.02076665301 | BQ124: -0.0394919839 | BR124: -0.05415599447 | BS124: -0.06278122563 | BT124: -0.06345375541 | BU124: -0.05434387251 | BV124: -0.0337263193 | BW124: 0 | BX124: 0 | BY124: -0.02303773518 | BZ124: -0.02651831676 | CA124: -0.01664518065 | CB124: -4.533192852e-16 | CC124: 0.01664518065 | CD124: 0.02651831676 | CE124: 0.02303773518 | CF124: 0 | CG124: 0 | CH124: 0.0337263193 | CI124: 0.05434387251 | CJ124: 0.06345375541 | CK124: 0.06278122563 | CL124: 0.05415599447 | CM124: 0.0394919839 | CN124: 0.02076665301 | CO124: 0 | CP124: =+E124+AN124+BO124 -> 1 | CQ124: =+F124+AO124+BP124 -> 0.8429148392 | CR124: 0.6889835881 | CS124: 0.5413272102 | CT124: 0.4030009449 | CU124: 0.2769618643 | CV124: 0.1660369325 | CW124: 0.07289172922 | CX124: 0 | CY124: 0 | CZ124: -0.08032017532 | DA124: -0.1258234875 | DB124: -0.1416095662 | DC124: -0.1335920104 | DD124: -0.1083192049 | DE124: -0.07278685398 | DF124: -0.03424470497 | DG124: =+V124+BE124+CF124 -> 0 | DH124: 0 | DI124: 0.01534436781 | DJ124: 0.02472467751 | DK124: 0.02886937509 | DL124: 0.02856339612 | DM124: 0.02463919917 | DN124: 0.01796755588 | DO124: 0.009448145208 | DP124: 0
D125: =+D124+1 -> 1 | E125: =+CGIL1!F804 -> 0 | F125: =+CGIL1!G804 -> 0.875 | G125: =+CGIL1!H804 -> 0.75 | H125: =+CGIL1!I804 -> 0.625 | I125: =+CGIL1!J804 -> 0.5 | J125: =+CGIL1!K804 -> 0.375 | K125: =+CGIL1!L804 -> 0.25 | L125: =+CGIL1!M804 -> 0.125 | M125: =+CGIL1!N804 -> 0 | AG125: =+AG124 -> 2.291831181 | AH125: 0 | AI125: 1 | AJ125: 0 | AK125: 1 | AL125: =+AF125*AH125+AG125*AI125 -> 2.291831181 | AM125: =+AF125*AJ125+AG125*AK125 -> 2.291831181 | AN125: 0 | AO125: -0.0113185078 | AP125: -0.02152442802 | AQ125: -0.0295167953 | AR125: -0.03421782951 | AS125: -0.03458438032 | AT125: -0.029619195 | AU125: -0.01838195148 | AV125: 0 | AW125: 0 | AX125: -0.05728244014 | AY125: -0.09930517074 | AZ125: -0.1249643856 | BA125: -0.1335920104 | BB125: -0.1249643856 | BC125: -0.09930517074 | BD125: -0.05728244014 | BE125: 0 | BF125: 0 | BG125: -0.01838195148 | BH125: -0.029619195 | BI125: -0.03458438032 | BJ125: -0.03421782951 | BK125: -0.0295167953 | BL125: -0.02152442802 | BM125: -0.0113185078 | BN125: 0 | BO125: 0 | BP125: -0.02076665301 | BQ125: -0.0394919839 | BR125: -0.05415599447 | BS125: -0.06278122563 | BT125: -0.06345375541 | BU125: -0.05434387251 | BV125: -0.0337263193 | BW125: 0 | BX125: 0 | BY125: -0.02303773518 | BZ125: -0.02651831676 | CA125: -0.01664518065 | CB125: -4.533192852e-16 | CC125: 0.01664518065 | CD125: 0.02651831676 | CE125: 0.02303773518 | CF125: 0 | CG125: 0 | CH125: 0.0337263193 | CI125: 0.05434387251 | CJ125: 0.06345375541 | CK125: 0.06278122563 | CL125: 0.05415599447 | CM125: 0.0394919839 | CN125: 0.02076665301 | CO125: 0 | CP125: =+E125+AN125+BO125 -> 0 | CQ125: 0.8429148392 | CR125: 0.6889835881 | CS125: 0.5413272102 | CT125: 0.4030009449 | CU125: 0.2769618643 | CV125: 0.1660369325 | CW125: 0.07289172922 | CX125: 0 | CY125: 0 | CZ125: -0.08032017532 | DA125: -0.1258234875 | DB125: -0.1416095662 | DC125: -0.1335920104 | DD125: -0.1083192049 | DE125: -0.07278685398 | DF125: -0.03424470497 | DG125: 0 | DH125: 0 | DI125: 0.01534436781 | DJ125: 0.02472467751 | DK125: 0.02886937509 | DL125: 0.02856339612 | DM125: 0.02463919917 | DN125: 0.01796755588 | DO125: 0.009448145208 | DP125: 0
D126: =+D125+1 -> 2 | E126: =+CGIL1!F805 -> 0 | F126: =+CGIL1!G805 -> -0.125 | G126: =+CGIL1!H805 -> 0.75 | H126: =+CGIL1!I805 -> 0.625 | I126: =+CGIL1!J805 -> 0.5 | J126: =+CGIL1!K805 -> 0.375 | K126: =+CGIL1!L805 -> 0.25 | L126: =+CGIL1!M805 -> 0.125 | M126: =+CGIL1!N805 -> 0 | AG126: 2.291831181 | AH126: 0 | AI126: 1 | AJ126: 0 | AK126: 1 | AL126: 2.291831181 | AM126: 2.291831181 | AN126: 0 | AO126: -0.0113185078 | AP126: -0.02152442802 | AQ126: -0.0295167953 | AR126: -0.03421782951 | AS126: -0.03458438032 | AT126: -0.029619195 | AU126: -0.01838195148 | AV126: 0 | AW126: 0 | AX126: -0.05728244014 | AY126: -0.09930517074 | AZ126: -0.1249643856 | BA126: -0.1335920104 | BB126: -0.1249643856 | BC126: -0.09930517074 | BD126: -0.05728244014 | BE126: 0 | BF126: 0 | BG126: -0.01838195148 | BH126: -0.029619195 | BI126: -0.03458438032 | BJ126: -0.03421782951 | BK126: -0.0295167953 | BL126: -0.02152442802 | BM126: -0.0113185078 | BN126: 0 | BO126: 0 | BP126: -0.02076665301 | BQ126: -0.0394919839 | BR126: -0.05415599447 | BS126: -0.06278122563 | BT126: -0.06345375541 | BU126: -0.05434387251 | BV126: -0.0337263193 | BW126: 0 | BX126: 0 | BY126: -0.02303773518 | BZ126: -0.02651831676 | CA126: -0.01664518065 | CB126: -4.533192852e-16 | CC126: 0.01664518065 | CD126: 0.02651831676 | CE126: 0.02303773518 | CF126: 0 | CG126: 0 | CH126: 0.0337263193 | CI126: 0.05434387251 | CJ126: 0.06345375541 | CK126: 0.06278122563 | CL126: 0.05415599447 | CM126: 0.0394919839 | CN126: 0.02076665301 | CO126: 0 | CP126: 0 | CQ126: -0.1570851608 | CR126: 0.6889835881 | CS126: 0.5413272102 | CT126: 0.4030009449 | CU126: 0.2769618643 | CV126: 0.1660369325 | CW126: 0.07289172922 | CX126: 0 | CY126: 0 | CZ126: -0.08032017532 | DA126: -0.1258234875 | DB126: -0.1416095662 | DC126: -0.1335920104 | DD126: -0.1083192049 | DE126: -0.07278685398 | DF126: -0.03424470497 | DG126: 0 | DH126: 0 | DI126: 0.01534436781 | DJ126: 0.02472467751 | DK126: 0.02886937509 | DL126: 0.02856339612 | DM126: 0.02463919917 | DN126: 0.01796755588 | DO126: 0.009448145208 | DP126: 0
D127: 3 | E127: =+CGIL1!F806 -> 0 | F127: =+CGIL1!G806 -> -0.125 | G127: =+CGIL1!H806 -> -0.25 | H127: =+CGIL1!I806 -> 0.625 | I127: =+CGIL1!J806 -> 0.5 | J127: =+CGIL1!K806 -> 0.375 | K127: =+CGIL1!L806 -> 0.25 | L127: =+CGIL1!M806 -> 0.125 | M127: =+CGIL1!N806 -> 0 | AG127: 2.291831181 | AH127: 0 | AI127: 1 | AJ127: 0 | AK127: 1 | AL127: 2.291831181 | AM127: 2.291831181 | AN127: 0 | AO127: -0.0113185078 | AP127: -0.02152442802 | AQ127: -0.0295167953 | AR127: -0.03421782951 | AS127: -0.03458438032 | AT127: -0.029619195 | AU127: -0.01838195148 | AV127: 0 | AW127: 0 | AX127: -0.05728244014 | AY127: -0.09930517074 | AZ127: -0.1249643856 | BA127: -0.1335920104 | BB127: -0.1249643856 | BC127: -0.09930517074 | BD127: -0.05728244014 | BE127: 0 | BF127: 0 | BG127: -0.01838195148 | BH127: -0.029619195 | BI127: -0.03458438032 | BJ127: -0.03421782951 | BK127: -0.0295167953 | BL127: -0.02152442802 | BM127: -0.0113185078 | BN127: 0 | BO127: 0 | BP127: -0.02076665301 | BQ127: -0.0394919839 | BR127: -0.05415599447 | BS127: -0.06278122563 | BT127: -0.06345375541 | BU127: -0.05434387251 | BV127: -0.0337263193 | BW127: 0 | BX127: 0 | BY127: -0.02303773518 | BZ127: -0.02651831676 | CA127: -0.01664518065 | CB127: -4.533192852e-16 | CC127: 0.01664518065 | CD127: 0.02651831676 | CE127: 0.02303773518 | CF127: 0 | CG127: 0 | CH127: 0.0337263193 | CI127: 0.05434387251 | CJ127: 0.06345375541 | CK127: 0.06278122563 | CL127: 0.05415599447 | CM127: 0.0394919839 | CN127: 0.02076665301 | CO127: 0 | CP127: 0 | CQ127: -0.1570851608 | CR127: -0.3110164119 | CS127: 0.5413272102 | CT127: 0.4030009449 | CU127: 0.2769618643 | CV127: 0.1660369325 | CW127: 0.07289172922 | CX127: 0 | CY127: 0 | CZ127: -0.08032017532 | DA127: -0.1258234875 | DB127: -0.1416095662 | DC127: -0.1335920104 | DD127: -0.1083192049 | DE127: -0.07278685398 | DF127: -0.03424470497 | DG127: 0 | DH127: 0 | DI127: 0.01534436781 | DJ127: 0.02472467751 | DK127: 0.02886937509 | DL127: 0.02856339612 | DM127: 0.02463919917 | DN127: 0.01796755588 | DO127: 0.009448145208 | DP127: 0
D128: 4 | E128: =+CGIL1!F807 -> 0 | F128: =+CGIL1!G807 -> -0.125 | G128: =+CGIL1!H807 -> -0.25 | H128: =+CGIL1!I807 -> -0.375 | I128: =+CGIL1!J807 -> 0.5 | J128: =+CGIL1!K807 -> 0.375 | K128: =+CGIL1!L807 -> 0.25 | L128: =+CGIL1!M807 -> 0.125 | M128: =+CGIL1!N807 -> 0 | AG128: 2.291831181 | AH128: 0 | AI128: 1 | AJ128: 0 | AK128: 1 | AL128: 2.291831181 | AM128: 2.291831181 | AN128: 0 | AO128: -0.0113185078 | AP128: -0.02152442802 | AQ128: -0.0295167953 | AR128: -0.03421782951 | AS128: -0.03458438032 | AT128: -0.029619195 | AU128: -0.01838195148 | AV128: 0 | AW128: 0 | AX128: -0.05728244014 | AY128: -0.09930517074 | AZ128: -0.1249643856 | BA128: -0.1335920104 | BB128: -0.1249643856 | BC128: -0.09930517074 | BD128: -0.05728244014 | BE128: 0 | BF128: 0 | BG128: -0.01838195148 | BH128: -0.029619195 | BI128: -0.03458438032 | BJ128: -0.03421782951 | BK128: -0.0295167953 | BL128: -0.02152442802 | BM128: -0.0113185078 | BN128: 0 | BO128: 0 | BP128: -0.02076665301 | BQ128: -0.0394919839 | BR128: -0.05415599447 | BS128: -0.06278122563 | BT128: -0.06345375541 | BU128: -0.05434387251 | BV128: -0.0337263193 | BW128: 0 | BX128: 0 | BY128: -0.02303773518 | BZ128: -0.02651831676 | CA128: -0.01664518065 | CB128: -4.533192852e-16 | CC128: 0.01664518065 | CD128: 0.02651831676 | CE128: 0.02303773518 | CF128: 0 | CG128: 0 | CH128: 0.0337263193 | CI128: 0.05434387251 | CJ128: 0.06345375541 | CK128: 0.06278122563 | CL128: 0.05415599447 | CM128: 0.0394919839 | CN128: 0.02076665301 | CO128: 0 | CP128: 0 | CQ128: -0.1570851608 | CR128: -0.3110164119 | CS128: -0.4586727898 | CT128: 0.4030009449 | CU128: 0.2769618643 | CV128: 0.1660369325 | CW128: 0.07289172922 | CX128: 0 | CY128: 0 | CZ128: -0.08032017532 | DA128: -0.1258234875 | DB128: -0.1416095662 | DC128: -0.1335920104 | DD128: -0.1083192049 | DE128: -0.07278685398 | DF128: -0.03424470497 | DG128: 0 | DH128: 0 | DI128: 0.01534436781 | DJ128: 0.02472467751 | DK128: 0.02886937509 | DL128: 0.02856339612 | DM128: 0.02463919917 | DN128: 0.01796755588 | DO128: 0.009448145208 | DP128: 0
D129: 5 | E129: =+CGIL1!F808 -> 0 | F129: =+CGIL1!G808 -> -0.125 | G129: =+CGIL1!H808 -> -0.25 | H129: =+CGIL1!I808 -> -0.375 | I129: =+CGIL1!J808 -> -0.5 | J129: =+CGIL1!K808 -> 0.375 | K129: =+CGIL1!L808 -> 0.25 | L129: =+CGIL1!M808 -> 0.125 | M129: =+CGIL1!N808 -> 0 | AG129: 2.291831181 | AH129: 0 | AI129: 1 | AJ129: 0 | AK129: 1 | AL129: 2.291831181 | AM129: 2.291831181 | AN129: 0 | AO129: -0.0113185078 | AP129: -0.02152442802 | AQ129: -0.0295167953 | AR129: -0.03421782951 | AS129: -0.03458438032 | AT129: -0.029619195 | AU129: -0.01838195148 | AV129: 0 | AW129: 0 | AX129: -0.05728244014 | AY129: -0.09930517074 | AZ129: -0.1249643856 | BA129: -0.1335920104 | BB129: -0.1249643856 | BC129: -0.09930517074 | BD129: -0.05728244014 | BE129: 0 | BF129: 0 | BG129: -0.01838195148 | BH129: -0.029619195 | BI129: -0.03458438032 | BJ129: -0.03421782951 | BK129: -0.0295167953 | BL129: -0.02152442802 | BM129: -0.0113185078 | BN129: 0 | BO129: 0 | BP129: -0.02076665301 | BQ129: -0.0394919839 | BR129: -0.05415599447 | BS129: -0.06278122563 | BT129: -0.06345375541 | BU129: -0.05434387251 | BV129: -0.0337263193 | BW129: 0 | BX129: 0 | BY129: -0.02303773518 | BZ129: -0.02651831676 | CA129: -0.01664518065 | CB129: -4.533192852e-16 | CC129: 0.01664518065 | CD129: 0.02651831676 | CE129: 0.02303773518 | CF129: 0 | CG129: 0 | CH129: 0.0337263193 | CI129: 0.05434387251 | CJ129: 0.06345375541 | CK129: 0.06278122563 | CL129: 0.05415599447 | CM129: 0.0394919839 | CN129: 0.02076665301 | CO129: 0 | CP129: 0 | CQ129: -0.1570851608 | CR129: -0.3110164119 | CS129: -0.4586727898 | CT129: -0.5969990551 | CU129: 0.2769618643 | CV129: 0.1660369325 | CW129: 0.07289172922 | CX129: 0 | CY129: 0 | CZ129: -0.08032017532 | DA129: -0.1258234875 | DB129: -0.1416095662 | DC129: -0.1335920104 | DD129: -0.1083192049 | DE129: -0.07278685398 | DF129: -0.03424470497 | DG129: 0 | DH129: 0 | DI129: 0.01534436781 | DJ129: 0.02472467751 | DK129: 0.02886937509 | DL129: 0.02856339612 | DM129: 0.02463919917 | DN129: 0.01796755588 | DO129: 0.009448145208 | DP129: 0
D130: 6 | E130: =+CGIL1!F809 -> 0 | F130: =+CGIL1!G809 -> -0.125 | G130: =+CGIL1!H809 -> -0.25 | H130: =+CGIL1!I809 -> -0.375 | I130: =+CGIL1!J809 -> -0.5 | J130: =+CGIL1!K809 -> -0.625 | K130: =+CGIL1!L809 -> 0.25 | L130: =+CGIL1!M809 -> 0.125 | M130: =+CGIL1!N809 -> 0 | AG130: 2.291831181 | AH130: 0 | AI130: 1 | AJ130: 0 | AK130: 1 | AL130: 2.291831181 | AM130: 2.291831181 | AN130: 0 | AO130: -0.0113185078 | AP130: -0.02152442802 | AQ130: -0.0295167953 | AR130: -0.03421782951 | AS130: -0.03458438032 | AT130: -0.029619195 | AU130: -0.01838195148 | AV130: 0 | AW130: 0 | AX130: -0.05728244014 | AY130: -0.09930517074 | AZ130: -0.1249643856 | BA130: -0.1335920104 | BB130: -0.1249643856 | BC130: -0.09930517074 | BD130: -0.05728244014 | BE130: 0 | BF130: 0 | BG130: -0.01838195148 | BH130: -0.029619195 | BI130: -0.03458438032 | BJ130: -0.03421782951 | BK130: -0.0295167953 | BL130: -0.02152442802 | BM130: -0.0113185078 | BN130: 0 | BO130: 0 | BP130: -0.02076665301 | BQ130: -0.0394919839 | BR130: -0.05415599447 | BS130: -0.06278122563 | BT130: -0.06345375541 | BU130: -0.05434387251 | BV130: -0.0337263193 | BW130: 0 | BX130: 0 | BY130: -0.02303773518 | BZ130: -0.02651831676 | CA130: -0.01664518065 | CB130: -4.533192852e-16 | CC130: 0.01664518065 | CD130: 0.02651831676 | CE130: 0.02303773518 | CF130: 0 | CG130: 0 | CH130: 0.0337263193 | CI130: 0.05434387251 | CJ130: 0.06345375541 | CK130: 0.06278122563 | CL130: 0.05415599447 | CM130: 0.0394919839 | CN130: 0.02076665301 | CO130: 0 | CP130: 0 | CQ130: -0.1570851608 | CR130: -0.3110164119 | CS130: -0.4586727898 | CT130: -0.5969990551 | CU130: -0.7230381357 | CV130: 0.1660369325 | CW130: 0.07289172922 | CX130: 0 | CY130: 0 | CZ130: -0.08032017532 | DA130: -0.1258234875 | DB130: -0.1416095662 | DC130: -0.1335920104 | DD130: -0.1083192049 | DE130: -0.07278685398 | DF130: -0.03424470497 | DG130: 0 | DH130: 0 | DI130: 0.01534436781 | DJ130: 0.02472467751 | DK130: 0.02886937509 | DL130: 0.02856339612 | DM130: 0.02463919917 | DN130: 0.01796755588 | DO130: 0.009448145208 | DP130: 0
D131: 7 | E131: =+CGIL1!F810 -> 0 | F131: =+CGIL1!G810 -> -0.125 | G131: =+CGIL1!H810 -> -0.25 | H131: =+CGIL1!I810 -> -0.375 | I131: =+CGIL1!J810 -> -0.5 | J131: =+CGIL1!K810 -> -0.625 | K131: =+CGIL1!L810 -> -0.75 | L131: =+CGIL1!M810 -> 0.125 | M131: =+CGIL1!N810 -> 0 | AG131: 2.291831181 | AH131: 0 | AI131: 1 | AJ131: 0 | AK131: 1 | AL131: 2.291831181 | AM131: 2.291831181 | AN131: 0 | AO131: -0.0113185078 | AP131: -0.02152442802 | AQ131: -0.0295167953 | AR131: -0.03421782951 | AS131: -0.03458438032 | AT131: -0.029619195 | AU131: -0.01838195148 | AV131: 0 | AW131: 0 | AX131: -0.05728244014 | AY131: -0.09930517074 | AZ131: -0.1249643856 | BA131: -0.1335920104 | BB131: -0.1249643856 | BC131: -0.09930517074 | BD131: -0.05728244014 | BE131: 0 | BF131: 0 | BG131: -0.01838195148 | BH131: -0.029619195 | BI131: -0.03458438032 | BJ131: -0.03421782951 | BK131: -0.0295167953 | BL131: -0.02152442802 | BM131: -0.0113185078 | BN131: 0 | BO131: 0 | BP131: -0.02076665301 | BQ131: -0.0394919839 | BR131: -0.05415599447 | BS131: -0.06278122563 | BT131: -0.06345375541 | BU131: -0.05434387251 | BV131: -0.0337263193 | BW131: 0 | BX131: 0 | BY131: -0.02303773518 | BZ131: -0.02651831676 | CA131: -0.01664518065 | CB131: -4.533192852e-16 | CC131: 0.01664518065 | CD131: 0.02651831676 | CE131: 0.02303773518 | CF131: 0 | CG131: 0 | CH131: 0.0337263193 | CI131: 0.05434387251 | CJ131: 0.06345375541 | CK131: 0.06278122563 | CL131: 0.05415599447 | CM131: 0.0394919839 | CN131: 0.02076665301 | CO131: 0 | CP131: 0 | CQ131: -0.1570851608 | CR131: -0.3110164119 | CS131: -0.4586727898 | CT131: -0.5969990551 | CU131: -0.7230381357 | CV131: -0.8339630675 | CW131: 0.07289172922 | CX131: 0 | CY131: 0 | CZ131: -0.08032017532 | DA131: -0.1258234875 | DB131: -0.1416095662 | DC131: -0.1335920104 | DD131: -0.1083192049 | DE131: -0.07278685398 | DF131: -0.03424470497 | DG131: 0 | DH131: 0 | DI131: 0.01534436781 | DJ131: 0.02472467751 | DK131: 0.02886937509 | DL131: 0.02856339612 | DM131: 0.02463919917 | DN131: 0.01796755588 | DO131: 0.009448145208 | DP131: 0
D132: 8 | E132: =+CGIL1!F811 -> 0 | F132: =+CGIL1!G811 -> -0.125 | G132: =+CGIL1!H811 -> -0.25 | H132: =+CGIL1!I811 -> -0.375 | I132: =+CGIL1!J811 -> -0.5 | J132: =+CGIL1!K811 -> -0.625 | K132: =+CGIL1!L811 -> -0.75 | L132: =+CGIL1!M811 -> -0.875 | M132: =+CGIL1!N811 -> -1 | AG132: 2.291831181 | AH132: 0 | AI132: 1 | AJ132: 0 | AK132: 1 | AL132: 2.291831181 | AM132: 2.291831181 | AN132: 0 | AO132: -0.0113185078 | AP132: -0.02152442802 | AQ132: -0.0295167953 | AR132: -0.03421782951 | AS132: -0.03458438032 | AT132: -0.029619195 | AU132: -0.01838195148 | AV132: 0 | AW132: 0 | AX132: -0.05728244014 | AY132: -0.09930517074 | AZ132: -0.1249643856 | BA132: -0.1335920104 | BB132: -0.1249643856 | BC132: -0.09930517074 | BD132: -0.05728244014 | BE132: 0 | BF132: 0 | BG132: -0.01838195148 | BH132: -0.029619195 | BI132: -0.03458438032 | BJ132: -0.03421782951 | BK132: -0.0295167953 | BL132: -0.02152442802 | BM132: -0.0113185078 | BN132: 0 | BO132: 0 | BP132: -0.02076665301 | BQ132: -0.0394919839 | BR132: -0.05415599447 | BS132: -0.06278122563 | BT132: -0.06345375541 | BU132: -0.05434387251 | BV132: -0.0337263193 | BW132: 0 | BX132: 0 | BY132: -0.02303773518 | BZ132: -0.02651831676 | CA132: -0.01664518065 | CB132: -4.533192852e-16 | CC132: 0.01664518065 | CD132: 0.02651831676 | CE132: 0.02303773518 | CF132: 0 | CG132: 0 | CH132: 0.0337263193 | CI132: 0.05434387251 | CJ132: 0.06345375541 | CK132: 0.06278122563 | CL132: 0.05415599447 | CM132: 0.0394919839 | CN132: 0.02076665301 | CO132: 0 | CP132: 0 | CQ132: -0.1570851608 | CR132: -0.3110164119 | CS132: -0.4586727898 | CT132: -0.5969990551 | CU132: -0.7230381357 | CV132: -0.8339630675 | CW132: -0.9271082708 | CX132: -1 | CY132: 0 | CZ132: -0.08032017532 | DA132: -0.1258234875 | DB132: -0.1416095662 | DC132: -0.1335920104 | DD132: -0.1083192049 | DE132: -0.07278685398 | DF132: -0.03424470497 | DG132: 0 | DH132: 0 | DI132: 0.01534436781 | DJ132: 0.02472467751 | DK132: 0.02886937509 | DL132: 0.02856339612 | DM132: 0.02463919917 | DN132: 0.01796755588 | DO132: 0.009448145208 | DP132: 0
D133: 8 | N133: =+CGIL2!F803 -> 1 | O133: =+CGIL2!G803 -> 0.875 | P133: =+CGIL2!H803 -> 0.75 | Q133: =+CGIL2!I803 -> 0.625 | R133: =+CGIL2!J803 -> 0.5 | S133: =+CGIL2!K803 -> 0.375 | T133: =+CGIL2!L803 -> 0.25 | U133: =+CGIL2!M803 -> 0.125 | V133: =+CGIL2!N803 -> 0 | AF133: =+CGIL2!G9 -> 1.432394488 | AG133: =+AF133 -> 1.432394488 | AH133: -1 | AI133: 1 | AJ133: -1 | AK133: -1 | AL133: 0 | AM133: -2.864788976 | AN133: 0 | AO133: 0 | AP133: 0 | AQ133: 0 | AR133: 0 | AS133: 0 | AT133: 0 | AU133: 0 | AV133: 0 | AW133: 0 | AX133: 0 | AY133: 0 | AZ133: 0 | BA133: 0 | BB133: 0 | BC133: 0 | BD133: 0 | BE133: 0 | BF133: 0 | BG133: 0 | BH133: 0 | BI133: 0 | BJ133: 0 | BK133: 0 | BL133: 0 | BM133: 0 | BN133: 0 | BO133: 0 | BP133: 0.02595831626 | BQ133: 0.04936497987 | BR133: 0.06769499309 | BS133: 0.07847653204 | BT133: 0.07931719426 | BU133: 0.06792984064 | BV133: 0.04215789912 | BW133: 0 | BX133: 0 | BY133: 0.02879716897 | BZ133: 0.03314789595 | CA133: 0.02080647581 | CB133: 5.666491065e-16 | CC133: -0.02080647581 | CD133: -0.03314789595 | CE133: -0.02879716897 | CF133: 0 | CG133: 0 | CH133: -0.04215789912 | CI133: -0.06792984064 | CJ133: -0.07931719426 | CK133: -0.07847653204 | CL133: -0.06769499309 | CM133: -0.04936497987 | CN133: -0.02595831626 | CO133: 0 | CP133: 0 | CQ133: 0.02595831626 | CR133: 0.04936497987 | CS133: 0.06769499309 | CT133: 0.07847653204 | CU133: 0.07931719426 | CV133: 0.06792984064 | CW133: 0.04215789912 | CX133: 0 | CY133: 1 | CZ133: 0.903797169 | DA133: 0.783147896 | DB133: 0.6458064758 | DC133: 0.5 | DD133: 0.3541935242 | DE133: 0.216852104 | DF133: 0.09620283103 | DG133: 0 | DH133: 0 | DI133: -0.04215789912 | DJ133: -0.06792984064 | DK133: -0.07931719426 | DL133: -0.07847653204 | DM133: -0.06769499309 | DN133: -0.04936497987 | DO133: -0.02595831626 | DP133: 0
D134: =+D133+1 -> 9 | N134: =+CGIL2!F804 -> 0 | O134: =+CGIL2!G804 -> 0.875 | P134: =+CGIL2!H804 -> 0.75 | Q134: =+CGIL2!I804 -> 0.625 | R134: =+CGIL2!J804 -> 0.5 | S134: =+CGIL2!K804 -> 0.375 | T134: =+CGIL2!L804 -> 0.25 | U134: =+CGIL2!M804 -> 0.125 | V134: =+CGIL2!N804 -> 0 | AF134: =+AF133 -> 1.432394488 | AG134: 1.432394488 | AH134: -1 | AI134: 1 | AJ134: -1 | AK134: -1 | AL134: 0 | AM134: -2.864788976 | AN134: 0 | AO134: 0 | AP134: 0 | AQ134: 0 | AR134: 0 | AS134: 0 | AT134: 0 | AU134: 0 | AV134: 0 | AW134: 0 | AX134: 0 | AY134: 0 | AZ134: 0 | BA134: 0 | BB134: 0 | BC134: 0 | BD134: 0 | BE134: 0 | BF134: 0 | BG134: 0 | BH134: 0 | BI134: 0 | BJ134: 0 | BK134: 0 | BL134: 0 | BM134: 0 | BN134: 0 | BO134: 0 | BP134: 0.02595831626 | BQ134: 0.04936497987 | BR134: 0.06769499309 | BS134: 0.07847653204 | BT134: 0.07931719426 | BU134: 0.06792984064 | BV134: 0.04215789912 | BW134: 0 | BX134: 0 | BY134: 0.02879716897 | BZ134: 0.03314789595 | CA134: 0.02080647581 | CB134: 5.666491065e-16 | CC134: -0.02080647581 | CD134: -0.03314789595 | CE134: -0.02879716897 | CF134: 0 | CG134: 0 | CH134: -0.04215789912 | CI134: -0.06792984064 | CJ134: -0.07931719426 | CK134: -0.07847653204 | CL134: -0.06769499309 | CM134: -0.04936497987 | CN134: -0.02595831626 | CO134: 0 | CP134: 0 | CQ134: 0.02595831626 | CR134: 0.04936497987 | CS134: 0.06769499309 | CT134: 0.07847653204 | CU134: 0.07931719426 | CV134: 0.06792984064 | CW134: 0.04215789912 | CX134: 0 | CY134: 0 | CZ134: 0.903797169 | DA134: 0.783147896 | DB134: 0.6458064758 | DC134: 0.5 | DD134: 0.3541935242 | DE134: 0.216852104 | DF134: 0.09620283103 | DG134: 0 | DH134: 0 | DI134: -0.04215789912 | DJ134: -0.06792984064 | DK134: -0.07931719426 | DL134: -0.07847653204 | DM134: -0.06769499309 | DN134: -0.04936497987 | DO134: -0.02595831626 | DP134: 0
D135: 10 | N135: =+CGIL2!F805 -> 0 | O135: =+CGIL2!G805 -> -0.125 | P135: =+CGIL2!H805 -> 0.75 | Q135: =+CGIL2!I805 -> 0.625 | R135: =+CGIL2!J805 -> 0.5 | S135: =+CGIL2!K805 -> 0.375 | T135: =+CGIL2!L805 -> 0.25 | U135: =+CGIL2!M805 -> 0.125 | V135: =+CGIL2!N805 -> 0 | AF135: 1.432394488 | AG135: 1.432394488 | AH135: -1 | AI135: 1 | AJ135: -1 | AK135: -1 | AL135: 0 | AM135: -2.864788976 | AN135: 0 | AO135: 0 | AP135: 0 | AQ135: 0 | AR135: 0 | AS135: 0 | AT135: 0 | AU135: 0 | AV135: 0 | AW135: 0 | AX135: 0 | AY135: 0 | AZ135: 0 | BA135: 0 | BB135: 0 | BC135: 0 | BD135: 0 | BE135: 0 | BF135: 0 | BG135: 0 | BH135: 0 | BI135: 0 | BJ135: 0 | BK135: 0 | BL135: 0 | BM135: 0 | BN135: 0 | BO135: 0 | BP135: 0.02595831626 | BQ135: 0.04936497987 | BR135: 0.06769499309 | BS135: 0.07847653204 | BT135: 0.07931719426 | BU135: 0.06792984064 | BV135: 0.04215789912 | BW135: 0 | BX135: 0 | BY135: 0.02879716897 | BZ135: 0.03314789595 | CA135: 0.02080647581 | CB135: 5.666491065e-16 | CC135: -0.02080647581 | CD135: -0.03314789595 | CE135: -0.02879716897 | CF135: 0 | CG135: 0 | CH135: -0.04215789912 | CI135: -0.06792984064 | CJ135: -0.07931719426 | CK135: -0.07847653204 | CL135: -0.06769499309 | CM135: -0.04936497987 | CN135: -0.02595831626 | CO135: 0 | CP135: 0 | CQ135: 0.02595831626 | CR135: 0.04936497987 | CS135: 0.06769499309 | CT135: 0.07847653204 | CU135: 0.07931719426 | CV135: 0.06792984064 | CW135: 0.04215789912 | CX135: 0 | CY135: 0 | CZ135: -0.09620283103 | DA135: 0.783147896 | DB135: 0.6458064758 | DC135: 0.5 | DD135: 0.3541935242 | DE135: 0.216852104 | DF135: 0.09620283103 | DG135: 0 | DH135: 0 | DI135: -0.04215789912 | DJ135: -0.06792984064 | DK135: -0.07931719426 | DL135: -0.07847653204 | DM135: -0.06769499309 | DN135: -0.04936497987 | DO135: -0.02595831626 | DP135: 0
D136: 11 | N136: =+CGIL2!F806 -> 0 | O136: =+CGIL2!G806 -> -0.125 | P136: =+CGIL2!H806 -> -0.25 | Q136: =+CGIL2!I806 -> 0.625 | R136: =+CGIL2!J806 -> 0.5 | S136: =+CGIL2!K806 -> 0.375 | T136: =+CGIL2!L806 -> 0.25 | U136: =+CGIL2!M806 -> 0.125 | V136: =+CGIL2!N806 -> 0 | AF136: 1.432394488 | AG136: 1.432394488 | AH136: -1 | AI136: 1 | AJ136: -1 | AK136: -1 | AL136: 0 | AM136: -2.864788976 | AN136: 0 | AO136: 0 | AP136: 0 | AQ136: 0 | AR136: 0 | AS136: 0 | AT136: 0 | AU136: 0 | AV136: 0 | AW136: 0 | AX136: 0 | AY136: 0 | AZ136: 0 | BA136: 0 | BB136: 0 | BC136: 0 | BD136: 0 | BE136: 0 | BF136: 0 | BG136: 0 | BH136: 0 | BI136: 0 | BJ136: 0 | BK136: 0 | BL136: 0 | BM136: 0 | BN136: 0 | BO136: 0 | BP136: 0.02595831626 | BQ136: 0.04936497987 | BR136: 0.06769499309 | BS136: 0.07847653204 | BT136: 0.07931719426 | BU136: 0.06792984064 | BV136: 0.04215789912 | BW136: 0 | BX136: 0 | BY136: 0.02879716897 | BZ136: 0.03314789595 | CA136: 0.02080647581 | CB136: 5.666491065e-16 | CC136: -0.02080647581 | CD136: -0.03314789595 | CE136: -0.02879716897 | CF136: 0 | CG136: 0 | CH136: -0.04215789912 | CI136: -0.06792984064 | CJ136: -0.07931719426 | CK136: -0.07847653204 | CL136: -0.06769499309 | CM136: -0.04936497987 | CN136: -0.02595831626 | CO136: 0 | CP136: 0 | CQ136: 0.02595831626 | CR136: 0.04936497987 | CS136: 0.06769499309 | CT136: 0.07847653204 | CU136: 0.07931719426 | CV136: 0.06792984064 | CW136: 0.04215789912 | CX136: 0 | CY136: 0 | CZ136: -0.09620283103 | DA136: -0.216852104 | DB136: 0.6458064758 | DC136: 0.5 | DD136: 0.3541935242 | DE136: 0.216852104 | DF136: 0.09620283103 | DG136: 0 | DH136: 0 | DI136: -0.04215789912 | DJ136: -0.06792984064 | DK136: -0.07931719426 | DL136: -0.07847653204 | DM136: -0.06769499309 | DN136: -0.04936497987 | DO136: -0.02595831626 | DP136: 0
D137: 12 | N137: =+CGIL2!F807 -> 0 | O137: =+CGIL2!G807 -> -0.125 | P137: =+CGIL2!H807 -> -0.25 | Q137: =+CGIL2!I807 -> -0.375 | R137: =+CGIL2!J807 -> 0.5 | S137: =+CGIL2!K807 -> 0.375 | T137: =+CGIL2!L807 -> 0.25 | U137: =+CGIL2!M807 -> 0.125 | V137: =+CGIL2!N807 -> 0 | AF137: 1.432394488 | AG137: 1.432394488 | AH137: -1 | AI137: 1 | AJ137: -1 | AK137: -1 | AL137: 0 | AM137: -2.864788976 | AN137: 0 | AO137: 0 | AP137: 0 | AQ137: 0 | AR137: 0 | AS137: 0 | AT137: 0 | AU137: 0 | AV137: 0 | AW137: 0 | AX137: 0 | AY137: 0 | AZ137: 0 | BA137: 0 | BB137: 0 | BC137: 0 | BD137: 0 | BE137: 0 | BF137: 0 | BG137: 0 | BH137: 0 | BI137: 0 | BJ137: 0 | BK137: 0 | BL137: 0 | BM137: 0 | BN137: 0 | BO137: 0 | BP137: 0.02595831626 | BQ137: 0.04936497987 | BR137: 0.06769499309 | BS137: 0.07847653204 | BT137: 0.07931719426 | BU137: 0.06792984064 | BV137: 0.04215789912 | BW137: 0 | BX137: 0 | BY137: 0.02879716897 | BZ137: 0.03314789595 | CA137: 0.02080647581 | CB137: 5.666491065e-16 | CC137: -0.02080647581 | CD137: -0.03314789595 | CE137: -0.02879716897 | CF137: 0 | CG137: 0 | CH137: -0.04215789912 | CI137: -0.06792984064 | CJ137: -0.07931719426 | CK137: -0.07847653204 | CL137: -0.06769499309 | CM137: -0.04936497987 | CN137: -0.02595831626 | CO137: 0 | CP137: 0 | CQ137: 0.02595831626 | CR137: 0.04936497987 | CS137: 0.06769499309 | CT137: 0.07847653204 | CU137: 0.07931719426 | CV137: 0.06792984064 | CW137: 0.04215789912 | CX137: 0 | CY137: 0 | CZ137: -0.09620283103 | DA137: -0.216852104 | DB137: -0.3541935242 | DC137: 0.5 | DD137: 0.3541935242 | DE137: 0.216852104 | DF137: 0.09620283103 | DG137: 0 | DH137: 0 | DI137: -0.04215789912 | DJ137: -0.06792984064 | DK137: -0.07931719426 | DL137: -0.07847653204 | DM137: -0.06769499309 | DN137: -0.04936497987 | DO137: -0.02595831626 | DP137: 0
D138: 13 | N138: =+CGIL2!F808 -> 0 | O138: =+CGIL2!G808 -> -0.125 | P138: =+CGIL2!H808 -> -0.25 | Q138: =+CGIL2!I808 -> -0.375 | R138: =+CGIL2!J808 -> -0.5 | S138: =+CGIL2!K808 -> 0.375 | T138: =+CGIL2!L808 -> 0.25 | U138: =+CGIL2!M808 -> 0.125 | V138: =+CGIL2!N808 -> 0 | AF138: 1.432394488 | AG138: 1.432394488 | AH138: -1 | AI138: 1 | AJ138: -1 | AK138: -1 | AL138: 0 | AM138: -2.864788976 | AN138: 0 | AO138: 0 | AP138: 0 | AQ138: 0 | AR138: 0 | AS138: 0 | AT138: 0 | AU138: 0 | AV138: 0 | AW138: 0 | AX138: 0 | AY138: 0 | AZ138: 0 | BA138: 0 | BB138: 0 | BC138: 0 | BD138: 0 | BE138: 0 | BF138: 0 | BG138: 0 | BH138: 0 | BI138: 0 | BJ138: 0 | BK138: 0 | BL138: 0 | BM138: 0 | BN138: 0 | BO138: 0 | BP138: 0.02595831626 | BQ138: 0.04936497987 | BR138: 0.06769499309 | BS138: 0.07847653204 | BT138: 0.07931719426 | BU138: 0.06792984064 | BV138: 0.04215789912 | BW138: 0 | BX138: 0 | BY138: 0.02879716897 | BZ138: 0.03314789595 | CA138: 0.02080647581 | CB138: 5.666491065e-16 | CC138: -0.02080647581 | CD138: -0.03314789595 | CE138: -0.02879716897 | CF138: 0 | CG138: 0 | CH138: -0.04215789912 | CI138: -0.06792984064 | CJ138: -0.07931719426 | CK138: -0.07847653204 | CL138: -0.06769499309 | CM138: -0.04936497987 | CN138: -0.02595831626 | CO138: 0 | CP138: 0 | CQ138: 0.02595831626 | CR138: 0.04936497987 | CS138: 0.06769499309 | CT138: 0.07847653204 | CU138: 0.07931719426 | CV138: 0.06792984064 | CW138: 0.04215789912 | CX138: 0 | CY138: 0 | CZ138: -0.09620283103 | DA138: -0.216852104 | DB138: -0.3541935242 | DC138: -0.5 | DD138: 0.3541935242 | DE138: 0.216852104 | DF138: 0.09620283103 | DG138: 0 | DH138: 0 | DI138: -0.04215789912 | DJ138: -0.06792984064 | DK138: -0.07931719426 | DL138: -0.07847653204 | DM138: -0.06769499309 | DN138: -0.04936497987 | DO138: -0.02595831626 | DP138: 0
D139: 14 | N139: =+CGIL2!F809 -> 0 | O139: =+CGIL2!G809 -> -0.125 | P139: =+CGIL2!H809 -> -0.25 | Q139: =+CGIL2!I809 -> -0.375 | R139: =+CGIL2!J809 -> -0.5 | S139: =+CGIL2!K809 -> -0.625 | T139: =+CGIL2!L809 -> 0.25 | U139: =+CGIL2!M809 -> 0.125 | V139: =+CGIL2!N809 -> 0 | AF139: 1.432394488 | AG139: 1.432394488 | AH139: -1 | AI139: 1 | AJ139: -1 | AK139: -1 | AL139: 0 | AM139: -2.864788976 | AN139: 0 | AO139: 0 | AP139: 0 | AQ139: 0 | AR139: 0 | AS139: 0 | AT139: 0 | AU139: 0 | AV139: 0 | AW139: 0 | AX139: 0 | AY139: 0 | AZ139: 0 | BA139: 0 | BB139: 0 | BC139: 0 | BD139: 0 | BE139: 0 | BF139: 0 | BG139: 0 | BH139: 0 | BI139: 0 | BJ139: 0 | BK139: 0 | BL139: 0 | BM139: 0 | BN139: 0 | BO139: 0 | BP139: 0.02595831626 | BQ139: 0.04936497987 | BR139: 0.06769499309 | BS139: 0.07847653204 | BT139: 0.07931719426 | BU139: 0.06792984064 | BV139: 0.04215789912 | BW139: 0 | BX139: 0 | BY139: 0.02879716897 | BZ139: 0.03314789595 | CA139: 0.02080647581 | CB139: 5.666491065e-16 | CC139: -0.02080647581 | CD139: -0.03314789595 | CE139: -0.02879716897 | CF139: 0 | CG139: 0 | CH139: -0.04215789912 | CI139: -0.06792984064 | CJ139: -0.07931719426 | CK139: -0.07847653204 | CL139: -0.06769499309 | CM139: -0.04936497987 | CN139: -0.02595831626 | CO139: 0 | CP139: 0 | CQ139: 0.02595831626 | CR139: 0.04936497987 | CS139: 0.06769499309 | CT139: 0.07847653204 | CU139: 0.07931719426 | CV139: 0.06792984064 | CW139: 0.04215789912 | CX139: 0 | CY139: 0 | CZ139: -0.09620283103 | DA139: -0.216852104 | DB139: -0.3541935242 | DC139: -0.5 | DD139: -0.6458064758 | DE139: 0.216852104 | DF139: =+U139+BD139+CE139 -> 0.09620283103 | DG139: 0 | DH139: 0 | DI139: -0.04215789912 | DJ139: -0.06792984064 | DK139: -0.07931719426 | DL139: -0.07847653204 | DM139: -0.06769499309 | DN139: -0.04936497987 | DO139: -0.02595831626 | DP139: 0
D140: 15 | N140: =+CGIL2!F810 -> 0 | O140: =+CGIL2!G810 -> -0.125 | P140: =+CGIL2!H810 -> -0.25 | Q140: =+CGIL2!I810 -> -0.375 | R140: =+CGIL2!J810 -> -0.5 | S140: =+CGIL2!K810 -> -0.625 | T140: =+CGIL2!L810 -> -0.75 | U140: =+CGIL2!M810 -> 0.125 | V140: =+CGIL2!N810 -> 0 | AF140: 1.432394488 | AG140: 1.432394488 | AH140: -1 | AI140: 1 | AJ140: -1 | AK140: -1 | AL140: 0 | AM140: -2.864788976 | AN140: 0 | AO140: 0 | AP140: 0 | AQ140: 0 | AR140: 0 | AS140: 0 | AT140: 0 | AU140: 0 | AV140: 0 | AW140: 0 | AX140: 0 | AY140: 0 | AZ140: 0 | BA140: 0 | BB140: 0 | BC140: 0 | BD140: 0 | BE140: 0 | BF140: 0 | BG140: 0 | BH140: 0 | BI140: 0 | BJ140: 0 | BK140: 0 | BL140: 0 | BM140: 0 | BN140: 0 | BO140: 0 | BP140: 0.02595831626 | BQ140: 0.04936497987 | BR140: 0.06769499309 | BS140: 0.07847653204 | BT140: 0.07931719426 | BU140: 0.06792984064 | BV140: 0.04215789912 | BW140: 0 | BX140: 0 | BY140: 0.02879716897 | BZ140: 0.03314789595 | CA140: 0.02080647581 | CB140: 5.666491065e-16 | CC140: -0.02080647581 | CD140: -0.03314789595 | CE140: -0.02879716897 | CF140: 0 | CG140: 0 | CH140: -0.04215789912 | CI140: -0.06792984064 | CJ140: -0.07931719426 | CK140: -0.07847653204 | CL140: -0.06769499309 | CM140: -0.04936497987 | CN140: -0.02595831626 | CO140: 0 | CP140: 0 | CQ140: =+F140+AO140+BP140 -> 0.02595831626 | CR140: =+G140+AP140+BQ140 -> 0.04936497987 | CS140: =+H140+AQ140+BR140 -> 0.06769499309 | CT140: =+I140+AR140+BS140 -> 0.07847653204 | CU140: =+J140+AS140+BT140 -> 0.07931719426 | CV140: =+K140+AT140+BU140 -> 0.06792984064 | CW140: =+L140+AU140+BV140 -> 0.04215789912 | CX140: =+M140+AV140+BW140 -> 0 | CY140: =+N140+AW140+BX140 -> 0 | CZ140: =+O140+AX140+BY140 -> -0.09620283103 | DA140: =+P140+AY140+BZ140 -> -0.216852104 | DB140: =+Q140+AZ140+CA140 -> -0.3541935242 | DC140: =+R140+BA140+CB140 -> -0.5 | DD140: =+S140+BB140+CC140 -> -0.6458064758 | DE140: =+T140+BC140+CD140 -> -0.783147896 | DF140: 0.09620283103 | DG140: =+V140+BE140+CF140 -> 0 | DH140: =+W140+BF140+CG140 -> 0 | DI140: =+X140+BG140+CH140 -> -0.04215789912 | DJ140: =+Y140+BH140+CI140 -> -0.06792984064 | DK140: =+Z140+BI140+CJ140 -> -0.07931719426 | DL140: =+AA140+BJ140+CK140 -> -0.07847653204 | DM140: =+AB140+BK140+CL140 -> -0.06769499309 | DN140: =+AC140+BL140+CM140 -> -0.04936497987 | DO140: =+AD140+BM140+CN140 -> -0.02595831626 | DP140: =+AE140+BN140+CO140 -> 0
D141: 16 | N141: =+CGIL2!F811 -> 0 | O141: =+CGIL2!G811 -> -0.125 | P141: =+CGIL2!H811 -> -0.25 | Q141: =+CGIL2!I811 -> -0.375 | R141: =+CGIL2!J811 -> -0.5 | S141: =+CGIL2!K811 -> -0.625 | T141: =+CGIL2!L811 -> -0.75 | U141: =+CGIL2!M811 -> -0.875 | V141: =+CGIL2!N811 -> -1 | AF141: 1.432394488 | AG141: 1.432394488 | AH141: -1 | AI141: 1 | AJ141: -1 | AK141: -1 | AL141: 0 | AM141: -2.864788976 | AN141: 0 | AO141: 0 | AP141: 0 | AQ141: 0 | AR141: 0 | AS141: 0 | AT141: 0 | AU141: 0 | AV141: 0 | AW141: 0 | AX141: 0 | AY141: 0 | AZ141: 0 | BA141: 0 | BB141: 0 | BC141: 0 | BD141: 0 | BE141: 0 | BF141: 0 | BG141: 0 | BH141: 0 | BI141: 0 | BJ141: 0 | BK141: 0 | BL141: 0 | BM141: 0 | BN141: 0 | BO141: 0 | BP141: 0.02595831626 | BQ141: 0.04936497987 | BR141: 0.06769499309 | BS141: 0.07847653204 | BT141: 0.07931719426 | BU141: 0.06792984064 | BV141: 0.04215789912 | BW141: 0 | BX141: 0 | BY141: 0.02879716897 | BZ141: 0.03314789595 | CA141: 0.02080647581 | CB141: 5.666491065e-16 | CC141: -0.02080647581 | CD141: -0.03314789595 | CE141: -0.02879716897 | CF141: 0 | CG141: 0 | CH141: -0.04215789912 | CI141: -0.06792984064 | CJ141: -0.07931719426 | CK141: -0.07847653204 | CL141: -0.06769499309 | CM141: -0.04936497987 | CN141: -0.02595831626 | CO141: 0 | CP141: 0 | CQ141: 0.02595831626 | CR141: 0.04936497987 | CS141: 0.06769499309 | CT141: 0.07847653204 | CU141: 0.07931719426 | CV141: 0.06792984064 | CW141: 0.04215789912 | CX141: 0 | CY141: 0 | CZ141: -0.09620283103 | DA141: -0.216852104 | DB141: -0.3541935242 | DC141: -0.5 | DD141: -0.6458064758 | DE141: -0.783147896 | DF141: -0.903797169 | DG141: -1 | DH141: 0 | DI141: -0.04215789912 | DJ141: -0.06792984064 | DK141: -0.07931719426 | DL141: -0.07847653204 | DM141: -0.06769499309 | DN141: -0.04936497987 | DO141: -0.02595831626 | DP141: 0
D142: 16 | W142: =+E124 -> 1 | X142: =+F124 -> 0.875 | Y142: 0.75 | Z142: 0.625 | AA142: 0.5 | AB142: 0.375 | AC142: 0.25 | AD142: 0.125 | AE142: 0 | AF142: =+AG124 -> 2.291831181 | AH142: -1 | AI142: 0 | AJ142: 1 | AK142: 0 | AL142: -2.291831181 | AM142: 2.291831181 | AN142: 0 | AO142: 0.0113185078 | AP142: 0.02152442802 | AQ142: 0.0295167953 | AR142: 0.03421782951 | AS142: 0.03458438032 | AT142: 0.029619195 | AU142: 0.01838195148 | AV142: 0 | AW142: 0 | AX142: 0.05728244014 | AY142: 0.09930517074 | AZ142: 0.1249643856 | BA142: 0.1335920104 | BB142: 0.1249643856 | BC142: 0.09930517074 | BD142: 0.05728244014 | BE142: 0 | BF142: 0 | BG142: 0.01838195148 | BH142: 0.029619195 | BI142: 0.03458438032 | BJ142: 0.03421782951 | BK142: 0.0295167953 | BL142: 0.02152442802 | BM142: 0.0113185078 | BN142: 0 | BO142: 0 | BP142: -0.02076665301 | BQ142: -0.0394919839 | BR142: -0.05415599447 | BS142: -0.06278122563 | BT142: -0.06345375541 | BU142: -0.05434387251 | BV142: -0.0337263193 | BW142: 0 | BX142: 0 | BY142: -0.02303773518 | BZ142: -0.02651831676 | CA142: -0.01664518065 | CB142: -4.533192852e-16 | CC142: 0.01664518065 | CD142: 0.02651831676 | CE142: 0.02303773518 | CF142: 0 | CG142: 0 | CH142: 0.0337263193 | CI142: 0.05434387251 | CJ142: 0.06345375541 | CK142: 0.06278122563 | CL142: 0.05415599447 | CM142: 0.0394919839 | CN142: 0.02076665301 | CO142: 0 | CP142: 0 | CQ142: -0.009448145208 | CR142: -0.01796755588 | CS142: -0.02463919917 | CT142: -0.02856339612 | CU142: -0.02886937509 | CV142: -0.02472467751 | CW142: -0.01534436781 | CX142: 0 | CY142: 0 | CZ142: 0.03424470497 | DA142: 0.07278685398 | DB142: 0.1083192049 | DC142: 0.1335920104 | DD142: 0.1416095662 | DE142: 0.1258234875 | DF142: 0.08032017532 | DG142: 0 | DH142: 1 | DI142: 0.9271082708 | DJ142: 0.8339630675 | DK142: 0.7230381357 | DL142: 0.5969990551 | DM142: 0.4586727898 | DN142: 0.3110164119 | DO142: 0.1570851608 | DP142: 0
D143: =+D142+1 -> 17 | W143: =+E125 -> 0 | X143: =+F125 -> 0.875 | Y143: =+G125 -> 0.75 | Z143: =+H125 -> 0.625 | AA143: =+I125 -> 0.5 | AB143: =+J125 -> 0.375 | AC143: =+K125 -> 0.25 | AD143: =+L125 -> 0.125 | AE143: =+M125 -> 0 | AF143: =+AF142 -> 2.291831181 | AH143: -1 | AI143: 0 | AJ143: 1 | AK143: 0 | AL143: -2.291831181 | AM143: 2.291831181 | AN143: 0 | AO143: 0.0113185078 | AP143: 0.02152442802 | AQ143: 0.0295167953 | AR143: 0.03421782951 | AS143: 0.03458438032 | AT143: 0.029619195 | AU143: 0.01838195148 | AV143: 0 | AW143: 0 | AX143: 0.05728244014 | AY143: 0.09930517074 | AZ143: 0.1249643856 | BA143: 0.1335920104 | BB143: 0.1249643856 | BC143: 0.09930517074 | BD143: 0.05728244014 | BE143: 0 | BF143: 0 | BG143: 0.01838195148 | BH143: 0.029619195 | BI143: 0.03458438032 | BJ143: 0.03421782951 | BK143: 0.0295167953 | BL143: 0.02152442802 | BM143: 0.0113185078 | BN143: 0 | BO143: 0 | BP143: -0.02076665301 | BQ143: -0.0394919839 | BR143: -0.05415599447 | BS143: -0.06278122563 | BT143: -0.06345375541 | BU143: -0.05434387251 | BV143: -0.0337263193 | BW143: 0 | BX143: 0 | BY143: -0.02303773518 | BZ143: -0.02651831676 | CA143: -0.01664518065 | CB143: -4.533192852e-16 | CC143: 0.01664518065 | CD143: 0.02651831676 | CE143: 0.02303773518 | CF143: 0 | CG143: 0 | CH143: 0.0337263193 | CI143: 0.05434387251 | CJ143: 0.06345375541 | CK143: 0.06278122563 | CL143: 0.05415599447 | CM143: 0.0394919839 | CN143: 0.02076665301 | CO143: 0 | CP143: 0 | CQ143: -0.009448145208 | CR143: -0.01796755588 | CS143: -0.02463919917 | CT143: -0.02856339612 | CU143: -0.02886937509 | CV143: -0.02472467751 | CW143: -0.01534436781 | CX143: 0 | CY143: 0 | CZ143: 0.03424470497 | DA143: 0.07278685398 | DB143: 0.1083192049 | DC143: 0.1335920104 | DD143: 0.1416095662 | DE143: 0.1258234875 | DF143: 0.08032017532 | DG143: 0 | DH143: 0 | DI143: 0.9271082708 | DJ143: 0.8339630675 | DK143: 0.7230381357 | DL143: 0.5969990551 | DM143: 0.4586727898 | DN143: 0.3110164119 | DO143: 0.1570851608 | DP143: 0
D144: 18 | W144: 0 | X144: -0.125 | Y144: 0.75 | Z144: 0.625 | AA144: 0.5 | AB144: 0.375 | AC144: 0.25 | AD144: 0.125 | AE144: 0 | AF144: 2.291831181 | AH144: -1 | AI144: 0 | AJ144: 1 | AK144: 0 | AL144: -2.291831181 | AM144: 2.291831181 | AN144: 0 | AO144: 0.0113185078 | AP144: 0.02152442802 | AQ144: 0.0295167953 | AR144: 0.03421782951 | AS144: 0.03458438032 | AT144: 0.029619195 | AU144: 0.01838195148 | AV144: 0 | AW144: 0 | AX144: 0.05728244014 | AY144: 0.09930517074 | AZ144: 0.1249643856 | BA144: 0.1335920104 | BB144: 0.1249643856 | BC144: 0.09930517074 | BD144: 0.05728244014 | BE144: 0 | BF144: 0 | BG144: 0.01838195148 | BH144: 0.029619195 | BI144: 0.03458438032 | BJ144: 0.03421782951 | BK144: 0.0295167953 | BL144: 0.02152442802 | BM144: 0.0113185078 | BN144: 0 | BO144: 0 | BP144: -0.02076665301 | BQ144: -0.0394919839 | BR144: -0.05415599447 | BS144: -0.06278122563 | BT144: -0.06345375541 | BU144: -0.05434387251 | BV144: -0.0337263193 | BW144: 0 | BX144: 0 | BY144: -0.02303773518 | BZ144: -0.02651831676 | CA144: -0.01664518065 | CB144: -4.533192852e-16 | CC144: 0.01664518065 | CD144: 0.02651831676 | CE144: 0.02303773518 | CF144: 0 | CG144: 0 | CH144: 0.0337263193 | CI144: 0.05434387251 | CJ144: 0.06345375541 | CK144: 0.06278122563 | CL144: 0.05415599447 | CM144: 0.0394919839 | CN144: 0.02076665301 | CO144: 0 | CP144: 0 | CQ144: -0.009448145208 | CR144: -0.01796755588 | CS144: -0.02463919917 | CT144: -0.02856339612 | CU144: -0.02886937509 | CV144: -0.02472467751 | CW144: -0.01534436781 | CX144: 0 | CY144: 0 | CZ144: 0.03424470497 | DA144: 0.07278685398 | DB144: 0.1083192049 | DC144: 0.1335920104 | DD144: 0.1416095662 | DE144: 0.1258234875 | DF144: 0.08032017532 | DG144: 0 | DH144: 0 | DI144: -0.07289172922 | DJ144: 0.8339630675 | DK144: 0.7230381357 | DL144: 0.5969990551 | DM144: 0.4586727898 | DN144: 0.3110164119 | DO144: 0.1570851608 | DP144: 0
D145: 19 | W145: 0 | X145: -0.125 | Y145: -0.25 | Z145: 0.625 | AA145: 0.5 | AB145: 0.375 | AC145: 0.25 | AD145: 0.125 | AE145: 0 | AF145: 2.291831181 | AH145: -1 | AI145: 0 | AJ145: 1 | AK145: 0 | AL145: -2.291831181 | AM145: 2.291831181 | AN145: 0 | AO145: 0.0113185078 | AP145: 0.02152442802 | AQ145: 0.0295167953 | AR145: 0.03421782951 | AS145: 0.03458438032 | AT145: 0.029619195 | AU145: 0.01838195148 | AV145: 0 | AW145: 0 | AX145: 0.05728244014 | AY145: 0.09930517074 | AZ145: 0.1249643856 | BA145: 0.1335920104 | BB145: 0.1249643856 | BC145: 0.09930517074 | BD145: 0.05728244014 | BE145: 0 | BF145: 0 | BG145: 0.01838195148 | BH145: 0.029619195 | BI145: 0.03458438032 | BJ145: 0.03421782951 | BK145: 0.0295167953 | BL145: 0.02152442802 | BM145: 0.0113185078 | BN145: 0 | BO145: 0 | BP145: -0.02076665301 | BQ145: -0.0394919839 | BR145: -0.05415599447 | BS145: -0.06278122563 | BT145: -0.06345375541 | BU145: -0.05434387251 | BV145: -0.0337263193 | BW145: 0 | BX145: 0 | BY145: -0.02303773518 | BZ145: -0.02651831676 | CA145: -0.01664518065 | CB145: -4.533192852e-16 | CC145: 0.01664518065 | CD145: 0.02651831676 | CE145: 0.02303773518 | CF145: 0 | CG145: 0 | CH145: 0.0337263193 | CI145: 0.05434387251 | CJ145: 0.06345375541 | CK145: 0.06278122563 | CL145: 0.05415599447 | CM145: 0.0394919839 | CN145: 0.02076665301 | CO145: 0 | CP145: 0 | CQ145: -0.009448145208 | CR145: -0.01796755588 | CS145: -0.02463919917 | CT145: -0.02856339612 | CU145: -0.02886937509 | CV145: -0.02472467751 | CW145: -0.01534436781 | CX145: 0 | CY145: 0 | CZ145: 0.03424470497 | DA145: 0.07278685398 | DB145: 0.1083192049 | DC145: 0.1335920104 | DD145: 0.1416095662 | DE145: 0.1258234875 | DF145: 0.08032017532 | DG145: 0 | DH145: 0 | DI145: -0.07289172922 | DJ145: -0.1660369325 | DK145: 0.7230381357 | DL145: 0.5969990551 | DM145: 0.4586727898 | DN145: 0.3110164119 | DO145: 0.1570851608 | DP145: 0
D146: 20 | W146: 0 | X146: -0.125 | Y146: -0.25 | Z146: -0.375 | AA146: 0.5 | AB146: 0.375 | AC146: 0.25 | AD146: 0.125 | AE146: 0 | AF146: 2.291831181 | AH146: -1 | AI146: 0 | AJ146: 1 | AK146: 0 | AL146: -2.291831181 | AM146: 2.291831181 | AN146: 0 | AO146: 0.0113185078 | AP146: 0.02152442802 | AQ146: 0.0295167953 | AR146: 0.03421782951 | AS146: 0.03458438032 | AT146: 0.029619195 | AU146: 0.01838195148 | AV146: 0 | AW146: 0 | AX146: 0.05728244014 | AY146: 0.09930517074 | AZ146: 0.1249643856 | BA146: 0.1335920104 | BB146: 0.1249643856 | BC146: 0.09930517074 | BD146: 0.05728244014 | BE146: 0 | BF146: 0 | BG146: 0.01838195148 | BH146: 0.029619195 | BI146: 0.03458438032 | BJ146: 0.03421782951 | BK146: 0.0295167953 | BL146: 0.02152442802 | BM146: 0.0113185078 | BN146: 0 | BO146: 0 | BP146: -0.02076665301 | BQ146: -0.0394919839 | BR146: -0.05415599447 | BS146: -0.06278122563 | BT146: -0.06345375541 | BU146: -0.05434387251 | BV146: -0.0337263193 | BW146: 0 | BX146: 0 | BY146: -0.02303773518 | BZ146: -0.02651831676 | CA146: -0.01664518065 | CB146: -4.533192852e-16 | CC146: 0.01664518065 | CD146: 0.02651831676 | CE146: 0.02303773518 | CF146: 0 | CG146: 0 | CH146: 0.0337263193 | CI146: 0.05434387251 | CJ146: 0.06345375541 | CK146: 0.06278122563 | CL146: 0.05415599447 | CM146: 0.0394919839 | CN146: 0.02076665301 | CO146: 0 | CP146: 0 | CQ146: -0.009448145208 | CR146: -0.01796755588 | CS146: -0.02463919917 | CT146: -0.02856339612 | CU146: -0.02886937509 | CV146: -0.02472467751 | CW146: -0.01534436781 | CX146: 0 | CY146: 0 | CZ146: 0.03424470497 | DA146: 0.07278685398 | DB146: 0.1083192049 | DC146: 0.1335920104 | DD146: 0.1416095662 | DE146: 0.1258234875 | DF146: 0.08032017532 | DG146: 0 | DH146: 0 | DI146: -0.07289172922 | DJ146: -0.1660369325 | DK146: -0.2769618643 | DL146: 0.5969990551 | DM146: 0.4586727898 | DN146: 0.3110164119 | DO146: 0.1570851608 | DP146: 0
D147: 21 | W147: 0 | X147: -0.125 | Y147: -0.25 | Z147: -0.375 | AA147: -0.5 | AB147: 0.375 | AC147: 0.25 | AD147: 0.125 | AE147: 0 | AF147: 2.291831181 | AH147: -1 | AI147: 0 | AJ147: 1 | AK147: 0 | AL147: -2.291831181 | AM147: 2.291831181 | AN147: 0 | AO147: 0.0113185078 | AP147: 0.02152442802 | AQ147: 0.0295167953 | AR147: 0.03421782951 | AS147: 0.03458438032 | AT147: 0.029619195 | AU147: 0.01838195148 | AV147: 0 | AW147: 0 | AX147: 0.05728244014 | AY147: 0.09930517074 | AZ147: 0.1249643856 | BA147: 0.1335920104 | BB147: 0.1249643856 | BC147: 0.09930517074 | BD147: 0.05728244014 | BE147: 0 | BF147: 0 | BG147: 0.01838195148 | BH147: 0.029619195 | BI147: 0.03458438032 | BJ147: 0.03421782951 | BK147: 0.0295167953 | BL147: 0.02152442802 | BM147: 0.0113185078 | BN147: 0 | BO147: 0 | BP147: -0.02076665301 | BQ147: -0.0394919839 | BR147: -0.05415599447 | BS147: -0.06278122563 | BT147: -0.06345375541 | BU147: -0.05434387251 | BV147: -0.0337263193 | BW147: 0 | BX147: 0 | BY147: -0.02303773518 | BZ147: -0.02651831676 | CA147: -0.01664518065 | CB147: -4.533192852e-16 | CC147: 0.01664518065 | CD147: 0.02651831676 | CE147: 0.02303773518 | CF147: 0 | CG147: 0 | CH147: 0.0337263193 | CI147: 0.05434387251 | CJ147: 0.06345375541 | CK147: 0.06278122563 | CL147: 0.05415599447 | CM147: 0.0394919839 | CN147: 0.02076665301 | CO147: 0 | CP147: 0 | CQ147: -0.009448145208 | CR147: -0.01796755588 | CS147: -0.02463919917 | CT147: -0.02856339612 | CU147: -0.02886937509 | CV147: -0.02472467751 | CW147: -0.01534436781 | CX147: 0 | CY147: 0 | CZ147: 0.03424470497 | DA147: 0.07278685398 | DB147: 0.1083192049 | DC147: 0.1335920104 | DD147: 0.1416095662 | DE147: 0.1258234875 | DF147: 0.08032017532 | DG147: 0 | DH147: 0 | DI147: -0.07289172922 | DJ147: -0.1660369325 | DK147: -0.2769618643 | DL147: -0.4030009449 | DM147: 0.4586727898 | DN147: 0.3110164119 | DO147: 0.1570851608 | DP147: 0
D148: 22 | W148: 0 | X148: -0.125 | Y148: -0.25 | Z148: -0.375 | AA148: -0.5 | AB148: -0.625 | AC148: 0.25 | AD148: 0.125 | AE148: 0 | AF148: 2.291831181 | AH148: -1 | AI148: 0 | AJ148: 1 | AK148: 0 | AL148: -2.291831181 | AM148: 2.291831181 | AN148: 0 | AO148: 0.0113185078 | AP148: 0.02152442802 | AQ148: 0.0295167953 | AR148: 0.03421782951 | AS148: 0.03458438032 | AT148: 0.029619195 | AU148: 0.01838195148 | AV148: 0 | AW148: 0 | AX148: 0.05728244014 | AY148: 0.09930517074 | AZ148: 0.1249643856 | BA148: 0.1335920104 | BB148: 0.1249643856 | BC148: 0.09930517074 | BD148: 0.05728244014 | BE148: 0 | BF148: 0 | BG148: 0.01838195148 | BH148: 0.029619195 | BI148: 0.03458438032 | BJ148: 0.03421782951 | BK148: 0.0295167953 | BL148: 0.02152442802 | BM148: 0.0113185078 | BN148: 0 | BO148: 0 | BP148: -0.02076665301 | BQ148: -0.0394919839 | BR148: -0.05415599447 | BS148: -0.06278122563 | BT148: -0.06345375541 | BU148: -0.05434387251 | BV148: -0.0337263193 | BW148: 0 | BX148: 0 | BY148: -0.02303773518 | BZ148: -0.02651831676 | CA148: -0.01664518065 | CB148: -4.533192852e-16 | CC148: 0.01664518065 | CD148: 0.02651831676 | CE148: 0.02303773518 | CF148: 0 | CG148: 0 | CH148: 0.0337263193 | CI148: 0.05434387251 | CJ148: 0.06345375541 | CK148: 0.06278122563 | CL148: 0.05415599447 | CM148: 0.0394919839 | CN148: 0.02076665301 | CO148: 0 | CP148: 0 | CQ148: -0.009448145208 | CR148: -0.01796755588 | CS148: -0.02463919917 | CT148: -0.02856339612 | CU148: -0.02886937509 | CV148: -0.02472467751 | CW148: -0.01534436781 | CX148: 0 | CY148: 0 | CZ148: 0.03424470497 | DA148: 0.07278685398 | DB148: 0.1083192049 | DC148: 0.1335920104 | DD148: 0.1416095662 | DE148: 0.1258234875 | DF148: 0.08032017532 | DG148: 0 | DH148: 0 | DI148: -0.07289172922 | DJ148: -0.1660369325 | DK148: -0.2769618643 | DL148: -0.4030009449 | DM148: -0.5413272102 | DN148: 0.3110164119 | DO148: 0.1570851608 | DP148: 0
D149: 23 | W149: 0 | X149: -0.125 | Y149: -0.25 | Z149: -0.375 | AA149: -0.5 | AB149: -0.625 | AC149: -0.75 | AD149: 0.125 | AE149: 0 | AF149: 2.291831181 | AH149: -1 | AI149: 0 | AJ149: 1 | AK149: 0 | AL149: -2.291831181 | AM149: 2.291831181 | AN149: 0 | AO149: 0.0113185078 | AP149: 0.02152442802 | AQ149: 0.0295167953 | AR149: 0.03421782951 | AS149: 0.03458438032 | AT149: 0.029619195 | AU149: 0.01838195148 | AV149: 0 | AW149: 0 | AX149: 0.05728244014 | AY149: 0.09930517074 | AZ149: 0.1249643856 | BA149: 0.1335920104 | BB149: 0.1249643856 | BC149: 0.09930517074 | BD149: 0.05728244014 | BE149: 0 | BF149: 0 | BG149: 0.01838195148 | BH149: 0.029619195 | BI149: 0.03458438032 | BJ149: 0.03421782951 | BK149: 0.0295167953 | BL149: 0.02152442802 | BM149: 0.0113185078 | BN149: 0 | BO149: 0 | BP149: -0.02076665301 | BQ149: -0.0394919839 | BR149: -0.05415599447 | BS149: -0.06278122563 | BT149: -0.06345375541 | BU149: -0.05434387251 | BV149: -0.0337263193 | BW149: 0 | BX149: 0 | BY149: -0.02303773518 | BZ149: -0.02651831676 | CA149: -0.01664518065 | CB149: -4.533192852e-16 | CC149: 0.01664518065 | CD149: 0.02651831676 | CE149: 0.02303773518 | CF149: 0 | CG149: 0 | CH149: 0.0337263193 | CI149: 0.05434387251 | CJ149: 0.06345375541 | CK149: 0.06278122563 | CL149: 0.05415599447 | CM149: 0.0394919839 | CN149: 0.02076665301 | CO149: 0 | CP149: 0 | CQ149: -0.009448145208 | CR149: -0.01796755588 | CS149: -0.02463919917 | CT149: -0.02856339612 | CU149: -0.02886937509 | CV149: -0.02472467751 | CW149: -0.01534436781 | CX149: 0 | CY149: 0 | CZ149: 0.03424470497 | DA149: 0.07278685398 | DB149: 0.1083192049 | DC149: 0.1335920104 | DD149: 0.1416095662 | DE149: 0.1258234875 | DF149: 0.08032017532 | DG149: 0 | DH149: 0 | DI149: -0.07289172922 | DJ149: -0.1660369325 | DK149: -0.2769618643 | DL149: -0.4030009449 | DM149: -0.5413272102 | DN149: -0.6889835881 | DO149: 0.1570851608 | DP149: 0
D150: 24 | W150: 0 | X150: -0.125 | Y150: -0.25 | Z150: -0.375 | AA150: -0.5 | AB150: -0.625 | AC150: -0.75 | AD150: -0.875 | AE150: -1 | AF150: 2.291831181 | AH150: -1 | AI150: 0 | AJ150: 1 | AK150: 0 | AL150: -2.291831181 | AM150: 2.291831181 | AN150: 0 | AO150: 0.0113185078 | AP150: 0.02152442802 | AQ150: 0.0295167953 | AR150: 0.03421782951 | AS150: 0.03458438032 | AT150: 0.029619195 | AU150: 0.01838195148 | AV150: 0 | AW150: 0 | AX150: 0.05728244014 | AY150: 0.09930517074 | AZ150: 0.1249643856 | BA150: 0.1335920104 | BB150: 0.1249643856 | BC150: 0.09930517074 | BD150: 0.05728244014 | BE150: 0 | BF150: 0 | BG150: 0.01838195148 | BH150: 0.029619195 | BI150: 0.03458438032 | BJ150: 0.03421782951 | BK150: 0.0295167953 | BL150: 0.02152442802 | BM150: 0.0113185078 | BN150: 0 | BO150: 0 | BP150: -0.02076665301 | BQ150: -0.0394919839 | BR150: -0.05415599447 | BS150: -0.06278122563 | BT150: -0.06345375541 | BU150: -0.05434387251 | BV150: -0.0337263193 | BW150: 0 | BX150: 0 | BY150: -0.02303773518 | BZ150: -0.02651831676 | CA150: -0.01664518065 | CB150: -4.533192852e-16 | CC150: 0.01664518065 | CD150: 0.02651831676 | CE150: 0.02303773518 | CF150: 0 | CG150: 0 | CH150: 0.0337263193 | CI150: 0.05434387251 | CJ150: 0.06345375541 | CK150: 0.06278122563 | CL150: 0.05415599447 | CM150: 0.0394919839 | CN150: 0.02076665301 | CO150: 0 | CP150: 0 | CQ150: -0.009448145208 | CR150: -0.01796755588 | CS150: -0.02463919917 | CT150: -0.02856339612 | CU150: -0.02886937509 | CV150: -0.02472467751 | CW150: -0.01534436781 | CX150: 0 | CY150: 0 | CZ150: 0.03424470497 | DA150: 0.07278685398 | DB150: 0.1083192049 | DC150: 0.1335920104 | DD150: 0.1416095662 | DE150: 0.1258234875 | DF150: 0.08032017532 | DG150: 0 | DH150: 0 | DI150: -0.07289172922 | DJ150: -0.1660369325 | DK150: -0.2769618643 | DL150: -0.4030009449 | DM150: -0.5413272102 | DN150: -0.6889835881 | DO150: -0.8429148392 | DP150: -1
C152: RB | E152: 0 | F152: =+E152+1 -> 1 | G152: =+F152+1 -> 2 | H152: =+G152+1 -> 3 | I152: =+H152+1 -> 4 | J152: =+I152+1 -> 5 | K152: =+J152+1 -> 6 | L152: =+K152+1 -> 7 | M152: =+L152+1 -> 8 | N152: 8 | O152: =+N152+1 -> 9 | P152: =+O152+1 -> 10 | Q152: =+P152+1 -> 11 | R152: =+Q152+1 -> 12 | S152: =+R152+1 -> 13 | T152: =+S152+1 -> 14 | U152: =+T152+1 -> 15 | V152: =+U152+1 -> 16 | W152: 16 | X152: =+W152+1 -> 17 | Y152: =+X152+1 -> 18 | Z152: =+Y152+1 -> 19 | AA152: =+Z152+1 -> 20 | AB152: =+AA152+1 -> 21 | AC152: =+AB152+1 -> 22 | AD152: =+AC152+1 -> 23 | AE152: =+AD152+1 -> 24
E153: =+CP133-CP132 -> 0 | F153: 0.1830434771 | G153: 0.3603813918 | H153: 0.5263677829 | I153: 0.6754755872 | J153: 0.80235533 | K153: 0.9018929081 | L153: 0.9692661699 | M153: 1 | N153: 1 | O153: 0.9841173443 | P153: 0.9089713835 | Q153: 0.787416042 | R153: 0.6335920104 | S153: 0.4625127291 | T153: 0.289638958 | U153: 0.130447536 | V153: 0 | W153: 0 | X153: -0.05750226693 | Y153: -0.09265451815 | Z153: -0.1081865694 | AA153: -0.1070399282 | AB153: -0.09233419226 | AC153: -0.06733253575 | AD153: -0.03540646147 | AE153: 0
E154: =+E153 -> 0 | F154: =+F153 -> 0.1830434771 | G154: 0.3603813918 | H154: 0.5263677829 | I154: 0.6754755872 | J154: 0.80235533 | K154: 0.9018929081 | L154: 0.9692661699 | M154: 1 | N154: 1 | O154: 0.9841173443 | P154: 0.9089713835 | Q154: 0.787416042 | R154: 0.6335920104 | S154: 0.4625127291 | T154: 0.289638958 | U154: 0.130447536 | V154: 0 | W154: 0 | X154: -0.05750226693 | Y154: -0.09265451815 | Z154: -0.1081865694 | AA154: -0.1070399282 | AB154: -0.09233419226 | AC154: -0.06733253575 | AD154: -0.03540646147 | AE154: 0
E156: MP(0) | AF156: MM(0) | AH156: Load(1) | AI156: Load(1) | AJ156: Load(2) | AK156: Load(2)
C157: MP | E157: 0 | F157: =+E157+1 -> 1 | G157: =+F157+1 -> 2 | H157: 3 | I157: 4 | J157: 5 | K157: 6 | L157: 7 | M157: 8 | N157: 8 | O157: =+N157+1 -> 9 | P157: 10 | Q157: 11 | R157: 12 | S157: 13 | T157: 14 | U157: 15 | V157: 16 | W157: 16 | X157: =+W157+1 -> 17 | Y157: 18 | Z157: 19 | AA157: 20 | AB157: 21 | AC157: 22 | AD157: 23 | AE157: 24 | AF157: Left | AG157: Right | AH157: Left | AI157: Right | AJ157: Left | AK157: Right | AL157: MM(1) | AM157: MM(2) | AN157: 0 | AO157: =+AN157+1 -> 1 | AP157: =+AO157+1 -> 2 | AQ157: 3 | AR157: 4 | AS157: 5 | AT157: 6 | AU157: 7 | AV157: 8 | AW157: 8 | AX157: 9 | AY157: 10 | AZ157: 11 | BA157: 12 | BB157: 13 | BC157: 14 | BD157: 15 | BE157: 16 | BF157: 16 | BG157: 17 | BH157: 18 | BI157: 19 | BJ157: 20 | BK157: 21 | BL157: 22 | BM157: 23 | BN157: 24 | BO157: 0 | BP157: =+BO157+1 -> 1 | BQ157: =+BP157+1 -> 2 | BR157: 3 | BS157: 4 | BT157: 5 | BU157: 6 | BV157: 7 | BW157: 8 | BX157: 8 | BY157: =+BX157+1 -> 9 | BZ157: 10 | CA157: 11 | CB157: 12 | CC157: 13 | CD157: 14 | CE157: 15 | CF157: 16 | CG157: 16 | CH157: =+CG157+1 -> 17 | CI157: 18 | CJ157: 19 | CK157: 20 | CL157: 21 | CM157: 22 | CN157: 23 | CO157: 24 | CP157: 0 | CQ157: =+CP157+1 -> 1 | CR157: =+CQ157+1 -> 2 | CS157: 3 | CT157: 4 | CU157: 5 | CV157: 6 | CW157: 7 | CX157: 8 | CY157: 8 | CZ157: =+CY157+1 -> 9 | DA157: 10 | DB157: 11 | DC157: 12 | DD157: 13 | DE157: 14 | DF157: 15 | DG157: 16 | DH157: 16 | DI157: =+DH157+1 -> 17 | DJ157: 18 | DK157: 19 | DL157: 20 | DM157: 21 | DN157: 22 | DO157: 23 | DP157: 24
D158: 0 | E158: =+CGIL1!F812 -> 0 | F158: =+CGIL1!G812 -> 0 | G158: =+CGIL1!H812 -> 0 | H158: =+CGIL1!I812 -> 0 | I158: =+CGIL1!J812 -> 0 | J158: =+CGIL1!K812 -> 0 | K158: =+CGIL1!L812 -> 0 | L158: =+CGIL1!M812 -> 0 | M158: =+CGIL1!N812 -> 0 | AG158: =+CGIL1!N893 -> 0 | AH158: 0 | AI158: 1 | AJ158: 0 | AK158: 1 | AL158: =+AF158*AH158+AG158*AI158 -> 0 | AM158: =+AF158*AJ158+AG158*AK158 -> 0 | AN158: =MMULT(AL158:AL184,TRANSPOSE(E94:E120)) -> 0 | AO158: 0 | AP158: 0 | AQ158: 0 | AR158: 0 | AS158: 0 | AT158: 0 | AU158: 0 | AV158: 0 | AW158: 0 | AX158: 0 | AY158: 0 | AZ158: 0 | BA158: 0 | BB158: 0 | BC158: 0 | BD158: 0 | BE158: 0 | BF158: 0 | BG158: 0 | BH158: 0 | BI158: 0 | BJ158: 0 | BK158: 0 | BL158: 0 | BM158: 0 | BN158: 0 | BO158: =MMULT(AM158:AM184,TRANSPOSE(F94:F120)) -> 0 | BP158: 0 | BQ158: 0 | BR158: 0 | BS158: 0 | BT158: 0 | BU158: 0 | BV158: 0 | BW158: 0 | BX158: 0 | BY158: 0 | BZ158: 0 | CA158: 0 | CB158: 0 | CC158: 0 | CD158: 0 | CE158: 0 | CF158: 0 | CG158: 0 | CH158: 0 | CI158: 0 | CJ158: 0 | CK158: 0 | CL158: 0 | CM158: 0 | CN158: 0 | CO158: 0 | CP158: =+E158+AN158+BO158 -> 0 | CQ158: =+F158+AO158+BP158 -> 0 | CR158: =+G158+AP158+BQ158 -> 0 | CS158: =+H158+AQ158+BR158 -> 0 | CT158: =+I158+AR158+BS158 -> 0 | CU158: =+J158+AS158+BT158 -> 0 | CV158: =+K158+AT158+BU158 -> 0 | CW158: =+L158+AU158+BV158 -> 0 | CX158: =+M158+AV158+BW158 -> 0 | CY158: =+N158+AW158+BX158 -> 0 | CZ158: =+O158+AX158+BY158 -> 0 | DA158: =+P158+AY158+BZ158 -> 0 | DB158: =+Q158+AZ158+CA158 -> 0 | DC158: =+R158+BA158+CB158 -> 0 | DD158: =+S158+BB158+CC158 -> 0 | DE158: =+T158+BC158+CD158 -> 0 | DF158: =+U158+BD158+CE158 -> 0 | DG158: =+V158+BE158+CF158 -> 0 | DH158: =+W158+BF158+CG158 -> 0 | DI158: =+X158+BG158+CH158 -> 0 | DJ158: =+Y158+BH158+CI158 -> 0 | DK158: =+Z158+BI158+CJ158 -> 0 | DL158: =+AA158+BJ158+CK158 -> 0 | DM158: =+AB158+BK158+CL158 -> 0 | DN158: =+AC158+BL158+CM158 -> 0 | DO158: =+AD158+BM158+CN158 -> 0 | DP158: =+AE158+BN158+CO158 -> 0
D159: =+D158+1 -> 1 | E159: =+CGIL1!F813 -> 0 | F159: =+CGIL1!G813 -> 0.04806032552 | G159: =+CGIL1!H813 -> 0.04146321597 | H159: =+CGIL1!I813 -> 0.03474279306 | I159: =+CGIL1!J813 -> 0.02791904363 | J159: =+CGIL1!K813 -> 0.02101226179 | K159: =+CGIL1!L813 -> 0.01404298859 | L159: =+CGIL1!M813 -> 0.007031950954 | M159: =+CGIL1!N813 -> 0 | AG159: =+CGIL1!N894 -> 0.1289923001 | AH159: 0 | AI159: 1 | AJ159: 0 | AK159: 1 | AL159: =+AF159*AH159+AG159*AI159 -> 0.1289923001 | AM159: =+AF159*AJ159+AG159*AK159 -> 0.1289923001 | AN159: 0 | AO159: -0.0006370453318 | AP159: -0.00121147033 | AQ159: -0.001661308804 | AR159: -0.001925899503 | AS159: -0.001946530269 | AT159: -0.001667072218 | AU159: -0.001034600725 | AV159: 0 | AW159: 0 | AX159: -0.003224056715 | AY159: -0.005589243437 | AZ159: -0.007033434077 | BA159: -0.007519027074 | BB159: -0.007033434077 | BC159: -0.005589243437 | BD159: -0.003224056715 | BE159: 0 | BF159: 0 | BG159: -0.001034600725 | BH159: -0.001667072218 | BI159: -0.001946530269 | BJ159: -0.001925899503 | BK159: -0.001661308804 | BL159: -0.00121147033 | BM159: -0.0006370453318 | BN159: 0 | BO159: 0 | BP159: -0.001168820094 | BQ159: -0.002222747417 | BR159: -0.003048089383 | BS159: -0.003533547656 | BT159: -0.003571399992 | BU159: -0.003058663819 | BV159: -0.001898235584 | BW159: 0 | BX159: 0 | BY159: -0.001296644567 | BZ159: -0.001492543911 | CA159: -0.0009368491689 | CB159: -2.551439991e-17 | CC159: 0.0009368491689 | CD159: 0.001492543911 | CE159: 0.001296644567 | CF159: 0 | CG159: 0 | CH159: 0.001898235584 | CI159: 0.003058663819 | CJ159: 0.003571399992 | CK159: 0.003533547656 | CL159: 0.003048089383 | CM159: 0.002222747417 | CN159: 0.001168820094 | CO159: 0 | CP159: 0 | CQ159: 0.04625446009 | CR159: 0.03802899822 | CS159: 0.03003339488 | CT159: 0.02245959647 | CU159: 0.01549433153 | CV159: 0.009317252553 | CW159: 0.004099114645 | CX159: 0 | CY159: 0 | CZ159: -0.004520701283 | DA159: -0.007081787348 | DB159: -0.007970283246 | DC159: -0.007519027074 | DD159: -0.006096584909 | DE159: -0.004096699526 | DF159: -0.001927412148 | DG159: 0 | DH159: 0 | DI159: 0.0008636348586 | DJ159: 0.001391591601 | DK159: 0.001624869723 | DL159: 0.001607648153 | DM159: 0.00138678058 | DN159: 0.001011277087 | DO159: 0.0005317747626 | DP159: 0
D160: =+D159+1 -> 2 | E160: =+CGIL1!F814 -> 0 | F160: =+CGIL1!G814 -> 0.04146321597 | G160: =+CGIL1!H814 -> 0.08280311858 | H160: =+CGIL1!I814 -> 0.0693822596 | I160: =+CGIL1!J814 -> 0.05575505485 | J160: =+CGIL1!K814 -> 0.04196203222 | K160: =+CGIL1!L814 -> 0.02804421274 | L160: =+CGIL1!M814 -> 0.01404298859 | M160: =+CGIL1!N814 -> 0 | AG160: =+CGIL1!N895 -> 0.2576009716 | AH160: 0 | AI160: 1 | AJ160: 0 | AK160: 1 | AL160: 0.2576009716 | AM160: 0.2576009716 | AN160: 0 | AO160: -0.001272196064 | AP160: -0.002419337697 | AQ160: -0.003317676805 | AR160: -0.0038460713 | AS160: -0.003887271475 | AT160: -0.003329186493 | AU160: -0.002066124504 | AV160: 0 | AW160: 0 | AX160: -0.00643852495 | AY160: -0.01116186423 | AZ160: -0.01404595043 | BA160: -0.01501569224 | BB160: -0.01404595043 | BC160: -0.01116186423 | BD160: -0.00643852495 | BE160: 0 | BF160: 0 | BG160: -0.002066124504 | BH160: -0.003329186493 | BI160: -0.003887271475 | BJ160: -0.0038460713 | BK160: -0.003317676805 | BL160: -0.002419337697 | BM160: -0.001272196064 | BN160: 0 | BO160: 0 | BP160: -0.002334164069 | BQ160: -0.00443888429 | BR160: -0.006087113621 | BS160: -0.007056586393 | BT160: -0.007132178489 | BU160: -0.006108231042 | BV160: -0.003790825735 | BW160: 0 | BX160: 0 | BY160: -0.002589432859 | BZ160: -0.002980648933 | CA160: -0.001870912109 | CB160: -5.095291892e-17 | CC160: 0.001870912109 | CD160: 0.002980648933 | CE160: 0.002589432859 | CF160: 0 | CG160: 0 | CH160: 0.003790825735 | CI160: 0.006108231042 | CJ160: 0.007132178489 | CK160: 0.007056586393 | CL160: 0.006087113621 | CM160: 0.00443888429 | CN160: 0.002334164069 | CO160: 0 | CP160: 0 | CQ160: 0.03785685583 | CR160: 0.07594489659 | CS160: 0.05997746917 | CT160: 0.04485239716 | CU160: 0.03094258226 | CV160: 0.0186067952 | CW160: 0.00818603835 | CX160: 0 | CY160: 0 | CZ160: -0.009027957809 | DA160: -0.01414251316 | DB160: -0.01591686253 | DC160: -0.01501569224 | DD160: -0.01217503832 | DE160: -0.008181215295 | DF160: -0.003849092092 | DG160: 0 | DH160: 0 | DI160: 0.001724701231 | DJ160: 0.002779044549 | DK160: 0.003244907014 | DL160: 0.003210515093 | DM160: 0.002769436816 | DN160: 0.002019546593 | DO160: 0.001061968005 | DP160: 0
D161: 3 | E161: =+CGIL1!F815 -> 0 | F161: =+CGIL1!G815 -> 0.03474279306 | G161: =+CGIL1!H815 -> 0.0693822596 | H161: =+CGIL1!I815 -> 0.1038153804 | I161: =+CGIL1!J815 -> 0.08342524819 | J161: =+CGIL1!K815 -> 0.0627870058 | K161: =+CGIL1!L815 -> 0.04196203222 | L161: =+CGIL1!M815 -> 0.02101226179 | M161: =+CGIL1!N815 -> 0 | AG161: =+CGIL1!N896 -> 0.385443527 | AH161: 0 | AI161: 1 | AJ161: 0 | AK161: 1 | AL161: 0.385443527 | AM161: 0.385443527 | AN161: 0 | AO161: -0.001903563231 | AP161: -0.003620009852 | AQ161: -0.004964177896 | AR161: -0.005754804719 | AS161: -0.005816451772 | AT161: -0.004981399627 | AU161: -0.003091503542 | AV161: 0 | AW161: 0 | AX161: -0.009633844741 | AY161: -0.01670128917 | AZ161: -0.02101669353 | BA161: -0.02246770011 | BB161: -0.02101669353 | BC161: -0.01670128917 | BD161: -0.009633844741 | BE161: 0 | BF161: 0 | BG161: -0.003091503542 | BH161: -0.004981399627 | BI161: -0.005816451772 | BJ161: -0.005754804719 | BK161: -0.004964177896 | BL161: -0.003620009852 | BM161: -0.001903563231 | BN161: 0 | BO161: 0 | BP161: -0.00349256614 | BQ161: -0.006641819734 | BR161: -0.009108034526 | BS161: -0.01055863854 | BT161: -0.01067174559 | BU161: -0.009139632129 | BV161: -0.005672141811 | BW161: 0 | BX161: 0 | BY161: -0.003874520068 | BZ161: -0.00445988938 | CA161: -0.002799410877 | CB161: -7.623990181e-17 | CC161: 0.002799410877 | CD161: 0.00445988938 | CE161: 0.003874520068 | CF161: 0 | CG161: 0 | CH161: 0.005672141811 | CI161: 0.009139632129 | CJ161: 0.01067174559 | CK161: 0.01055863854 | CL161: 0.009108034526 | CM161: 0.006641819734 | CN161: 0.00349256614 | CO161: 0 | CP161: 0 | CQ161: 0.02934666369 | CR161: 0.05912043001 | CS161: 0.08974316795 | CT161: 0.06711180492 | CU161: 0.04629880844 | CV161: 0.02784100046 | CW161: 0.01224861643 | CX161: 0 | CY161: 0 | CZ161: -0.01350836481 | DA161: -0.02116117855 | DB161: -0.0238161044 | DC161: -0.02246770011 | DD161: -0.01821728265 | DE161: -0.01224139978 | DF161: -0.005759324673 | DG161: 0 | DH161: 0 | DI161: 0.002580638269 | DJ161: 0.004158232502 | DK161: 0.004855293816 | DL161: 0.004803833825 | DM161: 0.00414385663 | DN161: 0.003021809883 | DO161: 0.001589002909 | DP161: 0
D162: 4 | E162: =+CGIL1!F816 -> 0 | F162: =+CGIL1!G816 -> 0.02791904363 | G162: =+CGIL1!H816 -> 0.05575505485 | H162: =+CGIL1!I816 -> 0.08342524819 | I162: =+CGIL1!J816 -> 0.1108473313 | J162: =+CGIL1!K816 -> 0.08342524819 | K162: =+CGIL1!L816 -> 0.05575505485 | L162: =+CGIL1!M816 -> 0.02791904363 | M162: =+CGIL1!N816 -> 0 | AG162: =+CGIL1!N897 -> 0.5121397572 | AH162: 0 | AI162: 1 | AJ162: 0 | AK162: 1 | AL162: 0.5121397572 | AM162: 0.5121397572 | AN162: 0 | AO162: -0.002529269122 | AP162: -0.004809915944 | AQ162: -0.006595915312 | AR162: -0.007646423106 | AS162: -0.007728333696 | AT162: -0.006618797869 | AU162: -0.004107688318 | AV162: 0 | AW162: 0 | AX162: -0.01280051307 | AY162: -0.02219104376 | AZ162: -0.02792493209 | BA162: -0.0298528881 | BB162: -0.02792493209 | BC162: -0.02219104376 | BD162: -0.01280051307 | BE162: 0 | BF162: 0 | BG162: -0.004107688318 | BH162: -0.006618797869 | BI162: -0.007728333696 | BJ162: -0.007646423106 | BK162: -0.006595915312 | BL162: -0.004809915944 | BM162: -0.002529269122 | BN162: 0 | BO162: 0 | BP162: -0.004640581174 | BQ162: -0.008825002127 | BR162: -0.01210186775 | BS162: -0.01402928886 | BT162: -0.01417957447 | BU162: -0.01214385157 | BV162: -0.007536588698 | BW162: 0 | BX162: 0 | BY162: -0.005148084291 | BZ162: -0.005925865928 | CA162: -0.00371958408 | CB162: -1.01300144e-16 | CC162: 0.00371958408 | CD162: 0.005925865928 | CE162: 0.005148084291 | CF162: 0 | CG162: 0 | CH162: 0.007536588698 | CI162: 0.01214385157 | CJ162: 0.01417957447 | CK162: 0.01402928886 | CL162: 0.01210186775 | CM162: 0.008825002127 | CN162: 0.004640581174 | CO162: 0 | CP162: 0 | CQ162: 0.02074919334 | CR162: 0.04212013678 | CS162: 0.06472746512 | CT162: 0.08917161936 | CU162: 0.06151734003 | CV162: 0.03699240541 | CW162: 0.01627476661 | CX162: 0 | CY162: 0 | CZ162: -0.01794859736 | DA162: -0.02811690969 | DB162: -0.03164451617 | DC162: -0.0298528881 | DD162: -0.02420534801 | DE162: -0.01626517784 | DF162: -0.00765242878 | DG162: 0 | DH162: 0 | DI162: 0.00342890038 | DJ162: 0.005525053697 | DK162: 0.006451240769 | DL162: 0.006382865753 | DM162: 0.00550595244 | DN162: 0.004015086182 | DO162: 0.002111312052 | DP162: 0
D163: 5 | E163: =+CGIL1!F817 -> 0 | F163: =+CGIL1!G817 -> 0.02101226179 | G163: =+CGIL1!H817 -> 0.04196203222 | H163: =+CGIL1!I817 -> 0.0627870058 | I163: =+CGIL1!J817 -> 0.08342524819 | J163: =+CGIL1!K817 -> 0.1038153804 | K163: =+CGIL1!L817 -> 0.0693822596 | L163: =+CGIL1!M817 -> 0.03474279306 | M163: =+CGIL1!N817 -> 0 | AG163: =+CGIL1!N898 -> 0.6373128621 | AH163: 0 | AI163: 1 | AJ163: 0 | AK163: 1 | AL163: 0.6373128621 | AM163: 0.6373128621 | AN163: 0 | AO163: -0.003147452859 | AP163: -0.005985517144 | AQ163: -0.008208036199 | AR163: -0.009515300709 | AS163: -0.00961723123 | AT163: -0.008236511527 | AU163: -0.005111656656 | AV163: 0 | AW163: 0 | AX163: -0.01592911214 | AY163: -0.02761480127 | AZ163: -0.03475012074 | BA163: -0.03714929233 | BB163: -0.03475012074 | BC163: -0.02761480127 | BD163: -0.01592911214 | BE163: 0 | BF163: 0 | BG163: -0.005111656656 | BH163: -0.008236511527 | BI163: -0.00961723123 | BJ163: -0.009515300709 | BK163: -0.008208036199 | BL163: -0.005985517144 | BM163: -0.003147452859 | BN163: 0 | BO163: 0 | BP163: -0.005774794923 | BQ163: -0.01098193859 | BR163: -0.01505970951 | BS163: -0.01745821548 | BT163: -0.01764523269 | BU163: -0.01511195468 | BV163: -0.009378621453 | BW163: 0 | BX163: 0 | BY163: -0.006406337895 | BZ163: -0.007374218702 | CA163: -0.004628695083 | CB163: -1.260591153e-16 | CC163: 0.004628695083 | CD163: 0.007374218702 | CE163: 0.006406337895 | CF163: 0 | CG163: 0 | CH163: 0.009378621453 | CI163: 0.01511195468 | CJ163: 0.01764523269 | CK163: 0.01745821548 | CL163: 0.01505970951 | CM163: 0.01098193859 | CN163: 0.005774794923 | CO163: 0 | CP163: 0 | CQ163: 0.012090014 | CR163: 0.02499457648 | CS163: 0.03951926009 | CT163: 0.056451732 | CU163: 0.07655291645 | CV163: 0.04603379339 | CW163: 0.02025251495 | CX163: 0 | CY163: 0 | CZ163: -0.02233545003 | DA163: -0.03498901997 | DB163: -0.03937881582 | DC163: -0.03714929233 | DD163: -0.03012142565 | DE163: -0.02024058256 | DF163: -0.009522774242 | DG163: 0 | DH163: 0 | DI163: 0.004266964797 | DJ163: 0.006875443149 | DK163: 0.008028001461 | DL163: 0.00794291477 | DM163: 0.006851673316 | DN163: 0.004996421447 | DO163: 0.002627342064 | DP163: 0
D164: 6 | E164: =+CGIL1!F818 -> 0 | F164: =+CGIL1!G818 -> 0.01404298859 | G164: =+CGIL1!H818 -> 0.02804421274 | H164: =+CGIL1!I818 -> 0.04196203222 | I164: =+CGIL1!J818 -> 0.05575505485 | J164: =+CGIL1!K818 -> 0.0693822596 | K164: =+CGIL1!L818 -> 0.08280311858 | L164: =+CGIL1!M818 -> 0.04146321597 | M164: =+CGIL1!N818 -> 0 | AG164: =+CGIL1!N899 -> 0.7605905717 | AH164: 0 | AI164: 1 | AJ164: 0 | AK164: 1 | AL164: 0.7605905717 | AM164: 0.7605905717 | AN164: 0 | AO164: -0.003756275939 | AP164: -0.007143317164 | AQ164: -0.00979574604 | AR164: -0.01135587941 | AS164: -0.01147752671 | AT164: -0.009829729453 | AU164: -0.006100422712 | AV164: 0 | AW164: 0 | AX164: -0.01901033735 | AY164: -0.03295643118 | AZ164: -0.04147196106 | BA164: -0.04433521301 | BB164: -0.04147196106 | BC164: -0.03295643118 | BD164: -0.01901033735 | BE164: 0 | BF164: 0 | BG164: -0.006100422712 | BH164: -0.009829729453 | BI164: -0.01147752671 | BJ164: -0.01135587941 | BK164: -0.00979574604 | BL164: -0.007143317164 | BM164: -0.003756275939 | BN164: 0 | BO164: 0 | BP164: -0.006891834189 | BQ164: -0.01310621431 | BR164: -0.01797276307 | BS164: -0.02083522063 | BT164: -0.02105841325 | BU164: -0.0180351142 | BV164: -0.01119276179 | BW164: 0 | BX164: 0 | BY164: -0.00764553878 | BZ164: -0.008800640238 | CA164: -0.005524040152 | CB164: -1.504431815e-16 | CC164: 0.005524040152 | CD164: 0.008800640238 | CE164: 0.00764553878 | CF164: 0 | CG164: 0 | CH164: 0.01119276179 | CI164: 0.0180351142 | CJ164: 0.02105841325 | CK164: 0.02083522063 | CL164: 0.01797276307 | CM164: 0.01310621431 | CN164: 0.006891834189 | CO164: 0 | CP164: 0 | CQ164: 0.003394878462 | CR164: 0.007794681268 | CS164: 0.01419352311 | CT164: 0.02356395481 | CU164: 0.03684631963 | CV164: 0.05493827493 | CW164: 0.02417003146 | CX164: 0 | CY164: 0 | CZ164: -0.02665587613 | DA164: -0.04175707142 | DB164: -0.04699600121 | DC164: -0.04433521301 | DD164: -0.03594792091 | DE164: -0.02415579095 | DF164: -0.01136479857 | DG164: 0 | DH164: 0 | DI164: 0.005092339081 | DJ164: 0.008205384743 | DK164: 0.009580886538 | DL164: 0.009479341224 | DM164: 0.008177017026 | DN164: 0.005962897143 | DO164: 0.00313555825 | DP164: 0
D165: 7 | E165: =+CGIL1!F819 -> 0 | F165: =+CGIL1!G819 -> 0.007031950954 | G165: =+CGIL1!H819 -> 0.01404298859 | H165: =+CGIL1!I819 -> 0.02101226179 | I165: =+CGIL1!J819 -> 0.02791904363 | J165: =+CGIL1!K819 -> 0.03474279306 | K165: =+CGIL1!L819 -> 0.04146321597 | L165: =+CGIL1!M819 -> 0.04806032552 | M165: =+CGIL1!N819 -> 0 | AG165: =+CGIL1!N900 -> 0.8816062529 | AH165: 0 | AI165: 1 | AJ165: 0 | AK165: 1 | AL165: 0.8816062529 | AM165: 0.8816062529 | AN165: 0 | AO165: -0.004353927696 | AP165: -0.008279872658 | AQ165: -0.01135432292 | AR165: -0.01316268524 | AS165: -0.01330368755 | AT165: -0.01139371335 | AU165: -0.007071045854 | AV165: 0 | AW165: 0 | AX165: -0.02203502502 | AY165: -0.03820004729 | AZ165: -0.04807046202 | BA165: -0.0513892789 | BB165: -0.04807046202 | BC165: -0.03820004729 | BD165: -0.02203502502 | BE165: 0 | BF165: 0 | BG165: -0.007071045854 | BH165: -0.01139371335 | BI165: -0.01330368755 | BJ165: -0.01316268524 | BK165: -0.01135432292 | BL165: -0.008279872658 | BM165: -0.004353927696 | BN165: 0 | BO165: 0 | BP165: -0.00798837685 | BQ165: -0.01519151159 | BR165: -0.02083236486 | BS165: -0.02415026096 | BT165: -0.0244089652 | BU165: -0.02090463653 | BV165: -0.01297361439 | BW165: 0 | BX165: 0 | BY165: -0.008862001511 | BZ165: -0.0102008883 | CA165: -0.006402956493 | CB165: -1.743798233e-16 | CC165: 0.006402956493 | CD165: 0.0102008883 | CE165: 0.008862001511 | CF165: 0 | CG165: 0 | CH165: 0.01297361439 | CI165: 0.02090463653 | CJ165: 0.0244089652 | CK165: 0.02415026096 | CL165: 0.02083236486 | CM165: 0.01519151159 | CN165: 0.00798837685 | CO165: 0 | CP165: 0 | CQ165: -0.005310353592 | CR165: -0.009428395659 | CS165: -0.011174426 | CT165: -0.009393902568 | CU165: -0.00296985969 | CV165: 0.009164866089 | CW165: 0.02801566528 | CX165: 0 | CY165: 0 | CZ165: -0.03089702653 | DA165: -0.04840093559 | DB165: -0.05447341851 | DC165: -0.0513892789 | DD165: -0.04166750553 | DE165: -0.02799915899 | DF165: -0.01317302351 | DG165: 0 | DH165: 0 | DI165: 0.005902568534 | DJ165: 0.009510923178 | DK165: 0.01110527765 | DL165: 0.01098757572 | DM165: 0.009478041944 | DN165: 0.006911638932 | DO165: 0.003634449153 | DP165: 0
D166: 8 | E166: =+CGIL1!F820 -> 0 | F166: =+CGIL1!G820 -> 0 | G166: =+CGIL1!H820 -> 0 | H166: =+CGIL1!I820 -> 0 | I166: =+CGIL1!J820 -> 0 | J166: =+CGIL1!K820 -> 0 | K166: =+CGIL1!L820 -> 0 | L166: =+CGIL1!M820 -> 0 | M166: =+CGIL1!N820 -> 0 | AG166: =+CGIL1!N901 -> 1 | AH166: 0 | AI166: 1 | AJ166: 0 | AK166: 1 | AL166: 1 | AM166: 1 | AN166: 0 | AO166: -0.004938630689 | AP166: -0.009391803462 | AQ166: -0.01287913157 | AR166: -0.01493034469 | AS166: -0.01509028266 | AT166: -0.01292381186 | AU166: -0.008020639408 | AV166: 0 | AW166: 0 | AX166: -0.0249941796 | AY166: -0.04333005484 | AZ166: -0.05452599941 | BA166: -0.0582905109 | BB166: -0.05452599941 | BC166: -0.04333005484 | BD166: -0.0249941796 | BE166: 0 | BF166: 0 | BG166: -0.008020639408 | BH166: -0.01292381186 | BI166: -0.01509028266 | BJ166: -0.01493034469 | BK166: -0.01287913157 | BL166: -0.009391803462 | BM166: -0.004938630689 | BN166: 0 | BO166: 0 | BP166: -0.009061161741 | BQ166: -0.01723162868 | BR166: -0.02363001033 | BS166: -0.02739347739 | BT166: -0.02768692387 | BU166: -0.02371198759 | BV166: -0.01471588291 | BW166: 0 | BX166: 0 | BY166: -0.01005210828 | BZ166: -0.01157079849 | CA166: -0.007262830171 | CB166: -1.977978522e-16 | CC166: 0.007262830171 | CD166: 0.01157079849 | CE166: 0.01005210828 | CF166: 0 | CG166: 0 | CH166: 0.01471588291 | CI166: 0.02371198759 | CJ166: 0.02768692387 | CK166: 0.02739347739 | CL166: 0.02363001033 | CM166: 0.01723162868 | CN166: 0.009061161741 | CO166: 0 | CP166: 0 | CQ166: -0.01399979243 | CR166: -0.02662343214 | CS166: -0.0365091419 | CT166: -0.04232382209 | CU166: -0.04277720652 | CV166: -0.03663579945 | CW166: -0.02273652231 | CX166: 0 | CY166: 0 | CZ166: -0.03504628788 | DA166: -0.05490085333 | DB166: -0.06178882958 | DC166: -0.0582905109 | DD166: -0.04726316923 | DE166: -0.03175925635 | DF166: -0.01494207133 | DG166: 0 | DH166: 0 | DI166: 0.006695243499 | DJ166: 0.01078817573 | DK166: 0.01259664121 | DL166: 0.0124631327 | DM166: 0.01075087877 | DN166: 0.007839825216 | DO166: 0.004122531052 | DP166: 0
D167: 8 | N167: =+CGIL2!F812 -> 0 | O167: =+CGIL2!G812 -> 0 | P167: =+CGIL2!H812 -> 0 | Q167: =+CGIL2!I812 -> 0 | R167: =+CGIL2!J812 -> 0 | S167: =+CGIL2!K812 -> 0 | T167: =+CGIL2!L812 -> 0 | U167: =+CGIL2!M812 -> 0 | V167: =+CGIL2!N812 -> 0 | AF167: =+CGIL2!F893 -> -1 | AG167: =+CGIL2!N893 -> 0 | AH167: -1 | AI167: 1 | AJ167: -1 | AK167: -1 | AL167: 1 | AM167: 1 | AN167: 0 | AO167: -0.004938630689 | AP167: -0.009391803462 | AQ167: -0.01287913157 | AR167: -0.01493034469 | AS167: -0.01509028266 | AT167: -0.01292381186 | AU167: -0.008020639408 | AV167: 0 | AW167: 0 | AX167: -0.0249941796 | AY167: -0.04333005484 | AZ167: -0.05452599941 | BA167: -0.0582905109 | BB167: -0.05452599941 | BC167: -0.04333005484 | BD167: -0.0249941796 | BE167: 0 | BF167: 0 | BG167: -0.008020639408 | BH167: -0.01292381186 | BI167: -0.01509028266 | BJ167: -0.01493034469 | BK167: -0.01287913157 | BL167: -0.009391803462 | BM167: -0.004938630689 | BN167: 0 | BO167: 0 | BP167: -0.009061161741 | BQ167: -0.01723162868 | BR167: -0.02363001033 | BS167: -0.02739347739 | BT167: -0.02768692387 | BU167: -0.02371198759 | BV167: -0.01471588291 | BW167: 0 | BX167: 0 | BY167: -0.01005210828 | BZ167: -0.01157079849 | CA167: -0.007262830171 | CB167: -1.977978522e-16 | CC167: 0.007262830171 | CD167: 0.01157079849 | CE167: 0.01005210828 | CF167: 0 | CG167: 0 | CH167: 0.01471588291 | CI167: 0.02371198759 | CJ167: 0.02768692387 | CK167: 0.02739347739 | CL167: 0.02363001033 | CM167: 0.01723162868 | CN167: 0.009061161741 | CO167: 0 | CP167: 0 | CQ167: -0.01399979243 | CR167: -0.02662343214 | CS167: -0.0365091419 | CT167: -0.04232382209 | CU167: -0.04277720652 | CV167: -0.03663579945 | CW167: -0.02273652231 | CX167: 0 | CY167: 0 | CZ167: -0.03504628788 | DA167: -0.05490085333 | DB167: -0.06178882958 | DC167: -0.0582905109 | DD167: -0.04726316923 | DE167: -0.03175925635 | DF167: -0.01494207133 | DG167: 0 | DH167: 0 | DI167: 0.006695243499 | DJ167: 0.01078817573 | DK167: 0.01259664121 | DL167: 0.0124631327 | DM167: 0.01075087877 | DN167: 0.007839825216 | DO167: 0.004122531052 | DP167: 0
D168: =+D167+1 -> 9 | N168: =+CGIL2!F813 -> 0 | O168: =+CGIL2!G813 -> 0.07777138137 | P168: =+CGIL2!H813 -> 0.06779513282 | Q168: =+CGIL2!I813 -> 0.05730292237 | R168: =+CGIL2!J813 -> 0.04637460209 | S168: =+CGIL2!K813 -> 0.03509334308 | T168: =+CGIL2!L813 -> 0.02354500254 | U168: =+CGIL2!M813 -> 0.01181747031 | V168: =+CGIL2!N813 -> 0 | AF168: =+CGIL2!F894 -> -0.8923265286 | AG168: =+CGIL2!N894 -> 0.1355902656 | AH168: -1 | AI168: 1 | AJ168: -1 | AK168: -1 | AL168: 1.027916794 | AM168: 0.7567362629 | AN168: 0 | AO168: -0.005076501425 | AP168: -0.009653992507 | AQ168: -0.01323867563 | AR168: -0.01534715205 | AS168: -0.01551155497 | AT168: -0.01328460326 | AU168: -0.008244549947 | AV168: 0 | AW168: 0 | AX168: -0.02569193697 | AY168: -0.04453969107 | AZ168: -0.05604819051 | BA168: -0.0599177951 | BB168: -0.05604819051 | BC168: -0.04453969107 | BD168: -0.02569193697 | BE168: 0 | BF168: 0 | BG168: -0.008244549947 | BH168: -0.01328460326 | BI168: -0.01551155497 | BJ168: -0.01534715205 | BK168: -0.01323867563 | BL168: -0.009653992507 | BM168: -0.005076501425 | BN168: 0 | BO168: 0 | BP168: -0.006856909674 | BQ168: -0.01303979829 | BR168: -0.01788168571 | BS168: -0.02072963771 | BT168: -0.0209516993 | BU168: -0.01794372087 | BV168: -0.01113604224 | BW168: 0 | BX168: 0 | BY168: -0.007606794851 | BZ168: -0.008756042808 | CA168: -0.005496046962 | CB168: -1.496808075e-16 | CC168: 0.005496046962 | CD168: 0.008756042808 | CE168: 0.007606794851 | CF168: 0 | CG168: 0 | CH168: 0.01113604224 | CI168: 0.01794372087 | CJ168: 0.0209516993 | CK168: 0.02072963771 | CL168: 0.01788168571 | CM168: 0.01303979829 | CN168: 0.006856909674 | CO168: 0 | CP168: 0 | CQ168: -0.0119334111 | CR168: -0.0226937908 | CS168: -0.03112036134 | CT168: -0.03607678976 | CU168: -0.03646325427 | CV168: -0.03122832413 | CW168: -0.01938059218 | CX168: 0 | CY168: 0 | CZ168: 0.04447264955 | DA168: 0.01449939895 | DB168: -0.004241315097 | DC168: -0.01354319301 | DD168: -0.01545880047 | DE168: -0.01223864572 | DF168: -0.006267671808 | DG168: 0 | DH168: 0 | DI168: 0.002891492289 | DJ168: 0.004659117616 | DK168: 0.005440144324 | DL168: 0.005382485656 | DM168: 0.00464301008 | DN168: 0.003385805784 | DO168: 0.001780408248 | DP168: 0
D169: 10 | N169: =+CGIL2!F814 -> 0 | O169: =+CGIL2!G814 -> 0.06779513282 | P169: =+CGIL2!H814 -> 0.1350743037 | Q169: =+CGIL2!I814 -> 0.1141697349 | R169: =+CGIL2!J814 -> 0.09239626545 | S169: =+CGIL2!K814 -> 0.06991960463 | T169: =+CGIL2!L814 -> 0.04691081339 | U169: =+CGIL2!M814 -> 0.02354500254 | V169: =+CGIL2!N814 -> 0 | AF169: =+CGIL2!F895 -> -0.7778619134 | AG169: =+CGIL2!N895 -> 0.2701486075 | AH169: -1 | AI169: 1 | AJ169: -1 | AK169: -1 | AL169: 1.048010521 | AM169: 0.5077133059 | AN169: 0 | AO169: -0.005175736921 | AP169: -0.009842708839 | AQ169: -0.01349746538 | AR169: -0.01564715832 | AS169: -0.01581477499 | AT169: -0.0135442908 | AU169: -0.008405714484 | AV169: 0 | AW169: 0 | AX169: -0.02619416318 | AY169: -0.04541035335 | AZ169: -0.05714382104 | BA169: -0.06108906869 | BB169: -0.05714382104 | BC169: -0.04541035335 | BD169: -0.02619416318 | BE169: 0 | BF169: 0 | BG169: -0.008405714484 | BH169: -0.0135442908 | BI169: -0.01581477499 | BJ169: -0.01564715832 | BK169: -0.01349746538 | BL169: -0.009842708839 | BM169: -0.005175736921 | BN169: 0 | BO169: 0 | BP169: -0.004600472383 | BQ169: -0.008748727163 | BR169: -0.01199727066 | BS169: -0.01390803297 | BT169: -0.01405701965 | BU169: -0.01203889161 | BV169: -0.007471449561 | BW169: 0 | BX169: 0 | BY169: -0.005103589124 | BZ169: -0.005874648353 | CA169: -0.003687435517 | CB169: -1.004246015e-16 | CC169: 0.003687435517 | CD169: 0.005874648353 | CE169: 0.005103589124 | CF169: 0 | CG169: 0 | CH169: 0.007471449561 | CI169: 0.01203889161 | CJ169: 0.01405701965 | CK169: 0.01390803297 | CL169: 0.01199727066 | CM169: 0.008748727163 | CN169: 0.004600472383 | CO169: 0 | CP169: 0 | CQ169: -0.009776209304 | CR169: -0.018591436 | CS169: -0.02549473604 | CT169: -0.02955519129 | CU169: -0.02987179464 | CV169: -0.02558318241 | CW169: -0.01587716404 | CX169: 0 | CY169: 0 | CZ169: 0.03649738051 | DA169: 0.08378930204 | DB169: 0.05333847835 | DC169: 0.03130719676 | DD169: 0.0164632191 | DE169: 0.007375108396 | DF169: 0.002454428478 | DG169: 0 | DH169: 0 | DI169: -0.000934264923 | DJ169: -0.001505399193 | DK169: -0.001757755342 | DL169: -0.001739125352 | DM169: -0.001500194716 | DN169: -0.001093981676 | DO169: -0.0005752645376 | DP169: 0
D170: 11 | N170: =+CGIL2!F815 -> 0 | O170: =+CGIL2!G815 -> 0.05730292237 | P170: =+CGIL2!H815 -> 0.1141697349 | Q170: =+CGIL2!I815 -> 0.1701676468 | R170: =+CGIL2!J815 -> 0.1377147374 | S170: =+CGIL2!K815 -> 0.1042137358 | T170: =+CGIL2!L815 -> 0.06991960463 | U170: =+CGIL2!M815 -> 0.03509334308 | V170: =+CGIL2!N815 -> 0 | AF170: =+CGIL2!F896 -> -0.6574772995 | AG170: =+CGIL2!N896 -> 0.4026509553 | AH170: -1 | AI170: 1 | AJ170: -1 | AK170: -1 | AL170: 1.060128255 | AM170: 0.2548263441 | AN170: 0 | AO170: -0.005235581933 | AP170: -0.009956516213 | AQ170: -0.01365353127 | AR170: -0.01582808026 | AS170: -0.01599763502 | AT170: -0.01370089812 | AU170: -0.008502906457 | AV170: 0 | AW170: 0 | AX170: -0.026497036 | AY170: -0.04593541542 | AZ170: -0.05780455259 | BA170: -0.06179541759 | BB170: -0.05780455259 | BC170: -0.04593541542 | BD170: -0.026497036 | BE170: 0 | BF170: 0 | BG170: -0.008502906457 | BH170: -0.01370089812 | BI170: -0.01599763502 | BJ170: -0.01582808026 | BK170: -0.01365353127 | BL170: -0.009956516213 | BM170: -0.005235581933 | BN170: 0 | BO170: 0 | BP170: -0.00230902272 | BQ170: -0.00439107294 | BR170: -0.006021549145 | BS170: -0.006980579697 | BT170: -0.007055357589 | BU170: -0.00604243911 | BV170: -0.003749994642 | BW170: 0 | BX170: 0 | BY170: -0.002561542003 | BZ170: -0.002948544278 | CA170: -0.001850760461 | CB170: -5.040410357e-17 | CC170: 0.001850760461 | CD170: 0.002948544278 | CE170: 0.002561542003 | CF170: 0 | CG170: 0 | CH170: 0.003749994642 | CI170: 0.00604243911 | CJ170: 0.007055357589 | CK170: 0.006980579697 | CL170: 0.006021549145 | CM170: 0.00439107294 | CN170: 0.00230902272 | CO170: 0 | CP170: 0 | CQ170: -0.007544604653 | CR170: -0.01434758915 | CS170: -0.01967508041 | CT170: -0.02280865996 | CU170: -0.02305299261 | CV170: -0.01974333723 | CW170: -0.0122529011 | CX170: 0 | CY170: 0 | CZ170: 0.02824434437 | DA170: 0.06528577521 | DB170: 0.1105123338 | DC170: 0.07591931985 | DD170: 0.04825994364 | DE170: 0.02693273348 | DF170: 0.01115784908 | DG170: 0 | DH170: 0 | DI170: -0.004752911815 | DJ170: -0.007658459006 | DK170: -0.008942277429 | DL170: -0.008847500567 | DM170: -0.007631982124 | DN170: -0.005565443274 | DO170: -0.002926559213 | DP170: 0
D171: 12 | N171: =+CGIL2!F816 -> 0 | O171: =+CGIL2!G816 -> 0.04637460209 | P171: =+CGIL2!H816 -> 0.09239626545 | Q171: =+CGIL2!I816 -> 0.1377147374 | R171: =+CGIL2!J816 -> 0.1819851171 | S171: =+CGIL2!K816 -> 0.1377147374 | T171: =+CGIL2!L816 -> 0.09239626545 | U171: =+CGIL2!M816 -> 0.04637460209 | V171: =+CGIL2!N816 -> 0 | AF171: =+CGIL2!F897 -> -0.5320888862 | AG171: =+CGIL2!N897 -> 0.5320888862 | AH171: -1 | AI171: 1 | AJ171: -1 | AK171: -1 | AL171: 1.064177772 | AM171: 0 | AN171: 0 | AO171: -0.005255581006 | AP171: -0.009994548488 | AQ171: -0.01370568554 | AR171: -0.01588854096 | AS171: -0.01605874339 | AT171: -0.01375323332 | AU171: -0.008535386179 | AV171: 0 | AW171: 0 | AX171: -0.02659825037 | AY171: -0.04611088124 | AZ171: -0.05802535659 | BA171: -0.06203146605 | BB171: -0.05802535659 | BC171: -0.04611088124 | BD171: -0.02659825037 | BE171: 0 | BF171: 0 | BG171: -0.008535386179 | BH171: -0.01375323332 | BI171: -0.01605874339 | BJ171: -0.01588854096 | BK171: -0.01370568554 | BL171: -0.009994548488 | BM171: -0.005255581006 | BN171: 0 | BO171: 0 | BP171: 0 | BQ171: 0 | BR171: 0 | BS171: 0 | BT171: 0 | BU171: 0 | BV171: 0 | BW171: 0 | BX171: 0 | BY171: 0 | BZ171: 0 | CA171: 0 | CB171: 0 | CC171: 0 | CD171: 0 | CE171: 0 | CF171: 0 | CG171: 0 | CH171: 0 | CI171: 0 | CJ171: 0 | CK171: 0 | CL171: 0 | CM171: 0 | CN171: 0 | CO171: 0 | CP171: 0 | CQ171: -0.005255581006 | CR171: -0.009994548488 | CS171: -0.01370568554 | CT171: -0.01588854096 | CU171: -0.01605874339 | CV171: -0.01375323332 | CW171: -0.008535386179 | CX171: 0 | CY171: 0 | CZ171: 0.01977635171 | DA171: 0.04628538421 | DB171: 0.07968938086 | DC171: 0.1199536511 | DD171: 0.07968938086 | DE171: 0.04628538421 | DF171: 0.01977635171 | DG171: 0 | DH171: 0 | DI171: -0.008535386179 | DJ171: -0.01375323332 | DK171: -0.01605874339 | DL171: -0.01588854096 | DM171: -0.01370568554 | DN171: -0.009994548488 | DO171: -0.005255581006 | DP171: 0
D172: 13 | N172: =+CGIL2!F817 -> 0 | O172: =+CGIL2!G817 -> 0.03509334308 | P172: =+CGIL2!H817 -> 0.06991960463 | Q172: =+CGIL2!I817 -> 0.1042137358 | R172: =+CGIL2!J817 -> 0.1377147374 | S172: =+CGIL2!K817 -> 0.1701676468 | T172: =+CGIL2!L817 -> 0.1141697349 | U172: =+CGIL2!M817 -> 0.05730292237 | V172: =+CGIL2!N817 -> 0 | AF172: =+CGIL2!F898 -> -0.4026509553 | AG172: =+CGIL2!N898 -> 0.6574772995 | AH172: -1 | AI172: 1 | AJ172: -1 | AK172: -1 | AL172: 1.060128255 | AM172: -0.2548263441 | AN172: 0 | AO172: -0.005235581933 | AP172: -0.009956516213 | AQ172: -0.01365353127 | AR172: -0.01582808026 | AS172: -0.01599763502 | AT172: -0.01370089812 | AU172: -0.008502906457 | AV172: 0 | AW172: 0 | AX172: -0.026497036 | AY172: -0.04593541542 | AZ172: -0.05780455259 | BA172: -0.06179541759 | BB172: -0.05780455259 | BC172: -0.04593541542 | BD172: -0.026497036 | BE172: 0 | BF172: 0 | BG172: -0.008502906457 | BH172: -0.01370089812 | BI172: -0.01599763502 | BJ172: -0.01582808026 | BK172: -0.01365353127 | BL172: -0.009956516213 | BM172: -0.005235581933 | BN172: 0 | BO172: 0 | BP172: 0.00230902272 | BQ172: 0.00439107294 | BR172: 0.006021549145 | BS172: 0.006980579697 | BT172: 0.007055357589 | BU172: 0.00604243911 | BV172: 0.003749994642 | BW172: 0 | BX172: 0 | BY172: 0.002561542003 | BZ172: 0.002948544278 | CA172: 0.001850760461 | CB172: 5.040410357e-17 | CC172: -0.001850760461 | CD172: -0.002948544278 | CE172: -0.002561542003 | CF172: 0 | CG172: 0 | CH172: -0.003749994642 | CI172: -0.00604243911 | CJ172: -0.007055357589 | CK172: -0.006980579697 | CL172: -0.006021549145 | CM172: -0.00439107294 | CN172: -0.00230902272 | CO172: 0 | CP172: 0 | CQ172: -0.002926559213 | CR172: -0.005565443274 | CS172: -0.007631982124 | CT172: -0.008847500567 | CU172: -0.008942277429 | CV172: -0.007658459006 | CW172: -0.004752911815 | CX172: 0 | CY172: 0 | CZ172: 0.01115784908 | DA172: 0.02693273348 | DB172: 0.04825994364 | DC172: 0.07591931985 | DD172: 0.1105123338 | DE172: 0.06528577521 | DF172: 0.02824434437 | DG172: 0 | DH172: 0 | DI172: -0.0122529011 | DJ172: -0.01974333723 | DK172: -0.02305299261 | DL172: -0.02280865996 | DM172: -0.01967508041 | DN172: -0.01434758915 | DO172: -0.007544604653 | DP172: 0
D173: 14 | N173: =+CGIL2!F818 -> 0 | O173: =+CGIL2!G818 -> 0.02354500254 | P173: =+CGIL2!H818 -> 0.04691081339 | Q173: =+CGIL2!I818 -> 0.06991960463 | R173: =+CGIL2!J818 -> 0.09239626545 | S173: =+CGIL2!K818 -> 0.1141697349 | T173: =+CGIL2!L818 -> 0.1350743037 | U173: =+CGIL2!M818 -> 0.06779513282 | V173: =+CGIL2!N818 -> 0 | AF173: =+CGIL2!F899 -> -0.2701486075 | AG173: =+CGIL2!N899 -> 0.7778619134 | AH173: -1 | AI173: 1 | AJ173: -1 | AK173: -1 | AL173: 1.048010521 | AM173: -0.5077133059 | AN173: 0 | AO173: -0.005175736921 | AP173: -0.009842708839 | AQ173: -0.01349746538 | AR173: -0.01564715832 | AS173: -0.01581477499 | AT173: -0.0135442908 | AU173: -0.008405714484 | AV173: 0 | AW173: 0 | AX173: -0.02619416318 | AY173: -0.04541035335 | AZ173: -0.05714382104 | BA173: -0.06108906869 | BB173: -0.05714382104 | BC173: -0.04541035335 | BD173: -0.02619416318 | BE173: 0 | BF173: 0 | BG173: -0.008405714484 | BH173: -0.0135442908 | BI173: -0.01581477499 | BJ173: -0.01564715832 | BK173: -0.01349746538 | BL173: -0.009842708839 | BM173: -0.005175736921 | BN173: 0 | BO173: 0 | BP173: 0.004600472383 | BQ173: 0.008748727163 | BR173: 0.01199727066 | BS173: 0.01390803297 | BT173: 0.01405701965 | BU173: 0.01203889161 | BV173: 0.007471449561 | BW173: 0 | BX173: 0 | BY173: 0.005103589124 | BZ173: 0.005874648353 | CA173: 0.003687435517 | CB173: 1.004246015e-16 | CC173: -0.003687435517 | CD173: -0.005874648353 | CE173: -0.005103589124 | CF173: 0 | CG173: 0 | CH173: -0.007471449561 | CI173: -0.01203889161 | CJ173: -0.01405701965 | CK173: -0.01390803297 | CL173: -0.01199727066 | CM173: -0.008748727163 | CN173: -0.004600472383 | CO173: 0 | CP173: 0 | CQ173: -0.0005752645376 | CR173: -0.001093981676 | CS173: -0.001500194716 | CT173: -0.001739125352 | CU173: -0.001757755342 | CV173: -0.001505399193 | CW173: -0.000934264923 | CX173: 0 | CY173: 0 | CZ173: 0.002454428478 | DA173: 0.007375108396 | DB173: 0.0164632191 | DC173: 0.03130719676 | DD173: 0.05333847835 | DE173: 0.08378930204 | DF173: 0.03649738051 | DG173: 0 | DH173: 0 | DI173: -0.01587716404 | DJ173: -0.02558318241 | DK173: -0.02987179464 | DL173: -0.02955519129 | DM173: -0.02549473604 | DN173: -0.018591436 | DO173: -0.009776209304 | DP173: 0
D174: 15 | N174: =+CGIL2!F819 -> 0 | O174: =+CGIL2!G819 -> 0.01181747031 | P174: =+CGIL2!H819 -> 0.02354500254 | Q174: =+CGIL2!I819 -> 0.03509334308 | R174: =+CGIL2!J819 -> 0.04637460209 | S174: =+CGIL2!K819 -> 0.05730292237 | T174: =+CGIL2!L819 -> 0.06779513282 | U174: =+CGIL2!M819 -> 0.07777138137 | V174: =+CGIL2!N819 -> 0 | AF174: =+CGIL2!F900 -> -0.1355902656 | AG174: =+CGIL2!N900 -> 0.8923265286 | AH174: -1 | AI174: 1 | AJ174: -1 | AK174: -1 | AL174: 1.027916794 | AM174: -0.7567362629 | AN174: 0 | AO174: -0.005076501425 | AP174: -0.009653992507 | AQ174: -0.01323867563 | AR174: -0.01534715205 | AS174: -0.01551155497 | AT174: -0.01328460326 | AU174: -0.008244549947 | AV174: 0 | AW174: 0 | AX174: -0.02569193697 | AY174: -0.04453969107 | AZ174: -0.05604819051 | BA174: -0.0599177951 | BB174: -0.05604819051 | BC174: -0.04453969107 | BD174: -0.02569193697 | BE174: 0 | BF174: 0 | BG174: -0.008244549947 | BH174: -0.01328460326 | BI174: -0.01551155497 | BJ174: -0.01534715205 | BK174: -0.01323867563 | BL174: -0.009653992507 | BM174: -0.005076501425 | BN174: 0 | BO174: 0 | BP174: 0.006856909674 | BQ174: 0.01303979829 | BR174: 0.01788168571 | BS174: 0.02072963771 | BT174: 0.0209516993 | BU174: 0.01794372087 | BV174: 0.01113604224 | BW174: 0 | BX174: 0 | BY174: 0.007606794851 | BZ174: 0.008756042808 | CA174: 0.005496046962 | CB174: 1.496808075e-16 | CC174: -0.005496046962 | CD174: -0.008756042808 | CE174: -0.007606794851 | CF174: 0 | CG174: 0 | CH174: -0.01113604224 | CI174: -0.01794372087 | CJ174: -0.0209516993 | CK174: -0.02072963771 | CL174: -0.01788168571 | CM174: -0.01303979829 | CN174: -0.006856909674 | CO174: 0 | CP174: 0 | CQ174: 0.001780408248 | CR174: 0.003385805784 | CS174: 0.00464301008 | CT174: 0.005382485656 | CU174: 0.005440144324 | CV174: 0.004659117616 | CW174: 0.002891492289 | CX174: 0 | CY174: 0 | CZ174: -0.006267671808 | DA174: -0.01223864572 | DB174: -0.01545880047 | DC174: -0.01354319301 | DD174: -0.004241315097 | DE174: 0.01449939895 | DF174: 0.04447264955 | DG174: 0 | DH174: 0 | DI174: -0.01938059218 | DJ174: -0.03122832413 | DK174: -0.03646325427 | DL174: -0.03607678976 | DM174: -0.03112036134 | DN174: -0.0226937908 | DO174: -0.0119334111 | DP174: 0
D175: 16 | N175: =+CGIL2!F820 -> 0 | O175: =+CGIL2!G820 -> 0 | P175: =+CGIL2!H820 -> 0 | Q175: =+CGIL2!I820 -> 0 | R175: =+CGIL2!J820 -> 0 | S175: =+CGIL2!K820 -> 0 | T175: =+CGIL2!L820 -> 0 | U175: =+CGIL2!M820 -> 0 | V175: =+CGIL2!N820 -> 0 | AF175: =+CGIL2!F901 -> 0 | AG175: =+CGIL2!N901 -> 1 | AH175: -1 | AI175: 1 | AJ175: -1 | AK175: -1 | AL175: 1 | AM175: -1 | AN175: 0 | AO175: -0.004938630689 | AP175: -0.009391803462 | AQ175: -0.01287913157 | AR175: -0.01493034469 | AS175: -0.01509028266 | AT175: -0.01292381186 | AU175: -0.008020639408 | AV175: 0 | AW175: 0 | AX175: -0.0249941796 | AY175: -0.04333005484 | AZ175: -0.05452599941 | BA175: -0.0582905109 | BB175: -0.05452599941 | BC175: -0.04333005484 | BD175: -0.0249941796 | BE175: 0 | BF175: 0 | BG175: -0.008020639408 | BH175: -0.01292381186 | BI175: -0.01509028266 | BJ175: -0.01493034469 | BK175: -0.01287913157 | BL175: -0.009391803462 | BM175: -0.004938630689 | BN175: 0 | BO175: 0 | BP175: 0.009061161741 | BQ175: 0.01723162868 | BR175: 0.02363001033 | BS175: 0.02739347739 | BT175: 0.02768692387 | BU175: 0.02371198759 | BV175: 0.01471588291 | BW175: 0 | BX175: 0 | BY175: 0.01005210828 | BZ175: 0.01157079849 | CA175: 0.007262830171 | CB175: 1.977978522e-16 | CC175: -0.007262830171 | CD175: -0.01157079849 | CE175: -0.01005210828 | CF175: 0 | CG175: 0 | CH175: -0.01471588291 | CI175: -0.02371198759 | CJ175: -0.02768692387 | CK175: -0.02739347739 | CL175: -0.02363001033 | CM175: -0.01723162868 | CN175: -0.009061161741 | CO175: 0 | CP175: 0 | CQ175: 0.004122531052 | CR175: 0.007839825216 | CS175: 0.01075087877 | CT175: 0.0124631327 | CU175: 0.01259664121 | CV175: 0.01078817573 | CW175: 0.006695243499 | CX175: 0 | CY175: 0 | CZ175: -0.01494207133 | DA175: -0.03175925635 | DB175: -0.04726316923 | DC175: -0.0582905109 | DD175: -0.06178882958 | DE175: -0.05490085333 | DF175: -0.03504628788 | DG175: 0 | DH175: 0 | DI175: -0.02273652231 | DJ175: -0.03663579945 | DK175: -0.04277720652 | DL175: -0.04232382209 | DM175: -0.0365091419 | DN175: -0.02662343214 | DO175: -0.01399979243 | DP175: 0
D176: 16 | W176: =+E158 -> 0 | X176: =+F158 -> 0 | Y176: 0 | Z176: 0 | AA176: 0 | AB176: 0 | AC176: 0 | AD176: 0 | AE176: 0 | AF176: =+CGIL1!F893 -> -1 | AH176: -1 | AI176: 0 | AJ176: 1 | AK176: 0 | AL176: 1 | AM176: -1 | AN176: 0 | AO176: -0.004938630689 | AP176: -0.009391803462 | AQ176: -0.01287913157 | AR176: -0.01493034469 | AS176: -0.01509028266 | AT176: -0.01292381186 | AU176: -0.008020639408 | AV176: 0 | AW176: 0 | AX176: -0.0249941796 | AY176: -0.04333005484 | AZ176: -0.05452599941 | BA176: -0.0582905109 | BB176: -0.05452599941 | BC176: -0.04333005484 | BD176: -0.0249941796 | BE176: 0 | BF176: 0 | BG176: -0.008020639408 | BH176: -0.01292381186 | BI176: -0.01509028266 | BJ176: -0.01493034469 | BK176: -0.01287913157 | BL176: -0.009391803462 | BM176: -0.004938630689 | BN176: 0 | BO176: 0 | BP176: 0.009061161741 | BQ176: 0.01723162868 | BR176: 0.02363001033 | BS176: 0.02739347739 | BT176: 0.02768692387 | BU176: 0.02371198759 | BV176: 0.01471588291 | BW176: 0 | BX176: 0 | BY176: 0.01005210828 | BZ176: 0.01157079849 | CA176: 0.007262830171 | CB176: 1.977978522e-16 | CC176: -0.007262830171 | CD176: -0.01157079849 | CE176: -0.01005210828 | CF176: 0 | CG176: 0 | CH176: -0.01471588291 | CI176: -0.02371198759 | CJ176: -0.02768692387 | CK176: -0.02739347739 | CL176: -0.02363001033 | CM176: -0.01723162868 | CN176: -0.009061161741 | CO176: 0 | CP176: 0 | CQ176: 0.004122531052 | CR176: 0.007839825216 | CS176: 0.01075087877 | CT176: 0.0124631327 | CU176: 0.01259664121 | CV176: 0.01078817573 | CW176: 0.006695243499 | CX176: 0 | CY176: 0 | CZ176: -0.01494207133 | DA176: -0.03175925635 | DB176: -0.04726316923 | DC176: -0.0582905109 | DD176: -0.06178882958 | DE176: -0.05490085333 | DF176: -0.03504628788 | DG176: 0 | DH176: 0 | DI176: -0.02273652231 | DJ176: -0.03663579945 | DK176: -0.04277720652 | DL176: -0.04232382209 | DM176: -0.0365091419 | DN176: -0.02662343214 | DO176: -0.01399979243 | DP176: 0
D177: =+D176+1 -> 17 | W177: =+E159 -> 0 | X177: 0.04806032552 | Y177: 0.04146321597 | Z177: 0.03474279306 | AA177: 0.02791904363 | AB177: 0.02101226179 | AC177: 0.01404298859 | AD177: 0.007031950954 | AE177: 0 | AF177: =+CGIL1!F894 -> -0.8816062529 | AH177: -1 | AI177: 0 | AJ177: 1 | AK177: 0 | AL177: 0.8816062529 | AM177: -0.8816062529 | AN177: 0 | AO177: -0.004353927696 | AP177: -0.008279872658 | AQ177: -0.01135432292 | AR177: -0.01316268524 | AS177: -0.01330368755 | AT177: -0.01139371335 | AU177: -0.007071045854 | AV177: 0 | AW177: 0 | AX177: -0.02203502502 | AY177: -0.03820004729 | AZ177: -0.04807046202 | BA177: -0.0513892789 | BB177: -0.04807046202 | BC177: -0.03820004729 | BD177: -0.02203502502 | BE177: 0 | BF177: 0 | BG177: -0.007071045854 | BH177: -0.01139371335 | BI177: -0.01330368755 | BJ177: -0.01316268524 | BK177: -0.01135432292 | BL177: -0.008279872658 | BM177: -0.004353927696 | BN177: 0 | BO177: 0 | BP177: 0.00798837685 | BQ177: 0.01519151159 | BR177: 0.02083236486 | BS177: 0.02415026096 | BT177: 0.0244089652 | BU177: 0.02090463653 | BV177: 0.01297361439 | BW177: 0 | BX177: 0 | BY177: 0.008862001511 | BZ177: 0.0102008883 | CA177: 0.006402956493 | CB177: 1.743798233e-16 | CC177: -0.006402956493 | CD177: -0.0102008883 | CE177: -0.008862001511 | CF177: 0 | CG177: 0 | CH177: -0.01297361439 | CI177: -0.02090463653 | CJ177: -0.0244089652 | CK177: -0.02415026096 | CL177: -0.02083236486 | CM177: -0.01519151159 | CN177: -0.00798837685 | CO177: 0 | CP177: 0 | CQ177: 0.003634449153 | CR177: 0.006911638932 | CS177: 0.009478041944 | CT177: 0.01098757572 | CU177: 0.01110527765 | CV177: 0.009510923178 | CW177: 0.005902568534 | CX177: 0 | CY177: 0 | CZ177: -0.01317302351 | DA177: -0.02799915899 | DB177: -0.04166750553 | DC177: -0.0513892789 | DD177: -0.05447341851 | DE177: -0.04840093559 | DF177: -0.03089702653 | DG177: 0 | DH177: 0 | DI177: 0.02801566528 | DJ177: 0.009164866089 | DK177: -0.00296985969 | DL177: -0.009393902568 | DM177: -0.011174426 | DN177: -0.009428395659 | DO177: -0.005310353592 | DP177: 0
D178: 18 | W178: 0 | X178: 0.04146321597 | Y178: 0.08280311858 | Z178: 0.0693822596 | AA178: 0.05575505485 | AB178: 0.04196203222 | AC178: 0.02804421274 | AD178: 0.01404298859 | AE178: 0 | AF178: =+CGIL1!F895 -> -0.7605905717 | AH178: -1 | AI178: 0 | AJ178: 1 | AK178: 0 | AL178: 0.7605905717 | AM178: -0.7605905717 | AN178: 0 | AO178: -0.003756275939 | AP178: -0.007143317164 | AQ178: -0.00979574604 | AR178: -0.01135587941 | AS178: -0.01147752671 | AT178: -0.009829729453 | AU178: -0.006100422712 | AV178: 0 | AW178: 0 | AX178: -0.01901033735 | AY178: -0.03295643118 | AZ178: -0.04147196106 | BA178: -0.04433521301 | BB178: -0.04147196106 | BC178: -0.03295643118 | BD178: -0.01901033735 | BE178: 0 | BF178: 0 | BG178: -0.006100422712 | BH178: -0.009829729453 | BI178: -0.01147752671 | BJ178: -0.01135587941 | BK178: -0.00979574604 | BL178: -0.007143317164 | BM178: -0.003756275939 | BN178: 0 | BO178: 0 | BP178: 0.006891834189 | BQ178: 0.01310621431 | BR178: 0.01797276307 | BS178: 0.02083522063 | BT178: 0.02105841325 | BU178: 0.0180351142 | BV178: 0.01119276179 | BW178: 0 | BX178: 0 | BY178: 0.00764553878 | BZ178: 0.008800640238 | CA178: 0.005524040152 | CB178: 1.504431815e-16 | CC178: -0.005524040152 | CD178: -0.008800640238 | CE178: -0.00764553878 | CF178: 0 | CG178: 0 | CH178: -0.01119276179 | CI178: -0.0180351142 | CJ178: -0.02105841325 | CK178: -0.02083522063 | CL178: -0.01797276307 | CM178: -0.01310621431 | CN178: -0.006891834189 | CO178: 0 | CP178: 0 | CQ178: 0.00313555825 | CR178: 0.005962897143 | CS178: 0.008177017026 | CT178: 0.009479341224 | CU178: 0.009580886538 | CV178: 0.008205384743 | CW178: 0.005092339081 | CX178: 0 | CY178: 0 | CZ178: -0.01136479857 | DA178: -0.02415579095 | DB178: -0.03594792091 | DC178: -0.04433521301 | DD178: -0.04699600121 | DE178: -0.04175707142 | DF178: -0.02665587613 | DG178: 0 | DH178: 0 | DI178: 0.02417003146 | DJ178: 0.05493827493 | DK178: 0.03684631963 | DL178: 0.02356395481 | DM178: 0.01419352311 | DN178: 0.007794681268 | DO178: 0.003394878462 | DP178: 0
D179: 19 | W179: 0 | X179: 0.03474279306 | Y179: 0.0693822596 | Z179: 0.1038153804 | AA179: 0.08342524819 | AB179: 0.0627870058 | AC179: 0.04196203222 | AD179: 0.02101226179 | AE179: 0 | AF179: =+CGIL1!F896 -> -0.6373128621 | AH179: -1 | AI179: 0 | AJ179: 1 | AK179: 0 | AL179: 0.6373128621 | AM179: -0.6373128621 | AN179: 0 | AO179: -0.003147452859 | AP179: -0.005985517144 | AQ179: -0.008208036199 | AR179: -0.009515300709 | AS179: -0.00961723123 | AT179: -0.008236511527 | AU179: -0.005111656656 | AV179: 0 | AW179: 0 | AX179: -0.01592911214 | AY179: -0.02761480127 | AZ179: -0.03475012074 | BA179: -0.03714929233 | BB179: -0.03475012074 | BC179: -0.02761480127 | BD179: -0.01592911214 | BE179: 0 | BF179: 0 | BG179: -0.005111656656 | BH179: -0.008236511527 | BI179: -0.00961723123 | BJ179: -0.009515300709 | BK179: -0.008208036199 | BL179: -0.005985517144 | BM179: -0.003147452859 | BN179: 0 | BO179: 0 | BP179: 0.005774794923 | BQ179: 0.01098193859 | BR179: 0.01505970951 | BS179: 0.01745821548 | BT179: 0.01764523269 | BU179: 0.01511195468 | BV179: 0.009378621453 | BW179: 0 | BX179: 0 | BY179: 0.006406337895 | BZ179: 0.007374218702 | CA179: 0.004628695083 | CB179: 1.260591153e-16 | CC179: -0.004628695083 | CD179: -0.007374218702 | CE179: -0.006406337895 | CF179: 0 | CG179: 0 | CH179: -0.009378621453 | CI179: -0.01511195468 | CJ179: -0.01764523269 | CK179: -0.01745821548 | CL179: -0.01505970951 | CM179: -0.01098193859 | CN179: -0.005774794923 | CO179: 0 | CP179: 0 | CQ179: 0.002627342064 | CR179: 0.004996421447 | CS179: 0.006851673316 | CT179: 0.00794291477 | CU179: 0.008028001461 | CV179: 0.006875443149 | CW179: 0.004266964797 | CX179: 0 | CY179: 0 | CZ179: -0.009522774242 | DA179: -0.02024058256 | DB179: -0.03012142565 | DC179: -0.03714929233 | DD179: -0.03937881582 | DE179: -0.03498901997 | DF179: -0.02233545003 | DG179: 0 | DH179: 0 | DI179: 0.02025251495 | DJ179: 0.04603379339 | DK179: 0.07655291645 | DL179: 0.056451732 | DM179: 0.03951926009 | DN179: 0.02499457648 | DO179: 0.012090014 | DP179: 0
D180: 20 | W180: 0 | X180: 0.02791904363 | Y180: 0.05575505485 | Z180: 0.08342524819 | AA180: 0.1108473313 | AB180: 0.08342524819 | AC180: 0.05575505485 | AD180: 0.02791904363 | AE180: 0 | AF180: =+CGIL1!F897 -> -0.5121397572 | AH180: -1 | AI180: 0 | AJ180: 1 | AK180: 0 | AL180: 0.5121397572 | AM180: -0.5121397572 | AN180: 0 | AO180: -0.002529269122 | AP180: -0.004809915944 | AQ180: -0.006595915312 | AR180: -0.007646423106 | AS180: -0.007728333696 | AT180: -0.006618797869 | AU180: -0.004107688318 | AV180: 0 | AW180: 0 | AX180: -0.01280051307 | AY180: -0.02219104376 | AZ180: -0.02792493209 | BA180: -0.0298528881 | BB180: -0.02792493209 | BC180: -0.02219104376 | BD180: -0.01280051307 | BE180: 0 | BF180: 0 | BG180: -0.004107688318 | BH180: -0.006618797869 | BI180: -0.007728333696 | BJ180: -0.007646423106 | BK180: -0.006595915312 | BL180: -0.004809915944 | BM180: -0.002529269122 | BN180: 0 | BO180: 0 | BP180: 0.004640581174 | BQ180: 0.008825002127 | BR180: 0.01210186775 | BS180: 0.01402928886 | BT180: 0.01417957447 | BU180: 0.01214385157 | BV180: 0.007536588698 | BW180: 0 | BX180: 0 | BY180: 0.005148084291 | BZ180: 0.005925865928 | CA180: 0.00371958408 | CB180: 1.01300144e-16 | CC180: -0.00371958408 | CD180: -0.005925865928 | CE180: -0.005148084291 | CF180: 0 | CG180: 0 | CH180: -0.007536588698 | CI180: -0.01214385157 | CJ180: -0.01417957447 | CK180: -0.01402928886 | CL180: -0.01210186775 | CM180: -0.008825002127 | CN180: -0.004640581174 | CO180: 0 | CP180: 0 | CQ180: 0.002111312052 | CR180: 0.004015086182 | CS180: 0.00550595244 | CT180: 0.006382865753 | CU180: 0.006451240769 | CV180: 0.005525053697 | CW180: 0.00342890038 | CX180: 0 | CY180: 0 | CZ180: -0.00765242878 | DA180: -0.01626517784 | DB180: -0.02420534801 | DC180: -0.0298528881 | DD180: -0.03164451617 | DE180: -0.02811690969 | DF180: -0.01794859736 | DG180: 0 | DH180: 0 | DI180: 0.01627476661 | DJ180: 0.03699240541 | DK180: 0.06151734003 | DL180: 0.08917161936 | DM180: 0.06472746512 | DN180: 0.04212013678 | DO180: 0.02074919334 | DP180: 0
D181: 21 | W181: 0 | X181: 0.02101226179 | Y181: 0.04196203222 | Z181: 0.0627870058 | AA181: 0.08342524819 | AB181: 0.1038153804 | AC181: 0.0693822596 | AD181: 0.03474279306 | AE181: 0 | AF181: =+CGIL1!F898 -> -0.385443527 | AH181: -1 | AI181: 0 | AJ181: 1 | AK181: 0 | AL181: 0.385443527 | AM181: -0.385443527 | AN181: 0 | AO181: -0.001903563231 | AP181: -0.003620009852 | AQ181: -0.004964177896 | AR181: -0.005754804719 | AS181: -0.005816451772 | AT181: -0.004981399627 | AU181: -0.003091503542 | AV181: 0 | AW181: 0 | AX181: -0.009633844741 | AY181: -0.01670128917 | AZ181: -0.02101669353 | BA181: -0.02246770011 | BB181: -0.02101669353 | BC181: -0.01670128917 | BD181: -0.009633844741 | BE181: 0 | BF181: 0 | BG181: -0.003091503542 | BH181: -0.004981399627 | BI181: -0.005816451772 | BJ181: -0.005754804719 | BK181: -0.004964177896 | BL181: -0.003620009852 | BM181: -0.001903563231 | BN181: 0 | BO181: 0 | BP181: 0.00349256614 | BQ181: 0.006641819734 | BR181: 0.009108034526 | BS181: 0.01055863854 | BT181: 0.01067174559 | BU181: 0.009139632129 | BV181: 0.005672141811 | BW181: 0 | BX181: 0 | BY181: 0.003874520068 | BZ181: 0.00445988938 | CA181: 0.002799410877 | CB181: 7.623990181e-17 | CC181: -0.002799410877 | CD181: -0.00445988938 | CE181: -0.003874520068 | CF181: 0 | CG181: 0 | CH181: -0.005672141811 | CI181: -0.009139632129 | CJ181: -0.01067174559 | CK181: -0.01055863854 | CL181: -0.009108034526 | CM181: -0.006641819734 | CN181: -0.00349256614 | CO181: 0 | CP181: 0 | CQ181: 0.001589002909 | CR181: 0.003021809883 | CS181: 0.00414385663 | CT181: 0.004803833825 | CU181: 0.004855293816 | CV181: 0.004158232502 | CW181: 0.002580638269 | CX181: 0 | CY181: 0 | CZ181: -0.005759324673 | DA181: -0.01224139978 | DB181: -0.01821728265 | DC181: -0.02246770011 | DD181: -0.0238161044 | DE181: -0.02116117855 | DF181: -0.01350836481 | DG181: 0 | DH181: 0 | DI181: 0.01224861643 | DJ181: 0.02784100046 | DK181: 0.04629880844 | DL181: 0.06711180492 | DM181: 0.08974316795 | DN181: 0.05912043001 | DO181: 0.02934666369 | DP181: 0
D182: 22 | W182: 0 | X182: 0.01404298859 | Y182: 0.02804421274 | Z182: 0.04196203222 | AA182: 0.05575505485 | AB182: 0.0693822596 | AC182: 0.08280311858 | AD182: 0.04146321597 | AE182: 0 | AF182: =+CGIL1!F899 -> -0.2576009716 | AH182: -1 | AI182: 0 | AJ182: 1 | AK182: 0 | AL182: 0.2576009716 | AM182: -0.2576009716 | AN182: 0 | AO182: -0.001272196064 | AP182: -0.002419337697 | AQ182: -0.003317676805 | AR182: -0.0038460713 | AS182: -0.003887271475 | AT182: -0.003329186493 | AU182: -0.002066124504 | AV182: 0 | AW182: 0 | AX182: -0.00643852495 | AY182: -0.01116186423 | AZ182: -0.01404595043 | BA182: -0.01501569224 | BB182: -0.01404595043 | BC182: -0.01116186423 | BD182: -0.00643852495 | BE182: 0 | BF182: 0 | BG182: -0.002066124504 | BH182: -0.003329186493 | BI182: -0.003887271475 | BJ182: -0.0038460713 | BK182: -0.003317676805 | BL182: -0.002419337697 | BM182: -0.001272196064 | BN182: 0 | BO182: 0 | BP182: 0.002334164069 | BQ182: 0.00443888429 | BR182: 0.006087113621 | BS182: 0.007056586393 | BT182: 0.007132178489 | BU182: 0.006108231042 | BV182: 0.003790825735 | BW182: 0 | BX182: 0 | BY182: 0.002589432859 | BZ182: 0.002980648933 | CA182: 0.001870912109 | CB182: 5.095291892e-17 | CC182: -0.001870912109 | CD182: -0.002980648933 | CE182: -0.002589432859 | CF182: 0 | CG182: 0 | CH182: -0.003790825735 | CI182: -0.006108231042 | CJ182: -0.007132178489 | CK182: -0.007056586393 | CL182: -0.006087113621 | CM182: -0.00443888429 | CN182: -0.002334164069 | CO182: 0 | CP182: 0 | CQ182: 0.001061968005 | CR182: 0.002019546593 | CS182: 0.002769436816 | CT182: 0.003210515093 | CU182: 0.003244907014 | CV182: 0.002779044549 | CW182: 0.001724701231 | CX182: 0 | CY182: 0 | CZ182: -0.003849092092 | DA182: -0.008181215295 | DB182: -0.01217503832 | DC182: -0.01501569224 | DD182: -0.01591686253 | DE182: -0.01414251316 | DF182: -0.009027957809 | DG182: 0 | DH182: 0 | DI182: 0.00818603835 | DJ182: 0.0186067952 | DK182: 0.03094258226 | DL182: 0.04485239716 | DM182: 0.05997746917 | DN182: 0.07594489659 | DO182: 0.03785685583 | DP182: 0
D183: 23 | W183: 0 | X183: 0.007031950954 | Y183: 0.01404298859 | Z183: 0.02101226179 | AA183: 0.02791904363 | AB183: 0.03474279306 | AC183: 0.04146321597 | AD183: 0.04806032552 | AE183: 0 | AF183: =+CGIL1!F900 -> -0.1289923001 | AH183: -1 | AI183: 0 | AJ183: 1 | AK183: 0 | AL183: 0.1289923001 | AM183: -0.1289923001 | AN183: 0 | AO183: -0.0006370453318 | AP183: -0.00121147033 | AQ183: -0.001661308804 | AR183: -0.001925899503 | AS183: -0.001946530269 | AT183: -0.001667072218 | AU183: -0.001034600725 | AV183: 0 | AW183: 0 | AX183: -0.003224056715 | AY183: -0.005589243437 | AZ183: -0.007033434077 | BA183: -0.007519027074 | BB183: -0.007033434077 | BC183: -0.005589243437 | BD183: -0.003224056715 | BE183: 0 | BF183: 0 | BG183: -0.001034600725 | BH183: -0.001667072218 | BI183: -0.001946530269 | BJ183: -0.001925899503 | BK183: -0.001661308804 | BL183: -0.00121147033 | BM183: -0.0006370453318 | BN183: 0 | BO183: 0 | BP183: 0.001168820094 | BQ183: 0.002222747417 | BR183: 0.003048089383 | BS183: 0.003533547656 | BT183: 0.003571399992 | BU183: 0.003058663819 | BV183: 0.001898235584 | BW183: 0 | BX183: 0 | BY183: 0.001296644567 | BZ183: 0.001492543911 | CA183: 0.0009368491689 | CB183: 2.551439991e-17 | CC183: -0.0009368491689 | CD183: -0.001492543911 | CE183: -0.001296644567 | CF183: 0 | CG183: 0 | CH183: -0.001898235584 | CI183: -0.003058663819 | CJ183: -0.003571399992 | CK183: -0.003533547656 | CL183: -0.003048089383 | CM183: -0.002222747417 | CN183: -0.001168820094 | CO183: 0 | CP183: 0 | CQ183: 0.0005317747626 | CR183: 0.001011277087 | CS183: 0.00138678058 | CT183: 0.001607648153 | CU183: 0.001624869723 | CV183: 0.001391591601 | CW183: 0.0008636348586 | CX183: 0 | CY183: 0 | CZ183: -0.001927412148 | DA183: -0.004096699526 | DB183: -0.006096584909 | DC183: -0.007519027074 | DD183: -0.007970283246 | DE183: -0.007081787348 | DF183: -0.004520701283 | DG183: 0 | DH183: 0 | DI183: 0.004099114645 | DJ183: 0.009317252553 | DK183: 0.01549433153 | DL183: 0.02245959647 | DM183: 0.03003339488 | DN183: 0.03802899822 | DO183: 0.04625446009 | DP183: 0
D184: 24 | W184: 0 | X184: 0 | Y184: 0 | Z184: 0 | AA184: 0 | AB184: 0 | AC184: 0 | AD184: 0 | AE184: 0 | AF184: =+CGIL1!F901 -> 0 | AH184: -1 | AI184: 0 | AJ184: 1 | AK184: 0 | AL184: 0 | AM184: 0 | AN184: 0 | AO184: 0 | AP184: 0 | AQ184: 0 | AR184: 0 | AS184: 0 | AT184: 0 | AU184: 0 | AV184: 0 | AW184: 0 | AX184: 0 | AY184: 0 | AZ184: 0 | BA184: 0 | BB184: 0 | BC184: 0 | BD184: 0 | BE184: 0 | BF184: 0 | BG184: 0 | BH184: 0 | BI184: 0 | BJ184: 0 | BK184: 0 | BL184: 0 | BM184: 0 | BN184: 0 | BO184: 0 | BP184: 0 | BQ184: 0 | BR184: 0 | BS184: 0 | BT184: 0 | BU184: 0 | BV184: 0 | BW184: 0 | BX184: 0 | BY184: 0 | BZ184: 0 | CA184: 0 | CB184: 0 | CC184: 0 | CD184: 0 | CE184: 0 | CF184: 0 | CG184: 0 | CH184: 0 | CI184: 0 | CJ184: 0 | CK184: 0 | CL184: 0 | CM184: 0 | CN184: 0 | CO184: 0 | CP184: 0 | CQ184: 0 | CR184: 0 | CS184: 0 | CT184: 0 | CU184: 0 | CV184: 0 | CW184: 0 | CX184: 0 | CY184: 0 | CZ184: 0 | DA184: 0 | DB184: 0 | DC184: 0 | DD184: 0 | DE184: 0 | DF184: 0 | DG184: 0 | DH184: 0 | DI184: 0 | DJ184: 0 | DK184: 0 | DL184: 0 | DM184: 0 | DN184: 0 | DO184: 0 | DP184: 0
E186: TP(0) | AF186: TM(0) | AH186: Load(1) | AI186: Load(1) | AJ186: Load(2) | AK186: Load(2)
C187: TP | E187: 0 | F187: =+E187+1 -> 1 | G187: 2 | H187: 3 | I187: 4 | J187: 5 | K187: 6 | L187: 7 | M187: 8 | N187: 8 | O187: =+N187+1 -> 9 | P187: 10 | Q187: 11 | R187: 12 | S187: 13 | T187: 14 | U187: 15 | V187: 16 | W187: 16 | X187: =+W187+1 -> 17 | Y187: 18 | Z187: 19 | AA187: 20 | AB187: 21 | AC187: 22 | AD187: 23 | AE187: 24 | AF187: Left | AG187: Right | AH187: Left | AI187: Right | AJ187: Left | AK187: Right | AL187: TM(1) | AM187: TM(2) | AN187: 0 | AO187: =+AN187+1 -> 1 | AP187: 2 | AQ187: 3 | AR187: 4 | AS187: 5 | AT187: 6 | AU187: 7 | AV187: 8 | AW187: 8 | AX187: =+AW187+1 -> 9 | AY187: 10 | AZ187: 11 | BA187: 12 | BB187: 13 | BC187: 14 | BD187: 15 | BE187: 16 | BF187: 16 | BG187: =+BF187+1 -> 17 | BH187: 18 | BI187: 19 | BJ187: 20 | BK187: 21 | BL187: 22 | BM187: 23 | BN187: 24 | BO187: 0 | BP187: =+BO187+1 -> 1 | BQ187: 2 | BR187: 3 | BS187: 4 | BT187: 5 | BU187: 6 | BV187: 7 | BW187: 8 | BX187: 8 | BY187: =+BX187+1 -> 9 | BZ187: 10 | CA187: 11 | CB187: 12 | CC187: 13 | CD187: 14 | CE187: 15 | CF187: 16 | CG187: 16 | CH187: =+CG187+1 -> 17 | CI187: 18 | CJ187: 19 | CK187: 20 | CL187: 21 | CM187: 22 | CN187: 23 | CO187: 24 | CP187: 0 | CQ187: =+CP187+1 -> 1 | CR187: 2 | CS187: 3 | CT187: 4 | CU187: 5 | CV187: 6 | CW187: 7 | CX187: 8 | CY187: 8 | CZ187: =+CY187+1 -> 9 | DA187: 10 | DB187: 11 | DC187: 12 | DD187: 13 | DE187: 14 | DF187: 15 | DG187: 16 | DH187: 16 | DI187: =+DH187+1 -> 17 | DJ187: 18 | DK187: 19 | DL187: 20 | DM187: 21 | DN187: 22 | DO187: 23 | DP187: 24
D188: 0 | E188: =+CGIL1!F821 -> 0 | F188: =+CGIL1!G821 -> 0.006606252909 | G188: =+CGIL1!H821 -> 0.01059057169 | H188: =+CGIL1!I821 -> 0.01231286207 | I188: =+CGIL1!J821 -> 0.01213975716 | J188: =+CGIL1!K821 -> 0.01044352703 | K188: =+CGIL1!L821 -> 0.007600971628 | L188: =+CGIL1!M821 -> 0.003992300081 | M188: =+CGIL1!N821 -> 0 | AG188: =+CGIL1!N902 -> 0.07437040263 | AH188: 0 | AI188: 1 | AJ188: 0 | AK188: 1 | AL188: =+AF188*AH188+AG188*AI188 -> 0.07437040263 | AM188: =+AF188*AJ188+AG188*AK188 -> 0.07437040263 | AN188: =MMULT(AL188:AL214,TRANSPOSE($E$94:$E$120)) -> 0 | AO188: -0.0003672879528 | AP188: -0.0006984722049 | AQ188: -0.0009578262 | AR188: -0.001110375746 | AS188: -0.001122270397 | AT188: -0.0009611490918 | AU188: -0.0005964981821 | AV188: 0 | AW188: 0 | AX188: -0.0018588272 | AY188: -0.003222473625 | AZ188: -0.00405512053 | BA188: -0.004335088765 | BB188: -0.00405512053 | BC188: -0.003222473625 | BD188: -0.0018588272 | BE188: 0 | BF188: 0 | BG188: -0.0005964981821 | BH188: -0.0009611490918 | BI188: -0.001122270397 | BJ188: -0.001110375746 | BK188: -0.0009578262 | BL188: -0.0006984722049 | BM188: -0.0003672879528 | BN188: 0 | BO188: =MMULT(AM188:AM214,TRANSPOSE($F$94:$F$120)) -> 0 | BP188: -0.000673882247 | BQ188: -0.001281523163 | BR188: -0.001757373382 | BS188: -0.002037263943 | BT188: -0.002059087675 | BU188: -0.001763470064 | BV188: -0.001094426137 | BW188: 0 | BX188: 0 | BY188: -0.0007475793397 | BZ188: -0.0008605249424 | CA188: -0.0005401396041 | CB188: -1.471030591e-17 | CC188: 0.0005401396041 | CD188: 0.0008605249424 | CE188: 0.0007475793397 | CF188: 0 | CG188: 0 | CH188: 0.001094426137 | CI188: 0.001763470064 | CJ188: 0.002059087675 | CK188: 0.002037263943 | CL188: 0.001757373382 | CM188: 0.001281523163 | CN188: 0.000673882247 | CO188: 0 | CP188: =+E188+AN188+BO188 -> 0 | CQ188: =+F188+AO188+BP188 -> 0.005565082709 | CR188: =+G188+AP188+BQ188 -> 0.00861057632 | CS188: =+H188+AQ188+BR188 -> 0.009597662488 | CT188: =+I188+AR188+BS188 -> 0.008992117468 | CU188: =+J188+AS188+BT188 -> 0.007262168962 | CV188: =+K188+AT188+BU188 -> 0.004876352472 | CW188: =+L188+AU188+BV188 -> 0.002301375762 | CX188: =+M188+AV188+BW188 -> 0 | CY188: =+N188+AW188+BX188 -> 0 | CZ188: =+O188+AX188+BY188 -> -0.00260640654 | DA188: =+P188+AY188+BZ188 -> -0.004082998567 | DB188: =+Q188+AZ188+CA188 -> -0.004595260134 | DC188: =+R188+BA188+CB188 -> -0.004335088765 | DD188: =+S188+BB188+CC188 -> -0.003514980925 | DE188: =+T188+BC188+CD188 -> -0.002361948682 | DF188: =+U188+BD188+CE188 -> -0.001111247861 | DG188: =+V188+BE188+CF188 -> 0 | DH188: =+W188+BF188+CG188 -> 0 | DI188: =+X188+BG188+CH188 -> 0.0004979279548 | DJ188: =+Y188+BH188+CI188 -> 0.0008023209724 | DK188: =+Z188+BI188+CJ188 -> 0.0009368172784 | DL188: =+AA188+BJ188+CK188 -> 0.0009268881968 | DM188: =+AB188+BK188+CL188 -> 0.0007995471824 | DN188: =+AC188+BL188+CM188 -> 0.0005830509579 | DO188: =+AD188+BM188+CN188 -> 0.0003065942942 | DP188: =+AE188+BN188+CO188 -> 0
D189: =+D188+1 -> 1 | E189: =+CGIL1!F822 -> 0 | F189: =+CGIL1!G822 -> 0.005295285844 | G189: =+CGIL1!H822 -> 0.00945955749 | H189: =+CGIL1!I822 -> 0.01136516442 | I189: =+CGIL1!J822 -> 0.01137819455 | J189: =+CGIL1!K822 -> 0.009870364392 | K189: =+CGIL1!L822 -> 0.007217913558 | L189: =+CGIL1!M822 -> 0.003800485814 | M189: =+CGIL1!N822 -> 0 | AG189: =+CGIL1!N903 -> 0.07085181104 | AH189: 0 | AI189: 1 | AJ189: 0 | AK189: 1 | AL189: =+AF189*AH189+AG189*AI189 -> 0.07085181104 | AM189: =+AF189*AJ189+AG189*AK189 -> 0.07085181104 | AN189: 0 | AO189: -0.0003499109284 | AP189: -0.0006654262842 | AQ189: -0.000912509796 | AR189: -0.001057841961 | AS189: -0.001069173855 | AT189: -0.0009156754761 | AU189: -0.0005682768277 | AV189: 0 | AW189: 0 | AX189: -0.00177088289 | AY189: -0.003070012858 | AZ189: -0.003863265807 | BA189: -0.004129988264 | BB189: -0.003863265807 | BC189: -0.003070012858 | BD189: -0.00177088289 | BE189: 0 | BF189: 0 | BG189: -0.0005682768277 | BH189: -0.0009156754761 | BI189: -0.001069173855 | BJ189: -0.001057841961 | BK189: -0.000912509796 | BL189: -0.0006654262842 | BM189: -0.0003499109284 | BN189: 0 | BO189: 0 | BP189: -0.0006419997195 | BQ189: -0.001220892099 | BR189: -0.001674229027 | BS189: -0.001940877484 | BT189: -0.001961668698 | BU189: -0.001680037264 | BV189: -0.001042646955 | BW189: 0 | BX189: 0 | BY189: -0.0007122100761 | BZ189: -0.0008198120282 | CA189: -0.0005145846709 | CB189: -1.401433605e-17 | CC189: 0.0005145846709 | CD189: 0.0008198120282 | CE189: 0.0007122100761 | CF189: 0 | CG189: 0 | CH189: 0.001042646955 | CI189: 0.001680037264 | CJ189: 0.001961668698 | CK189: 0.001940877484 | CL189: 0.001674229027 | CM189: 0.001220892099 | CN189: 0.0006419997195 | CO189: 0 | CP189: 0 | CQ189: 0.004303375196 | CR189: 0.007573239106 | CS189: 0.0087784256 | CT189: 0.008379475107 | CU189: 0.006839521839 | CV189: 0.004622200817 | CW189: 0.002189562031 | CX189: 0 | CY189: 0 | CZ189: -0.002483092966 | DA189: -0.003889824886 | DB189: -0.004377850478 | DC189: -0.004129988264 | DD189: -0.003348681136 | DE189: -0.00225020083 | DF189: -0.001058672814 | DG189: 0 | DH189: 0 | DI189: 0.0004743701273 | DJ189: 0.000764361788 | DK189: 0.0008924948426 | DL189: 0.0008830355229 | DM189: 0.0007617192308 | DN189: 0.0005554658148 | DO189: 0.0002920887911 | DP189: 0
D190: =+D189+1 -> 2 | E190: =+CGIL1!F823 -> 0 | F190: =+CGIL1!G823 -> 0.002853304581 | G190: =+CGIL1!H823 -> 0.006069878579 | H190: =+CGIL1!I823 -> 0.008524889972 | I190: =+CGIL1!J823 -> 0.009095771658 | J190: =+CGIL1!K823 -> 0.008152581076 | K190: =+CGIL1!L823 -> 0.006069878579 | L190: =+CGIL1!M823 -> 0.003225613477 | M190: =+CGIL1!N823 -> 0 | AG190: =+CGIL1!N904 -> 0.06030650072 | AH190: 0 | AI190: 1 | AJ190: 0 | AK190: 1 | AL190: 0.06030650072 | AM190: 0.06030650072 | AN190: 0 | AO190: -0.0002978315352 | AP190: -0.0005663868023 | AQ190: -0.000776695357 | AR190: -0.0009003968431 | AS190: -0.000910042142 | AT190: -0.0007793898694 | AU190: -0.0004836966962 | AV190: 0 | AW190: 0 | AX190: -0.00150731151 | AY190: -0.002613083984 | AZ190: -0.003288272222 | BA190: -0.003515296738 | BB190: -0.003288272222 | BC190: -0.002613083984 | BD190: -0.00150731151 | BE190: 0 | BF190: 0 | BG190: -0.0004836966962 | BH190: -0.0007793898694 | BI190: -0.000910042142 | BJ190: -0.0009003968431 | BK190: -0.000776695357 | BL190: -0.0005663868023 | BM190: -0.0002978315352 | BN190: 0 | BO190: 0 | BP190: -0.0005464469571 | BQ190: -0.001039179227 | BR190: -0.001425043235 | BS190: -0.001652004764 | BT190: -0.001669701494 | BU190: -0.001429986997 | BV190: -0.0008874634031 | BW190: 0 | BX190: 0 | BY190: -0.000606207475 | BZ190: -0.0006977943674 | CA190: -0.000437995873 | CB190: -1.192849632e-17 | CC190: 0.000437995873 | CD190: 0.0006977943674 | CE190: 0.000606207475 | CF190: 0 | CG190: 0 | CH190: 0.0008874634031 | CI190: 0.001429986997 | CJ190: 0.001669701494 | CK190: 0.001652004764 | CL190: 0.001425043235 | CM190: 0.001039179227 | CN190: 0.0005464469571 | CO190: 0 | CP190: 0 | CQ190: 0.002009026089 | CR190: 0.004464312549 | CS190: 0.00632315138 | CT190: 0.006543370051 | CU190: 0.005572837439 | CV190: 0.003860501713 | CW190: 0.001854453378 | CX190: 0 | CY190: 0 | CZ190: -0.002113518985 | DA190: -0.003310878351 | DB190: -0.003726268095 | DC190: -0.003515296738 | DD190: -0.002850276349 | DE190: -0.001915289616 | DF190: -0.0009011040352 | DG190: 0 | DH190: 0 | DI190: 0.0004037667069 | DJ190: 0.0006505971272 | DK190: 0.0007596593521 | DL190: 0.000751607921 | DM190: 0.000648347878 | DN190: 0.0004727924251 | DO190: 0.0002486154219 | DP190: 0
D191: 3 | E191: =+CGIL1!F824 -> 0 | F191: =+CGIL1!G824 -> 0.0007745927346 | G191: =+CGIL1!H824 -> 0.001918637063 | H191: =+CGIL1!I824 -> 0.003800485814 | I191: =+CGIL1!J824 -> 0.005299276495 | J191: =+CGIL1!K824 -> 0.005295285844 | K191: =+CGIL1!L824 -> 0.004160280995 | L191: =+CGIL1!M824 -> 0.002269392765 | M191: =+CGIL1!N824 -> 0 | AG191: =+CGIL1!N905 -> 0.04276583386 | AH191: 0 | AI191: 1 | AJ191: 0 | AK191: 1 | AL191: 0.04276583386 | AM191: 0.04276583386 | AN191: 0 | AO191: -0.0002112046595 | AP191: -0.0004016483065 | AQ191: -0.0005507868008 | AR191: -0.0006385086407 | AS191: -0.0006453485211 | AT191: -0.000552697591 | AU191: -0.0003430093324 | AV191: 0 | AW191: 0 | AX191: -0.001068896932 | AY191: -0.001853045927 | AZ191: -0.002331849832 | BA191: -0.002492842305 | BB191: -0.002331849832 | BC191: -0.001853045927 | BD191: -0.001068896932 | BE191: 0 | BF191: 0 | BG191: -0.0003430093324 | BH191: -0.000552697591 | BI191: -0.0006453485211 | BJ191: -0.0006385086407 | BK191: -0.0005507868008 | BL191: -0.0004016483065 | BM191: -0.0002112046595 | BN191: 0 | BO191: 0 | BP191: -0.0003875081376 | BQ191: -0.0007369249693 | BR191: -0.001010557096 | BS191: -0.001171504903 | BT191: -0.001184054386 | BU191: -0.001014062922 | BV191: -0.0006293370035 | BW191: 0 | BX191: 0 | BY191: -0.0004298867925 | BZ191: -0.0004948348459 | CA191: -0.0003106009885 | CB191: -8.458990087e-18 | CC191: 0.0003106009885 | CD191: 0.0004948348459 | CE191: 0.0004298867925 | CF191: 0 | CG191: 0 | CH191: 0.0006293370035 | CI191: 0.001014062922 | CJ191: 0.001184054386 | CK191: 0.001171504903 | CL191: 0.001010557096 | CM191: 0.0007369249693 | CN191: 0.0003875081376 | CO191: 0 | CP191: 0 | CQ191: 0.0001758799374 | CR191: 0.0007800637871 | CS191: 0.002239141917 | CT191: 0.003489262951 | CU191: 0.003465882937 | CV191: 0.002593520482 | CW191: 0.001297046429 | CX191: 0 | CY191: 0 | CZ191: -0.001498783725 | DA191: -0.002347880773 | DB191: -0.00264245082 | DC191: -0.002492842305 | DD191: -0.002021248843 | DE191: -0.001358211081 | DF191: -0.0006390101399 | DG191: 0 | DH191: 0 | DI191: 0.0002863276712 | DJ191: 0.0004613653308 | DK191: 0.0005387058651 | DL191: 0.0005329962624 | DM191: 0.0004597702952 | DN191: 0.0003352766627 | DO191: 0.0001763034781 | DP191: 0
D192: 4 | E192: =+CGIL1!F825 -> 0 | F192: =+CGIL1!G825 -> -0.0009346675179 | G192: =+CGIL1!H825 -> -0.00149480003 | H192: =+CGIL1!I825 -> -0.001306976414 | I192: =+CGIL1!J825 -> 0 | J192: =+CGIL1!K825 -> 0.001306976414 | K192: =+CGIL1!L825 -> 0.00149480003 | L192: =+CGIL1!M825 -> 0.0009346675179 | M192: =+CGIL1!N825 -> 0 | AG192: =+CGIL1!N906 -> 0.01828197715 | AH192: 0 | AI192: 1 | AJ192: 0 | AK192: 1 | AL192: 0.01828197715 | AM192: 0.01828197715 | AN192: 0 | AO192: -9.02879334e-05 | AP192: -0.0001717007363 | AQ192: -0.000235455989 | AR192: -0.0002729562205 | AS192: -0.0002758802027 | AT192: -0.0002362728332 | AU192: -0.0001466331464 | AV192: 0 | AW192: 0 | AX192: -0.0004569430203 | AY192: -0.0007921590725 | AZ192: -0.0009968430752 | BA192: -0.001065665788 | BB192: -0.0009968430752 | BC192: -0.0007921590725 | BD192: -0.0004569430203 | BE192: 0 | BF192: 0 | BG192: -0.0001466331464 | BH192: -0.0002362728332 | BI192: -0.0002758802027 | BJ192: -0.0002729562205 | BK192: -0.000235455989 | BL192: -0.0001717007363 | BM192: -9.02879334e-05 | BN192: 0 | BO192: 0 | BP192: -0.0001656559519 | BQ192: -0.0003150282417 | BR192: -0.0004320033089 | BS192: -0.0005008069277 | BT192: -0.0005061717095 | BU192: -0.0004335020153 | BV192: -0.000269035435 | BW192: 0 | BX192: 0 | BY192: -0.0001837724138 | BZ192: -0.0002115370736 | CA192: -0.0001327788952 | CB192: -3.616135815e-18 | CC192: 0.0001327788952 | CD192: 0.0002115370736 | CE192: 0.0001837724138 | CF192: 0 | CG192: 0 | CH192: 0.000269035435 | CI192: 0.0004335020153 | CJ192: 0.0005061717095 | CK192: 0.0005008069277 | CL192: 0.0004320033089 | CM192: 0.0003150282417 | CN192: 0.0001656559519 | CO192: 0 | CP192: 0 | CQ192: -0.001190611403 | CR192: -0.001981529008 | CS192: -0.001974435712 | CT192: -0.0007737631483 | CU192: 0.000524924502 | CV192: 0.0008250251818 | CW192: 0.0005189989365 | CX192: 0 | CY192: 0 | CZ192: -0.0006407154341 | DA192: -0.001003696146 | DB192: -0.00112962197 | DC192: -0.001065665788 | DD192: -0.0008640641799 | DE192: -0.0005806219989 | DF192: -0.0002731706065 | DG192: 0 | DH192: 0 | DI192: 0.0001224022887 | DJ192: 0.0001972291821 | DK192: 0.0002302915067 | DL192: 0.0002278507072 | DM192: 0.0001965473199 | DN192: 0.0001433275055 | DO192: 7.536801849e-05 | DP192: 0
D193: 5 | E193: =+CGIL1!F826 -> 0 | F193: =+CGIL1!G826 -> -0.002269392765 | G193: =+CGIL1!H826 -> -0.004160280995 | H193: =+CGIL1!I826 -> -0.005295285844 | I193: =+CGIL1!J826 -> -0.005299276495 | J193: =+CGIL1!K826 -> -0.003800485814 | K193: =+CGIL1!L826 -> -0.001918637063 | L193: =+CGIL1!M826 -> -0.0007745927346 | M193: =+CGIL1!N826 -> 0 | AG193: =+CGIL1!N907 -> -0.0130722534 | AH193: 0 | AI193: 1 | AJ193: 0 | AK193: 1 | AL193: -0.0130722534 | AM193: -0.0130722534 | AN193: 0 | AO193: 6.45590318e-05 | AP193: 0.0001227720347 | AQ193: 0.0001683592714 | AR193: 0.0001951732492 | AS193: 0.0001972639988 | AT193: 0.0001689433435 | AU193: 0.0001048478307 | AV193: 0 | AW193: 0 | AX193: 0.0003267302492 | AY193: 0.0005664214567 | AZ193: 0.000712777681 | BA193: 0.0007619883292 | BB193: 0.000712777681 | BC193: 0.0005664214567 | BD193: 0.0003267302492 | BE193: 0 | BF193: 0 | BG193: 0.0001048478307 | BH193: 0.0001689433435 | BI193: 0.0001972639988 | BJ193: 0.0001951732492 | BK193: 0.0001683592714 | BL193: 0.0001227720347 | BM193: 6.45590318e-05 | BN193: 0 | BO193: 0 | BP193: 0.0001184498024 | BQ193: 0.0002252562165 | BR193: 0.0003088974828 | BS193: 0.0003580944779 | BT193: 0.0003619304846 | BU193: 0.0003099691103 | BV193: 0.0001923697503 | BW193: 0 | BX193: 0 | BY193: 0.0001314037066 | BZ193: 0.0001512564099 | CA193: 9.494155639e-05 | CB193: 2.585663646e-18 | CC193: -9.494155639e-05 | CD193: -0.0001512564099 | CE193: -0.0001314037066 | CF193: 0 | CG193: 0 | CH193: -0.0001923697503 | CI193: -0.0003099691103 | CJ193: -0.0003619304846 | CK193: -0.0003580944779 | CL193: -0.0003088974828 | CM193: -0.0002252562165 | CN193: -0.0001184498024 | CO193: 0 | CP193: 0 | CQ193: -0.002086383931 | CR193: -0.003812252744 | CS193: -0.00481802909 | CT193: -0.004746008768 | CU193: -0.00324129133 | CV193: -0.001439724609 | CW193: -0.0004773751535 | CX193: 0 | CY193: 0 | CZ193: 0.0004581339558 | DA193: 0.0007176778665 | DB193: 0.0008077192374 | DC193: 0.0007619883292 | DD193: 0.0006178361246 | DE193: 0.0004151650468 | DF193: 0.0001953265427 | DG193: 0 | DH193: 0 | DI193: -8.752191959e-05 | DJ193: -0.0001410257668 | DK193: -0.0001646664858 | DL193: -0.0001629212288 | DM193: -0.0001405382115 | DN193: -0.0001024841818 | DO193: -5.389077056e-05 | DP193: 0
D194: 6 | E194: =+CGIL1!F827 -> 0 | F194: =+CGIL1!G827 -> -0.003225613477 | G194: =+CGIL1!H827 -> -0.006069878579 | H194: =+CGIL1!I827 -> -0.008152581076 | I194: =+CGIL1!J827 -> -0.009095771658 | J194: =+CGIL1!K827 -> -0.008524889972 | K194: =+CGIL1!L827 -> -0.006069878579 | L194: =+CGIL1!M827 -> -0.002853304581 | M194: =+CGIL1!N827 -> 0 | AG194: =+CGIL1!N908 -> -0.05120360898 | AH194: 0 | AI194: 1 | AJ194: 0 | AK194: 1 | AL194: -0.05120360898 | AM194: -0.05120360898 | AN194: 0 | AO194: 0.0002528757147 | AP194: 0.0004808942321 | AQ194: 0.0006594580166 | AR194: 0.0007644875316 | AS194: 0.0007726769326 | AT194: 0.0006617458091 | AU194: 0.000410685684 | AV194: 0 | AW194: 0 | AX194: 0.001279792199 | AY194: 0.002218655185 | AZ194: 0.002791927953 | BA194: 0.002984684527 | BB194: 0.002791927953 | BC194: 0.002218655185 | BD194: 0.001279792199 | BE194: 0 | BF194: 0 | BG194: 0.000410685684 | BH194: 0.0006617458091 | BI194: 0.0007726769326 | BJ194: 0.0007644875316 | BK194: 0.0006594580166 | BL194: 0.0004808942321 | BM194: 0.0002528757147 | BN194: 0 | BO194: 0 | BP194: 0.0004639641827 | BQ194: 0.0008823215769 | BR194: 0.001209941809 | BS194: 0.001402644905 | BT194: 0.001417670423 | BU194: 0.001214139341 | BV194: 0.0007535063141 | BW194: 0 | BX194: 0 | BY194: 0.0005147042215 | BZ194: 0.0005924666414 | CA194: 0.0003718831162 | CB194: 1.012796388e-17 | CC194: -0.0003718831162 | CD194: -0.0005924666414 | CE194: -0.0005147042215 | CF194: 0 | CG194: 0 | CH194: -0.0007535063141 | CI194: -0.001214139341 | CJ194: -0.001417670423 | CK194: -0.001402644905 | CL194: -0.001209941809 | CM194: -0.0008823215769 | CN194: -0.0004639641827 | CO194: 0 | CP194: 0 | CQ194: -0.00250877358 | CR194: -0.00470666277 | CS194: -0.00628318125 | CT194: -0.006928639221 | CU194: -0.006334542616 | CV194: -0.004193993429 | CW194: -0.001689112583 | CX194: 0 | CY194: 0 | CZ194: 0.001794496421 | DA194: 0.002811121827 | DB194: 0.003163811069 | DC194: 0.002984684527 | DD194: 0.002420044836 | DE194: 0.001626188544 | DF194: 0.0007650879775 | DG194: 0 | DH194: 0 | DI194: -0.0003428206302 | DJ194: -0.0005523935315 | DK194: -0.0006449934908 | DL194: -0.0006381573733 | DM194: -0.0005504837925 | DN194: -0.0004014273448 | DO194: -0.000211088468 | DP194: 0
D195: 7 | E195: =+CGIL1!F828 -> 0 | F195: =+CGIL1!G828 -> -0.003800485814 | G195: =+CGIL1!H828 -> -0.007217913558 | H195: =+CGIL1!I828 -> -0.009870364392 | I195: =+CGIL1!J828 -> -0.01137819455 | J195: =+CGIL1!K828 -> -0.01136516442 | K195: =+CGIL1!L828 -> -0.00945955749 | L195: =+CGIL1!M828 -> -0.005295285844 | M195: =+CGIL1!N828 -> 0 | AG195: =+CGIL1!N909 -> -0.09599868533 | AH195: 0 | AI195: 1 | AJ195: 0 | AK195: 1 | AL195: -0.09599868533 | AM195: -0.09599868533 | AN195: 0 | AO195: 0.0004741020535 | AP195: 0.0009016007852 | AQ195: 0.001236379698 | AR195: 0.001433293462 | AS195: 0.001448647296 | AT195: 0.001240668948 | AU195: 0.0007699708386 | AV195: 0 | AW195: 0 | AX195: 0.002399408383 | AY195: 0.0041596283 | AZ195: 0.005234424259 | BA195: 0.005595812414 | BB195: 0.005234424259 | BC195: 0.0041596283 | BD195: 0.002399408383 | BE195: 0 | BF195: 0 | BG195: 0.0007699708386 | BH195: 0.001240668948 | BI195: 0.001448647296 | BJ195: 0.001433293462 | BK195: 0.001236379698 | BL195: 0.0009016007852 | BM195: 0.0004741020535 | BN195: 0 | BO195: 0 | BP195: 0.0008698596147 | BQ195: 0.001654213699 | BR195: 0.002268449926 | BS195: 0.002629737816 | BT195: 0.002657908292 | BU195: 0.002276319635 | BV195: 0.001412705413 | BW195: 0 | BX195: 0 | BY195: 0.0009649891793 | BZ195: 0.001110781443 | CA195: 0.0006972221482 | CB195: 1.898833378e-17 | CC195: -0.0006972221482 | CD195: -0.001110781443 | CE195: -0.0009649891793 | CF195: 0 | CG195: 0 | CH195: -0.001412705413 | CI195: -0.002276319635 | CJ195: -0.002657908292 | CK195: -0.002629737816 | CL195: -0.002268449926 | CM195: -0.001654213699 | CN195: -0.0008698596147 | CO195: 0 | CP195: 0 | CQ195: -0.002456524146 | CR195: -0.004662099073 | CS195: -0.006365534768 | CT195: -0.007315163274 | CU195: -0.007258608834 | CV195: -0.005942568906 | CW195: -0.003112609593 | CX195: 0 | CY195: 0 | CZ195: 0.003364397562 | DA195: 0.005270409743 | DB195: 0.005931646407 | DC195: 0.005595812414 | DD195: 0.004537202111 | DE195: 0.003048846857 | DF195: 0.001434419203 | DG195: 0 | DH195: 0 | DI195: -0.0006427345739 | DJ195: -0.001035650687 | DK195: -0.001209260996 | DL195: -0.001196444354 | DM195: -0.001032070228 | DN195: -0.000752612914 | DO195: -0.0003957575612 | DP195: 0
D196: 8 | E196: =+CGIL1!F829 -> 0 | F196: =+CGIL1!G829 -> -0.003992300081 | G196: =+CGIL1!H829 -> -0.007600971628 | H196: =+CGIL1!I829 -> -0.01044352703 | I196: =+CGIL1!J829 -> -0.01213975716 | J196: =+CGIL1!K829 -> -0.01231286207 | K196: =+CGIL1!L829 -> -0.01059057169 | L196: =+CGIL1!M829 -> -0.006606252909 | M196: =+CGIL1!N829 -> 0 | AG196: =+CGIL1!N910 -> -0.14732426 | AH196: 0 | AI196: 1 | AJ196: 0 | AK196: 1 | AL196: -0.14732426 | AM196: -0.14732426 | AN196: 0 | AO196: 0.0007275801117 | AP196: 0.001383640495 | AQ196: 0.001897408527 | AR196: 0.002199601984 | AS196: 0.002223164726 | AT196: 0.001903991019 | AU196: 0.001181634766 | AV196: 0 | AW196: 0 | AX196: 0.003682249014 | AY196: 0.006383568266 | AZ196: 0.008033002514 | BA196: 0.008587606384 | BB196: 0.008033002514 | BC196: 0.006383568266 | BD196: 0.003682249014 | BE196: 0 | BF196: 0 | BG196: 0.001181634766 | BH196: 0.001903991019 | BI196: 0.002223164726 | BJ196: 0.002199601984 | BK196: 0.001897408527 | BL196: 0.001383640495 | BM196: 0.0007275801117 | BN196: 0 | BO196: 0 | BP196: 0.001334928948 | BQ196: 0.002538636944 | BR196: 0.003481273786 | BS196: 0.004035723786 | BT196: 0.004078955571 | BU196: 0.003493351025 | BV196: 0.00216800656 | BW196: 0 | BX196: 0 | BY196: 0.001480919413 | BZ196: 0.001704659325 | CA196: 0.001069991081 | CB196: 2.914042221e-17 | CC196: -0.001069991081 | CD196: -0.001704659325 | CE196: -0.001480919413 | CF196: 0 | CG196: 0 | CH196: -0.00216800656 | CI196: -0.003493351025 | CJ196: -0.004078955571 | CK196: -0.004035723786 | CL196: -0.003481273786 | CM196: -0.002538636944 | CN196: -0.001334928948 | CO196: 0 | CP196: 0 | CQ196: -0.001929791021 | CR196: -0.003678694188 | CS196: -0.005064844721 | CT196: -0.005904431387 | CU196: -0.006010741774 | CV196: -0.005193229644 | CW196: -0.003256611584 | CX196: 0 | CY196: 0 | CZ196: 0.005163168428 | DA196: 0.008088227591 | DB196: 0.009102993594 | DC196: 0.008587606384 | DD196: 0.006963011433 | DE196: 0.004678908941 | DF196: 0.002201329601 | DG196: 0 | DH196: 0 | DI196: -0.0009863717942 | DJ196: -0.001589360006 | DK196: -0.001855790845 | DL196: -0.001836121802 | DM196: -0.001583865259 | DN196: -0.001154996449 | DO196: -0.0006073488366 | DP196: 0
D197: 8 | N197: =+CGIL2!F821 -> 0 | O197: =+CGIL2!G821 -> 0.01732652856 | P197: =+CGIL2!H821 -> 0.02786191343 | Q197: =+CGIL2!I821 -> 0.03247729946 | R197: =+CGIL2!J821 -> 0.03208888624 | S197: =+CGIL2!K821 -> 0.02765095531 | T197: =+CGIL2!L821 -> 0.02014860749 | U197: =+CGIL2!M821 -> 0.01059026564 | V197: =+CGIL2!N821 -> 0 | AF197: =+CGIL2!F902 -> -0.2406408952 | AG197: =+CGIL2!N902 -> 0.123329339 | AH197: -1 | AI197: 1 | AJ197: -1 | AK197: -1 | AL197: 0.3639702343 | AM197: 0.1173115562 | AN197: 0 | AO197: -0.001797514569 | AP197: -0.003418336906 | AQ197: -0.004687620533 | AR197: -0.005434201056 | AS197: -0.005492413714 | AT197: -0.004703882831 | AU197: -0.002919274004 | AV197: 0 | AW197: 0 | AX197: -0.009097137405 | AY197: -0.01577085021 | AZ197: -0.01984584078 | BA197: -0.02121601091 | BB197: -0.01984584078 | BC197: -0.01577085021 | BD197: -0.009097137405 | BE197: 0 | BF197: 0 | BG197: -0.002919274004 | BH197: -0.004703882831 | BI197: -0.005492413714 | BJ197: -0.005434201056 | BK197: -0.004687620533 | BL197: -0.003418336906 | BM197: -0.001797514569 | BN197: 0 | BO197: 0 | BP197: -0.001062978985 | BQ197: -0.002021469176 | BR197: -0.002772073285 | BS197: -0.003213571463 | BT197: -0.003247996125 | BU197: -0.002781690165 | BV197: -0.001726343125 | BW197: 0 | BX197: 0 | BY197: -0.001179228465 | BZ197: -0.001357388377 | CA197: -0.0008520139098 | CB197: -2.320397386e-17 | CC197: 0.0008520139098 | CD197: 0.001357388377 | CE197: 0.001179228465 | CF197: 0 | CG197: 0 | CH197: 0.001726343125 | CI197: 0.002781690165 | CJ197: 0.003247996125 | CK197: 0.003213571463 | CL197: 0.002772073285 | CM197: 0.002021469176 | CN197: 0.001062978985 | CO197: 0 | CP197: 0 | CQ197: -0.002860493554 | CR197: -0.005439806082 | CS197: -0.007459693818 | CT197: -0.008647772519 | CU197: -0.008740409839 | CV197: -0.007485572996 | CW197: -0.004645617129 | CX197: 0 | CY197: 0 | CZ197: 0.007050162687 | DA197: 0.01073367484 | DB197: 0.01177944477 | DC197: 0.01087287533 | DD197: 0.008657128444 | DE197: 0.005735145653 | DF197: 0.0026723567 | DG197: 0 | DH197: 0 | DI197: -0.001192930879 | DJ197: -0.001922192667 | DK197: -0.002244417589 | DL197: -0.002220629593 | DM197: -0.001915547248 | DN197: -0.00139686773 | DO197: -0.000734535584 | DP197: 0
D198: =+D197+1 -> 9 | N198: =+CGIL2!F822 -> 0 | O198: =+CGIL2!G822 -> 0.01393095672 | P198: =+CGIL2!H822 -> 0.02490191401 | Q198: =+CGIL2!I822 -> 0.02997539983 | R198: =+CGIL2!J822 -> 0.03006412738 | S198: =+CGIL2!K822 -> 0.02611874686 | T198: =+CGIL2!L822 -> 0.01912061048 | U198: =+CGIL2!M822 -> 0.01007430374 | V198: =+CGIL2!N822 -> 0 | AF198: =+CGIL2!F903 -> -0.1580201347 | AG198: =+CGIL2!N903 -> 0.1174093402 | AH198: -1 | AI198: 1 | AJ198: -1 | AK198: -1 | AL198: 0.2754294749 | AM198: 0.04061079452 | AN198: 0 | AO198: -0.001360244457 | AP198: -0.002586779496 | AQ198: -0.003547292444 | AR198: -0.004112256999 | AS198: -0.004156308629 | AT198: -0.003559598715 | AU198: -0.0022091205 | AV198: 0 | AW198: 0 | AX198: -0.006884133763 | AY198: -0.01193437425 | AZ198: -0.01501806738 | BA198: -0.01605492481 | BB198: -0.01501806738 | BC198: -0.01193437425 | BD198: -0.006884133763 | BE198: 0 | BF198: 0 | BG198: -0.0022091205 | BH198: -0.003559598715 | BI198: -0.004156308629 | BJ198: -0.004112256999 | BK198: -0.003547292444 | BL198: -0.002586779496 | BM198: -0.001360244457 | BN198: 0 | BO198: 0 | BP198: -0.0003679809776 | BQ198: -0.0006997901315 | BR198: -0.000959633494 | BS198: -0.001112470882 | BT198: -0.001124387976 | BU198: -0.0009629626556 | BV198: -0.0005976236969 | BW198: 0 | BX198: 0 | BY198: -0.0004082241037 | BZ198: -0.0004698993199 | CA198: -0.0002949493037 | CB198: -8.032727934e-18 | CC198: 0.0002949493037 | CD198: 0.0004698993199 | CE198: 0.0004082241037 | CF198: 0 | CG198: 0 | CH198: 0.0005976236969 | CI198: 0.0009629626556 | CJ198: 0.001124387976 | CK198: 0.001112470882 | CL198: 0.000959633494 | CM198: 0.0006997901315 | CN198: 0.0003679809776 | CO198: 0 | CP198: 0 | CQ198: -0.001728225435 | CR198: -0.003286569627 | CS198: -0.004506925938 | CT198: -0.005224727881 | CU198: -0.005280696604 | CV198: -0.004522561371 | CW198: -0.002806744197 | CX198: 0 | CY198: 0 | CZ198: 0.006638598848 | DA198: 0.01249764043 | DB198: 0.01466238315 | DC198: 0.01400920257 | DD198: 0.01139562878 | DE198: 0.007656135543 | DF198: 0.003598394084 | DG198: 0 | DH198: 0 | DI198: -0.001611496803 | DJ198: -0.002596636059 | DK198: -0.003031920653 | DL198: -0.002999786118 | DM198: -0.00258765895 | DN198: -0.001886989364 | DO198: -0.0009922634797 | DP198: 0
D199: 10 | N199: =+CGIL2!F823 -> 0 | O199: =+CGIL2!G823 -> 0.00757538545 | P199: =+CGIL2!H823 -> 0.01604444312 | Q199: =+CGIL2!I823 -> 0.02248874193 | R199: =+CGIL2!J823 -> 0.02400526046 | S199: =+CGIL2!K823 -> 0.02153378255 | T199: =+CGIL2!L823 -> 0.01604444312 | U199: =+CGIL2!M823 -> 0.008530344836 | V199: =+CGIL2!N823 -> 0 | AF199: =+CGIL2!F904 -> -0.08509813249 | AG199: =+CGIL2!N904 -> 0.09969439841 | AH199: -1 | AI199: 1 | AJ199: -1 | AK199: -1 | AL199: 0.1847925309 | AM199: -0.01459626592 | AN199: 0 | AO199: -0.0009126220642 | AP199: -0.001735535132 | AQ199: -0.002379967318 | AR199: -0.002759016183 | AS199: -0.002788571524 | AT199: -0.002388223903 | AU199: -0.001482154256 | AV199: 0 | AW199: 0 | AX199: -0.004618737706 | AY199: -0.008007070499 | AZ199: -0.01007599743 | BA199: -0.01077165104 | BB199: -0.01007599743 | BC199: -0.008007070499 | BD199: -0.004618737706 | BE199: 0 | BF199: 0 | BG199: -0.001482154256 | BH199: -0.002388223903 | BI199: -0.002788571524 | BJ199: -0.002759016183 | BK199: -0.002379967318 | BL199: -0.001735535132 | BM199: -0.0009126220642 | BN199: 0 | BO199: 0 | BP199: 0.0001322591263 | BQ199: 0.0002515174344 | BR199: 0.0003449099144 | BS199: 0.0003998424804 | BT199: 0.0004041257032 | BU199: 0.0003461064763 | BV199: 0.0002147969401 | BW199: 0 | BX199: 0 | BY199: 0.0001467232454 | BZ199: 0.0001688904516 | CA199: 0.0001060102005 | CB199: 2.887110049e-18 | CC199: -0.0001060102005 | CD199: -0.0001688904516 | CE199: -0.0001467232454 | CF199: 0 | CG199: 0 | CH199: -0.0002147969401 | CI199: -0.0003461064763 | CJ199: -0.0004041257032 | CK199: -0.0003998424804 | CL199: -0.0003449099144 | CM199: -0.0002515174344 | CN199: -0.0001322591263 | CO199: 0 | CP199: 0 | CQ199: -0.0007803629379 | CR199: -0.001484017697 | CS199: -0.002035057403 | CT199: -0.002359173703 | CU199: -0.002384445821 | CV199: -0.002042117427 | CW199: -0.001267357315 | CX199: 0 | CY199: 0 | CZ199: 0.003103370989 | DA199: 0.008206263072 | DB199: 0.0125187547 | DC199: 0.01323360942 | DD199: 0.01135177492 | DE199: 0.007868482169 | DF199: 0.003764883884 | DG199: 0 | DH199: 0 | DI199: -0.001696951196 | DJ199: -0.002734330379 | DK199: -0.003192697228 | DL199: -0.003158858664 | DM199: -0.002724877232 | DN199: -0.001987052566 | DO199: -0.00104488119 | DP199: 0
D200: 11 | N200: =+CGIL2!F824 -> 0 | O200: =+CGIL2!G824 -> 0.002113486404 | P200: =+CGIL2!H824 -> 0.005162213377 | Q200: =+CGIL2!I824 -> 0.01007430374 | R200: =+CGIL2!J824 -> 0.0139583971 | S200: =+CGIL2!K824 -> 0.01393095672 | T200: =+CGIL2!L824 -> 0.01094351691 | U200: =+CGIL2!M824 -> 0.005970139375 | V200: =+CGIL2!N824 -> 0 | AF200: =+CGIL2!F905 -> -0.02242986907 | AG200: =+CGIL2!N905 -> 0.07031933511 | AH200: -1 | AI200: 1 | AJ200: -1 | AK200: -1 | AL200: 0.09274920418 | AM200: -0.04788946605 | AN200: 0 | AO200: -0.0004580540661 | AP200: -0.0008710822969 | AQ200: -0.001194529203 | AR200: -0.001384777588 | AS200: -0.001399611707 | AT200: -0.001198673265 | AU200: -0.000743907922 | AV200: 0 | AW200: 0 | AX200: -0.002318190267 | AY200: -0.004018828104 | AZ200: -0.005057243052 | BA200: -0.005406398497 | BB200: -0.005057243052 | BC200: -0.004018828104 | BD200: -0.002318190267 | BE200: 0 | BF200: 0 | BG200: -0.000743907922 | BH200: -0.001198673265 | BI200: -0.001399611707 | BJ200: -0.001384777588 | BK200: -0.001194529203 | BL200: -0.0008710822969 | BM200: -0.0004580540661 | BN200: 0 | BO200: 0 | BP200: 0.0004339341975 | BQ200: 0.0008252134965 | BR200: 0.001131628577 | BS200: 0.001311859005 | BT200: 0.001325912 | BU200: 0.001135554425 | BV200: 0.0007047357748 | BW200: 0 | BX200: 0 | BY200: 0.000481390098 | BZ200: 0.0005541193614 | CA200: 0.0003478130589 | CB200: 9.472433529e-18 | CC200: -0.0003478130589 | CD200: -0.0005541193614 | CE200: -0.000481390098 | CF200: 0 | CG200: 0 | CH200: -0.0007047357748 | CI200: -0.001135554425 | CJ200: -0.001325912 | CK200: -0.001311859005 | CL200: -0.001131628577 | CM200: -0.0008252134965 | CN200: -0.0004339341975 | CO200: 0 | CP200: 0 | CQ200: -2.411986858e-05 | CR200: -4.586880038e-05 | CS200: -6.290062576e-05 | CT200: -7.291858301e-05 | CU200: -7.369970695e-05 | CV200: -6.311884068e-05 | CW200: -3.917214722e-05 | CX200: 0 | CY200: 0 | CZ200: 0.0002766862347 | DA200: 0.001697504635 | DB200: 0.005364873751 | DC200: 0.008551998602 | DD200: 0.008525900605 | DE200: 0.006370569443 | DF200: 0.00317055901 | DG200: 0 | DH200: 0 | DI200: -0.001448643697 | DJ200: -0.00233422769 | DK200: -0.002725523708 | DL200: -0.002696636594 | DM200: -0.002326157781 | DN200: -0.001696295793 | DO200: -0.0008919882636 | DP200: 0
D201: 12 | N201: =+CGIL2!F825 -> 0 | O201: =+CGIL2!G825 -> -0.002413172073 | P201: =+CGIL2!H825 -> -0.003856652971 | Q201: =+CGIL2!I825 -> -0.003368131458 | R201: =+CGIL2!J825 -> 0 | S201: =+CGIL2!K825 -> 0.003368131458 | T201: =+CGIL2!L825 -> 0.003856652971 | U201: =+CGIL2!M825 -> 0.002413172073 | V201: =+CGIL2!N825 -> 0 | AF201: =+CGIL2!F906 -> 0.02950771225 | AG201: =+CGIL2!N906 -> 0.02950771225 | AH201: -1 | AI201: 1 | AJ201: -1 | AK201: -1 | AL201: 0 | AM201: -0.05901542451 | AN201: 0 | AO201: 0 | AP201: 0 | AQ201: 0 | AR201: 0 | AS201: 0 | AT201: 0 | AU201: 0 | AV201: 0 | AW201: 0 | AX201: 0 | AY201: 0 | AZ201: 0 | BA201: 0 | BB201: 0 | BC201: 0 | BD201: 0 | BE201: 0 | BF201: 0 | BG201: 0 | BH201: 0 | BI201: 0 | BJ201: 0 | BK201: 0 | BL201: 0 | BM201: 0 | BN201: 0 | BO201: 0 | BP201: 0.0005347483067 | BQ201: 0.001016931881 | BR201: 0.001394535091 | BS201: 0.001616637697 | BT201: 0.001633955565 | BU201: 0.001399373014 | BV201: 0.0008684640768 | BW201: 0 | BX201: 0 | BY201: 0.0005932294371 | BZ201: 0.0006828555848 | CA201: 0.0004286190057 | CB201: 1.167312422e-17 | CC201: -0.0004286190057 | CD201: -0.0006828555848 | CE201: -0.0005932294371 | CF201: 0 | CG201: 0 | CH201: -0.0008684640768 | CI201: -0.001399373014 | CJ201: -0.001633955565 | CK201: -0.001616637697 | CL201: -0.001394535091 | CM201: -0.001016931881 | CN201: -0.0005347483067 | CO201: 0 | CP201: 0 | CQ201: 0.0005347483067 | CR201: 0.001016931881 | CS201: 0.001394535091 | CT201: 0.001616637697 | CU201: 0.001633955565 | CV201: 0.001399373014 | CW201: 0.0008684640768 | CX201: 0 | CY201: 0 | CZ201: -0.001819942635 | DA201: -0.003173797387 | DB201: -0.002939512453 | DC201: 1.167312422e-17 | DD201: 0.002939512453 | DE201: 0.003173797387 | DF201: 0.001819942635 | DG201: 0 | DH201: 0 | DI201: -0.0008684640768 | DJ201: -0.001399373014 | DK201: -0.001633955565 | DL201: -0.001616637697 | DM201: -0.001394535091 | DN201: -0.001016931881 | DO201: -0.0005347483067 | DP201: 0
D202: 13 | N202: =+CGIL2!F826 -> 0 | O202: =+CGIL2!G826 -> -0.005970139375 | P202: =+CGIL2!H826 -> -0.01094351691 | Q202: =+CGIL2!I826 -> -0.01393095672 | R202: =+CGIL2!J826 -> -0.0139583971 | S202: =+CGIL2!K826 -> -0.01007430374 | T202: =+CGIL2!L826 -> -0.005162213377 | U202: =+CGIL2!M826 -> -0.002113486404 | V202: =+CGIL2!N826 -> 0 | AF202: =+CGIL2!F907 -> 0.07031933511 | AG202: =+CGIL2!N907 -> -0.02242986907 | AH202: -1 | AI202: 1 | AJ202: -1 | AK202: -1 | AL202: -0.09274920418 | AM202: -0.04788946605 | AN202: 0 | AO202: 0.0004580540661 | AP202: 0.0008710822969 | AQ202: 0.001194529203 | AR202: 0.001384777588 | AS202: 0.001399611707 | AT202: 0.001198673265 | AU202: 0.000743907922 | AV202: 0 | AW202: 0 | AX202: 0.002318190267 | AY202: 0.004018828104 | AZ202: 0.005057243052 | BA202: 0.005406398497 | BB202: 0.005057243052 | BC202: 0.004018828104 | BD202: 0.002318190267 | BE202: 0 | BF202: 0 | BG202: 0.000743907922 | BH202: 0.001198673265 | BI202: 0.001399611707 | BJ202: 0.001384777588 | BK202: 0.001194529203 | BL202: 0.0008710822969 | BM202: 0.0004580540661 | BN202: 0 | BO202: 0 | BP202: 0.0004339341975 | BQ202: 0.0008252134965 | BR202: 0.001131628577 | BS202: 0.001311859005 | BT202: 0.001325912 | BU202: 0.001135554425 | BV202: 0.0007047357748 | BW202: 0 | BX202: 0 | BY202: 0.000481390098 | BZ202: 0.0005541193614 | CA202: 0.0003478130589 | CB202: 9.472433529e-18 | CC202: -0.0003478130589 | CD202: -0.0005541193614 | CE202: -0.000481390098 | CF202: 0 | CG202: 0 | CH202: -0.0007047357748 | CI202: -0.001135554425 | CJ202: -0.001325912 | CK202: -0.001311859005 | CL202: -0.001131628577 | CM202: -0.0008252134965 | CN202: -0.0004339341975 | CO202: 0 | CP202: 0 | CQ202: 0.0008919882636 | CR202: 0.001696295793 | CS202: 0.002326157781 | CT202: 0.002696636594 | CU202: 0.002725523708 | CV202: 0.00233422769 | CW202: 0.001448643697 | CX202: 0 | CY202: 0 | CZ202: -0.00317055901 | DA202: -0.006370569443 | DB202: -0.008525900605 | DC202: -0.008551998602 | DD202: -0.005364873751 | DE202: -0.001697504635 | DF202: -0.0002766862347 | DG202: 0 | DH202: 0 | DI202: 3.917214722e-05 | DJ202: 6.311884068e-05 | DK202: 7.369970695e-05 | DL202: 7.291858301e-05 | DM202: 6.290062576e-05 | DN202: 4.586880038e-05 | DO202: 2.411986858e-05 | DP202: 0
D203: 14 | N203: =+CGIL2!F827 -> 0 | O203: =+CGIL2!G827 -> -0.008530344836 | P203: =+CGIL2!H827 -> -0.01604444312 | Q203: =+CGIL2!I827 -> -0.02153378255 | R203: =+CGIL2!J827 -> -0.02400526046 | S203: =+CGIL2!K827 -> -0.02248874193 | T203: =+CGIL2!L827 -> -0.01604444312 | U203: =+CGIL2!M827 -> -0.00757538545 | V203: =+CGIL2!N827 -> 0 | AF203: =+CGIL2!F908 -> 0.09969439841 | AG203: =+CGIL2!N908 -> -0.08509813249 | AH203: -1 | AI203: 1 | AJ203: -1 | AK203: -1 | AL203: -0.1847925309 | AM203: -0.01459626592 | AN203: 0 | AO203: 0.0009126220642 | AP203: 0.001735535132 | AQ203: 0.002379967318 | AR203: 0.002759016183 | AS203: 0.002788571524 | AT203: 0.002388223903 | AU203: 0.001482154256 | AV203: 0 | AW203: 0 | AX203: 0.004618737706 | AY203: 0.008007070499 | AZ203: 0.01007599743 | BA203: 0.01077165104 | BB203: 0.01007599743 | BC203: 0.008007070499 | BD203: 0.004618737706 | BE203: 0 | BF203: 0 | BG203: 0.001482154256 | BH203: 0.002388223903 | BI203: 0.002788571524 | BJ203: 0.002759016183 | BK203: 0.002379967318 | BL203: 0.001735535132 | BM203: 0.0009126220642 | BN203: 0 | BO203: 0 | BP203: 0.0001322591263 | BQ203: 0.0002515174344 | BR203: 0.0003449099144 | BS203: 0.0003998424804 | BT203: 0.0004041257032 | BU203: 0.0003461064763 | BV203: 0.0002147969401 | BW203: 0 | BX203: 0 | BY203: 0.0001467232454 | BZ203: 0.0001688904516 | CA203: 0.0001060102005 | CB203: 2.887110049e-18 | CC203: -0.0001060102005 | CD203: -0.0001688904516 | CE203: -0.0001467232454 | CF203: 0 | CG203: 0 | CH203: -0.0002147969401 | CI203: -0.0003461064763 | CJ203: -0.0004041257032 | CK203: -0.0003998424804 | CL203: -0.0003449099144 | CM203: -0.0002515174344 | CN203: -0.0001322591263 | CO203: 0 | CP203: 0 | CQ203: 0.00104488119 | CR203: 0.001987052566 | CS203: 0.002724877232 | CT203: 0.003158858664 | CU203: 0.003192697228 | CV203: 0.002734330379 | CW203: 0.001696951196 | CX203: 0 | CY203: 0 | CZ203: -0.003764883884 | DA203: -0.007868482169 | DB203: -0.01135177492 | DC203: -0.01323360942 | DD203: -0.0125187547 | DE203: -0.008206263072 | DF203: -0.003103370989 | DG203: 0 | DH203: 0 | DI203: 0.001267357315 | DJ203: 0.002042117427 | DK203: 0.002384445821 | DL203: 0.002359173703 | DM203: 0.002035057403 | DN203: 0.001484017697 | DO203: 0.0007803629379 | DP203: 0
D204: 15 | N204: =+CGIL2!F828 -> 0 | O204: =+CGIL2!G828 -> -0.01007430374 | P204: =+CGIL2!H828 -> -0.01912061048 | Q204: =+CGIL2!I828 -> -0.02611874686 | R204: =+CGIL2!J828 -> -0.03006412738 | S204: =+CGIL2!K828 -> -0.02997539983 | T204: =+CGIL2!L828 -> -0.02490191401 | U204: =+CGIL2!M828 -> -0.01393095672 | V204: =+CGIL2!N828 -> 0 | AF204: =+CGIL2!F909 -> 0.1174093402 | AG204: =+CGIL2!N909 -> -0.1580201347 | AH204: -1 | AI204: 1 | AJ204: -1 | AK204: -1 | AL204: -0.2754294749 | AM204: 0.04061079452 | AN204: 0 | AO204: 0.001360244457 | AP204: 0.002586779496 | AQ204: 0.003547292444 | AR204: 0.004112256999 | AS204: 0.004156308629 | AT204: 0.003559598715 | AU204: 0.0022091205 | AV204: 0 | AW204: 0 | AX204: 0.006884133763 | AY204: 0.01193437425 | AZ204: 0.01501806738 | BA204: 0.01605492481 | BB204: 0.01501806738 | BC204: 0.01193437425 | BD204: 0.006884133763 | BE204: 0 | BF204: 0 | BG204: 0.0022091205 | BH204: 0.003559598715 | BI204: 0.004156308629 | BJ204: 0.004112256999 | BK204: 0.003547292444 | BL204: 0.002586779496 | BM204: 0.001360244457 | BN204: 0 | BO204: 0 | BP204: -0.0003679809776 | BQ204: -0.0006997901315 | BR204: -0.000959633494 | BS204: -0.001112470882 | BT204: -0.001124387976 | BU204: -0.0009629626556 | BV204: -0.0005976236969 | BW204: 0 | BX204: 0 | BY204: -0.0004082241037 | BZ204: -0.0004698993199 | CA204: -0.0002949493037 | CB204: -8.032727934e-18 | CC204: 0.0002949493037 | CD204: 0.0004698993199 | CE204: 0.0004082241037 | CF204: 0 | CG204: 0 | CH204: 0.0005976236969 | CI204: 0.0009629626556 | CJ204: 0.001124387976 | CK204: 0.001112470882 | CL204: 0.000959633494 | CM204: 0.0006997901315 | CN204: 0.0003679809776 | CO204: 0 | CP204: 0 | CQ204: 0.0009922634797 | CR204: 0.001886989364 | CS204: 0.00258765895 | CT204: 0.002999786118 | CU204: 0.003031920653 | CV204: 0.002596636059 | CW204: 0.001611496803 | CX204: 0 | CY204: 0 | CZ204: -0.003598394084 | DA204: -0.007656135543 | DB204: -0.01139562878 | DC204: -0.01400920257 | DD204: -0.01466238315 | DE204: -0.01249764043 | DF204: -0.006638598848 | DG204: 0 | DH204: 0 | DI204: 0.002806744197 | DJ204: 0.004522561371 | DK204: 0.005280696604 | DL204: 0.005224727881 | DM204: 0.004506925938 | DN204: 0.003286569627 | DO204: 0.001728225435 | DP204: 0
D205: 16 | N205: =+CGIL2!F829 -> 0 | O205: =+CGIL2!G829 -> -0.01059026564 | P205: =+CGIL2!H829 -> -0.02014860749 | Q205: =+CGIL2!I829 -> -0.02765095531 | R205: =+CGIL2!J829 -> -0.03208888624 | S205: =+CGIL2!K829 -> -0.03247729946 | T205: =+CGIL2!L829 -> -0.02786191343 | U205: =+CGIL2!M829 -> -0.01732652856 | V205: =+CGIL2!N829 -> 0 | AF205: =+CGIL2!F910 -> 0.123329339 | AG205: =+CGIL2!N910 -> -0.2406408952 | AH205: -1 | AI205: 1 | AJ205: -1 | AK205: -1 | AL205: -0.3639702343 | AM205: 0.1173115562 | AN205: 0 | AO205: 0.001797514569 | AP205: 0.003418336906 | AQ205: 0.004687620533 | AR205: 0.005434201056 | AS205: 0.005492413714 | AT205: 0.004703882831 | AU205: 0.002919274004 | AV205: 0 | AW205: 0 | AX205: 0.009097137405 | AY205: 0.01577085021 | AZ205: 0.01984584078 | BA205: 0.02121601091 | BB205: 0.01984584078 | BC205: 0.01577085021 | BD205: 0.009097137405 | BE205: 0 | BF205: 0 | BG205: 0.002919274004 | BH205: 0.004703882831 | BI205: 0.005492413714 | BJ205: 0.005434201056 | BK205: 0.004687620533 | BL205: 0.003418336906 | BM205: 0.001797514569 | BN205: 0 | BO205: 0 | BP205: -0.001062978985 | BQ205: -0.002021469176 | BR205: -0.002772073285 | BS205: -0.003213571463 | BT205: -0.003247996125 | BU205: -0.002781690165 | BV205: -0.001726343125 | BW205: 0 | BX205: 0 | BY205: -0.001179228465 | BZ205: -0.001357388377 | CA205: -0.0008520139098 | CB205: -2.320397386e-17 | CC205: 0.0008520139098 | CD205: 0.001357388377 | CE205: 0.001179228465 | CF205: 0 | CG205: 0 | CH205: 0.001726343125 | CI205: 0.002781690165 | CJ205: 0.003247996125 | CK205: 0.003213571463 | CL205: 0.002772073285 | CM205: 0.002021469176 | CN205: 0.001062978985 | CO205: 0 | CP205: 0 | CQ205: 0.000734535584 | CR205: 0.00139686773 | CS205: 0.001915547248 | CT205: 0.002220629593 | CU205: 0.002244417589 | CV205: 0.001922192667 | CW205: 0.001192930879 | CX205: 0 | CY205: 0 | CZ205: -0.0026723567 | DA205: -0.005735145653 | DB205: -0.008657128444 | DC205: -0.01087287533 | DD205: -0.01177944477 | DE205: -0.01073367484 | DF205: -0.007050162687 | DG205: 0 | DH205: 0 | DI205: 0.004645617129 | DJ205: 0.007485572996 | DK205: 0.008740409839 | DL205: 0.008647772519 | DM205: 0.007459693818 | DN205: 0.005439806082 | DO205: 0.002860493554 | DP205: 0
D206: 16 | W206: =+E188 -> 0 | X206: =+F188 -> 0.006606252909 | Y206: =+G188 -> 0.01059057169 | Z206: =+H188 -> 0.01231286207 | AA206: =+I188 -> 0.01213975716 | AB206: =+J188 -> 0.01044352703 | AC206: =+K188 -> 0.007600971628 | AD206: =+L188 -> 0.003992300081 | AE206: =+M188 -> 0 | AF206: =+CGIL1!F902 -> -0.14732426 | AH206: -1 | AI206: 0 | AJ206: 1 | AK206: 0 | AL206: 0.14732426 | AM206: -0.14732426 | AN206: 0 | AO206: -0.0007275801117 | AP206: -0.001383640495 | AQ206: -0.001897408527 | AR206: -0.002199601984 | AS206: -0.002223164726 | AT206: -0.001903991019 | AU206: -0.001181634766 | AV206: 0 | AW206: 0 | AX206: -0.003682249014 | AY206: -0.006383568266 | AZ206: -0.008033002514 | BA206: -0.008587606384 | BB206: -0.008033002514 | BC206: -0.006383568266 | BD206: -0.003682249014 | BE206: 0 | BF206: 0 | BG206: -0.001181634766 | BH206: -0.001903991019 | BI206: -0.002223164726 | BJ206: -0.002199601984 | BK206: -0.001897408527 | BL206: -0.001383640495 | BM206: -0.0007275801117 | BN206: 0 | BO206: 0 | BP206: 0.001334928948 | BQ206: 0.002538636944 | BR206: 0.003481273786 | BS206: 0.004035723786 | BT206: 0.004078955571 | BU206: 0.003493351025 | BV206: 0.00216800656 | BW206: 0 | BX206: 0 | BY206: 0.001480919413 | BZ206: 0.001704659325 | CA206: 0.001069991081 | CB206: 2.914042221e-17 | CC206: -0.001069991081 | CD206: -0.001704659325 | CE206: -0.001480919413 | CF206: 0 | CG206: 0 | CH206: -0.00216800656 | CI206: -0.003493351025 | CJ206: -0.004078955571 | CK206: -0.004035723786 | CL206: -0.003481273786 | CM206: -0.002538636944 | CN206: -0.001334928948 | CO206: 0 | CP206: 0 | CQ206: 0.0006073488366 | CR206: 0.001154996449 | CS206: 0.001583865259 | CT206: 0.001836121802 | CU206: 0.001855790845 | CV206: 0.001589360006 | CW206: 0.0009863717942 | CX206: 0 | CY206: 0 | CZ206: -0.002201329601 | DA206: -0.004678908941 | DB206: -0.006963011433 | DC206: -0.008587606384 | DD206: -0.009102993594 | DE206: -0.008088227591 | DF206: -0.005163168428 | DG206: 0 | DH206: 0 | DI206: 0.003256611584 | DJ206: 0.005193229644 | DK206: 0.006010741774 | DL206: 0.005904431387 | DM206: 0.005064844721 | DN206: 0.003678694188 | DO206: 0.001929791021 | DP206: 0
D207: =+D206+1 -> 17 | W207: =+E189 -> 0 | X207: 0.005295285844 | Y207: 0.00945955749 | Z207: 0.01136516442 | AA207: 0.01137819455 | AB207: 0.009870364392 | AC207: 0.007217913558 | AD207: 0.003800485814 | AE207: 0 | AF207: =+CGIL1!F903 -> -0.09599868533 | AH207: -1 | AI207: 0 | AJ207: 1 | AK207: 0 | AL207: 0.09599868533 | AM207: -0.09599868533 | AN207: 0 | AO207: -0.0004741020535 | AP207: -0.0009016007852 | AQ207: -0.001236379698 | AR207: -0.001433293462 | AS207: -0.001448647296 | AT207: -0.001240668948 | AU207: -0.0007699708386 | AV207: 0 | AW207: 0 | AX207: -0.002399408383 | AY207: -0.0041596283 | AZ207: -0.005234424259 | BA207: -0.005595812414 | BB207: -0.005234424259 | BC207: -0.0041596283 | BD207: -0.002399408383 | BE207: 0 | BF207: 0 | BG207: -0.0007699708386 | BH207: -0.001240668948 | BI207: -0.001448647296 | BJ207: -0.001433293462 | BK207: -0.001236379698 | BL207: -0.0009016007852 | BM207: -0.0004741020535 | BN207: 0 | BO207: 0 | BP207: 0.0008698596147 | BQ207: 0.001654213699 | BR207: 0.002268449926 | BS207: 0.002629737816 | BT207: 0.002657908292 | BU207: 0.002276319635 | BV207: 0.001412705413 | BW207: 0 | BX207: 0 | BY207: 0.0009649891793 | BZ207: 0.001110781443 | CA207: 0.0006972221482 | CB207: 1.898833378e-17 | CC207: -0.0006972221482 | CD207: -0.001110781443 | CE207: -0.0009649891793 | CF207: 0 | CG207: 0 | CH207: -0.001412705413 | CI207: -0.002276319635 | CJ207: -0.002657908292 | CK207: -0.002629737816 | CL207: -0.002268449926 | CM207: -0.001654213699 | CN207: -0.0008698596147 | CO207: 0 | CP207: 0 | CQ207: 0.0003957575612 | CR207: 0.000752612914 | CS207: 0.001032070228 | CT207: 0.001196444354 | CU207: 0.001209260996 | CV207: 0.001035650687 | CW207: 0.0006427345739 | CX207: 0 | CY207: 0 | CZ207: -0.001434419203 | DA207: -0.003048846857 | DB207: -0.004537202111 | DC207: -0.005595812414 | DD207: -0.005931646407 | DE207: -0.005270409743 | DF207: -0.003364397562 | DG207: 0 | DH207: 0 | DI207: 0.003112609593 | DJ207: 0.005942568906 | DK207: 0.007258608834 | DL207: 0.007315163274 | DM207: 0.006365534768 | DN207: 0.004662099073 | DO207: 0.002456524146 | DP207: 0
D208: 18 | W208: 0 | X208: 0.002853304581 | Y208: 0.006069878579 | Z208: 0.008524889972 | AA208: 0.009095771658 | AB208: 0.008152581076 | AC208: 0.006069878579 | AD208: 0.003225613477 | AE208: 0 | AF208: =+CGIL1!F904 -> -0.05120360898 | AH208: -1 | AI208: 0 | AJ208: 1 | AK208: 0 | AL208: 0.05120360898 | AM208: -0.05120360898 | AN208: 0 | AO208: -0.0002528757147 | AP208: -0.0004808942321 | AQ208: -0.0006594580166 | AR208: -0.0007644875316 | AS208: -0.0007726769326 | AT208: -0.0006617458091 | AU208: -0.000410685684 | AV208: 0 | AW208: 0 | AX208: -0.001279792199 | AY208: -0.002218655185 | AZ208: -0.002791927953 | BA208: -0.002984684527 | BB208: -0.002791927953 | BC208: -0.002218655185 | BD208: -0.001279792199 | BE208: 0 | BF208: 0 | BG208: -0.000410685684 | BH208: -0.0006617458091 | BI208: -0.0007726769326 | BJ208: -0.0007644875316 | BK208: -0.0006594580166 | BL208: -0.0004808942321 | BM208: -0.0002528757147 | BN208: 0 | BO208: 0 | BP208: 0.0004639641827 | BQ208: 0.0008823215769 | BR208: 0.001209941809 | BS208: 0.001402644905 | BT208: 0.001417670423 | BU208: 0.001214139341 | BV208: 0.0007535063141 | BW208: 0 | BX208: 0 | BY208: 0.0005147042215 | BZ208: 0.0005924666414 | CA208: 0.0003718831162 | CB208: 1.012796388e-17 | CC208: -0.0003718831162 | CD208: -0.0005924666414 | CE208: -0.0005147042215 | CF208: 0 | CG208: 0 | CH208: -0.0007535063141 | CI208: -0.001214139341 | CJ208: -0.001417670423 | CK208: -0.001402644905 | CL208: -0.001209941809 | CM208: -0.0008823215769 | CN208: -0.0004639641827 | CO208: 0 | CP208: 0 | CQ208: 0.000211088468 | CR208: 0.0004014273448 | CS208: 0.0005504837925 | CT208: 0.0006381573733 | CU208: 0.0006449934908 | CV208: 0.0005523935315 | CW208: 0.0003428206302 | CX208: 0 | CY208: 0 | CZ208: -0.0007650879775 | DA208: -0.001626188544 | DB208: -0.002420044836 | DC208: -0.002984684527 | DD208: -0.003163811069 | DE208: -0.002811121827 | DF208: -0.001794496421 | DG208: 0 | DH208: 0 | DI208: 0.001689112583 | DJ208: 0.004193993429 | DK208: 0.006334542616 | DL208: 0.006928639221 | DM208: 0.00628318125 | DN208: 0.00470666277 | DO208: 0.00250877358 | DP208: 0
D209: 19 | W209: 0 | X209: 0.0007745927346 | Y209: 0.001918637063 | Z209: 0.003800485814 | AA209: 0.005299276495 | AB209: 0.005295285844 | AC209: 0.004160280995 | AD209: 0.002269392765 | AE209: 0 | AF209: =+CGIL1!F905 -> -0.0130722534 | AH209: -1 | AI209: 0 | AJ209: 1 | AK209: 0 | AL209: 0.0130722534 | AM209: -0.0130722534 | AN209: 0 | AO209: -6.45590318e-05 | AP209: -0.0001227720347 | AQ209: -0.0001683592714 | AR209: -0.0001951732492 | AS209: -0.0001972639988 | AT209: -0.0001689433435 | AU209: -0.0001048478307 | AV209: 0 | AW209: 0 | AX209: -0.0003267302492 | AY209: -0.0005664214567 | AZ209: -0.000712777681 | BA209: -0.0007619883292 | BB209: -0.000712777681 | BC209: -0.0005664214567 | BD209: -0.0003267302492 | BE209: 0 | BF209: 0 | BG209: -0.0001048478307 | BH209: -0.0001689433435 | BI209: -0.0001972639988 | BJ209: -0.0001951732492 | BK209: -0.0001683592714 | BL209: -0.0001227720347 | BM209: -6.45590318e-05 | BN209: 0 | BO209: 0 | BP209: 0.0001184498024 | BQ209: 0.0002252562165 | BR209: 0.0003088974828 | BS209: 0.0003580944779 | BT209: 0.0003619304846 | BU209: 0.0003099691103 | BV209: 0.0001923697503 | BW209: 0 | BX209: 0 | BY209: 0.0001314037066 | BZ209: 0.0001512564099 | CA209: 9.494155639e-05 | CB209: 2.585663646e-18 | CC209: -9.494155639e-05 | CD209: -0.0001512564099 | CE209: -0.0001314037066 | CF209: 0 | CG209: 0 | CH209: -0.0001923697503 | CI209: -0.0003099691103 | CJ209: -0.0003619304846 | CK209: -0.0003580944779 | CL209: -0.0003088974828 | CM209: -0.0002252562165 | CN209: -0.0001184498024 | CO209: 0 | CP209: 0 | CQ209: 5.389077056e-05 | CR209: 0.0001024841818 | CS209: 0.0001405382115 | CT209: 0.0001629212288 | CU209: 0.0001646664858 | CV209: 0.0001410257668 | CW209: 8.752191959e-05 | CX209: 0 | CY209: 0 | CZ209: -0.0001953265427 | DA209: -0.0004151650468 | DB209: -0.0006178361246 | DC209: -0.0007619883292 | DD209: -0.0008077192374 | DE209: -0.0007176778665 | DF209: -0.0004581339558 | DG209: 0 | DH209: 0 | DI209: 0.0004773751535 | DJ209: 0.001439724609 | DK209: 0.00324129133 | DL209: 0.004746008768 | DM209: 0.00481802909 | DN209: 0.003812252744 | DO209: 0.002086383931 | DP209: 0
D210: 20 | W210: 0 | X210: -0.0009346675179 | Y210: -0.00149480003 | Z210: -0.001306976414 | AA210: 0 | AB210: 0.001306976414 | AC210: 0.00149480003 | AD210: 0.0009346675179 | AE210: 0 | AF210: =+CGIL1!F906 -> 0.01828197715 | AH210: -1 | AI210: 0 | AJ210: 1 | AK210: 0 | AL210: -0.01828197715 | AM210: 0.01828197715 | AN210: 0 | AO210: 9.02879334e-05 | AP210: 0.0001717007363 | AQ210: 0.000235455989 | AR210: 0.0002729562205 | AS210: 0.0002758802027 | AT210: 0.0002362728332 | AU210: 0.0001466331464 | AV210: 0 | AW210: 0 | AX210: 0.0004569430203 | AY210: 0.0007921590725 | AZ210: 0.0009968430752 | BA210: 0.001065665788 | BB210: 0.0009968430752 | BC210: 0.0007921590725 | BD210: 0.0004569430203 | BE210: 0 | BF210: 0 | BG210: 0.0001466331464 | BH210: 0.0002362728332 | BI210: 0.0002758802027 | BJ210: 0.0002729562205 | BK210: 0.000235455989 | BL210: 0.0001717007363 | BM210: 9.02879334e-05 | BN210: 0 | BO210: 0 | BP210: -0.0001656559519 | BQ210: -0.0003150282417 | BR210: -0.0004320033089 | BS210: -0.0005008069277 | BT210: -0.0005061717095 | BU210: -0.0004335020153 | BV210: -0.000269035435 | BW210: 0 | BX210: 0 | BY210: -0.0001837724138 | BZ210: -0.0002115370736 | CA210: -0.0001327788952 | CB210: -3.616135815e-18 | CC210: 0.0001327788952 | CD210: 0.0002115370736 | CE210: 0.0001837724138 | CF210: 0 | CG210: 0 | CH210: 0.000269035435 | CI210: 0.0004335020153 | CJ210: 0.0005061717095 | CK210: 0.0005008069277 | CL210: 0.0004320033089 | CM210: 0.0003150282417 | CN210: 0.0001656559519 | CO210: 0 | CP210: 0 | CQ210: -7.536801849e-05 | CR210: -0.0001433275055 | CS210: -0.0001965473199 | CT210: -0.0002278507072 | CU210: -0.0002302915067 | CV210: -0.0001972291821 | CW210: -0.0001224022887 | CX210: 0 | CY210: 0 | CZ210: 0.0002731706065 | DA210: 0.0005806219989 | DB210: 0.0008640641799 | DC210: 0.001065665788 | DD210: 0.00112962197 | DE210: 0.001003696146 | DF210: 0.0006407154341 | DG210: 0 | DH210: 0 | DI210: -0.0005189989365 | DJ210: -0.0008250251818 | DK210: -0.000524924502 | DL210: 0.0007737631483 | DM210: 0.001974435712 | DN210: 0.001981529008 | DO210: 0.001190611403 | DP210: 0
D211: 21 | W211: 0 | X211: -0.002269392765 | Y211: -0.004160280995 | Z211: -0.005295285844 | AA211: -0.005299276495 | AB211: -0.003800485814 | AC211: -0.001918637063 | AD211: -0.0007745927346 | AE211: 0 | AF211: =+CGIL1!F907 -> 0.04276583386 | AH211: -1 | AI211: 0 | AJ211: 1 | AK211: 0 | AL211: -0.04276583386 | AM211: 0.04276583386 | AN211: 0 | AO211: 0.0002112046595 | AP211: 0.0004016483065 | AQ211: 0.0005507868008 | AR211: 0.0006385086407 | AS211: 0.0006453485211 | AT211: 0.000552697591 | AU211: 0.0003430093324 | AV211: 0 | AW211: 0 | AX211: 0.001068896932 | AY211: 0.001853045927 | AZ211: 0.002331849832 | BA211: 0.002492842305 | BB211: 0.002331849832 | BC211: 0.001853045927 | BD211: 0.001068896932 | BE211: 0 | BF211: 0 | BG211: 0.0003430093324 | BH211: 0.000552697591 | BI211: 0.0006453485211 | BJ211: 0.0006385086407 | BK211: 0.0005507868008 | BL211: 0.0004016483065 | BM211: 0.0002112046595 | BN211: 0 | BO211: 0 | BP211: -0.0003875081376 | BQ211: -0.0007369249693 | BR211: -0.001010557096 | BS211: -0.001171504903 | BT211: -0.001184054386 | BU211: -0.001014062922 | BV211: -0.0006293370035 | BW211: 0 | BX211: 0 | BY211: -0.0004298867925 | BZ211: -0.0004948348459 | CA211: -0.0003106009885 | CB211: -8.458990087e-18 | CC211: 0.0003106009885 | CD211: 0.0004948348459 | CE211: 0.0004298867925 | CF211: 0 | CG211: 0 | CH211: 0.0006293370035 | CI211: 0.001014062922 | CJ211: 0.001184054386 | CK211: 0.001171504903 | CL211: 0.001010557096 | CM211: 0.0007369249693 | CN211: 0.0003875081376 | CO211: 0 | CP211: 0 | CQ211: -0.0001763034781 | CR211: -0.0003352766627 | CS211: -0.0004597702952 | CT211: -0.0005329962624 | CU211: -0.0005387058651 | CV211: -0.0004613653308 | CW211: -0.0002863276712 | CX211: 0 | CY211: 0 | CZ211: 0.0006390101399 | DA211: 0.001358211081 | DB211: 0.002021248843 | DC211: 0.002492842305 | DD211: 0.00264245082 | DE211: 0.002347880773 | DF211: 0.001498783725 | DG211: 0 | DH211: 0 | DI211: -0.001297046429 | DJ211: -0.002593520482 | DK211: -0.003465882937 | DL211: -0.003489262951 | DM211: -0.002239141917 | DN211: -0.0007800637871 | DO211: -0.0001758799374 | DP211: 0
D212: 22 | W212: 0 | X212: -0.003225613477 | Y212: -0.006069878579 | Z212: -0.008152581076 | AA212: -0.009095771658 | AB212: -0.008524889972 | AC212: -0.006069878579 | AD212: -0.002853304581 | AE212: 0 | AF212: =+CGIL1!F908 -> 0.06030650072 | AH212: -1 | AI212: 0 | AJ212: 1 | AK212: 0 | AL212: -0.06030650072 | AM212: 0.06030650072 | AN212: 0 | AO212: 0.0002978315352 | AP212: 0.0005663868023 | AQ212: 0.000776695357 | AR212: 0.0009003968431 | AS212: 0.000910042142 | AT212: 0.0007793898694 | AU212: 0.0004836966962 | AV212: 0 | AW212: 0 | AX212: 0.00150731151 | AY212: 0.002613083984 | AZ212: 0.003288272222 | BA212: 0.003515296738 | BB212: 0.003288272222 | BC212: 0.002613083984 | BD212: 0.00150731151 | BE212: 0 | BF212: 0 | BG212: 0.0004836966962 | BH212: 0.0007793898694 | BI212: 0.000910042142 | BJ212: 0.0009003968431 | BK212: 0.000776695357 | BL212: 0.0005663868023 | BM212: 0.0002978315352 | BN212: 0 | BO212: 0 | BP212: -0.0005464469571 | BQ212: -0.001039179227 | BR212: -0.001425043235 | BS212: -0.001652004764 | BT212: -0.001669701494 | BU212: -0.001429986997 | BV212: -0.0008874634031 | BW212: 0 | BX212: 0 | BY212: -0.000606207475 | BZ212: -0.0006977943674 | CA212: -0.000437995873 | CB212: -1.192849632e-17 | CC212: 0.000437995873 | CD212: 0.0006977943674 | CE212: 0.000606207475 | CF212: 0 | CG212: 0 | CH212: 0.0008874634031 | CI212: 0.001429986997 | CJ212: 0.001669701494 | CK212: 0.001652004764 | CL212: 0.001425043235 | CM212: 0.001039179227 | CN212: 0.0005464469571 | CO212: 0 | CP212: 0 | CQ212: -0.0002486154219 | CR212: -0.0004727924251 | CS212: -0.000648347878 | CT212: -0.000751607921 | CU212: -0.0007596593521 | CV212: -0.0006505971272 | CW212: -0.0004037667069 | CX212: 0 | CY212: 0 | CZ212: 0.0009011040352 | DA212: 0.001915289616 | DB212: 0.002850276349 | DC212: 0.003515296738 | DD212: 0.003726268095 | DE212: 0.003310878351 | DF212: 0.002113518985 | DG212: 0 | DH212: 0 | DI212: -0.001854453378 | DJ212: -0.003860501713 | DK212: -0.005572837439 | DL212: -0.006543370051 | DM212: -0.00632315138 | DN212: -0.004464312549 | DO212: -0.002009026089 | DP212: 0
D213: 23 | W213: 0 | X213: -0.003800485814 | Y213: -0.007217913558 | Z213: -0.009870364392 | AA213: -0.01137819455 | AB213: -0.01136516442 | AC213: -0.00945955749 | AD213: -0.005295285844 | AE213: 0 | AF213: =+CGIL1!F909 -> 0.07085181104 | AH213: -1 | AI213: 0 | AJ213: 1 | AK213: 0 | AL213: -0.07085181104 | AM213: 0.07085181104 | AN213: 0 | AO213: 0.0003499109284 | AP213: 0.0006654262842 | AQ213: 0.000912509796 | AR213: 0.001057841961 | AS213: 0.001069173855 | AT213: 0.0009156754761 | AU213: 0.0005682768277 | AV213: 0 | AW213: 0 | AX213: 0.00177088289 | AY213: 0.003070012858 | AZ213: 0.003863265807 | BA213: 0.004129988264 | BB213: 0.003863265807 | BC213: 0.003070012858 | BD213: 0.00177088289 | BE213: 0 | BF213: 0 | BG213: 0.0005682768277 | BH213: 0.0009156754761 | BI213: 0.001069173855 | BJ213: 0.001057841961 | BK213: 0.000912509796 | BL213: 0.0006654262842 | BM213: 0.0003499109284 | BN213: 0 | BO213: 0 | BP213: -0.0006419997195 | BQ213: -0.001220892099 | BR213: -0.001674229027 | BS213: -0.001940877484 | BT213: -0.001961668698 | BU213: -0.001680037264 | BV213: -0.001042646955 | BW213: 0 | BX213: 0 | BY213: -0.0007122100761 | BZ213: -0.0008198120282 | CA213: -0.0005145846709 | CB213: -1.401433605e-17 | CC213: 0.0005145846709 | CD213: 0.0008198120282 | CE213: 0.0007122100761 | CF213: 0 | CG213: 0 | CH213: 0.001042646955 | CI213: 0.001680037264 | CJ213: 0.001961668698 | CK213: 0.001940877484 | CL213: 0.001674229027 | CM213: 0.001220892099 | CN213: 0.0006419997195 | CO213: 0 | CP213: 0 | CQ213: -0.0002920887911 | CR213: -0.0005554658148 | CS213: -0.0007617192308 | CT213: -0.0008830355229 | CU213: -0.0008924948426 | CV213: -0.000764361788 | CW213: -0.0004743701273 | CX213: 0 | CY213: 0 | CZ213: 0.001058672814 | DA213: 0.00225020083 | DB213: 0.003348681136 | DC213: 0.004129988264 | DD213: 0.004377850478 | DE213: 0.003889824886 | DF213: 0.002483092966 | DG213: 0 | DH213: 0 | DI213: -0.002189562031 | DJ213: -0.004622200817 | DK213: -0.006839521839 | DL213: -0.008379475107 | DM213: -0.0087784256 | DN213: -0.007573239106 | DO213: -0.004303375196 | DP213: 0
D214: 24 | W214: 0 | X214: -0.003992300081 | Y214: -0.007600971628 | Z214: -0.01044352703 | AA214: -0.01213975716 | AB214: -0.01231286207 | AC214: -0.01059057169 | AD214: -0.006606252909 | AE214: 0 | AF214: =+CGIL1!F910 -> 0.07437040263 | AH214: -1 | AI214: 0 | AJ214: 1 | AK214: 0 | AL214: -0.07437040263 | AM214: 0.07437040263 | AN214: 0 | AO214: 0.0003672879528 | AP214: 0.0006984722049 | AQ214: 0.0009578262 | AR214: 0.001110375746 | AS214: 0.001122270397 | AT214: 0.0009611490918 | AU214: 0.0005964981821 | AV214: 0 | AW214: 0 | AX214: 0.0018588272 | AY214: 0.003222473625 | AZ214: 0.00405512053 | BA214: 0.004335088765 | BB214: 0.00405512053 | BC214: 0.003222473625 | BD214: 0.0018588272 | BE214: 0 | BF214: 0 | BG214: 0.0005964981821 | BH214: 0.0009611490918 | BI214: 0.001122270397 | BJ214: 0.001110375746 | BK214: 0.0009578262 | BL214: 0.0006984722049 | BM214: 0.0003672879528 | BN214: 0 | BO214: 0 | BP214: -0.000673882247 | BQ214: -0.001281523163 | BR214: -0.001757373382 | BS214: -0.002037263943 | BT214: -0.002059087675 | BU214: -0.001763470064 | BV214: -0.001094426137 | BW214: 0 | BX214: 0 | BY214: -0.0007475793397 | BZ214: -0.0008605249424 | CA214: -0.0005401396041 | CB214: -1.471030591e-17 | CC214: 0.0005401396041 | CD214: 0.0008605249424 | CE214: 0.0007475793397 | CF214: 0 | CG214: 0 | CH214: 0.001094426137 | CI214: 0.001763470064 | CJ214: 0.002059087675 | CK214: 0.002037263943 | CL214: 0.001757373382 | CM214: 0.001281523163 | CN214: 0.000673882247 | CO214: 0 | CP214: 0 | CQ214: -0.0003065942942 | CR214: -0.0005830509579 | CS214: -0.0007995471824 | CT214: -0.0009268881968 | CU214: -0.0009368172784 | CV214: -0.0008023209724 | CW214: -0.0004979279548 | CX214: 0 | CY214: 0 | CZ214: 0.001111247861 | DA214: 0.002361948682 | DB214: 0.003514980925 | DC214: 0.004335088765 | DD214: 0.004595260134 | DE214: 0.004082998567 | DF214: 0.00260640654 | DG214: 0 | DH214: 0 | DI214: -0.002301375762 | DJ214: -0.004876352472 | DK214: -0.007262168962 | DL214: -0.008992117468 | DM214: -0.009597662488 | DN214: -0.00861057632 | DO214: -0.005565082709 | DP214: 0
C216: TB | E216: 0 | F216: =+E216+1 -> 1 | G216: =+F216+1 -> 2 | H216: =+G216+1 -> 3 | I216: =+H216+1 -> 4 | J216: =+I216+1 -> 5 | K216: =+J216+1 -> 6 | L216: =+K216+1 -> 7 | M216: =+L216+1 -> 8 | N216: 8 | O216: =+N216+1 -> 9 | P216: =+O216+1 -> 10 | Q216: =+P216+1 -> 11 | R216: =+Q216+1 -> 12 | S216: =+R216+1 -> 13 | T216: =+S216+1 -> 14 | U216: =+T216+1 -> 15 | V216: =+U216+1 -> 16 | W216: 16 | X216: =+W216+1 -> 17 | Y216: =+X216+1 -> 18 | Z216: =+Y216+1 -> 19 | AA216: =+Z216+1 -> 20 | AB216: =+AA216+1 -> 21 | AC216: =+AB216+1 -> 22 | AD216: =+AC216+1 -> 23 | AE216: =+AD216+1 -> 24
E217: =+CP197-CP196 -> 0 | F217: -0.0009307025331 | G217: -0.001761111894 | H217: -0.002394849097 | I217: -0.002743341131 | J217: -0.002729668065 | K217: -0.002292343352 | L217: -0.001389005545 | M217: 0 | N217: 0 | O217: 0.001886994259 | P217: 0.00264544725 | Q217: 0.002676451175 | R217: 0.002285268945 | S217: 0.001694117011 | T217: 0.001056236712 | U217: 0.000471027099 | V217: 0 | W217: 0 | X217: -0.0002065590853 | Y217: -0.000332832661 | Z217: -0.0003886267446 | AA217: -0.0003845077912 | AB217: -0.0003316819894 | AC217: -0.0002418712815 | AD217: -0.0001271867473 | AE217: 0
E219: fMP(0) | AF219: fMM(0) | AH219: Load(1) | AI219: Load(1) | AJ219: Load(2) | AK219: Load(2)
E220: 0 | F220: =+E220+1 -> 1 | G220: 2 | H220: 3 | I220: 4 | J220: 5 | K220: 6 | L220: 7 | M220: 8 | N220: 8 | O220: =+N220+1 -> 9 | P220: 10 | Q220: 11 | R220: 12 | S220: 13 | T220: 14 | U220: 15 | V220: 16 | W220: 16 | X220: =+W220+1 -> 17 | Y220: 18 | Z220: 19 | AA220: 20 | AB220: 21 | AC220: 22 | AD220: 23 | AE220: 24 | AF220: Left | AG220: Right | AH220: Left | AI220: Right | AJ220: Left | AK220: Right | AL220: fMM(1) | AM220: fMM(2) | AN220: 0 | AO220: =+AN220+1 -> 1 | AP220: =+AO220+1 -> 2 | AQ220: =+AP220+1 -> 3 | AR220: =+AQ220+1 -> 4 | AS220: =+AR220+1 -> 5 | AT220: =+AS220+1 -> 6 | AU220: =+AT220+1 -> 7 | AV220: =+AU220+1 -> 8 | AW220: 8 | AX220: =+AW220+1 -> 9 | AY220: =+AX220+1 -> 10 | AZ220: =+AY220+1 -> 11 | BA220: =+AZ220+1 -> 12 | BB220: =+BA220+1 -> 13 | BC220: =+BB220+1 -> 14 | BD220: =+BC220+1 -> 15 | BE220: =+BD220+1 -> 16 | BF220: 16 | BG220: =+BF220+1 -> 17 | BH220: =+BG220+1 -> 18 | BI220: =+BH220+1 -> 19 | BJ220: =+BI220+1 -> 20 | BK220: =+BJ220+1 -> 21 | BL220: =+BK220+1 -> 22 | BM220: =+BL220+1 -> 23 | BN220: =+BM220+1 -> 24 | BO220: 0 | BP220: =+BO220+1 -> 1 | BQ220: =+BP220+1 -> 2 | BR220: =+BQ220+1 -> 3 | BS220: =+BR220+1 -> 4 | BT220: =+BS220+1 -> 5 | BU220: =+BT220+1 -> 6 | BV220: =+BU220+1 -> 7 | BW220: 8 | BX220: 8 | BY220: =+BX220+1 -> 9 | BZ220: =+BY220+1 -> 10 | CA220: =+BZ220+1 -> 11 | CB220: =+CA220+1 -> 12 | CC220: =+CB220+1 -> 13 | CD220: =+CC220+1 -> 14 | CE220: =+CD220+1 -> 15 | CF220: 16 | CG220: 16 | CH220: =+CG220+1 -> 17 | CI220: =+CH220+1 -> 18 | CJ220: =+CI220+1 -> 19 | CK220: =+CJ220+1 -> 20 | CL220: =+CK220+1 -> 21 | CM220: =+CL220+1 -> 22 | CN220: =+CM220+1 -> 23 | CO220: 24 | CP220: 0 | CQ220: =+CP220+1 -> 1 | CR220: =+CQ220+1 -> 2 | CS220: =+CR220+1 -> 3 | CT220: =+CS220+1 -> 4 | CU220: =+CT220+1 -> 5 | CV220: =+CU220+1 -> 6 | CW220: 7 | CX220: 8 | CY220: 8 | CZ220: =+CY220+1 -> 9 | DA220: =+CZ220+1 -> 10 | DB220: =+DA220+1 -> 11 | DC220: =+DB220+1 -> 12 | DD220: =+DC220+1 -> 13 | DE220: =+DD220+1 -> 14 | DF220: 15 | DG220: 16 | DH220: 16 | DI220: =+DH220+1 -> 17 | DJ220: =+DI220+1 -> 18 | DK220: =+DJ220+1 -> 19 | DL220: =+DK220+1 -> 20 | DM220: =+DL220+1 -> 21 | DN220: =+DM220+1 -> 22 | DO220: 23 | DP220: 24 | DQ220: k | DR220: I1/I2 | DS220: 0 | DT220: =+DS220+1 -> 1 | DU220: =+DT220+1 -> 2 | DV220: =+DU220+1 -> 3 | DW220: =+DV220+1 -> 4 | DX220: =+DW220+1 -> 5 | DY220: =+DX220+1 -> 6 | DZ220: =+DY220+1 -> 7 | EA220: 8 | EB220: 8 | EC220: =+EB220+1 -> 9 | ED220: =+EC220+1 -> 10 | EE220: =+ED220+1 -> 11 | EF220: =+EE220+1 -> 12 | EG220: =+EF220+1 -> 13 | EH220: =+EG220+1 -> 14 | EI220: =+EH220+1 -> 15 | EJ220: 16 | EK220: 16 | EL220: =+EK220+1 -> 17 | EM220: =+EL220+1 -> 18 | EN220: =+EM220+1 -> 19 | EO220: =+EN220+1 -> 20 | EP220: =+EO220+1 -> 21 | EQ220: =+EP220+1 -> 22 | ER220: =+EQ220+1 -> 23 | ES220: 24
C221: fMP | D221: 0 | E221: =+CGIL1!F830 -> 0 | F221: =+CGIL1!G830 -> 0 | G221: =+CGIL1!H830 -> 0 | H221: =+CGIL1!I830 -> 0 | I221: =+CGIL1!J830 -> 0 | J221: =+CGIL1!K830 -> 0 | K221: =+CGIL1!L830 -> 0 | L221: =+CGIL1!M830 -> 0 | M221: =+CGIL1!N830 -> 0 | AG221: =+CGIL1!N911 -> 0 | AH221: 0 | AI221: 1 | AJ221: 0 | AK221: 1 | AL221: =+AF221*AH221+AG221*AI221 -> 0 | AM221: =+AF221*AJ221+AG221*AK221 -> 0 | AN221: =MMULT(AL221:AL247,TRANSPOSE($E$94:$E$120)) -> 0 | AO221: 0 | AP221: 0 | AQ221: 0 | AR221: 0 | AS221: 0 | AT221: 0 | AU221: 0 | AV221: 0 | AW221: 0 | AX221: 0 | AY221: 0 | AZ221: 0 | BA221: 0 | BB221: 0 | BC221: 0 | BD221: 0 | BE221: 0 | BF221: 0 | BG221: 0 | BH221: 0 | BI221: 0 | BJ221: 0 | BK221: 0 | BL221: 0 | BM221: 0 | BN221: 0 | BO221: =MMULT(AM221:AM247,TRANSPOSE($F$94:$F$120)) -> 0 | BP221: 0 | BQ221: 0 | BR221: 0 | BS221: 0 | BT221: 0 | BU221: 0 | BV221: 0 | BW221: 0 | BX221: 0 | BY221: 0 | BZ221: 0 | CA221: 0 | CB221: 0 | CC221: 0 | CD221: 0 | CE221: 0 | CF221: 0 | CG221: 0 | CH221: 0 | CI221: 0 | CJ221: 0 | CK221: 0 | CL221: 0 | CM221: 0 | CN221: 0 | CO221: 0 | CP221: =+E221+AN221+BO221 -> 0 | CQ221: =+F221+AO221+BP221 -> 0 | CR221: 0 | CS221: 0 | CT221: 0 | CU221: 0 | CV221: 0 | CW221: 0 | CX221: 0 | CY221: 0 | CZ221: 0 | DA221: 0 | DB221: 0 | DC221: 0 | DD221: 0 | DE221: 0 | DF221: 0 | DG221: 0 | DH221: 0 | DI221: 0 | DJ221: 0 | DK221: 0 | DL221: 0 | DM221: 0 | DN221: 0 | DO221: 0 | DP221: 0 | DQ221: 1 | DR221: 1 | DS221: =+CP221*$DQ221*$DR221 -> 0 | DT221: =+CQ221*$DQ221*$DR221 -> 0 | DU221: 0 | DV221: 0 | DW221: 0 | DX221: 0 | DY221: 0 | DZ221: 0 | EA221: 0 | EB221: 0 | EC221: 0 | ED221: 0 | EE221: 0 | EF221: 0 | EG221: 0 | EH221: 0 | EI221: 0 | EJ221: 0 | EK221: 0 | EL221: 0 | EM221: 0 | EN221: 0 | EO221: 0 | EP221: 0 | EQ221: 0 | ER221: 0 | ES221: 0
D222: =+D221+1 -> 1 | E222: =+CGIL1!F831 -> 0 | F222: =+CGIL1!G831 -> 0.0003417970716 | G222: =+CGIL1!H831 -> 0.0005667130919 | H222: =+CGIL1!I831 -> 0.0006666609035 | I222: =+CGIL1!J831 -> 0.0006613251233 | J222: =+CGIL1!K831 -> 0.0005710107072 | K222: =+CGIL1!L831 -> 0.0004165222219 | L222: =+CGIL1!M831 -> 0.0002190408962 | M222: =+CGIL1!N831 -> 0 | AG222: =+CGIL1!N912 -> 0.004081996503 | AH222: 0 | AI222: 1 | AJ222: 0 | AK222: 1 | AL222: =+AF222*AH222+AG222*AI222 -> 0.004081996503 | AM222: =+AF222*AJ222+AG222*AK222 -> 0.004081996503 | AN222: 0 | AO222: -2.01594732e-05 | AP222: -3.833730889e-05 | AQ222: -5.257257002e-05 | AR222: -6.094561484e-05 | AS222: -6.159848105e-05 | AT222: -5.275495483e-05 | AU222: -3.274022202e-05 | AV222: 0 | AW222: 0 | AX222: -0.0001020261537 | AY222: -0.0001768731324 | AZ222: -0.0002225749389 | BA222: -0.0002379416617 | BB222: -0.0002225749389 | BC222: -0.0001768731324 | BD222: -0.0001020261537 | BE222: 0 | BF222: 0 | BG222: -3.274022202e-05 | BH222: -5.275495483e-05 | BI222: -6.159848105e-05 | BJ222: -6.094561484e-05 | BK222: -5.257257002e-05 | BL222: -3.833730889e-05 | BM222: -2.01594732e-05 | BN222: 0 | BO222: 0 | BP222: -3.698763054e-05 | BQ222: -7.033944801e-05 | BR222: -9.645761954e-05 | BS222: -0.0001118200789 | BT222: -0.0001130179264 | BU222: -9.679225043e-05 | BV222: -6.007018257e-05 | BW222: 0 | BX222: 0 | BY222: -4.103267083e-05 | BZ222: -4.723195897e-05 | CA222: -2.964684736e-05 | CB222: -8.074101412e-19 | CC222: 2.964684736e-05 | CD222: 4.723195897e-05 | CE222: 4.103267083e-05 | CF222: 0 | CG222: 0 | CH222: 6.007018257e-05 | CI222: 9.679225043e-05 | CJ222: 0.0001130179264 | CK222: 0.0001118200789 | CL222: 9.645761954e-05 | CM222: 7.033944801e-05 | CN222: 3.698763054e-05 | CO222: 0 | CP222: =+E222+AN222+BO222 -> 0 | CQ222: 0.0002846499679 | CR222: 0.000458036335 | CS222: 0.0005176307139 | CT222: 0.0004885594295 | CU222: 0.0003963942997 | CV222: 0.0002669750166 | CW222: 0.0001262304916 | CX222: 0 | CY222: 0 | CZ222: -0.0001430588246 | DA222: -0.0002241050913 | DB222: -0.0002522217863 | DC222: -0.0002379416617 | DD222: -0.0001929280916 | DE222: -0.0001296411734 | DF222: -6.099348291e-05 | DG222: 0 | DH222: 0 | DI222: 2.732996055e-05 | DJ222: 4.403729559e-05 | DK222: 5.141944536e-05 | DL222: 5.087446409e-05 | DM222: 4.388504953e-05 | DN222: 3.200213912e-05 | DO222: 1.682815734e-05 | DP222: 0 | DQ222: 1 | DR222: 1 | DS222: =+CP222*$DQ222*$DR222 -> 0 | DT222: =+CQ222*$DQ222*$DR222 -> 0.0002846499679 | DU222: =+CR222*$DQ222*$DR222 -> 0.000458036335 | DV222: =+CS222*$DQ222*$DR222 -> 0.0005176307139 | DW222: =+CT222*$DQ222*$DR222 -> 0.0004885594295 | DX222: =+CU222*$DQ222*$DR222 -> 0.0003963942997 | DY222: =+CV222*$DQ222*$DR222 -> 0.0002669750166 | DZ222: =+CW222*$DQ222*$DR222 -> 0.0001262304916 | EA222: =+CX222*$DQ222*$DR222 -> 0 | EB222: =+CY222*$DQ222*$DR222 -> 0 | EC222: =+CZ222*$DQ222*$DR222 -> -0.0001430588246 | ED222: =+DA222*$DQ222*$DR222 -> -0.0002241050913 | EE222: =+DB222*$DQ222*$DR222 -> -0.0002522217863 | EF222: =+DC222*$DQ222*$DR222 -> -0.0002379416617 | EG222: =+DD222*$DQ222*$DR222 -> -0.0001929280916 | EH222: =+DE222*$DQ222*$DR222 -> -0.0001296411734 | EI222: =+DF222*$DQ222*$DR222 -> -6.099348291e-05 | EJ222: =+DG222*$DQ222*$DR222 -> 0 | EK222: =+DH222*$DQ222*$DR222 -> 0 | EL222: =+DI222*$DQ222*$DR222 -> 2.732996055e-05 | EM222: =+DJ222*$DQ222*$DR222 -> 4.403729559e-05 | EN222: =+DK222*$DQ222*$DR222 -> 5.141944536e-05 | EO222: =+DL222*$DQ222*$DR222 -> 5.087446409e-05 | EP222: =+DM222*$DQ222*$DR222 -> 4.388504953e-05 | EQ222: =+DN222*$DQ222*$DR222 -> 3.200213912e-05 | ER222: =+DO222*$DQ222*$DR222 -> 1.682815734e-05 | ES222: =+DP222*$DQ222*$DR222 -> 0
D223: =+D222+1 -> 2 | E223: =+CGIL1!F832 -> 0 | F223: =+CGIL1!G832 -> 0.0005667130919 | G223: =+CGIL1!H832 -> 0.001008457975 | H223: =+CGIL1!I832 -> 0.001228038215 | I223: =+CGIL1!J832 -> 0.001237671611 | J223: =+CGIL1!K832 -> 0.001077847345 | K223: =+CGIL1!L832 -> 0.0007900516034 | L223: =+CGIL1!M832 -> 0.0004165222219 | M223: =+CGIL1!N832 -> 0 | AG223: =+CGIL1!N913 -> 0.007768319549 | AH223: 0 | AI223: 1 | AJ223: 0 | AK223: 1 | AL223: 0.007768319549 | AM223: 0.007768319549 | AN223: 0 | AO223: -3.836486133e-05 | AP223: -7.295853044e-05 | AQ223: -0.0001000492095 | AR223: -0.0001159836886 | AS223: -0.0001172261378 | AT223: -0.0001003963003 | AU223: -6.230688991e-05 | AV223: 0 | AW223: 0 | AX223: -0.000194162774 | AY223: -0.0003366017121 | AZ223: -0.0004235753871 | BA223: -0.0004528193154 | BB223: -0.0004235753871 | BC223: -0.0003366017121 | BD223: -0.000194162774 | BE223: 0 | BF223: 0 | BG223: -6.230688991e-05 | BH223: -0.0001003963003 | BI223: -0.0001172261378 | BJ223: -0.0001159836886 | BK223: -0.0001000492095 | BL223: -7.295853044e-05 | BM223: -3.836486133e-05 | BN223: 0 | BO223: 0 | BP223: -7.038999989e-05 | BQ223: -0.0001338607979 | BR223: -0.0001835654712 | BS223: -0.0002128012859 | BT223: -0.0002150808719 | BU223: -0.0001842022967 | BV223: -0.0001143176809 | BW223: 0 | BX223: 0 | BY223: -7.808798923e-05 | BZ223: -8.98856601e-05 | CA223: -5.64199856e-05 | CB223: -1.536556922e-18 | CC223: 5.64199856e-05 | CD223: 8.98856601e-05 | CE223: 7.808798923e-05 | CF223: 0 | CG223: 0 | CH223: 0.0001143176809 | CI223: 0.0001842022967 | CJ223: 0.0002150808719 | CK223: 0.0002128012859 | CL223: 0.0001835654712 | CM223: 0.0001338607979 | CN223: 7.038999989e-05 | CO223: 0 | CP223: 0 | CQ223: 0.0004579582306 | CR223: 0.0008016386467 | CS223: 0.0009444235344 | CT223: 0.0009088866361 | CU223: 0.0007455403354 | CV223: 0.0005054530063 | CW223: 0.0002398976511 | CX223: 0 | CY223: 0 | CZ223: -0.0002722507632 | DA223: -0.0004264873722 | DB223: -0.0004799953727 | DC223: -0.0004528193154 | DD223: -0.0003671554015 | DE223: -0.000246716052 | DF223: -0.0001160747848 | DG223: 0 | DH223: 0 | DI223: 5.201079096e-05 | DJ223: 8.380599639e-05 | DK223: 9.785473415e-05 | DL223: 9.681759738e-05 | DM223: 8.351626168e-05 | DN223: 6.090226749e-05 | DO223: 3.202513856e-05 | DP223: 0 | DQ223: 1 | DR223: 1 | DS223: 0 | DT223: 0.0004579582306 | DU223: 0.0008016386467 | DV223: 0.0009444235344 | DW223: 0.0009088866361 | DX223: 0.0007455403354 | DY223: 0.0005054530063 | DZ223: 0.0002398976511 | EA223: 0 | EB223: 0 | EC223: -0.0002722507632 | ED223: -0.0004264873722 | EE223: -0.0004799953727 | EF223: -0.0004528193154 | EG223: -0.0003671554015 | EH223: -0.000246716052 | EI223: -0.0001160747848 | EJ223: 0 | EK223: 0 | EL223: 5.201079096e-05 | EM223: 8.380599639e-05 | EN223: 9.785473415e-05 | EO223: 9.681759738e-05 | EP223: 8.351626168e-05 | EQ223: 6.090226749e-05 | ER223: 3.202513856e-05 | ES223: 0
D224: 3 | E224: =+CGIL1!F833 -> 0 | F224: =+CGIL1!G833 -> 0.0006666609035 | G224: =+CGIL1!H833 -> 0.001228038215 | H224: =+CGIL1!I833 -> 0.001579468682 | I224: =+CGIL1!J833 -> 0.001644560437 | J224: =+CGIL1!K833 -> 0.001456712507 | K224: =+CGIL1!L833 -> 0.001077847345 | L224: =+CGIL1!M833 -> 0.0005710107072 | M224: =+CGIL1!N833 -> 0 | AG224: =+CGIL1!N914 -> 0.01066561307 | AH224: 0 | AI224: 1 | AJ224: 0 | AK224: 1 | AL224: 0.01066561307 | AM224: 0.01066561307 | AN224: 0 | AO224: -5.267352404e-05 | AP224: -0.0001001693418 | AQ224: -0.000137363834 | AR224: -0.0001592412796 | AS224: -0.000160947116 | AT224: -0.0001378403768 | AU224: -8.554503652e-05 | AV224: 0 | AW224: 0 | AX224: -0.0002665782487 | AY224: -0.0004621415994 | AZ224: -0.0005815532121 | BA224: -0.0006217040351 | BB224: -0.0005815532121 | BC224: -0.0004621415994 | BD224: -0.0002665782487 | BE224: 0 | BF224: 0 | BG224: -8.554503652e-05 | BH224: -0.0001378403768 | BI224: -0.000160947116 | BJ224: -0.0001592412796 | BK224: -0.000137363834 | BL224: -0.0001001693418 | BM224: -5.267352404e-05 | BN224: 0 | BO224: 0 | BP224: -9.664284513e-05 | BQ224: -0.0001837858841 | BR224: -0.0002520285471 | BS224: -0.0002921682306 | BT224: -0.0002952980172 | BU224: -0.0002529028848 | BV224: -0.0001569539131 | BW224: 0 | BX224: 0 | BY224: -0.0001072118974 | BZ224: -0.0001234096596 | CA224: -7.746253643e-05 | CB224: -2.109635359e-18 | CC224: 7.746253643e-05 | CD224: 0.0001234096596 | CE224: 0.0001072118974 | CF224: 0 | CG224: 0 | CH224: 0.0001569539131 | CI224: 0.0002529028848 | CJ224: 0.0002952980172 | CK224: 0.0002921682306 | CL224: 0.0002520285471 | CM224: 0.0001837858841 | CN224: 9.664284513e-05 | CO224: 0 | CP224: 0 | CQ224: 0.0005173445343 | CR224: 0.0009440829892 | CS224: 0.001190076301 | CT224: 0.001193150927 | CU224: 0.001000467374 | CV224: 0.0006871040835 | CW224: 0.0003285117575 | CX224: 0 | CY224: 0 | CZ224: -0.0003737901462 | DA224: -0.000585551259 | DB224: -0.0006590157485 | DC224: -0.0006217040351 | DD224: -0.0005040906757 | DE224: -0.0003387319398 | DF224: -0.0001593663513 | DG224: 0 | DH224: 0 | DI224: 7.14088766e-05 | DJ224: 0.0001150625081 | DK224: 0.0001343509011 | DL224: 0.000132926951 | DM224: 0.0001146647131 | DN224: 8.361654232e-05 | DO224: 4.396932109e-05 | DP224: 0 | DQ224: 1 | DR224: 1 | DS224: 0 | DT224: 0.0005173445343 | DU224: 0.0009440829892 | DV224: 0.001190076301 | DW224: 0.001193150927 | DX224: 0.001000467374 | DY224: 0.0006871040835 | DZ224: 0.0003285117575 | EA224: 0 | EB224: 0 | EC224: -0.0003737901462 | ED224: -0.000585551259 | EE224: -0.0006590157485 | EF224: -0.0006217040351 | EG224: -0.0005040906757 | EH224: -0.0003387319398 | EI224: -0.0001593663513 | EJ224: 0 | EK224: 0 | EL224: 7.14088766e-05 | EM224: 0.0001150625081 | EN224: 0.0001343509011 | EO224: 0.000132926951 | EP224: 0.0001146647131 | EQ224: 8.361654232e-05 | ER224: 4.396932109e-05 | ES224: 0
D225: 4 | E225: =+CGIL1!F834 -> 0 | F225: =+CGIL1!G834 -> 0.0006613251233 | G225: =+CGIL1!H834 -> 0.001237671611 | H225: =+CGIL1!I834 -> 0.001644560437 | I225: =+CGIL1!J834 -> 0.001798509578 | J225: =+CGIL1!K834 -> 0.001644560437 | K225: =+CGIL1!L834 -> 0.001237671611 | L225: =+CGIL1!M834 -> 0.0006613251233 | M225: =+CGIL1!N834 -> 0 | AG225: =+CGIL1!N915 -> 0.01238514552 | AH225: 0 | AI225: 1 | AJ225: 0 | AK225: 1 | AL225: 0.01238514552 | AM225: 0.01238514552 | AN225: 0 | AO225: -6.116565974e-05 | AP225: -0.0001163188526 | AQ225: -0.0001595099186 | AR225: -0.0001849144917 | AS225: -0.0001868953466 | AT225: -0.0001600632906 | AU225: -9.933678621e-05 | AV225: 0 | AW225: 0 | AX225: -0.0003095565515 | AY225: -0.0005366490345 | AZ225: -0.0006753124371 | BA225: -0.0007219364598 | BB225: -0.0006753124371 | BC225: -0.0005366490345 | BD225: -0.0003095565515 | BE225: 0 | BF225: 0 | BG225: -9.933678621e-05 | BH225: -0.0001600632906 | BI225: -0.0001868953466 | BJ225: -0.0001849144917 | BK225: -0.0001595099186 | BL225: -0.0001163188526 | BM225: -6.116565974e-05 | BN225: 0 | BO225: 0 | BP225: -0.0001122238067 | BQ225: -0.0002134162287 | BR225: -0.0002926611165 | BS225: -0.0003392722037 | BT225: -0.000342906581 | BU225: -0.0002936764168 | BV225: -0.0001822583512 | BW225: 0 | BX225: 0 | BY225: -0.0001244968238 | BZ225: -0.000143306023 | CA225: -8.995120854e-05 | CB225: -2.449755183e-18 | CC225: 8.995120854e-05 | CD225: 0.000143306023 | CE225: 0.0001244968238 | CF225: 0 | CG225: 0 | CH225: 0.0001822583512 | CI225: 0.0002936764168 | CJ225: 0.000342906581 | CK225: 0.0003392722037 | CL225: 0.0002926611165 | CM225: 0.0002134162287 | CN225: 0.0001122238067 | CO225: 0 | CP225: 0 | CQ225: 0.0004879356568 | CR225: 0.0009079365294 | CS225: 0.001192389402 | CT225: 0.001274322883 | CU225: 0.001114758509 | CV225: 0.0007839319033 | CW225: 0.0003797299858 | CX225: 0 | CY225: 0 | CZ225: -0.0004340533752 | DA225: -0.0006799550575 | DB225: -0.0007652636457 | DC225: -0.0007219364598 | DD225: -0.0005853612286 | DE225: -0.0003933430115 | DF225: -0.0001850597277 | DG225: 0 | DH225: 0 | DI225: 8.292156502e-05 | DJ225: 0.0001336131262 | DK225: 0.0001560112344 | DL225: 0.0001543577121 | DM225: 0.0001331511979 | DN225: 9.709737614e-05 | DO225: 5.105814698e-05 | DP225: 0 | DQ225: 1 | DR225: 1 | DS225: 0 | DT225: 0.0004879356568 | DU225: 0.0009079365294 | DV225: 0.001192389402 | DW225: 0.001274322883 | DX225: 0.001114758509 | DY225: 0.0007839319033 | DZ225: 0.0003797299858 | EA225: 0 | EB225: 0 | EC225: -0.0004340533752 | ED225: -0.0006799550575 | EE225: -0.0007652636457 | EF225: -0.0007219364598 | EG225: -0.0005853612286 | EH225: -0.0003933430115 | EI225: -0.0001850597277 | EJ225: 0 | EK225: 0 | EL225: 8.292156502e-05 | EM225: 0.0001336131262 | EN225: 0.0001560112344 | EO225: 0.0001543577121 | EP225: 0.0001331511979 | EQ225: 9.709737614e-05 | ER225: 5.105814698e-05 | ES225: 0
D226: 5 | E226: =+CGIL1!F835 -> 0 | F226: =+CGIL1!G835 -> 0.0005710107072 | G226: =+CGIL1!H835 -> 0.001077847345 | H226: =+CGIL1!I835 -> 0.001456712507 | I226: =+CGIL1!J835 -> 0.001644560437 | J226: =+CGIL1!K835 -> 0.001579468682 | K226: =+CGIL1!L835 -> 0.001228038215 | L226: =+CGIL1!M835 -> 0.0006666609035 | M226: =+CGIL1!N835 -> 0 | AG226: =+CGIL1!N916 -> 0.01254509641 | AH226: 0 | AI226: 1 | AJ226: 0 | AK226: 1 | AL226: 0.01254509641 | AM226: 0.01254509641 | AN226: 0 | AO226: -6.195559811e-05 | AP226: -0.0001178210799 | AQ226: -0.0001615699471 | AR226: -0.0001873026136 | AS226: -0.0001893090507 | AT226: -0.0001621304658 | AU226: -0.0001006196946 | AV226: 0 | AW226: 0 | AX226: -0.0003135543927 | AY226: -0.0005435797153 | AZ226: -0.0006840339192 | BA226: -0.0007312600788 | BB226: -0.0006840339192 | BC226: -0.0005435797153 | BD226: -0.0003135543927 | BE226: 0 | BF226: 0 | BG226: -0.0001006196946 | BH226: -0.0001621304658 | BI226: -0.0001893090507 | BJ226: -0.0001873026136 | BK226: -0.0001615699471 | BL226: -0.0001178210799 | BM226: -6.195559811e-05 | BN226: 0 | BO226: 0 | BP226: -0.0001136731476 | BQ226: -0.000216172443 | BR226: -0.0002964407577 | BS226: -0.0003436538148 | BT226: -0.0003473351291 | BU226: -0.0002974691703 | BV226: -0.0001846121698 | BW226: 0 | BX226: 0 | BY226: -0.0001261046674 | BZ226: -0.0001451567825 | CA226: -9.111290468e-05 | CB226: -2.481393125e-18 | CC226: 9.111290468e-05 | CD226: 0.0001451567825 | CE226: 0.0001261046674 | CF226: 0 | CG226: 0 | CH226: 0.0001846121698 | CI226: 0.0002974691703 | CJ226: 0.0003473351291 | CK226: 0.0003436538148 | CL226: 0.0002964407577 | CM226: 0.000216172443 | CN226: 0.0001136731476 | CO226: 0 | CP226: 0 | CQ226: 0.0003953819615 | CR226: 0.0007438538223 | CS226: 0.0009987018021 | CT226: 0.001113604009 | CU226: 0.001042824502 | CV226: 0.0007684385791 | CW226: 0.0003814290391 | CX226: 0 | CY226: 0 | CZ226: -0.0004396590601 | DA226: -0.0006887364978 | DB226: -0.0007751468239 | DC226: -0.0007312600788 | DD226: -0.0005929210145 | DE226: -0.0003984229327 | DF226: -0.0001874497253 | DG226: 0 | DH226: 0 | DI226: 8.399247516e-05 | DJ226: 0.0001353387045 | DK226: 0.0001580260783 | DL226: 0.0001563512012 | DM226: 0.0001348708106 | DN226: 9.835136315e-05 | DO226: 5.171754949e-05 | DP226: 0 | DQ226: 1 | DR226: 1 | DS226: 0 | DT226: 0.0003953819615 | DU226: 0.0007438538223 | DV226: 0.0009987018021 | DW226: 0.001113604009 | DX226: 0.001042824502 | DY226: 0.0007684385791 | DZ226: 0.0003814290391 | EA226: 0 | EB226: 0 | EC226: -0.0004396590601 | ED226: -0.0006887364978 | EE226: -0.0007751468239 | EF226: -0.0007312600788 | EG226: -0.0005929210145 | EH226: -0.0003984229327 | EI226: -0.0001874497253 | EJ226: 0 | EK226: 0 | EL226: 8.399247516e-05 | EM226: 0.0001353387045 | EN226: 0.0001580260783 | EO226: 0.0001563512012 | EP226: 0.0001348708106 | EQ226: 9.835136315e-05 | ER226: 5.171754949e-05 | ES226: 0
... 958 more rows

Sheet CGIL1 (hidden)
F6: φ= | G6: =+Input!B2 -> 25 | H6: deg
F7: = | G7: =+RADIANS(G6) -> 0.436332313 | H7: radians
F8: φ/2= | G8: =+G7/2 -> 0.2181661565
F9: 1/φ= | G9: =1/G7 -> 2.291831181
F10: (φ)^2= | G10: =+G7*G7 -> 0.1903858874
F11: sinφ= | G11: =+SIN(G7) -> 0.4226182617
F12: cosφ= | G12: =+COS(G7) -> 0.906307787
F13: tan(φ/2)= | G13: =+TAN(G8) -> 0.2216946626
F14: (sinφ)^2= | G14: =+G11*G11 -> 0.1786061952
F15: (cosφ)^2= | G15: =+G12*G12 -> 0.8213938048
F17: 0 | G17: =+F17+0.125 -> 0.125 | H17: =+G17+0.125 -> 0.25 | I17: 0.375 | J17: 0.5 | K17: 0.625 | L17: 0.75 | M17: 0.875 | N17: 1
F18: ρ | G18: ρ' | H18: sin(ρ) | I18: sin(ρ') | J18: sin(2ρ) | K18: sin(2ρ') | L18: sin(ρ)^2 | M18: sin(ρ')^2 | N18: cos(ρ) | O18: cos(ρ') | P18: cos(2ρ) | Q18: cos(2ρ') | R18: cos(ρ)^2 | S18: cos(ρ')^2 | T18: tan(ρ/2)
E19: 0 | F19: =+E19*$G$7 -> 0 | G19: =+$G$7-F19 -> 0.436332313 | H19: =+SIN(F19) -> 0 | I19: =+SIN(G19) -> 0.4226182617 | J19: =+SIN(2*F19) -> 0 | K19: =+SIN(2*G19) -> 0.7660444431 | L19: =+H19*H19 -> 0 | M19: =+I19*I19 -> 0.1786061952 | N19: =+COS(F19) -> 1 | O19: =+COS(G19) -> 0.906307787 | P19: =+COS(2*F19) -> 1 | Q19: =+COS(2*G19) -> 0.6427876097 | R19: =+N19*N19 -> 1 | S19: =+O19*O19 -> 0.8213938048 | T19: =+TAN(F19/2) -> 0
E20: 0.125 | F20: 0.05454153912 | G20: 0.3817907739 | H20: =+SIN(F20) -> 0.05451450164 | I20: =+SIN(G20) -> 0.3725829021 | J20: =+SIN(2*F20) -> 0.1088668749 | K20: =+SIN(2*G20) -> 0.6915130558 | L20: =+H20*H20 -> 0.002971830889 | M20: =+I20*I20 -> 0.138818019 | N20: =+COS(F20) -> 0.9985129789 | O20: =+COS(G20) -> 0.9279989122 | P20: =+COS(2*F20) -> 0.9940563382 | Q20: =+COS(2*G20) -> 0.7223639621 | R20: =+N20*N20 -> 0.9970281691 | S20: =+O20*O20 -> 0.861181981 | T20: =+TAN(F20/2) -> 0.02727753195
E21: =+E20+0.125 -> 0.25 | F21: 0.1090830782 | G21: 0.3272492347 | H21: 0.1088668749 | I21: 0.3214394653 | J21: 0.2164396139 | K21: 0.608761429 | L21: 0.01185199644 | M21: 0.1033233299 | N21: 0.9940563382 | O21: 0.9469301295 | P21: 0.9762960071 | Q21: 0.7933533403 | R21: 0.9881480036 | S21: 0.8966766701 | T21: 0.05459568657
E22: 0.375 | F22: 0.1636246174 | G22: 0.2727076956 | H22: 0.1628954734 | I22: 0.269340054 | J22: 0.3214394653 | K22: 0.5187732582 | L22: 0.02653493525 | M22: 0.07254406466 | N22: 0.9866433321 | O22: 0.9630451367 | P22: 0.9469301295 | Q22: 0.8549118707 | R22: 0.9734650647 | S22: 0.9274559353 | T22: 0.08199532889
E23: 0.5 | F23: 0.2181661565 | G23: 0.2181661565 | H23: 0.2164396139 | I23: 0.2164396139 | J23: 0.4226182617 | K23: 0.4226182617 | L23: 0.04684610648 | M23: 0.04684610648 | N23: 0.9762960071 | O23: 0.9762960071 | P23: 0.906307787 | Q23: 0.906307787 | R23: 0.9531538935 | S23: 0.9531538935 | T23: 0.1095178117
E24: 0.625 | F24: 0.2727076956 | G24: 0.1636246174 | H24: 0.269340054 | I24: 0.1628954734 | J24: 0.5187732582 | K24: 0.3214394653 | L24: 0.07254406466 | M24: 0.02653493525 | N24: 0.9630451367 | O24: 0.9866433321 | P24: 0.8549118707 | Q24: 0.9469301295 | R24: 0.9274559353 | S24: 0.9734650647 | T24: 0.1372052272
E25: 0.75 | F25: 0.3272492347 | G25: 0.1090830782 | H25: 0.3214394653 | I25: 0.1088668749 | J25: 0.608761429 | K25: 0.2164396139 | L25: 0.1033233299 | M25: 0.01185199644 | N25: 0.9469301295 | O25: 0.9940563382 | P25: 0.7933533403 | Q25: 0.9762960071 | R25: 0.8966766701 | S25: 0.9881480036 | T25: 0.1651006682
E26: 0.875 | F26: 0.3817907739 | G26: 0.05454153912 | H26: 0.3725829021 | I26: 0.05451450164 | J26: 0.6915130558 | K26: 0.1088668749 | L26: 0.138818019 | M26: 0.002971830889 | N26: 0.9279989122 | O26: 0.9985129789 | P26: 0.7223639621 | Q26: 0.9940563382 | R26: 0.861181981 | S26: 0.9970281691 | T26: 0.1932485023
E27: 1 | F27: 0.436332313 | G27: 0 | H27: 0.4226182617 | I27: 0 | J27: 0.7660444431 | K27: 0 | L27: 0.1786061952 | M27: 0 | N27: 0.906307787 | O27: 1 | P27: 0.6427876097 | Q27: 1 | R27: 0.8213938048 | S27: 1 | T27: 0.2216946626
D28: ω | F28: =+F17*$G$7 -> 0 | G28: 0.05454153912 | H28: 0.1090830782 | I28: 0.1636246174 | J28: 0.2181661565 | K28: 0.2727076956 | L28: 0.3272492347 | M28: 0.3817907739 | N28: 0.436332313
D29: ω' | F29: =$G$7-F28 -> 0.436332313 | G29: 0.3817907739 | H29: 0.3272492347 | I29: 0.2727076956 | J29: 0.2181661565 | K29: 0.1636246174 | L29: 0.1090830782 | M29: 0.05454153912 | N29: 0
D30: (ω)^2 | F30: =+F28*F28 -> 0 | G30: =+G28*G28 -> 0.00297477949 | H30: 0.01189911796 | I30: 0.02677301541 | J30: 0.04759647184 | K30: 0.07436948725 | L30: 0.1070920616 | M30: 0.145764195 | N30: 0.1903858874
D31: sin(ω) | F31: =+SIN(F28) -> 0 | G31: =+SIN(G28) -> 0.05451450164 | H31: 0.1088668749 | I31: 0.1628954734 | J31: 0.2164396139 | K31: 0.269340054 | L31: 0.3214394653 | M31: 0.3725829021 | N31: 0.4226182617
D32: sin(ω') | F32: =+SIN(F29) -> 0.4226182617 | G32: =+SIN(G29) -> 0.3725829021 | H32: 0.3214394653 | I32: 0.269340054 | J32: 0.2164396139 | K32: 0.1628954734 | L32: 0.1088668749 | M32: 0.05451450164 | N32: 0
D33: sin(2ω) | F33: =+SIN(2*F28) -> 0 | G33: =+SIN(2*G28) -> 0.1088668749 | H33: 0.2164396139 | I33: 0.3214394653 | J33: 0.4226182617 | K33: 0.5187732582 | L33: 0.608761429 | M33: 0.6915130558 | N33: 0.7660444431
D34: sin(2ω') | F34: =+SIN(2*F29) -> 0.7660444431 | G34: =+SIN(2*G29) -> 0.6915130558 | H34: 0.608761429 | I34: 0.5187732582 | J34: 0.4226182617 | K34: 0.3214394653 | L34: 0.2164396139 | M34: 0.1088668749 | N34: 0
D35: sin(ω)^2 | F35: =+F31*F31 -> 0 | G35: =+G31*G31 -> 0.002971830889 | H35: 0.01185199644 | I35: 0.02653493525 | J35: 0.04684610648 | K35: 0.07254406466 | L35: 0.1033233299 | M35: 0.138818019 | N35: 0.1786061952
D36: sin(ω')^2 | F36: =+F32*F32 -> 0.1786061952 | G36: =+G32*G32 -> 0.138818019 | H36: 0.1033233299 | I36: 0.07254406466 | J36: 0.04684610648 | K36: 0.02653493525 | L36: 0.01185199644 | M36: 0.002971830889 | N36: 0
D37: cos(ω) | F37: =+COS(F28) -> 1 | G37: =+COS(G28) -> 0.9985129789 | H37: 0.9940563382 | I37: 0.9866433321 | J37: 0.9762960071 | K37: 0.9630451367 | L37: 0.9469301295 | M37: 0.9279989122 | N37: 0.906307787
D38: cos(ω') | F38: =+COS(F29) -> 0.906307787 | G38: =+COS(G29) -> 0.9279989122 | H38: 0.9469301295 | I38: 0.9630451367 | J38: 0.9762960071 | K38: 0.9866433321 | L38: 0.9940563382 | M38: 0.9985129789 | N38: 1
D39: cos(2ω) | F39: =+COS(2*F28) -> 1 | G39: =+COS(2*G28) -> 0.9940563382 | H39: 0.9762960071 | I39: 0.9469301295 | J39: 0.906307787 | K39: 0.8549118707 | L39: 0.7933533403 | M39: 0.7223639621 | N39: 0.6427876097
D40: cos(2ω') | F40: =+COS(2*F29) -> 0.6427876097 | G40: =+COS(2*G29) -> 0.7223639621 | H40: 0.7933533403 | I40: 0.8549118707 | J40: 0.906307787 | K40: 0.9469301295 | L40: 0.9762960071 | M40: 0.9940563382 | N40: 1
D41: cos(ω)^2 | F41: =+F37*F37 -> 1 | G41: =+G37*G37 -> 0.9970281691 | H41: 0.9881480036 | I41: 0.9734650647 | J41: 0.9531538935 | K41: 0.9274559353 | L41: 0.8966766701 | M41: 0.861181981 | N41: 0.8213938048
D42: cos(ω')^2 | F42: =+F38*F38 -> 0.8213938048 | G42: =+G38*G38 -> 0.861181981 | H42: 0.8966766701 | I42: 0.9274559353 | J42: 0.9531538935 | K42: 0.9734650647 | L42: 0.9881480036 | M42: 0.9970281691 | N42: 1
D43: a1(ρ,ω)=a1(ω,ρ) | E43: =+E19 -> 0 | F43: =+$H19*F$31 -> 0 | G43: 0 | H43: 0 | I43: 0 | J43: 0 | K43: 0 | L43: 0 | M43: 0 | N43: 0
E44: =+E20 -> 0.125 | F44: =+$H20*F$31 -> 0 | G44: 0.002971830889 | H44: 0.005934823427 | I44: 0.008880165551 | J44: 0.01179909769 | K44: 0.01468293881 | L44: 0.01752311226 | M44: 0.02031117123 | N44: 0.02303882392
E45: 0.25 | F45: =+$H21*F$31 -> 0 | G45: 0.005934823427 | H45: 0.01185199644 | I45: 0.01773392112 | J45: 0.02356310436 | K45: 0.02932220995 | L45: 0.03499411004 | M45: 0.04056193618 | N45: 0.04600912941
E46: 0.375 | F46: =+$H22*F$31 -> 0 | G46: 0.008880165551 | H46: 0.01773392112 | I46: 0.02653493525 | J46: 0.03525703337 | K46: 0.04387427559 | L46: 0.05236103387 | M46: 0.06069206822 | N46: 0.06884260181
E47: 0.5 | F47: =+$H23*F$31 -> 0 | G47: 0.01179909769 | H47: 0.02356310436 | I47: 0.03525703337 | J47: 0.04684610648 | K47: 0.0582958573 | L47: 0.06957223377 | M47: 0.0806416995 | N47: 0.09147133341
E48: 0.625 | F48: =+$H24*F$31 -> 0 | G48: 0.01468293881 | H48: 0.02932220995 | I48: 0.04387427559 | J48: 0.0582958573 | K48: 0.07254406466 | L48: 0.08657652293 | M48: 0.100351499 | N48: 0.1138280254
E49: 0.75 | F49: =+$H25*F$31 -> 0 | G49: 0.01752311226 | H49: 0.03499411004 | I49: 0.05236103387 | J49: 0.06957223377 | K49: 0.08657652293 | L49: 0.1033233299 | M49: 0.1197628488 | N49: 0.1358461881
E50: 0.875 | F50: =+$H26*F$31 -> 0 | G50: 0.02031117123 | H50: 0.04056193618 | I50: 0.06069206822 | J50: 0.0806416995 | K50: 0.100351499 | L50: 0.1197628488 | M50: 0.138818019 | N50: 0.1574603385
E51: 1 | F51: =+$H27*F$31 -> 0 | G51: 0.02303882392 | H51: 0.04600912941 | I51: 0.06884260181 | J51: 0.09147133341 | K51: 0.1138280254 | L51: 0.1358461881 | M51: 0.1574603385 | N51: 0.1786061952
D52: a2(ρ,ω)=a2(ω,ρ) | E52: =+E43 -> 0 | F52: =+$N19*F$37 -> 1 | G52: 0.9985129789 | H52: 0.9940563382 | I52: 0.9866433321 | J52: 0.9762960071 | K52: 0.9630451367 | L52: 0.9469301295 | M52: 0.9279989122 | N52: 0.906307787
E53: =+E44 -> 0.125 | F53: =+$N20*F$37 -> 0.9985129789 | G53: 0.9970281691 | H53: 0.9925781555 | I53: 0.9851761727 | J53: 0.9748442344 | K53: 0.9616130683 | L53: 0.9455220244 | M53: 0.9266189583 | N53: 0.9049600883
E54: 0.25 | F54: =+$N21*F$37 -> 0.9940563382 | G54: 0.9925781555 | H54: 0.9881480036 | I54: 0.9807790578 | J54: 0.9704932339 | K54: 0.9573211221 | L54: 0.9413018971 | M54: 0.9224832005 | N54: 0.9009210001
E55: 0.375 | F55: =+$N22*F$37 -> 0.9866433321 | G55: 0.9851761727 | H55: 0.9807790578 | I55: 0.9734650647 | J55: 0.9632559456 | K55: 0.9501820626 | L55: 0.9342822982 | M55: 0.9156039389 | N55: 0.8942025349
E56: 0.5 | F56: =+$N23*F$37 -> 0.9762960071 | G56: 0.9748442344 | H56: 0.9704932339 | I56: 0.9632559456 | J56: 0.9531538935 | K56: 0.9402171216 | L56: 0.9244841044 | M56: 0.9060016326 | N56: 0.8848246737
E57: 0.625 | F57: =+$N24*F$37 -> 0.9630451367 | G57: 0.9616130683 | H57: 0.9573211221 | I57: 0.9501820626 | J57: 0.9402171216 | K57: 0.9274559353 | L57: 0.911936456 | M57: 0.8937048393 | N57: 0.8728153067
E58: 0.75 | F58: =+$N25*F$37 -> 0.9469301295 | G58: 0.9455220244 | H58: 0.9413018971 | I58: 0.9342822982 | J58: 0.9244841044 | K58: 0.911936456 | L58: 0.8966766701 | M58: 0.8787501301 | N58: 0.8582101501
E59: 0.875 | F59: =+$N26*F$37 -> 0.9279989122 | G59: 0.9266189583 | H59: 0.9224832005 | I59: 0.9156039389 | J59: 0.9060016326 | K59: 0.8937048393 | L59: 0.8787501301 | M59: 0.861181981 | N59: 0.8410526405
E60: 1 | F60: =+$N27*F$37 -> 0.906307787 | G60: 0.9049600883 | H60: 0.9009210001 | I60: 0.8942025349 | J60: 0.8848246737 | K60: 0.8728153067 | L60: 0.8582101501 | M60: 0.8410526405 | N60: 0.8213938048
D61: a3(ρ,ω)=a3(ω,ρ) | E61: 0 | F61: =+$I19*F$32 -> 0.1786061952 | G61: 0.1574603385 | H61: 0.1358461881 | I61: 0.1138280254 | J61: 0.09147133341 | K61: 0.06884260181 | L61: 0.04600912941 | M61: 0.02303882392 | N61: 0
E62: 0.125 | F62: =+$I20*F$32 -> 0.1574603385 | G62: 0.138818019 | H62: 0.1197628488 | I62: 0.100351499 | J62: 0.0806416995 | K62: 0.06069206822 | L62: 0.04056193618 | M62: 0.02031117123 | N62: 0
E63: 0.25 | F63: =+$I21*F$32 -> 0.1358461881 | G63: 0.1197628488 | H63: 0.1033233299 | I63: 0.08657652293 | J63: 0.06957223377 | K63: 0.05236103387 | L63: 0.03499411004 | M63: 0.01752311226 | N63: 0
E64: 0.375 | F64: =+$I22*F$32 -> 0.1138280254 | G64: 0.100351499 | H64: 0.08657652293 | I64: 0.07254406466 | J64: 0.0582958573 | K64: 0.04387427559 | L64: 0.02932220995 | M64: 0.01468293881 | N64: 0
E65: 0.5 | F65: =+$I23*F$32 -> 0.09147133341 | G65: 0.0806416995 | H65: 0.06957223377 | I65: 0.0582958573 | J65: 0.04684610648 | K65: 0.03525703337 | L65: 0.02356310436 | M65: 0.01179909769 | N65: 0
E66: 0.625 | F66: =+$I24*F$32 -> 0.06884260181 | G66: 0.06069206822 | H66: 0.05236103387 | I66: 0.04387427559 | J66: 0.03525703337 | K66: 0.02653493525 | L66: 0.01773392112 | M66: 0.008880165551 | N66: 0
E67: 0.75 | F67: =+$I25*F$32 -> 0.04600912941 | G67: 0.04056193618 | H67: 0.03499411004 | I67: 0.02932220995 | J67: 0.02356310436 | K67: 0.01773392112 | L67: 0.01185199644 | M67: 0.005934823427 | N67: 0
E68: 0.875 | F68: =+$I26*F$32 -> 0.02303882392 | G68: 0.02031117123 | H68: 0.01752311226 | I68: 0.01468293881 | J68: 0.01179909769 | K68: 0.008880165551 | L68: 0.005934823427 | M68: 0.002971830889 | N68: 0
E69: 1 | F69: =+$I27*F$32 -> 0 | G69: 0 | H69: 0 | I69: 0 | J69: 0 | K69: 0 | L69: 0 | M69: 0 | N69: 0
D70: a4(ρ,ω)=a4(ω,ρ) | E70: 0 | F70: =+$O19*F$38 -> 0.8213938048 | G70: 0.8410526405 | H70: 0.8582101501 | I70: 0.8728153067 | J70: 0.8848246737 | K70: 0.8942025349 | L70: 0.9009210001 | M70: 0.9049600883 | N70: 0.906307787
E71: 0.125 | F71: =+$O20*F$38 -> 0.8410526405 | G71: 0.861181981 | H71: 0.8787501301 | I71: 0.8937048393 | J71: 0.9060016326 | K71: 0.9156039389 | L71: 0.9224832005 | M71: 0.9266189583 | N71: 0.9279989122
E72: 0.25 | F72: =+$O21*F$38 -> 0.8582101501 | G72: 0.8787501301 | H72: 0.8966766701 | I72: 0.911936456 | J72: 0.9244841044 | K72: 0.9342822982 | L72: 0.9413018971 | M72: 0.9455220244 | N72: 0.9469301295
E73: 0.375 | F73: =+$O22*F$38 -> 0.8728153067 | G73: 0.8937048393 | H73: 0.911936456 | I73: 0.9274559353 | J73: 0.9402171216 | K73: 0.9501820626 | L73: 0.9573211221 | M73: 0.9616130683 | N73: 0.9630451367
E74: 0.5 | F74: =+$O23*F$38 -> 0.8848246737 | G74: 0.9060016326 | H74: 0.9244841044 | I74: 0.9402171216 | J74: 0.9531538935 | K74: 0.9632559456 | L74: 0.9704932339 | M74: 0.9748442344 | N74: 0.9762960071
E75: 0.625 | F75: =+$O24*F$38 -> 0.8942025349 | G75: 0.9156039389 | H75: 0.9342822982 | I75: 0.9501820626 | J75: 0.9632559456 | K75: 0.9734650647 | L75: 0.9807790578 | M75: 0.9851761727 | N75: 0.9866433321
E76: 0.75 | F76: =+$O25*F$38 -> 0.9009210001 | G76: 0.9224832005 | H76: 0.9413018971 | I76: 0.9573211221 | J76: 0.9704932339 | K76: 0.9807790578 | L76: 0.9881480036 | M76: 0.9925781555 | N76: 0.9940563382
E77: 0.875 | F77: =+$O26*F$38 -> 0.9049600883 | G77: 0.9266189583 | H77: 0.9455220244 | I77: 0.9616130683 | J77: 0.9748442344 | K77: 0.9851761727 | L77: 0.9925781555 | M77: 0.9970281691 | N77: 0.9985129789
E78: 1 | F78: =+$O27*F$38 -> 0.906307787 | G78: 0.9279989122 | H78: 0.9469301295 | I78: 0.9630451367 | J78: 0.9762960071 | K78: 0.9866433321 | L78: 0.9940563382 | M78: 0.9985129789 | N78: 1
D79: a5(ρ,ω)=a5(ω,ρ) | E79: 0 | F79: =+($G$11-$I19)*($G$11-F$32) -> 0 | G79: 0 | H79: 0 | I79: 0 | J79: 0 | K79: 0 | L79: 0 | M79: 0 | N79: 0
E80: 0.125 | F80: =+($G$11-$I20)*($G$11-F$32) -> 0 | G80: 0.00250353721 | H80: 0.005062517463 | I80: 0.007669330245 | J80: 0.01031622278 | K80: 0.01299532311 | L80: 0.01569866347 | M80: 0.01841820401 | N80: 0.0211458567
E81: 0.25 | F81: =+($G$11-$I21)*($G$11-F$32) -> 0 | G81: 0.005062517463 | H81: 0.01023714885 | I81: 0.01550850458 | J81: 0.02086090744 | K81: 0.02627843913 | L81: 0.03174498771 | M81: 0.03724429541 | N81: 0.04276000708
E82: 0.375 | F82: =+($G$11-$I22)*($G$11-F$32) -> 0 | G82: 0.007669330245 | H82: 0.01550850458 | I82: 0.02349420898 | J82: 0.03160269362 | K82: 0.03980984352 | L82: 0.04809125027 | M82: 0.05642228463 | N82: 0.06477816974
E83: 0.5 | F83: =+($G$11-$I23)*($G$11-F$32) -> 0 | G83: 0.01031622278 | H83: 0.02086090744 | I83: 0.03160269362 | J83: 0.04250963481 | K83: 0.0535492933 | L83: 0.06468883669 | M83: 0.07589513551 | N83: 0.08713486174
E84: 0.625 | F84: =+($G$11-$I24)*($G$11-F$32) -> 0 | G84: 0.01299532311 | H84: 0.02627843913 | I84: 0.03980984352 | J84: 0.0535492933 | K84: 0.06745592679 | L84: 0.08148838505 | M84: 0.09560493497 | N84: 0.1097635933
E85: 0.75 | F85: =+($G$11-$I25)*($G$11-F$32) -> 0 | G85: 0.01569866347 | H85: 0.03174498771 | I85: 0.04809125027 | J85: 0.06468883669 | K85: 0.08148838505 | L85: 0.09843993277 | M85: 0.1154930653 | N85: 0.1325970657
E86: 0.875 | F86: =+($G$11-$I26)*($G$11-F$32) -> 0 | G86: 0.01841820401 | H86: 0.03724429541 | I86: 0.05642228463 | J86: 0.07589513551 | K86: 0.09560493497 | L86: 0.1154930653 | M86: 0.1355003782 | N86: 0.1555673712
E87: 1 | F87: =+($G$11-$I27)*($G$11-F$32) -> 0 | G87: 0.0211458567 | H87: 0.04276000708 | I87: 0.06477816974 | J87: 0.08713486174 | K87: 0.1097635933 | L87: 0.1325970657 | M87: 0.1555673712 | N87: 0.1786061952
D88: a6(ρ,ω) | E88: 0 | F88: =+$H19*F$37 -> 0 | G88: 0 | H88: 0 | I88: 0 | J88: 0 | K88: 0 | L88: 0 | M88: 0 | N88: 0
E89: 0.125 | F89: =+$H20*F$37 -> 0.05451450164 | G89: 0.05443343743 | H89: 0.05419048588 | I89: 0.05378636954 | J89: 0.05322229028 | K89: 0.05249992568 | L89: 0.0516214241 | M89: 0.05058939822 | N89: 0.04940691734
E90: 0.25 | F90: =+$H21*F$37 -> 0.1088668749 | G90: 0.1087049875 | H90: 0.108219807 | I90: 0.1074127762 | J90: 0.1062862952 | K90: 0.1048437144 | L90: 0.1030893239 | M90: 0.1010283414 | N90: 0.09866689643
E91: 0.375 | F91: =+$H22*F$37 -> 0.1628954734 | G91: 0.1626532444 | H91: 0.1619272778 | I91: 0.1607197327 | J91: 0.1590342003 | K91: 0.1568756934 | L91: 0.1542506317 | M91: 0.1511668221 | N91: 0.147633436
E92: 0.5 | F92: =+$H23*F$37 -> 0.2164396139 | G92: 0.2161177637 | H92: 0.2151531701 | I92: 0.2135487019 | J92: 0.2113091309 | K92: 0.2084411176 | L92: 0.2049531917 | M92: 0.2008557263 | N92: 0.1961609075
E93: 0.625 | F93: =+$H24*F$37 -> 0.269340054 | G93: 0.2689395396 | H93: 0.2677391878 | I93: 0.2657425683 | J93: 0.2629556192 | K93: 0.2593866291 | L93: 0.2550462122 | M93: 0.2499472771 | N93: 0.2441049883
E94: 0.75 | F94: =+$H25*F$37 -> 0.3214394653 | G94: 0.320961478 | H94: 0.3195289378 | I94: 0.3171461051 | J94: 0.3138200665 | K94: 0.3095607138 | L94: 0.3043807145 | M94: 0.2982954741 | N94: 0.2913230905
E95: 0.875 | F95: =+$H26*F$37 -> 0.3725829021 | G95: 0.3720288635 | H95: 0.3703683954 | I95: 0.367606436 | J95: 0.3637511997 | K95: 0.3588141519 | L95: 0.3528099758 | M95: 0.3457565279 | N95: 0.3376747855
E96: 1 | F96: =+$H27*F$37 -> 0.4226182617 | G96: 0.4219898195 | H96: 0.4201063617 | I96: 0.41697349 | J96: 0.4126005215 | K96: 0.4070004617 | L96: 0.4001899653 | M96: 0.3921892872 | N96: 0.3830222216
D97: a6(ω,ρ) | E97: 0 | F97: =+F$31*$N19 -> 0 | G97: 0.05451450164 | H97: 0.1088668749 | I97: 0.1628954734 | J97: 0.2164396139 | K97: 0.269340054 | L97: 0.3214394653 | M97: 0.3725829021 | N97: 0.4226182617
E98: 0.125 | F98: =+F$31*$N20 -> 0 | G98: 0.05443343743 | H98: 0.1087049875 | I98: 0.1626532444 | J98: 0.2161177637 | K98: 0.2689395396 | L98: 0.320961478 | M98: 0.3720288635 | N98: 0.4219898195
E99: 0.25 | F99: =+F$31*$N21 -> 0 | G99: 0.05419048588 | H99: 0.108219807 | I99: 0.1619272778 | J99: 0.2151531701 | K99: 0.2677391878 | L99: 0.3195289378 | M99: 0.3703683954 | N99: 0.4201063617
E100: 0.375 | F100: =+F$31*$N22 -> 0 | G100: 0.05378636954 | H100: 0.1074127762 | I100: 0.1607197327 | J100: 0.2135487019 | K100: 0.2657425683 | L100: 0.3171461051 | M100: 0.367606436 | N100: 0.41697349
E101: 0.5 | F101: =+F$31*$N23 -> 0 | G101: 0.05322229028 | H101: 0.1062862952 | I101: 0.1590342003 | J101: 0.2113091309 | K101: 0.2629556192 | L101: 0.3138200665 | M101: 0.3637511997 | N101: 0.4126005215
E102: 0.625 | F102: =+F$31*$N24 -> 0 | G102: 0.05249992568 | H102: 0.1048437144 | I102: 0.1568756934 | J102: 0.2084411176 | K102: 0.2593866291 | L102: 0.3095607138 | M102: 0.3588141519 | N102: 0.4070004617
E103: 0.75 | F103: =+F$31*$N25 -> 0 | G103: 0.0516214241 | H103: 0.1030893239 | I103: 0.1542506317 | J103: 0.2049531917 | K103: 0.2550462122 | L103: 0.3043807145 | M103: 0.3528099758 | N103: 0.4001899653
E104: 0.875 | F104: =+F$31*$N26 -> 0 | G104: 0.05058939822 | H104: 0.1010283414 | I104: 0.1511668221 | J104: 0.2008557263 | K104: 0.2499472771 | L104: 0.2982954741 | M104: 0.3457565279 | N104: 0.3921892872
E105: 1 | F105: =+F$31*$N27 -> 0 | G105: 0.04940691734 | H105: 0.09866689643 | I105: 0.147633436 | J105: 0.1961609075 | K105: 0.2441049883 | L105: 0.2913230905 | M105: 0.3376747855 | N105: 0.3830222216
D106: a7(ρ,ω) | E106: 0 | F106: =+$H19*F$38 -> 0 | G106: 0 | H106: 0 | I106: 0 | J106: 0 | K106: 0 | L106: 0 | M106: 0 | N106: 0
E107: 0.125 | F107: =+$H20*F$38 -> 0.04940691734 | G107: 0.05058939822 | H107: 0.0516214241 | I107: 0.05249992568 | J107: 0.05322229028 | K107: 0.05378636954 | L107: 0.05419048588 | M107: 0.05443343743 | N107: 0.05451450164
E108: 0.25 | F108: =+$H21*F$38 -> 0.09866689643 | G108: 0.1010283414 | H108: 0.1030893239 | I108: 0.1048437144 | J108: 0.1062862952 | K108: 0.1074127762 | L108: 0.108219807 | M108: 0.1087049875 | N108: 0.1088668749
E109: 0.375 | F109: =+$H22*F$38 -> 0.147633436 | G109: 0.1511668221 | H109: 0.1542506317 | I109: 0.1568756934 | J109: 0.1590342003 | K109: 0.1607197327 | L109: 0.1619272778 | M109: 0.1626532444 | N109: 0.1628954734
E110: 0.5 | F110: =+$H23*F$38 -> 0.1961609075 | G110: 0.2008557263 | H110: 0.2049531917 | I110: 0.2084411176 | J110: 0.2113091309 | K110: 0.2135487019 | L110: 0.2151531701 | M110: 0.2161177637 | N110: 0.2164396139
E111: 0.625 | F111: =+$H24*F$38 -> 0.2441049883 | G111: 0.2499472771 | H111: 0.2550462122 | I111: 0.2593866291 | J111: 0.2629556192 | K111: 0.2657425683 | L111: 0.2677391878 | M111: 0.2689395396 | N111: 0.269340054
E112: 0.75 | F112: =+$H25*F$38 -> 0.2913230905 | G112: 0.2982954741 | H112: 0.3043807145 | I112: 0.3095607138 | J112: 0.3138200665 | K112: 0.3171461051 | L112: 0.3195289378 | M112: 0.320961478 | N112: 0.3214394653
E113: 0.875 | F113: =+$H26*F$38 -> 0.3376747855 | G113: 0.3457565279 | H113: 0.3528099758 | I113: 0.3588141519 | J113: 0.3637511997 | K113: 0.367606436 | L113: 0.3703683954 | M113: 0.3720288635 | N113: 0.3725829021
E114: 1 | F114: =+$H27*F$38 -> 0.3830222216 | G114: 0.3921892872 | H114: 0.4001899653 | I114: 0.4070004617 | J114: 0.4126005215 | K114: 0.41697349 | L114: 0.4201063617 | M114: 0.4219898195 | N114: 0.4226182617
D115: a7(ω,ρ) | E115: 0 | F115: =+F$31*$O19 -> 0 | G115: 0.04940691734 | H115: 0.09866689643 | I115: 0.147633436 | J115: 0.1961609075 | K115: 0.2441049883 | L115: 0.2913230905 | M115: 0.3376747855 | N115: 0.3830222216
E116: 0.125 | F116: =+F$31*$O20 -> 0 | G116: 0.05058939822 | H116: 0.1010283414 | I116: 0.1511668221 | J116: 0.2008557263 | K116: 0.2499472771 | L116: 0.2982954741 | M116: 0.3457565279 | N116: 0.3921892872
E117: =+E108 -> 0.25 | F117: =+F$31*$O21 -> 0 | G117: 0.0516214241 | H117: 0.1030893239 | I117: 0.1542506317 | J117: 0.2049531917 | K117: 0.2550462122 | L117: 0.3043807145 | M117: 0.3528099758 | N117: 0.4001899653
E118: 0.375 | F118: =+F$31*$O22 -> 0 | G118: 0.05249992568 | H118: 0.1048437144 | I118: 0.1568756934 | J118: 0.2084411176 | K118: 0.2593866291 | L118: 0.3095607138 | M118: 0.3588141519 | N118: 0.4070004617
E119: 0.5 | F119: =+F$31*$O23 -> 0 | G119: 0.05322229028 | H119: 0.1062862952 | I119: 0.1590342003 | J119: 0.2113091309 | K119: 0.2629556192 | L119: 0.3138200665 | M119: 0.3637511997 | N119: 0.4126005215
E120: 0.625 | F120: =+F$31*$O24 -> 0 | G120: 0.05378636954 | H120: 0.1074127762 | I120: 0.1607197327 | J120: 0.2135487019 | K120: 0.2657425683 | L120: 0.3171461051 | M120: 0.367606436 | N120: 0.41697349
E121: 0.75 | F121: =+F$31*$O25 -> 0 | G121: 0.05419048588 | H121: 0.108219807 | I121: 0.1619272778 | J121: 0.2151531701 | K121: 0.2677391878 | L121: 0.3195289378 | M121: 0.3703683954 | N121: 0.4201063617
E122: 0.875 | F122: =+F$31*$O26 -> 0 | G122: 0.05443343743 | H122: 0.1087049875 | I122: 0.1626532444 | J122: 0.2161177637 | K122: 0.2689395396 | L122: 0.320961478 | M122: 0.3720288635 | N122: 0.4219898195
E123: 1 | F123: =+F$31*$O27 -> 0 | G123: 0.05451450164 | H123: 0.1088668749 | I123: 0.1628954734 | J123: 0.2164396139 | K123: 0.269340054 | L123: 0.3214394653 | M123: 0.3725829021 | N123: 0.4226182617
D124: a8(ρ,ω) | E124: 0 | F124: =+$I19*F$31 -> 0 | G124: 0.02303882392 | H124: 0.04600912941 | I124: 0.06884260181 | J124: 0.09147133341 | K124: 0.1138280254 | L124: 0.1358461881 | M124: 0.1574603385 | N124: 0.1786061952
E125: 0.125 | F125: =+$I20*F$31 -> 0 | G125: 0.02031117123 | H125: 0.04056193618 | I125: 0.06069206822 | J125: 0.0806416995 | K125: 0.100351499 | L125: 0.1197628488 | M125: 0.138818019 | N125: 0.1574603385
E126: 0.25 | F126: =+$I21*F$31 -> 0 | G126: 0.01752311226 | H126: 0.03499411004 | I126: 0.05236103387 | J126: 0.06957223377 | K126: 0.08657652293 | L126: 0.1033233299 | M126: 0.1197628488 | N126: 0.1358461881
E127: 0.375 | F127: =+$I22*F$31 -> 0 | G127: 0.01468293881 | H127: 0.02932220995 | I127: 0.04387427559 | J127: 0.0582958573 | K127: 0.07254406466 | L127: 0.08657652293 | M127: 0.100351499 | N127: 0.1138280254
E128: 0.5 | F128: =+$I23*F$31 -> 0 | G128: 0.01179909769 | H128: 0.02356310436 | I128: 0.03525703337 | J128: 0.04684610648 | K128: 0.0582958573 | L128: 0.06957223377 | M128: 0.0806416995 | N128: 0.09147133341
E129: 0.625 | F129: =+$I24*F$31 -> 0 | G129: 0.008880165551 | H129: 0.01773392112 | I129: 0.02653493525 | J129: 0.03525703337 | K129: 0.04387427559 | L129: 0.05236103387 | M129: 0.06069206822 | N129: 0.06884260181
E130: 0.75 | F130: =+$I25*F$31 -> 0 | G130: 0.005934823427 | H130: 0.01185199644 | I130: 0.01773392112 | J130: 0.02356310436 | K130: 0.02932220995 | L130: 0.03499411004 | M130: 0.04056193618 | N130: 0.04600912941
E131: 0.875 | F131: =+$I26*F$31 -> 0 | G131: 0.002971830889 | H131: 0.005934823427 | I131: 0.008880165551 | J131: 0.01179909769 | K131: 0.01468293881 | L131: 0.01752311226 | M131: 0.02031117123 | N131: 0.02303882392
E132: 1 | F132: =+$I27*F$31 -> 0 | G132: 0 | H132: 0 | I132: 0 | J132: 0 | K132: 0 | L132: 0 | M132: 0 | N132: 0
D133: a8(ω,ρ) | E133: 0 | F133: =+F$32*$H19 -> 0 | G133: 0 | H133: 0 | I133: 0 | J133: 0 | K133: 0 | L133: 0 | M133: 0 | N133: 0
E134: 0.125 | F134: =+F$32*$H20 -> 0.02303882392 | G134: 0.02031117123 | H134: 0.01752311226 | I134: 0.01468293881 | J134: 0.01179909769 | K134: 0.008880165551 | L134: 0.005934823427 | M134: 0.002971830889 | N134: 0
E135: 0.25 | F135: =+F$32*$H21 -> 0.04600912941 | G135: 0.04056193618 | H135: 0.03499411004 | I135: 0.02932220995 | J135: 0.02356310436 | K135: 0.01773392112 | L135: 0.01185199644 | M135: 0.005934823427 | N135: 0
E136: 0.375 | F136: =+F$32*$H22 -> 0.06884260181 | G136: 0.06069206822 | H136: 0.05236103387 | I136: 0.04387427559 | J136: 0.03525703337 | K136: 0.02653493525 | L136: 0.01773392112 | M136: 0.008880165551 | N136: 0
E137: 0.5 | F137: =+F$32*$H23 -> 0.09147133341 | G137: 0.0806416995 | H137: 0.06957223377 | I137: 0.0582958573 | J137: 0.04684610648 | K137: 0.03525703337 | L137: 0.02356310436 | M137: 0.01179909769 | N137: 0
E138: 0.625 | F138: =+F$32*$H24 -> 0.1138280254 | G138: 0.100351499 | H138: 0.08657652293 | I138: 0.07254406466 | J138: 0.0582958573 | K138: 0.04387427559 | L138: 0.02932220995 | M138: 0.01468293881 | N138: 0
E139: 0.75 | F139: =+F$32*$H25 -> 0.1358461881 | G139: 0.1197628488 | H139: 0.1033233299 | I139: 0.08657652293 | J139: 0.06957223377 | K139: 0.05236103387 | L139: 0.03499411004 | M139: 0.01752311226 | N139: 0
E140: 0.875 | F140: =+F$32*$H26 -> 0.1574603385 | G140: 0.138818019 | H140: 0.1197628488 | I140: 0.100351499 | J140: 0.0806416995 | K140: 0.06069206822 | L140: 0.04056193618 | M140: 0.02031117123 | N140: 0
E141: 1 | F141: =+F$32*$H27 -> 0.1786061952 | G141: 0.1574603385 | H141: 0.1358461881 | I141: 0.1138280254 | J141: 0.09147133341 | K141: 0.06884260181 | L141: 0.04600912941 | M141: 0.02303882392 | N141: 0
D142: a9(ρ,ω) | E142: 0 | F142: =+$I19*F$37 -> 0.4226182617 | G142: 0.4219898195 | H142: 0.4201063617 | I142: 0.41697349 | J142: 0.4126005215 | K142: 0.4070004617 | L142: 0.4001899653 | M142: 0.3921892872 | N142: 0.3830222216
E143: 0.125 | F143: =+$I20*F$37 -> 0.3725829021 | G143: 0.3720288635 | H143: 0.3703683954 | I143: 0.367606436 | J143: 0.3637511997 | K143: 0.3588141519 | L143: 0.3528099758 | M143: 0.3457565279 | N143: 0.3376747855
E144: 0.25 | F144: =+$I21*F$37 -> 0.3214394653 | G144: 0.320961478 | H144: 0.3195289378 | I144: 0.3171461051 | J144: 0.3138200665 | K144: 0.3095607138 | L144: 0.3043807145 | M144: 0.2982954741 | N144: 0.2913230905
E145: 0.375 | F145: =+$I22*F$37 -> 0.269340054 | G145: 0.2689395396 | H145: 0.2677391878 | I145: 0.2657425683 | J145: 0.2629556192 | K145: 0.2593866291 | L145: 0.2550462122 | M145: 0.2499472771 | N145: 0.2441049883
E146: 0.5 | F146: =+$I23*F$37 -> 0.2164396139 | G146: 0.2161177637 | H146: 0.2151531701 | I146: 0.2135487019 | J146: 0.2113091309 | K146: 0.2084411176 | L146: 0.2049531917 | M146: 0.2008557263 | N146: 0.1961609075
E147: 0.625 | F147: =+$I24*F$37 -> 0.1628954734 | G147: 0.1626532444 | H147: 0.1619272778 | I147: 0.1607197327 | J147: 0.1590342003 | K147: 0.1568756934 | L147: 0.1542506317 | M147: 0.1511668221 | N147: 0.147633436
E148: 0.75 | F148: =+$I25*F$37 -> 0.1088668749 | G148: 0.1087049875 | H148: 0.108219807 | I148: 0.1074127762 | J148: 0.1062862952 | K148: 0.1048437144 | L148: 0.1030893239 | M148: 0.1010283414 | N148: 0.09866689643
E149: 0.875 | F149: =+$I26*F$37 -> 0.05451450164 | G149: 0.05443343743 | H149: 0.05419048588 | I149: 0.05378636954 | J149: 0.05322229028 | K149: 0.05249992568 | L149: 0.0516214241 | M149: 0.05058939822 | N149: 0.04940691734
E150: 1 | F150: =+$I27*F$37 -> 0 | G150: 0 | H150: 0 | I150: 0 | J150: 0 | K150: 0 | L150: 0 | M150: 0 | N150: 0
D151: a9(ω,ρ) | E151: 0 | F151: =+F$32*$N19 -> 0.4226182617 | G151: =+G$32*$N19 -> 0.3725829021 | H151: 0.3214394653 | I151: 0.269340054 | J151: 0.2164396139 | K151: 0.1628954734 | L151: 0.1088668749 | M151: 0.05451450164 | N151: 0
E152: 0.125 | F152: =+F$32*$N20 -> 0.4219898195 | G152: 0.3720288635 | H152: 0.320961478 | I152: 0.2689395396 | J152: 0.2161177637 | K152: 0.1626532444 | L152: 0.1087049875 | M152: 0.05443343743 | N152: 0
E153: 0.25 | F153: =+F$32*$N21 -> 0.4201063617 | G153: 0.3703683954 | H153: 0.3195289378 | I153: 0.2677391878 | J153: 0.2151531701 | K153: 0.1619272778 | L153: 0.108219807 | M153: 0.05419048588 | N153: 0
E154: 0.375 | F154: =+F$32*$N22 -> 0.41697349 | G154: 0.367606436 | H154: 0.3171461051 | I154: 0.2657425683 | J154: 0.2135487019 | K154: 0.1607197327 | L154: 0.1074127762 | M154: 0.05378636954 | N154: 0
E155: 0.5 | F155: =+F$32*$N23 -> 0.4126005215 | G155: 0.3637511997 | H155: 0.3138200665 | I155: 0.2629556192 | J155: 0.2113091309 | K155: 0.1590342003 | L155: 0.1062862952 | M155: 0.05322229028 | N155: 0
E156: 0.625 | F156: =+F$32*$N24 -> 0.4070004617 | G156: 0.3588141519 | H156: 0.3095607138 | I156: 0.2593866291 | J156: 0.2084411176 | K156: 0.1568756934 | L156: 0.1048437144 | M156: 0.05249992568 | N156: 0
E157: 0.75 | F157: =+F$32*$N25 -> 0.4001899653 | G157: 0.3528099758 | H157: 0.3043807145 | I157: 0.2550462122 | J157: 0.2049531917 | K157: 0.1542506317 | L157: 0.1030893239 | M157: 0.0516214241 | N157: 0
E158: 0.875 | F158: =+F$32*$N26 -> 0.3921892872 | G158: 0.3457565279 | H158: 0.2982954741 | I158: 0.2499472771 | J158: 0.2008557263 | K158: 0.1511668221 | L158: 0.1010283414 | M158: 0.05058939822 | N158: 0
E159: 1 | F159: =+F$32*$N27 -> 0.3830222216 | G159: 0.3376747855 | H159: 0.2913230905 | I159: 0.2441049883 | J159: 0.1961609075 | K159: 0.147633436 | L159: 0.09866689643 | M159: 0.04940691734 | N159: 0
D160: a10(ρ,ω) | E160: 0 | F160: =+$I19*F$38 -> 0.3830222216 | G160: 0.3921892872 | H160: 0.4001899653 | I160: 0.4070004617 | J160: 0.4126005215 | K160: 0.41697349 | L160: 0.4201063617 | M160: 0.4219898195 | N160: 0.4226182617
E161: 0.125 | F161: =+$I20*F$38 -> 0.3376747855 | G161: 0.3457565279 | H161: 0.3528099758 | I161: 0.3588141519 | J161: 0.3637511997 | K161: 0.367606436 | L161: 0.3703683954 | M161: 0.3720288635 | N161: 0.3725829021
E162: 0.25 | F162: =+$I21*F$38 -> 0.2913230905 | G162: 0.2982954741 | H162: 0.3043807145 | I162: 0.3095607138 | J162: 0.3138200665 | K162: 0.3171461051 | L162: 0.3195289378 | M162: 0.320961478 | N162: 0.3214394653
E163: 0.375 | F163: =+$I22*F$38 -> 0.2441049883 | G163: 0.2499472771 | H163: 0.2550462122 | I163: 0.2593866291 | J163: 0.2629556192 | K163: 0.2657425683 | L163: 0.2677391878 | M163: 0.2689395396 | N163: 0.269340054
E164: 0.5 | F164: =+$I23*F$38 -> 0.1961609075 | G164: 0.2008557263 | H164: 0.2049531917 | I164: 0.2084411176 | J164: 0.2113091309 | K164: 0.2135487019 | L164: 0.2151531701 | M164: 0.2161177637 | N164: 0.2164396139
E165: 0.625 | F165: =+$I24*F$38 -> 0.147633436 | G165: 0.1511668221 | H165: 0.1542506317 | I165: 0.1568756934 | J165: 0.1590342003 | K165: 0.1607197327 | L165: 0.1619272778 | M165: 0.1626532444 | N165: 0.1628954734
E166: 0.75 | F166: =+$I25*F$38 -> 0.09866689643 | G166: 0.1010283414 | H166: 0.1030893239 | I166: 0.1048437144 | J166: 0.1062862952 | K166: 0.1074127762 | L166: 0.108219807 | M166: 0.1087049875 | N166: 0.1088668749
E167: 0.875 | F167: =+$I26*F$38 -> 0.04940691734 | G167: 0.05058939822 | H167: 0.0516214241 | I167: 0.05249992568 | J167: 0.05322229028 | K167: 0.05378636954 | L167: 0.05419048588 | M167: 0.05443343743 | N167: 0.05451450164
E168: 1 | F168: =+$I27*F$38 -> 0 | G168: 0 | H168: 0 | I168: 0 | J168: 0 | K168: 0 | L168: 0 | M168: 0 | N168: 0
D169: a10(ω,ρ) | E169: 0 | F169: =+F$32*$O19 -> 0.3830222216 | G169: 0.3376747855 | H169: 0.2913230905 | I169: 0.2441049883 | J169: 0.1961609075 | K169: 0.147633436 | L169: 0.09866689643 | M169: 0.04940691734 | N169: 0
E170: 0.125 | F170: =+F$32*$O20 -> 0.3921892872 | G170: 0.3457565279 | H170: 0.2982954741 | I170: 0.2499472771 | J170: 0.2008557263 | K170: 0.1511668221 | L170: 0.1010283414 | M170: 0.05058939822 | N170: 0
E171: 0.25 | F171: =+F$32*$O21 -> 0.4001899653 | G171: 0.3528099758 | H171: 0.3043807145 | I171: 0.2550462122 | J171: 0.2049531917 | K171: 0.1542506317 | L171: 0.1030893239 | M171: 0.0516214241 | N171: 0
E172: 0.375 | F172: =+F$32*$O22 -> 0.4070004617 | G172: 0.3588141519 | H172: 0.3095607138 | I172: 0.2593866291 | J172: 0.2084411176 | K172: 0.1568756934 | L172: 0.1048437144 | M172: 0.05249992568 | N172: 0
E173: 0.5 | F173: =+F$32*$O23 -> 0.4126005215 | G173: 0.3637511997 | H173: 0.3138200665 | I173: 0.2629556192 | J173: 0.2113091309 | K173: 0.1590342003 | L173: 0.1062862952 | M173: 0.05322229028 | N173: 0
E174: 0.625 | F174: =+F$32*$O24 -> 0.41697349 | G174: 0.367606436 | H174: 0.3171461051 | I174: 0.2657425683 | J174: 0.2135487019 | K174: 0.1607197327 | L174: 0.1074127762 | M174: 0.05378636954 | N174: 0
E175: 0.75 | F175: =+F$32*$O25 -> 0.4201063617 | G175: 0.3703683954 | H175: 0.3195289378 | I175: 0.2677391878 | J175: 0.2151531701 | K175: 0.1619272778 | L175: 0.108219807 | M175: 0.05419048588 | N175: 0
E176: 0.875 | F176: =+F$32*$O26 -> 0.4219898195 | G176: 0.3720288635 | H176: 0.320961478 | I176: 0.2689395396 | J176: 0.2161177637 | K176: 0.1626532444 | L176: 0.1087049875 | M176: 0.05443343743 | N176: 0
E177: 1 | F177: =+F$32*$O27 -> 0.4226182617 | G177: 0.3725829021 | H177: 0.3214394653 | I177: 0.269340054 | J177: 0.2164396139 | K177: 0.1628954734 | L177: 0.1088668749 | M177: 0.05451450164 | N177: 0
D178: a11(ρ,ω) | E178: 0 | F178: =+$N19*F$38 -> 0.906307787 | G178: 0.9279989122 | H178: 0.9469301295 | I178: 0.9630451367 | J178: 0.9762960071 | K178: 0.9866433321 | L178: 0.9940563382 | M178: 0.9985129789 | N178: 1
E179: 0.125 | F179: =+$N20*F$38 -> 0.9049600883 | G179: 0.9266189583 | H179: 0.9455220244 | I179: 0.9616130683 | J179: 0.9748442344 | K179: 0.9851761727 | L179: 0.9925781555 | M179: 0.9970281691 | N179: 0.9985129789
E180: 0.25 | F180: =+$N21*F$38 -> 0.9009210001 | G180: 0.9224832005 | H180: 0.9413018971 | I180: 0.9573211221 | J180: 0.9704932339 | K180: 0.9807790578 | L180: 0.9881480036 | M180: 0.9925781555 | N180: 0.9940563382
E181: =+E172 -> 0.375 | F181: =+$N22*F$38 -> 0.8942025349 | G181: 0.9156039389 | H181: 0.9342822982 | I181: 0.9501820626 | J181: 0.9632559456 | K181: 0.9734650647 | L181: 0.9807790578 | M181: 0.9851761727 | N181: 0.9866433321
E182: 0.5 | F182: =+$N23*F$38 -> 0.8848246737 | G182: 0.9060016326 | H182: 0.9244841044 | I182: 0.9402171216 | J182: 0.9531538935 | K182: 0.9632559456 | L182: 0.9704932339 | M182: 0.9748442344 | N182: 0.9762960071
E183: 0.625 | F183: =+$N24*F$38 -> 0.8728153067 | G183: 0.8937048393 | H183: 0.911936456 | I183: 0.9274559353 | J183: 0.9402171216 | K183: 0.9501820626 | L183: 0.9573211221 | M183: 0.9616130683 | N183: 0.9630451367
E184: 0.75 | F184: =+$N25*F$38 -> 0.8582101501 | G184: 0.8787501301 | H184: 0.8966766701 | I184: 0.911936456 | J184: 0.9244841044 | K184: 0.9342822982 | L184: 0.9413018971 | M184: 0.9455220244 | N184: 0.9469301295
E185: 0.875 | F185: =+$N26*F$38 -> 0.8410526405 | G185: 0.861181981 | H185: 0.8787501301 | I185: 0.8937048393 | J185: 0.9060016326 | K185: 0.9156039389 | L185: 0.9224832005 | M185: 0.9266189583 | N185: 0.9279989122
E186: 1 | F186: =+$N27*F$38 -> 0.8213938048 | G186: 0.8410526405 | H186: 0.8582101501 | I186: 0.8728153067 | J186: 0.8848246737 | K186: 0.8942025349 | L186: 0.9009210001 | M186: 0.9049600883 | N186: 0.906307787
D187: a11(ω,ρ) | E187: 0 | F187: =+F$37*$O19 -> 0.906307787 | G187: 0.9049600883 | H187: 0.9009210001 | I187: 0.8942025349 | J187: 0.8848246737 | K187: 0.8728153067 | L187: 0.8582101501 | M187: 0.8410526405 | N187: 0.8213938048
E188: 0.125 | F188: =+F$37*$O20 -> 0.9279989122 | G188: 0.9266189583 | H188: 0.9224832005 | I188: 0.9156039389 | J188: 0.9060016326 | K188: 0.8937048393 | L188: 0.8787501301 | M188: 0.861181981 | N188: 0.8410526405
E189: 0.25 | F189: =+F$37*$O21 -> 0.9469301295 | G189: 0.9455220244 | H189: 0.9413018971 | I189: 0.9342822982 | J189: 0.9244841044 | K189: 0.911936456 | L189: 0.8966766701 | M189: 0.8787501301 | N189: 0.8582101501
E190: 0.375 | F190: =+F$37*$O22 -> 0.9630451367 | G190: 0.9616130683 | H190: 0.9573211221 | I190: 0.9501820626 | J190: 0.9402171216 | K190: 0.9274559353 | L190: 0.911936456 | M190: 0.8937048393 | N190: 0.8728153067
E191: 0.5 | F191: =+F$37*$O23 -> 0.9762960071 | G191: 0.9748442344 | H191: 0.9704932339 | I191: 0.9632559456 | J191: 0.9531538935 | K191: 0.9402171216 | L191: 0.9244841044 | M191: 0.9060016326 | N191: 0.8848246737
E192: 0.625 | F192: =+F$37*$O24 -> 0.9866433321 | G192: 0.9851761727 | H192: 0.9807790578 | I192: 0.9734650647 | J192: 0.9632559456 | K192: 0.9501820626 | L192: 0.9342822982 | M192: 0.9156039389 | N192: 0.8942025349
E193: 0.75 | F193: =+F$37*$O25 -> 0.9940563382 | G193: 0.9925781555 | H193: 0.9881480036 | I193: 0.9807790578 | J193: 0.9704932339 | K193: 0.9573211221 | L193: 0.9413018971 | M193: 0.9224832005 | N193: 0.9009210001
E194: 0.875 | F194: =+F$37*$O26 -> 0.9985129789 | G194: 0.9970281691 | H194: 0.9925781555 | I194: 0.9851761727 | J194: 0.9748442344 | K194: 0.9616130683 | L194: 0.9455220244 | M194: 0.9266189583 | N194: 0.9049600883
E195: 1 | F195: =+F$37*$O27 -> 1 | G195: 0.9985129789 | H195: 0.9940563382 | I195: 0.9866433321 | J195: 0.9762960071 | K195: 0.9630451367 | L195: 0.9469301295 | M195: 0.9279989122 | N195: 0.906307787
D196: a12(ρ,ω) | E196: 0 | F196: =+$H19*($G$11-F$32) -> 0 | G196: 0 | H196: 0 | I196: 0 | J196: 0 | K196: 0 | L196: 0 | M196: 0 | N196: 0
E197: 0.125 | F197: =+$H20*($G$11-F$32) -> 0 | G197: 0.002727652693 | H197: 0.005515711664 | I197: 0.00835588511 | J197: 0.01123972623 | K197: 0.01415865837 | L197: 0.01710400049 | M197: 0.02006699303 | N197: 0.02303882392
E198: 0.25 | F198: =+$H21*($G$11-F$32) -> 0 | G198: 0.005447193231 | H198: 0.01101501937 | I198: 0.01668691946 | J198: 0.02244602505 | K198: 0.0282752083 | L198: 0.03415713297 | M198: 0.04007430598 | N198: 0.04600912941
E199: 0.375 | F199: =+$H22*($G$11-F$32) -> 0 | G199: 0.008150533588 | H199: 0.01648156794 | I199: 0.02496832622 | J199: 0.03358556844 | K199: 0.04230766656 | L199: 0.0511086807 | M199: 0.05996243626 | N199: 0.06884260181
E200: 0.5 | F200: =+$H23*($G$11-F$32) -> 0 | G200: 0.01082963391 | H200: 0.02189909964 | I200: 0.03317547612 | J200: 0.04462522693 | K200: 0.05621430004 | L200: 0.06790822905 | M200: 0.07967223573 | N200: 0.09147133341
E201: 0.625 | F201: =+$H24*($G$11-F$32) -> 0 | G201: 0.01347652645 | H201: 0.02725150249 | I201: 0.04128396076 | J201: 0.05553216812 | K201: 0.06995374983 | L201: 0.08450581547 | M201: 0.09914508661 | N201: 0.1138280254
E202: 0.75 | F202: =+$H25*($G$11-F$32) -> 0 | G202: 0.01608333923 | H202: 0.03252285823 | I202: 0.04926966515 | J202: 0.06627395431 | K202: 0.08348515421 | L202: 0.100852078 | M202: 0.1183230758 | N202: 0.1358461881
E203: 0.875 | F203: =+$H26*($G$11-F$32) -> 0 | G203: 0.01864231949 | H203: 0.03769748961 | I203: 0.05710883949 | J203: 0.07681863896 | K203: 0.09676827023 | L203: 0.1168984023 | M203: 0.1371491672 | N203: 0.1574603385
E204: 1 | F204: =+$H27*($G$11-F$32) -> 0 | G204: 0.0211458567 | H204: 0.04276000708 | I204: 0.06477816974 | J204: 0.08713486174 | K204: 0.1097635933 | L204: 0.1325970657 | M204: 0.1555673712 | N204: 0.1786061952
D205: a12(ω,ρ) | E205: 0 | F205: =+F$31*($G$11-$I19) -> 0 | G205: 0 | H205: 0 | I205: 0 | J205: 0 | K205: 0 | L205: 0 | M205: 0 | N205: 0
E206: 0.125 | F206: =+F$31*($G$11-$I20) -> 0 | G206: 0.002727652693 | H206: 0.005447193231 | I206: 0.008150533588 | J206: 0.01082963391 | K206: 0.01347652645 | L206: 0.01608333923 | M206: 0.01864231949 | N206: 0.0211458567
... 850 more rows

Sheet CGIL2 (hidden)
F6: φ= | G6: =+Input!B3 -> 40 | H6: deg
F7: = | G7: =+RADIANS(G6) -> 0.6981317008 | H7: radians
F8: φ/2= | G8: =+G7/2 -> 0.3490658504
F9: 1/φ= | G9: =1/G7 -> 1.432394488
F10: (φ)^2= | G10: =+G7*G7 -> 0.4873878717
F11: sinφ= | G11: =+SIN(G7) -> 0.6427876097
F12: cosφ= | G12: =+COS(G7) -> 0.7660444431
F13: tan(φ/2)= | G13: =+TAN(G8) -> 0.3639702343
F14: (sinφ)^2= | G14: =+G11*G11 -> 0.4131759112
F15: (cosφ)^2= | G15: =+G12*G12 -> 0.5868240888
F17: 0 | G17: =+F17+0.125 -> 0.125 | H17: =+G17+0.125 -> 0.25 | I17: 0.375 | J17: 0.5 | K17: 0.625 | L17: 0.75 | M17: 0.875 | N17: 1
F18: ρ | G18: ρ' | H18: sin(ρ) | I18: sin(ρ') | J18: sin(2ρ) | K18: sin(2ρ') | L18: sin(ρ)^2 | M18: sin(ρ')^2 | N18: cos(ρ) | O18: cos(ρ') | P18: cos(2ρ) | Q18: cos(2ρ') | R18: cos(ρ)^2 | S18: cos(ρ')^2 | T18: tan(ρ/2)
E19: 0 | F19: =+E19*$G$7 -> 0 | G19: =+$G$7-F19 -> 0.6981317008 | H19: =+SIN(F19) -> 0 | I19: =+SIN(G19) -> 0.6427876097 | J19: =+SIN(2*F19) -> 0 | K19: =+SIN(2*G19) -> 0.984807753 | L19: =+H19*H19 -> 0 | M19: =+I19*I19 -> 0.4131759112 | N19: =+COS(F19) -> 1 | O19: =+COS(G19) -> 0.7660444431 | P19: =+COS(2*F19) -> 1 | Q19: =+COS(2*G19) -> 0.1736481777 | R19: =+N19*N19 -> 1 | S19: =+O19*O19 -> 0.5868240888 | T19: =+TAN(F19/2) -> 0
E20: 0.125 | F20: 0.0872664626 | G20: 0.6108652382 | H20: =+SIN(F20) -> 0.08715574275 | I20: 0.5735764364 | J20: =+SIN(2*F20) -> 0.1736481777 | K20: 0.9396926208 | L20: =+H20*H20 -> 0.007596123494 | M20: 0.3289899283 | N20: =+COS(F20) -> 0.9961946981 | O20: 0.8191520443 | P20: =+COS(2*F20) -> 0.984807753 | Q20: 0.3420201433 | R20: =+N20*N20 -> 0.9924038765 | S20: 0.6710100717 | T20: =+TAN(F20/2) -> 0.04366094291
E21: =+E20+0.125 -> 0.25 | F21: 0.1745329252 | G21: 0.5235987756 | H21: 0.1736481777 | I21: 0.5 | J21: 0.3420201433 | K21: 0.8660254038 | L21: 0.03015368961 | M21: 0.25 | N21: 0.984807753 | O21: 0.8660254038 | P21: 0.9396926208 | Q21: 0.5 | R21: 0.9698463104 | S21: 0.75 | T21: 0.08748866353
E22: 0.375 | F22: 0.2617993878 | G22: 0.436332313 | H22: 0.2588190451 | I22: 0.4226182617 | J22: 0.5 | K22: 0.7660444431 | L22: 0.06698729811 | M22: 0.1786061952 | N22: 0.9659258263 | O22: 0.906307787 | P22: 0.8660254038 | Q22: 0.6427876097 | R22: 0.9330127019 | S22: 0.8213938048 | T22: 0.1316524976
E23: 0.5 | F23: 0.3490658504 | G23: 0.3490658504 | H23: 0.3420201433 | I23: 0.3420201433 | J23: 0.6427876097 | K23: 0.6427876097 | L23: 0.1169777784 | M23: 0.1169777784 | N23: 0.9396926208 | O23: 0.9396926208 | P23: 0.7660444431 | Q23: 0.7660444431 | R23: 0.8830222216 | S23: 0.8830222216 | T23: 0.1763269807
E24: 0.625 | F24: 0.436332313 | G24: 0.2617993878 | H24: 0.4226182617 | I24: 0.2588190451 | J24: 0.7660444431 | K24: 0.5 | L24: 0.1786061952 | M24: 0.06698729811 | N24: 0.906307787 | O24: 0.9659258263 | P24: 0.6427876097 | Q24: 0.8660254038 | R24: 0.8213938048 | S24: 0.9330127019 | T24: 0.2216946626
E25: 0.75 | F25: 0.5235987756 | G25: 0.1745329252 | H25: 0.5 | I25: 0.1736481777 | J25: 0.8660254038 | K25: 0.3420201433 | L25: 0.25 | M25: 0.03015368961 | N25: 0.8660254038 | O25: 0.984807753 | P25: 0.5 | Q25: 0.9396926208 | R25: 0.75 | S25: 0.9698463104 | T25: 0.2679491924
E26: 0.875 | F26: 0.6108652382 | G26: 0.0872664626 | H26: 0.5735764364 | I26: 0.08715574275 | J26: 0.9396926208 | K26: 0.1736481777 | L26: 0.3289899283 | M26: 0.007596123494 | N26: 0.8191520443 | O26: 0.9961946981 | P26: 0.3420201433 | Q26: 0.984807753 | R26: 0.6710100717 | S26: 0.9924038765 | T26: 0.3152987889
E27: 1 | F27: 0.6981317008 | G27: 0 | H27: 0.6427876097 | I27: 0 | J27: 0.984807753 | K27: 0 | L27: 0.4131759112 | M27: 0 | N27: 0.7660444431 | O27: 1 | P27: 0.1736481777 | Q27: 1 | R27: 0.5868240888 | S27: 1 | T27: 0.3639702343
D28: ω | F28: =+F17*$G$7 -> 0 | G28: 0.0872664626 | H28: 0.1745329252 | I28: 0.2617993878 | J28: 0.3490658504 | K28: 0.436332313 | L28: 0.5235987756 | M28: 0.6108652382 | N28: 0.6981317008
D29: ω' | F29: =$G$7-F28 -> 0.6981317008 | G29: 0.6108652382 | H29: 0.5235987756 | I29: 0.436332313 | J29: 0.3490658504 | K29: 0.2617993878 | L29: 0.1745329252 | M29: 0.0872664626 | N29: 0
D30: (ω)^2 | F30: =+F28*F28 -> 0 | G30: =+G28*G28 -> 0.007615435495 | H30: 0.03046174198 | I30: 0.06853891945 | J30: 0.1218469679 | K30: 0.1903858874 | L30: 0.2741556778 | M30: 0.3731563392 | N30: 0.4873878717
D31: sin(ω) | F31: =+SIN(F28) -> 0 | G31: =+SIN(G28) -> 0.08715574275 | H31: 0.1736481777 | I31: 0.2588190451 | J31: 0.3420201433 | K31: 0.4226182617 | L31: 0.5 | M31: 0.5735764364 | N31: 0.6427876097
D32: sin(ω') | F32: =+SIN(F29) -> 0.6427876097 | G32: 0.5735764364 | H32: 0.5 | I32: 0.4226182617 | J32: 0.3420201433 | K32: 0.2588190451 | L32: 0.1736481777 | M32: 0.08715574275 | N32: 0
D33: sin(2ω) | F33: =+SIN(2*F28) -> 0 | G33: =+SIN(2*G28) -> 0.1736481777 | H33: 0.3420201433 | I33: 0.5 | J33: 0.6427876097 | K33: 0.7660444431 | L33: 0.8660254038 | M33: 0.9396926208 | N33: 0.984807753
D34: sin(2ω') | F34: =+SIN(2*F29) -> 0.984807753 | G34: 0.9396926208 | H34: 0.8660254038 | I34: 0.7660444431 | J34: 0.6427876097 | K34: 0.5 | L34: 0.3420201433 | M34: 0.1736481777 | N34: 0
D35: sin(ω)^2 | F35: =+F31*F31 -> 0 | G35: =+G31*G31 -> 0.007596123494 | H35: 0.03015368961 | I35: 0.06698729811 | J35: 0.1169777784 | K35: 0.1786061952 | L35: 0.25 | M35: 0.3289899283 | N35: 0.4131759112
D36: sin(ω')^2 | F36: =+F32*F32 -> 0.4131759112 | G36: 0.3289899283 | H36: 0.25 | I36: 0.1786061952 | J36: 0.1169777784 | K36: 0.06698729811 | L36: 0.03015368961 | M36: 0.007596123494 | N36: 0
D37: cos(ω) | F37: =+COS(F28) -> 1 | G37: =+COS(G28) -> 0.9961946981 | H37: 0.984807753 | I37: 0.9659258263 | J37: 0.9396926208 | K37: 0.906307787 | L37: 0.8660254038 | M37: 0.8191520443 | N37: 0.7660444431
D38: cos(ω') | F38: =+COS(F29) -> 0.7660444431 | G38: 0.8191520443 | H38: 0.8660254038 | I38: 0.906307787 | J38: 0.9396926208 | K38: 0.9659258263 | L38: 0.984807753 | M38: 0.9961946981 | N38: 1
D39: cos(2ω) | F39: =+COS(2*F28) -> 1 | G39: =+COS(2*G28) -> 0.984807753 | H39: 0.9396926208 | I39: 0.8660254038 | J39: 0.7660444431 | K39: 0.6427876097 | L39: 0.5 | M39: 0.3420201433 | N39: 0.1736481777
D40: cos(2ω') | F40: =+COS(2*F29) -> 0.1736481777 | G40: 0.3420201433 | H40: 0.5 | I40: 0.6427876097 | J40: 0.7660444431 | K40: 0.8660254038 | L40: 0.9396926208 | M40: 0.984807753 | N40: 1
D41: cos(ω)^2 | F41: =+F37*F37 -> 1 | G41: =+G37*G37 -> 0.9924038765 | H41: 0.9698463104 | I41: 0.9330127019 | J41: 0.8830222216 | K41: 0.8213938048 | L41: 0.75 | M41: 0.6710100717 | N41: 0.5868240888
D42: cos(ω')^2 | F42: =+F38*F38 -> 0.5868240888 | G42: 0.6710100717 | H42: 0.75 | I42: 0.8213938048 | J42: 0.8830222216 | K42: 0.9330127019 | L42: 0.9698463104 | M42: 0.9924038765 | N42: 1
D43: a1(ρ,ω)=a1(ω,ρ) | E43: =+E19 -> 0 | F43: =+$H19*F$31 -> 0 | G43: 0 | H43: 0 | I43: 0 | J43: 0 | K43: 0 | L43: 0 | M43: 0 | N43: 0
E44: =+E20 -> 0.125 | F44: 0 | G44: 0.007596123494 | H44: 0.0151344359 | I44: 0.02255756611 | J44: 0.02980901963 | K44: 0.0368336085 | L44: 0.04357787137 | M44: 0.04999048033 | N44: 0.05602263155
E45: 0.25 | F45: 0 | G45: 0.0151344359 | H45: 0.03015368961 | I45: 0.04494345553 | J45: 0.05939117461 | K45: 0.073386891 | L45: 0.08682408883 | M45: 0.09960050293 | N45: 0.111618897
E46: 0.375 | F46: 0 | G46: 0.02255756611 | H46: 0.04494345553 | I46: 0.06698729811 | J46: 0.0885213269 | K46: 0.1093816549 | L46: 0.1294095226 | M46: 0.1484525055 | N46: 0.1663656753
E47: 0.5 | F47: 0 | G47: 0.02980901963 | H47: 0.05939117461 | I47: 0.0885213269 | J47: 0.1169777784 | K47: 0.1445439585 | L47: 0.1710100717 | M47: 0.196174695 | N47: 0.2198463104
E48: 0.625 | F48: 0 | G48: 0.0368336085 | H48: 0.073386891 | I48: 0.1093816549 | J48: 0.1445439585 | K48: 0.1786061952 | L48: 0.2113091309 | M48: 0.2424038765 | N48: 0.2716537823
E49: 0.75 | F49: 0 | G49: 0.04357787137 | H49: 0.08682408883 | I49: 0.1294095226 | J49: 0.1710100717 | K49: 0.2113091309 | L49: 0.25 | M49: 0.2867882182 | N49: 0.3213938048
E50: 0.875 | F50: 0 | G50: 0.04999048033 | H50: 0.09960050293 | I50: 0.1484525055 | J50: 0.196174695 | K50: 0.2424038765 | L50: 0.2867882182 | M50: 0.3289899283 | N50: 0.3686878265
E51: 1 | F51: 0 | G51: 0.05602263155 | H51: 0.111618897 | I51: 0.1663656753 | J51: 0.2198463104 | K51: 0.2716537823 | L51: 0.3213938048 | M51: 0.3686878265 | N51: 0.4131759112
D52: a2(ρ,ω)=a2(ω,ρ) | E52: =+E43 -> 0 | F52: =+$N19*F$37 -> 1 | G52: 0.9961946981 | H52: 0.984807753 | I52: 0.9659258263 | J52: 0.9396926208 | K52: 0.906307787 | L52: 0.8660254038 | M52: 0.8191520443 | N52: 0.7660444431
E53: =+E44 -> 0.125 | F53: 0.9961946981 | G53: 0.9924038765 | H53: 0.9810602622 | I53: 0.9622501869 | J53: 0.9361168067 | K53: 0.9028590123 | L53: 0.8627299157 | M53: 0.8160349235 | N53: 0.7631294127
E54: 0.25 | F54: 0.984807753 | G54: 0.9810602622 | H54: 0.9698463104 | I54: 0.9512512426 | J54: 0.9254165784 | K54: 0.8925389353 | L54: 0.852868532 | M54: 0.8067072841 | N54: 0.7544065067
E55: 0.375 | F55: 0.9659258263 | G55: 0.9622501869 | H55: 0.9512512426 | I55: 0.9330127019 | J55: 0.9076733712 | K55: 0.8754260981 | L55: 0.8365163037 | M55: 0.7912401152 | N55: 0.7399421117
E56: 0.5 | F56: 0.9396926208 | G56: 0.9361168067 | H56: 0.9254165784 | I56: 0.9076733712 | J56: 0.8830222216 | K56: 0.8516507396 | L56: 0.8137976813 | M56: 0.7697511313 | N56: 0.7198463104
E57: 0.625 | F57: 0.906307787 | G57: 0.9028590123 | H57: 0.8925389353 | I57: 0.8754260981 | J57: 0.8516507396 | K57: 0.8213938048 | L57: 0.7848855672 | M57: 0.7424038765 | N57: 0.694272044
E58: 0.75 | F58: 0.8660254038 | G58: 0.8627299157 | H58: 0.852868532 | I58: 0.8365163037 | J58: 0.8137976813 | K58: 0.7848855672 | L58: 0.75 | M58: 0.7094064799 | N58: 0.6634139482
E59: 0.875 | F59: 0.8191520443 | G59: 0.8160349235 | H59: 0.8067072841 | I59: 0.7912401152 | J59: 0.7697511313 | K59: 0.7424038765 | L59: 0.7094064799 | M59: 0.6710100717 | N59: 0.6275068716
E60: 1 | F60: 0.7660444431 | G60: 0.7631294127 | H60: 0.7544065067 | I60: 0.7399421117 | J60: 0.7198463104 | K60: 0.694272044 | L60: 0.6634139482 | M60: 0.6275068716 | N60: 0.5868240888
D61: a3(ρ,ω)=a3(ω,ρ) | E61: 0 | F61: =+$I19*F$32 -> 0.4131759112 | G61: 0.3686878265 | H61: 0.3213938048 | I61: 0.2716537823 | J61: 0.2198463104 | K61: 0.1663656753 | L61: 0.111618897 | M61: 0.05602263155 | N61: 0
E62: 0.125 | F62: 0.3686878265 | G62: 0.3289899283 | H62: 0.2867882182 | I62: 0.2424038765 | J62: 0.196174695 | K62: 0.1484525055 | L62: 0.09960050293 | M62: 0.04999048033 | N62: 0
E63: 0.25 | F63: 0.3213938048 | G63: 0.2867882182 | H63: 0.25 | I63: 0.2113091309 | J63: 0.1710100717 | K63: 0.1294095226 | L63: 0.08682408883 | M63: 0.04357787137 | N63: 0
E64: 0.375 | F64: 0.2716537823 | G64: 0.2424038765 | H64: 0.2113091309 | I64: 0.1786061952 | J64: 0.1445439585 | K64: 0.1093816549 | L64: 0.073386891 | M64: 0.0368336085 | N64: 0
E65: 0.5 | F65: 0.2198463104 | G65: 0.196174695 | H65: 0.1710100717 | I65: 0.1445439585 | J65: 0.1169777784 | K65: 0.0885213269 | L65: 0.05939117461 | M65: 0.02980901963 | N65: 0
E66: 0.625 | F66: 0.1663656753 | G66: 0.1484525055 | H66: 0.1294095226 | I66: 0.1093816549 | J66: 0.0885213269 | K66: 0.06698729811 | L66: 0.04494345553 | M66: 0.02255756611 | N66: 0
E67: 0.75 | F67: 0.111618897 | G67: 0.09960050293 | H67: 0.08682408883 | I67: 0.073386891 | J67: 0.05939117461 | K67: 0.04494345553 | L67: 0.03015368961 | M67: 0.0151344359 | N67: 0
E68: 0.875 | F68: 0.05602263155 | G68: 0.04999048033 | H68: 0.04357787137 | I68: 0.0368336085 | J68: 0.02980901963 | K68: 0.02255756611 | L68: 0.0151344359 | M68: 0.007596123494 | N68: 0
E69: 1 | F69: 0 | G69: 0 | H69: 0 | I69: 0 | J69: 0 | K69: 0 | L69: 0 | M69: 0 | N69: 0
D70: a4(ρ,ω)=a4(ω,ρ) | E70: 0 | F70: =+$O19*F$38 -> 0.5868240888 | G70: 0.6275068716 | H70: 0.6634139482 | I70: 0.694272044 | J70: 0.7198463104 | K70: 0.7399421117 | L70: 0.7544065067 | M70: 0.7631294127 | N70: 0.7660444431
E71: 0.125 | F71: 0.6275068716 | G71: 0.6710100717 | H71: 0.7094064799 | I71: 0.7424038765 | J71: 0.7697511313 | K71: 0.7912401152 | L71: 0.8067072841 | M71: 0.8160349235 | N71: 0.8191520443
E72: 0.25 | F72: 0.6634139482 | G72: 0.7094064799 | H72: 0.75 | I72: 0.7848855672 | J72: 0.8137976813 | K72: 0.8365163037 | L72: 0.852868532 | M72: 0.8627299157 | N72: 0.8660254038
E73: 0.375 | F73: 0.694272044 | G73: 0.7424038765 | H73: 0.7848855672 | I73: 0.8213938048 | J73: 0.8516507396 | K73: 0.8754260981 | L73: 0.8925389353 | M73: 0.9028590123 | N73: 0.906307787
E74: 0.5 | F74: 0.7198463104 | G74: 0.7697511313 | H74: 0.8137976813 | I74: 0.8516507396 | J74: 0.8830222216 | K74: 0.9076733712 | L74: 0.9254165784 | M74: 0.9361168067 | N74: 0.9396926208
E75: 0.625 | F75: 0.7399421117 | G75: 0.7912401152 | H75: 0.8365163037 | I75: 0.8754260981 | J75: 0.9076733712 | K75: 0.9330127019 | L75: 0.9512512426 | M75: 0.9622501869 | N75: 0.9659258263
E76: 0.75 | F76: 0.7544065067 | G76: 0.8067072841 | H76: 0.852868532 | I76: 0.8925389353 | J76: 0.9254165784 | K76: 0.9512512426 | L76: 0.9698463104 | M76: 0.9810602622 | N76: 0.984807753
E77: 0.875 | F77: 0.7631294127 | G77: 0.8160349235 | H77: 0.8627299157 | I77: 0.9028590123 | J77: 0.9361168067 | K77: 0.9622501869 | L77: 0.9810602622 | M77: 0.9924038765 | N77: 0.9961946981
E78: 1 | F78: 0.7660444431 | G78: 0.8191520443 | H78: 0.8660254038 | I78: 0.906307787 | J78: 0.9396926208 | K78: 0.9659258263 | L78: 0.984807753 | M78: 0.9961946981 | N78: 1
D79: a5(ρ,ω)=a5(ω,ρ) | E79: 0 | F79: =+($G$11-$I19)*($G$11-F$32) -> 0 | G79: 0 | H79: 0 | I79: 0 | J79: 0 | K79: 0 | L79: 0 | M79: 0 | N79: 0
E80: 0.125 | F80: 0 | G80: 0.004790186514 | H80: 0.009882498004 | I80: 0.0152381789 | J80: 0.02081646925 | K80: 0.02657491488 | L80: 0.03246969055 | M80: 0.03845593345 | N80: 0.04448808467
E81: 0.25 | F81: 0 | G81: 0.009882498004 | H81: 0.02038830148 | I81: 0.03143745492 | J81: 0.04294586759 | K81: 0.05482595353 | L81: 0.06698729811 | M81: 0.07933734615 | N81: 0.09178210632
E82: 0.375 | F82: 0 | G82: 0.0152381789 | H82: 0.03143745492 | I82: 0.04847454177 | J82: 0.06621977695 | K82: 0.0845381085 | L82: 0.1032901228 | M82: 0.1223331058 | N82: 0.1415221289
E83: 0.5 | F83: 0 | G83: 0.02081646925 | H83: 0.04294586759 | I83: 0.06621977695 | J83: 0.09046106882 | K83: 0.1154852523 | L83: 0.1411018783 | M83: 0.1671159888 | N83: 0.1933296008
E84: 0.625 | F84: 0 | G84: 0.02657491488 | H84: 0.05482595353 | I84: 0.0845381085 | J84: 0.1154852523 | K84: 0.1474318586 | L84: 0.1801347943 | M84: 0.2133451704 | N84: 0.2468102358
E85: 0.75 | F85: 0 | G85: 0.03246969055 | H85: 0.06698729811 | I85: 0.1032901228 | J85: 0.1411018783 | K85: 0.1801347943 | L85: 0.2200918067 | M85: 0.2606688185 | N85: 0.3015570141
E86: 0.875 | F86: 0 | G86: 0.03845593345 | H86: 0.07933734615 | I86: 0.1223331058 | J86: 0.1671159888 | K86: 0.2133451704 | L86: 0.2606688185 | M86: 0.3087267716 | N86: 0.3571532796
E87: 1 | F87: 0 | G87: 0.04448808467 | H87: 0.09178210632 | I87: 0.1415221289 | J87: 0.1933296008 | K87: 0.2468102358 | L87: 0.3015570141 | M87: 0.3571532796 | N87: 0.4131759112
D88: a6(ρ,ω) | E88: 0 | F88: =+$H19*F$37 -> 0 | G88: 0 | H88: 0 | I88: 0 | J88: 0 | K88: 0 | L88: 0 | M88: 0 | N88: 0
E89: 0.125 | F89: 0.08715574275 | G89: 0.08682408883 | H89: 0.08583165118 | I89: 0.08418598283 | J89: 0.08189960832 | K89: 0.07898992834 | L89: 0.07547908731 | M89: 0.07139380484 | N89: 0.06676517242
E90: 0.25 | F90: 0.1736481777 | G90: 0.1729873939 | H90: 0.1710100717 | I90: 0.1677312595 | J90: 0.1631759112 | K90: 0.1573786956 | L90: 0.1503837332 | M90: 0.1422442597 | N90: 0.1330222216
E91: 0.375 | F91: 0.2588190451 | G91: 0.2578341605 | H91: 0.2548870022 | I91: 0.25 | J91: 0.2432103468 | K91: 0.234569716 | L91: 0.224143868 | M91: 0.2120121499 | N91: 0.1982668913
E92: 0.5 | F92: 0.3420201433 | G92: 0.3407186534 | H92: 0.3368240888 | I92: 0.3303660895 | J92: 0.3213938048 | K92: 0.3099755192 | L92: 0.2961981327 | M92: 0.2801664996 | N92: 0.2620026302
E93: 0.625 | F93: 0.4226182617 | G93: 0.4210100717 | H93: 0.4161977407 | I93: 0.4082178937 | J93: 0.397131262 | K93: 0.3830222216 | L93: 0.3659981508 | M93: 0.3461886131 | N93: 0.323744371
E94: 0.75 | F94: 0.5 | G94: 0.498097349 | H94: 0.4924038765 | I94: 0.4829629131 | J94: 0.4698463104 | K94: 0.4531538935 | L94: 0.4330127019 | M94: 0.4095760221 | N94: 0.3830222216
E95: 0.875 | F95: 0.5735764364 | G95: 0.5713938048 | H95: 0.5648625215 | I95: 0.5540322932 | J95: 0.5389855447 | K95: 0.5198367907 | L95: 0.4967317649 | M95: 0.4698463104 | N95: 0.4393850418
E96: 1 | F96: 0.6427876097 | G96: 0.6403416088 | H96: 0.6330222216 | I96: 0.620885153 | J96: 0.6040227736 | K96: 0.5825634161 | L96: 0.5566703992 | M96: 0.5265407845 | N96: 0.4924038765
D97: a6(ω,ρ) | E97: 0 | F97: =+F$31*$N19 -> 0 | G97: 0.08715574275 | H97: 0.1736481777 | I97: 0.2588190451 | J97: 0.3420201433 | K97: 0.4226182617 | L97: 0.5 | M97: 0.5735764364 | N97: 0.6427876097
E98: 0.125 | F98: 0 | G98: 0.08682408883 | H98: 0.1729873939 | I98: 0.2578341605 | J98: 0.3407186534 | K98: 0.4210100717 | L98: 0.498097349 | M98: 0.5713938048 | N98: 0.6403416088
E99: 0.25 | F99: 0 | G99: 0.08583165118 | H99: 0.1710100717 | I99: 0.2548870022 | J99: 0.3368240888 | K99: 0.4161977407 | L99: 0.4924038765 | M99: 0.5648625215 | N99: 0.6330222216
E100: 0.375 | F100: 0 | G100: 0.08418598283 | H100: 0.1677312595 | I100: 0.25 | J100: 0.3303660895 | K100: 0.4082178937 | L100: 0.4829629131 | M100: 0.5540322932 | N100: 0.620885153
E101: 0.5 | F101: 0 | G101: 0.08189960832 | H101: 0.1631759112 | I101: 0.2432103468 | J101: 0.3213938048 | K101: 0.397131262 | L101: 0.4698463104 | M101: 0.5389855447 | N101: 0.6040227736
E102: 0.625 | F102: 0 | G102: 0.07898992834 | H102: 0.1573786956 | I102: 0.234569716 | J102: 0.3099755192 | K102: 0.3830222216 | L102: 0.4531538935 | M102: 0.5198367907 | N102: 0.5825634161
E103: 0.75 | F103: 0 | G103: 0.07547908731 | H103: 0.1503837332 | I103: 0.224143868 | J103: 0.2961981327 | K103: 0.3659981508 | L103: 0.4330127019 | M103: 0.4967317649 | N103: 0.5566703992
E104: 0.875 | F104: 0 | G104: 0.07139380484 | H104: 0.1422442597 | I104: 0.2120121499 | J104: 0.2801664996 | K104: 0.3461886131 | L104: 0.4095760221 | M104: 0.4698463104 | N104: 0.5265407845
E105: 1 | F105: 0 | G105: 0.06676517242 | H105: 0.1330222216 | I105: 0.1982668913 | J105: 0.2620026302 | K105: 0.323744371 | L105: 0.3830222216 | M105: 0.4393850418 | N105: 0.4924038765
D106: a7(ρ,ω) | E106: 0 | F106: =+$H19*F$38 -> 0 | G106: 0 | H106: 0 | I106: 0 | J106: 0 | K106: 0 | L106: 0 | M106: 0 | N106: 0
E107: 0.125 | F107: 0.06676517242 | G107: 0.07139380484 | H107: 0.07547908731 | I107: 0.07898992834 | J107: 0.08189960832 | K107: 0.08418598283 | L107: 0.08583165118 | M107: 0.08682408883 | N107: 0.08715574275
E108: 0.25 | F108: 0.1330222216 | G108: 0.1422442597 | H108: 0.1503837332 | I108: 0.1573786956 | J108: 0.1631759112 | K108: 0.1677312595 | L108: 0.1710100717 | M108: 0.1729873939 | N108: 0.1736481777
E109: 0.375 | F109: 0.1982668913 | G109: 0.2120121499 | H109: 0.224143868 | I109: 0.234569716 | J109: 0.2432103468 | K109: 0.25 | L109: 0.2548870022 | M109: 0.2578341605 | N109: 0.2588190451
E110: 0.5 | F110: 0.2620026302 | G110: 0.2801664996 | H110: 0.2961981327 | I110: 0.3099755192 | J110: 0.3213938048 | K110: 0.3303660895 | L110: 0.3368240888 | M110: 0.3407186534 | N110: 0.3420201433
E111: 0.625 | F111: 0.323744371 | G111: 0.3461886131 | H111: 0.3659981508 | I111: 0.3830222216 | J111: 0.397131262 | K111: 0.4082178937 | L111: 0.4161977407 | M111: 0.4210100717 | N111: 0.4226182617
E112: 0.75 | F112: 0.3830222216 | G112: 0.4095760221 | H112: 0.4330127019 | I112: 0.4531538935 | J112: 0.4698463104 | K112: 0.4829629131 | L112: 0.4924038765 | M112: 0.498097349 | N112: 0.5
E113: 0.875 | F113: 0.4393850418 | G113: 0.4698463104 | H113: 0.4967317649 | I113: 0.5198367907 | J113: 0.5389855447 | K113: 0.5540322932 | L113: 0.5648625215 | M113: 0.5713938048 | N113: 0.5735764364
E114: 1 | F114: 0.4924038765 | G114: 0.5265407845 | H114: 0.5566703992 | I114: 0.5825634161 | J114: 0.6040227736 | K114: 0.620885153 | L114: 0.6330222216 | M114: 0.6403416088 | N114: 0.6427876097
D115: a7(ω,ρ) | E115: 0 | F115: =+F$31*$O19 -> 0 | G115: 0.06676517242 | H115: 0.1330222216 | I115: 0.1982668913 | J115: 0.2620026302 | K115: 0.323744371 | L115: 0.3830222216 | M115: 0.4393850418 | N115: 0.4924038765
E116: 0.125 | F116: 0 | G116: 0.07139380484 | H116: 0.1422442597 | I116: 0.2120121499 | J116: 0.2801664996 | K116: 0.3461886131 | L116: 0.4095760221 | M116: 0.4698463104 | N116: 0.5265407845
E117: =+E108 -> 0.25 | F117: 0 | G117: 0.07547908731 | H117: 0.1503837332 | I117: 0.224143868 | J117: 0.2961981327 | K117: 0.3659981508 | L117: 0.4330127019 | M117: 0.4967317649 | N117: 0.5566703992
E118: 0.375 | F118: 0 | G118: 0.07898992834 | H118: 0.1573786956 | I118: 0.234569716 | J118: 0.3099755192 | K118: 0.3830222216 | L118: 0.4531538935 | M118: 0.5198367907 | N118: 0.5825634161
E119: 0.5 | F119: 0 | G119: 0.08189960832 | H119: 0.1631759112 | I119: 0.2432103468 | J119: 0.3213938048 | K119: 0.397131262 | L119: 0.4698463104 | M119: 0.5389855447 | N119: 0.6040227736
E120: 0.625 | F120: 0 | G120: 0.08418598283 | H120: 0.1677312595 | I120: 0.25 | J120: 0.3303660895 | K120: 0.4082178937 | L120: 0.4829629131 | M120: 0.5540322932 | N120: 0.620885153
E121: 0.75 | F121: 0 | G121: 0.08583165118 | H121: 0.1710100717 | I121: 0.2548870022 | J121: 0.3368240888 | K121: 0.4161977407 | L121: 0.4924038765 | M121: 0.5648625215 | N121: 0.6330222216
E122: 0.875 | F122: 0 | G122: 0.08682408883 | H122: 0.1729873939 | I122: 0.2578341605 | J122: 0.3407186534 | K122: 0.4210100717 | L122: 0.498097349 | M122: 0.5713938048 | N122: 0.6403416088
E123: 1 | F123: 0 | G123: 0.08715574275 | H123: 0.1736481777 | I123: 0.2588190451 | J123: 0.3420201433 | K123: 0.4226182617 | L123: 0.5 | M123: 0.5735764364 | N123: 0.6427876097
D124: a8(ρ,ω) | E124: 0 | F124: =+$I19*F$31 -> 0 | G124: 0.05602263155 | H124: 0.111618897 | I124: 0.1663656753 | J124: 0.2198463104 | K124: 0.2716537823 | L124: 0.3213938048 | M124: 0.3686878265 | N124: 0.4131759112
E125: 0.125 | F125: 0 | G125: 0.04999048033 | H125: 0.09960050293 | I125: 0.1484525055 | J125: 0.196174695 | K125: 0.2424038765 | L125: 0.2867882182 | M125: 0.3289899283 | N125: 0.3686878265
E126: 0.25 | F126: 0 | G126: 0.04357787137 | H126: 0.08682408883 | I126: 0.1294095226 | J126: 0.1710100717 | K126: 0.2113091309 | L126: 0.25 | M126: 0.2867882182 | N126: 0.3213938048
E127: 0.375 | F127: 0 | G127: 0.0368336085 | H127: 0.073386891 | I127: 0.1093816549 | J127: 0.1445439585 | K127: 0.1786061952 | L127: 0.2113091309 | M127: 0.2424038765 | N127: 0.2716537823
E128: 0.5 | F128: 0 | G128: 0.02980901963 | H128: 0.05939117461 | I128: 0.0885213269 | J128: 0.1169777784 | K128: 0.1445439585 | L128: 0.1710100717 | M128: 0.196174695 | N128: 0.2198463104
E129: 0.625 | F129: 0 | G129: 0.02255756611 | H129: 0.04494345553 | I129: 0.06698729811 | J129: 0.0885213269 | K129: 0.1093816549 | L129: 0.1294095226 | M129: 0.1484525055 | N129: 0.1663656753
E130: 0.75 | F130: 0 | G130: 0.0151344359 | H130: 0.03015368961 | I130: 0.04494345553 | J130: 0.05939117461 | K130: 0.073386891 | L130: 0.08682408883 | M130: 0.09960050293 | N130: 0.111618897
E131: 0.875 | F131: 0 | G131: 0.007596123494 | H131: 0.0151344359 | I131: 0.02255756611 | J131: 0.02980901963 | K131: 0.0368336085 | L131: 0.04357787137 | M131: 0.04999048033 | N131: 0.05602263155
E132: 1 | F132: 0 | G132: 0 | H132: 0 | I132: 0 | J132: 0 | K132: 0 | L132: 0 | M132: 0 | N132: 0
D133: a8(ω,ρ) | E133: 0 | F133: =+F$32*$H19 -> 0 | G133: 0 | H133: 0 | I133: 0 | J133: 0 | K133: 0 | L133: 0 | M133: 0 | N133: 0
E134: 0.125 | F134: 0.05602263155 | G134: 0.04999048033 | H134: 0.04357787137 | I134: 0.0368336085 | J134: 0.02980901963 | K134: 0.02255756611 | L134: 0.0151344359 | M134: 0.007596123494 | N134: 0
E135: 0.25 | F135: 0.111618897 | G135: 0.09960050293 | H135: 0.08682408883 | I135: 0.073386891 | J135: 0.05939117461 | K135: 0.04494345553 | L135: 0.03015368961 | M135: 0.0151344359 | N135: 0
E136: 0.375 | F136: 0.1663656753 | G136: 0.1484525055 | H136: 0.1294095226 | I136: 0.1093816549 | J136: 0.0885213269 | K136: 0.06698729811 | L136: 0.04494345553 | M136: 0.02255756611 | N136: 0
E137: 0.5 | F137: 0.2198463104 | G137: 0.196174695 | H137: 0.1710100717 | I137: 0.1445439585 | J137: 0.1169777784 | K137: 0.0885213269 | L137: 0.05939117461 | M137: 0.02980901963 | N137: 0
E138: 0.625 | F138: 0.2716537823 | G138: 0.2424038765 | H138: 0.2113091309 | I138: 0.1786061952 | J138: 0.1445439585 | K138: 0.1093816549 | L138: 0.073386891 | M138: 0.0368336085 | N138: 0
E139: 0.75 | F139: 0.3213938048 | G139: 0.2867882182 | H139: 0.25 | I139: 0.2113091309 | J139: 0.1710100717 | K139: 0.1294095226 | L139: 0.08682408883 | M139: 0.04357787137 | N139: 0
E140: 0.875 | F140: 0.3686878265 | G140: 0.3289899283 | H140: 0.2867882182 | I140: 0.2424038765 | J140: 0.196174695 | K140: 0.1484525055 | L140: 0.09960050293 | M140: 0.04999048033 | N140: 0
E141: 1 | F141: 0.4131759112 | G141: 0.3686878265 | H141: 0.3213938048 | I141: 0.2716537823 | J141: 0.2198463104 | K141: 0.1663656753 | L141: 0.111618897 | M141: 0.05602263155 | N141: 0
D142: a9(ρ,ω) | E142: 0 | F142: =+$I19*F$37 -> 0.6427876097 | G142: 0.6403416088 | H142: 0.6330222216 | I142: 0.620885153 | J142: 0.6040227736 | K142: 0.5825634161 | L142: 0.5566703992 | M142: 0.5265407845 | N142: 0.4924038765
E143: 0.125 | F143: 0.5735764364 | G143: 0.5713938048 | H143: 0.5648625215 | I143: 0.5540322932 | J143: 0.5389855447 | K143: 0.5198367907 | L143: 0.4967317649 | M143: 0.4698463104 | N143: 0.4393850418
E144: 0.25 | F144: 0.5 | G144: 0.498097349 | H144: 0.4924038765 | I144: 0.4829629131 | J144: 0.4698463104 | K144: 0.4531538935 | L144: 0.4330127019 | M144: 0.4095760221 | N144: 0.3830222216
E145: 0.375 | F145: 0.4226182617 | G145: 0.4210100717 | H145: 0.4161977407 | I145: 0.4082178937 | J145: 0.397131262 | K145: 0.3830222216 | L145: 0.3659981508 | M145: 0.3461886131 | N145: 0.323744371
E146: 0.5 | F146: 0.3420201433 | G146: 0.3407186534 | H146: 0.3368240888 | I146: 0.3303660895 | J146: 0.3213938048 | K146: 0.3099755192 | L146: 0.2961981327 | M146: 0.2801664996 | N146: 0.2620026302
E147: 0.625 | F147: 0.2588190451 | G147: 0.2578341605 | H147: 0.2548870022 | I147: 0.25 | J147: 0.2432103468 | K147: 0.234569716 | L147: 0.224143868 | M147: 0.2120121499 | N147: 0.1982668913
E148: 0.75 | F148: 0.1736481777 | G148: 0.1729873939 | H148: 0.1710100717 | I148: 0.1677312595 | J148: 0.1631759112 | K148: 0.1573786956 | L148: 0.1503837332 | M148: 0.1422442597 | N148: 0.1330222216
E149: 0.875 | F149: 0.08715574275 | G149: 0.08682408883 | H149: 0.08583165118 | I149: 0.08418598283 | J149: 0.08189960832 | K149: 0.07898992834 | L149: 0.07547908731 | M149: 0.07139380484 | N149: 0.06676517242
E150: 1 | F150: 0 | G150: 0 | H150: 0 | I150: 0 | J150: 0 | K150: 0 | L150: 0 | M150: 0 | N150: 0
D151: a9(ω,ρ) | E151: 0 | F151: =+F$32*$N19 -> 0.6427876097 | G151: =+G$32*$N19 -> 0.5735764364 | H151: 0.5 | I151: 0.4226182617 | J151: 0.3420201433 | K151: 0.2588190451 | L151: 0.1736481777 | M151: 0.08715574275 | N151: 0
E152: 0.125 | F152: =+F$32*$N20 -> 0.6403416088 | G152: 0.5713938048 | H152: 0.498097349 | I152: 0.4210100717 | J152: 0.3407186534 | K152: 0.2578341605 | L152: 0.1729873939 | M152: 0.08682408883 | N152: 0
E153: 0.25 | F153: 0.6330222216 | G153: 0.5648625215 | H153: 0.4924038765 | I153: 0.4161977407 | J153: 0.3368240888 | K153: 0.2548870022 | L153: 0.1710100717 | M153: 0.08583165118 | N153: 0
E154: 0.375 | F154: 0.620885153 | G154: 0.5540322932 | H154: 0.4829629131 | I154: 0.4082178937 | J154: 0.3303660895 | K154: 0.25 | L154: 0.1677312595 | M154: 0.08418598283 | N154: 0
E155: 0.5 | F155: 0.6040227736 | G155: 0.5389855447 | H155: 0.4698463104 | I155: 0.397131262 | J155: 0.3213938048 | K155: 0.2432103468 | L155: 0.1631759112 | M155: 0.08189960832 | N155: 0
E156: 0.625 | F156: 0.5825634161 | G156: 0.5198367907 | H156: 0.4531538935 | I156: 0.3830222216 | J156: 0.3099755192 | K156: 0.234569716 | L156: 0.1573786956 | M156: 0.07898992834 | N156: 0
E157: 0.75 | F157: 0.5566703992 | G157: 0.4967317649 | H157: 0.4330127019 | I157: 0.3659981508 | J157: 0.2961981327 | K157: 0.224143868 | L157: 0.1503837332 | M157: 0.07547908731 | N157: 0
E158: 0.875 | F158: 0.5265407845 | G158: 0.4698463104 | H158: 0.4095760221 | I158: 0.3461886131 | J158: 0.2801664996 | K158: 0.2120121499 | L158: 0.1422442597 | M158: 0.07139380484 | N158: 0
E159: 1 | F159: 0.4924038765 | G159: 0.4393850418 | H159: 0.3830222216 | I159: 0.323744371 | J159: 0.2620026302 | K159: 0.1982668913 | L159: 0.1330222216 | M159: 0.06676517242 | N159: 0
D160: a10(ρ,ω) | E160: 0 | F160: =+$I19*F$38 -> 0.4924038765 | G160: 0.5265407845 | H160: 0.5566703992 | I160: 0.5825634161 | J160: 0.6040227736 | K160: 0.620885153 | L160: 0.6330222216 | M160: 0.6403416088 | N160: 0.6427876097
E161: 0.125 | F161: 0.4393850418 | G161: 0.4698463104 | H161: 0.4967317649 | I161: 0.5198367907 | J161: 0.5389855447 | K161: 0.5540322932 | L161: 0.5648625215 | M161: 0.5713938048 | N161: 0.5735764364
E162: 0.25 | F162: 0.3830222216 | G162: 0.4095760221 | H162: 0.4330127019 | I162: 0.4531538935 | J162: 0.4698463104 | K162: 0.4829629131 | L162: 0.4924038765 | M162: 0.498097349 | N162: 0.5
E163: 0.375 | F163: 0.323744371 | G163: 0.3461886131 | H163: 0.3659981508 | I163: 0.3830222216 | J163: 0.397131262 | K163: 0.4082178937 | L163: 0.4161977407 | M163: 0.4210100717 | N163: 0.4226182617
E164: 0.5 | F164: 0.2620026302 | G164: 0.2801664996 | H164: 0.2961981327 | I164: 0.3099755192 | J164: 0.3213938048 | K164: 0.3303660895 | L164: 0.3368240888 | M164: 0.3407186534 | N164: 0.3420201433
E165: 0.625 | F165: 0.1982668913 | G165: 0.2120121499 | H165: 0.224143868 | I165: 0.234569716 | J165: 0.2432103468 | K165: 0.25 | L165: 0.2548870022 | M165: 0.2578341605 | N165: 0.2588190451
E166: 0.75 | F166: 0.1330222216 | G166: 0.1422442597 | H166: 0.1503837332 | I166: 0.1573786956 | J166: 0.1631759112 | K166: 0.1677312595 | L166: 0.1710100717 | M166: 0.1729873939 | N166: 0.1736481777
